Workbook

Sheet RESUMO MODULO TOTAL
A1: >>>> | B1: EXECUÇÃO DE SERVIÇOS DE PAVIMENTAÇÃO COM TRATAMENTO SUPERFICIAL DUPLO EM VIAS DE MUNICÍPIOS DIVERSOS INSERIDOS NA ÁREA DE ATUAÇÃO DA CIDEVASF, NO ESTADO DO CEARÁ - LOTE 3
M2: SICRO: | N2: ='SINTÉTICO SICRO'!B2 -> Ceará - Abril/2023
M3: SINAPI: | N3: =RIGHT('INSUMOS SINAPI'!A3,7) -> 09/2023
M4: Data base do orçamento: | N4: =TEXT(TODAY(),"mmm/aa") -> nov/23
B5: =B1 -> EXECUÇÃO DE SERVIÇOS DE PAVIMENTAÇÃO COM TRATAMENTO SUPERFICIAL DUPLO EM VIAS DE MUNICÍPIOS DIVERSOS INSERIDOS NA ÁREA DE ATUAÇÃO DA CIDEVASF, NO ESTADO DO CEARÁ - LOTE 3
B6: ITEM | C6: ORIGEM COMPOSIÇÃO | D6: CÓDIGO COMPOSIÇÃO | E6: DISCRIMINAÇÃO DOS SERVIÇOS | I6: BDI % = | J6: =BDI!C15 -> 0.233 | K6: BDI DIFERENCIADO % = | L6: =BDI!C56 -> 0.15 | M6: R$/m² | N6: =N56/I8 -> 0
I7: Total de m² | J7: Encargos Sociais: | K7: Horista % | L7: Mensalista % | M7: PREÇO UNITÁRIO COM BDI | N7: PREÇO TOTAL COM BDI
I8: ='MC MODULO'!I1*'MC MODULO'!E1*'MC MODULO'!E2 -> 238000 | K8: ='ENC. SOCIAIS'!$E$51 -> 0 | L8: ='ENC. SOCIAIS'!$F$51 -> 0
I9: UND | J9: QTDE. | K9: BDI | L9: PREÇO UNITÁRIO | O9: =J11/7 -> 34000 | AA9: TOTAL
E10: MOBILIZAÇÃO | O10: =J11/7 -> 34000 | S10: Índices de reajustamento
B11: 1 | C11: Codevasf | D11: CPU-02 | E11: Implantação da Obra | I11: m² | J11: ='MC MODULO'!R57 -> 238000 | N11: =ROUND(ROUND(J11,2)*ROUND(M11,6),2) -> 0 | O11: =N11 -> 0 | P11: =_xlfn.RANK.EQ(O11,$O$11:$O$55) -> 1 | Q11: INCC | R11: =SUMIF(Q11:Q55,"INCC",N11:N55) -> 0 | S11: =R11/N56 ->  | T11: INCC | AA11: 57163.47
B12: 2 | C12: Codevasf | D12: CPU-03 | E12: Administração da Obra | I12: m² | J12: ='MC MODULO'!R57 -> 238000 | N12: =ROUND(ROUND(J12,2)*ROUND(M12,6),2) -> 0 | O12: =N12 -> 0 | P12: 1 | Q12: INCC | R12: =SUMIF(Q11:Q55,"P",N11:N55) -> 0 | S12: =R12/N56 ->  | T12: P | AA12: 190291.53
B13: 3 | C13: Codevasf | D13: CPU-04 | E13: Canteiro de Obras e Almoxarifado | I13: und | J13: ='MC MODULO'!N20 -> 17 | N13: 0 | O13: 0 | P13: 1 | Q13: INCC | R13: =SUMIF(Q11:Q56,"D",N11:N55) -> 0 | S13: =R13/N56 ->  | T13: D
B14: 4 | C14: Codevasf | D14: CPU-01 | E14: Placa de Obra em Chapa de Aço Galvanizado | I14: und | J14: ='MC MODULO'!N25 -> 17 | N14: 0 | O14: 0 | P14: 1 | Q14: INCC | R14: =SUMIF(Q11:Q56,"T",N11:N55) -> 0 | S14: =R14/N56 ->  | T14: T | AA14: 17815.2
E15: TERRAPLANAGEM | O15: 0 | P15: 1
B16: 5 | C16: Codevasf | D16: CPU-16 | E16: Serviços topográficos para pavimentação, inclusive notas de serviços, acompanhamento e greide | I16: m² | J16: ='MC MODULO'!R32 -> 238000 | N16: =ROUND(ROUND(J16,2)*ROUND(M16,6),2) -> 0 | O16: 0 | P16: 1 | Q16: T | AA16: 278460
B17: 6 | C17: SICRO | D17: 5502114 | E17: Escavação, carga e transporte de material de 1ª categoria - DMT de 1.000 a 1.200 m - caminho de serviço em leito natural - com escavadeira e caminhão basculante de 14 m³ | I17: m³ | J17: ='MC MODULO'!R37 -> 77350 | N17: 0 | O17: 0 | P17: 1 | Q17: T | AA17: 366912
B18: 7 | C18: SICRO | D18: 4413942 | E18: Espalhamento de material em bota-fora | I18: m³ | J18: ='MC MODULO'!R44 -> 77350 | N18: 0 | O18: 0 | P18: 1 | Q18: T | AA18: 84084 | AF18: 1
E19: PAVIMENTAÇÃO | O19: 0 | P19: 1 | S19: 0.3 | T19: 0.15
B20: 8 | C20: SICRO | D20: 4915637 | E20: Capa Selante | I20: m² | J20: ='MC MODULO'!R51 -> 238000 | N20: =ROUND(ROUND(J20,2)*ROUND(M20,6),2) -> 0 | O20: 0 | P20: 1 | Q20: P | S20: =J20*S19 -> 71400 | AA20: 13037300.31
B21: 9 | C21: SICRO | D21: 4011376 | E21: Tratamento Superficial Duplo com Emulsão - Brita Comercial | I21: m² | J21: ='MC MODULO'!R57 -> 238000 | N21: 0 | O21: =N21 -> 0 | P21: 1 | Q21: P | AA21: 223860
B22: 10 | C22: SICRO | D22: 4011351 | E22: Imprimação com asfalto diluído | I22: m² | J22: ='MC MODULO'!R57 -> 238000 | N22: 0 | O22: 0 | P22: 1 | Q22: P | AA22: 223860
B23: 11 | C23: SICRO | D23: 4011268 | E23: Base estabilizada granulometricamente com mistura solo brita (70% - 30%) em usina com material de jazida e brita comercial | I23: m³ | J23: ='MC MODULO'!R68 -> 47600 | N23: 0 | O23: 0 | P23: 1 | Q23: P | S23: =J23*S19 -> 14280 | AA23: 15919722
B24: 12 | C24: SICRO | D24: 4011235 | E24: Sub-base estabilizada granulometricamente com mistura solo brita (70% - 30%) em usina com material de jazida e brita comercial | I24: m³ | J24: ='MC MODULO'!R74 -> 59500 | N24: 0 | O24: 0 | P24: 1 | Q24: P | AA24: 2045862
B25: 13 | C25: SICRO | D25: 4011209 | E25: Regularização do subleito | I25: m² | J25: ='MC MODULO'!R80 -> 238000 | N25: 0 | O25: 0 | P25: 1 | Q25: P | AA25: 540540
E26: AQUISIÇÃO E TRANSPORTE DO MATERIAL BETUMINOSO | O26: 0 | P26: 1
B27: 14 | C27: CODEVASF | D27: CPU-14 | E27: AQUISIÇÃO DE CM-30 | I27: t | J27: =' CONSUMO DE MAT. B TOTAL'!P9 -> 285.6 | N27: =ROUND(ROUND(J27,2)*ROUND(M27,6),2) -> 0 | O27: 0 | P27: 1 | Q27: P | AA27: 3101079.07
B28: 15 | C28: CODEVASF | D28: CPU-18 | E28: TRANSPORTE DE CM-30 | I28: t | J28: =' CONSUMO DE MAT. B TOTAL'!P9 -> 285.6 | N28: 0 | O28: 0 | P28: 1 | Q28: P | AA28: 1243849.15
B29: 16 | C29: CODEVASF | D29: CPU-15 | E29: AQUISIÇÃO DE EMULSÃO ASFÁLTICA RR-2C | I29: t | J29: =' CONSUMO DE MAT. B TOTAL'!P11+' CONSUMO DE MAT. B TOTAL'!P13+' CONSUMO DE MAT. B TOTAL'!P15 -> 714 | N29: 0 | O29: 0 | P29: 1 | Q29: P | AA29: 775269.77
B30: 17 | C30: CODEVASF | D30: CPU-19 | E30: TRANSPORTE RR-2C | I30: t | J30: =J29 -> 714 | N30: 0 | O30: 0 | P30: 1 | Q30: P | AA30: 310962.288
E31: SINALIZAÇÃO | O31: 0
B32: 18 | C32: SICRO | D32: 5213440 | E32: Fornecimento e implantação de placa de regulamentação em aço D = 0,60 m - película retrorrefletiva tipo I + SI | I32: und | J32: ='MC MODULO'!R87 -> 17 | N32: =ROUND(ROUND(J32,2)*ROUND(M32,6),2) -> 0 | O32: 0 | P32: =_xlfn.RANK.EQ(O32,$O$11:$O$55) -> 1 | Q32: INCC | AA32: 9985.95
B33: 19 | C33: SICRO | D33: 5213863 | E33: Suporte metálico galvanizado para placa de advertência ou regulamentação - lado ou diâmetro de 0,60 m - fornecimento e implantação | I33: und | J33: ='MC MODULO'!R93 -> 17 | N33: 0 | O33: 0 | P33: =_xlfn.RANK.EQ(O33,$O$11:$O$55) -> 1 | Q33: INCC | AA33: 13086.06
B34: 20 | C34: SICRO | D34: 5213400 | E34: Pintura de faixa com tinta acrílica - espessura de 0,4 mm | I34: m² | J34: ='MC MODULO'!R98*2+'MC MODULO'!R103 -> 8160 | N34: 0 | O34: 0 | P34: =_xlfn.RANK.EQ(O34,$O$11:$O$55) -> 1 | Q34: INCC
E35: DRENAGEM | O35: 0
B36: 21 | C36: SICRO | D36: 2003373 | E36: Meio-fio de concreto - MFC 03 - areia e brita comerciais - fôrma de madeira | I36: m | J36: ='MC MODULO'!R110 -> 68000 | N36: =ROUND(ROUND(J36,2)*ROUND(M36,6),2) -> 0 | O36: 0 | P36: =_xlfn.RANK.EQ(O36,$O$11:$O$55) -> 1 | Q36: D | S36: =J36*T19 -> 10200 | AA36: 4514640
E37: SERVIÇOS COMPLEMENTARES | O37: 0 | P37: =_xlfn.RANK.EQ(O37,$O$11:$O$55) -> 1
B38: 22 | C38: Codevasf | D38: CPU-12 | E38: Conserto de quebra no ramal na rua sem pavimento com fornecimento de material hidráulico | I38: m | J38: ='MC MODULO'!R116 -> 3400 | N38: =ROUND(ROUND(J38,2)*ROUND(M38,6),2) -> 0 | O38: 0 | P38: =_xlfn.RANK.EQ(O38,$O$11:$O$55) -> 1 | Q38: INCC | AA38: 139854
E39: PROJETO EXECUTIVO | O39: 0
B40: 23 | C40: Codevasf | D40: Composição Própria | E40: Projeto Executivo | I40: m² | J40: ='MC MODULO'!R123 -> 238000 | N40: =ROUND(ROUND(J40,2)*ROUND(M40,6),2) -> 0 | O40: 0 | P40: =_xlfn.RANK.EQ(O40,$O$11:$O$55) -> 1 | Q40: INCC | AA40: 763671.38
E41: CONTROLE TECNOLÓGICO - OBRA | O41: 0
B42: 24 | C42: Codevasf | D42: CPU-21 | E42: Controle tecnológico - Obra | I42: m² | J42: ='MC MODULO'!R123 -> 238000 | N42: =ROUND(ROUND(J42,2)*ROUND(M42,6),2) -> 0 | O42: 0 | P42: =_xlfn.RANK.EQ(O42,$O$11:$O$55) -> 1 | Q42: INCC
E43: MOMENTO DE TRANSPORTE | O43: 0
B44: 25 | C44: SICRO | D44: 5914359 | E44: =IF(C44="CODEVASF",VLOOKUP(D44,'CPU CODEVASF'!E:H,2,FALSE),VLOOKUP(D44,'SINTÉTICO SICRO'!A:D,2,FALSE)) -> Transporte com caminhão basculante de 10 m³ - rodovia em leito natural | I44: tkm | J44: =ROUND(SUMIF('MOMENTO DE TRANSPORTE - PRINC'!A:A,'RESUMO MODULO TOTAL'!D44,'MOMENTO DE TRANSPORTE - PRINC'!K:K)+SUMIF('MOMENTO DE TRANSPORTE - AUX'!A:A,'RESUMO MODULO TOTAL'!D44,'MOMENTO DE TRANSPORTE - AUX'!K:K),2) -> 0 | N44: =ROUND(ROUND(J44,2)*ROUND(M44,6),2) -> 0 | O44: 0 | P44: =_xlfn.RANK.EQ(O44,$O$11:$O$55) -> 1 | Q44: INCC
B45: 26 | C45: SICRO | D45: 5914374 | E45: =IF(C45="CODEVASF",VLOOKUP(D45,'CPU CODEVASF'!E:H,2,FALSE),VLOOKUP(D45,'SINTÉTICO SICRO'!A:D,2,FALSE)) -> Transporte com caminhão basculante de 10 m³ - rodovia em revestimento primário | I45: tkm | J45: =ROUND(SUMIF('MOMENTO DE TRANSPORTE - PRINC'!A:A,'RESUMO MODULO TOTAL'!D45,'MOMENTO DE TRANSPORTE - PRINC'!K:K)+SUMIF('MOMENTO DE TRANSPORTE - AUX'!A:A,'RESUMO MODULO TOTAL'!D45,'MOMENTO DE TRANSPORTE - AUX'!K:K),2) -> 0 | N45: =ROUND(ROUND(J45,2)*ROUND(M45,6),2) -> 0 | O45: 0 | P45: 1 | Q45: INCC
B46: 27 | C46: SICRO | D46: 5914389 | E46: =IF(C46="CODEVASF",VLOOKUP(D46,'CPU CODEVASF'!E:H,2,FALSE),VLOOKUP(D46,'SINTÉTICO SICRO'!A:D,2,FALSE)) -> Transporte com caminhão basculante de 10 m³ - rodovia pavimentada | I46: tkm | J46: =ROUND(SUMIF('MOMENTO DE TRANSPORTE - PRINC'!A:A,'RESUMO MODULO TOTAL'!D46,'MOMENTO DE TRANSPORTE - PRINC'!K:K)+SUMIF('MOMENTO DE TRANSPORTE - AUX'!A:A,'RESUMO MODULO TOTAL'!D46,'MOMENTO DE TRANSPORTE - AUX'!K:K),2) -> 4557309.82 | N46: =ROUND(ROUND(J46,2)*ROUND(M46,6),2) -> 0 | O46: 0 | P46: 1 | Q46: INCC
B47: 28 | C47: SICRO | D47: 5914314 | E47: =IF(C47="CODEVASF",VLOOKUP(D47,'CPU CODEVASF'!E:H,2,FALSE),VLOOKUP(D47,'SINTÉTICO SICRO'!A:D,2,FALSE)) -> Transporte com caminhão basculante de 6 m³ - rodovia em leito natural | I47: tkm | J47: =ROUND(SUMIF('MOMENTO DE TRANSPORTE - PRINC'!A:A,'RESUMO MODULO TOTAL'!D47,'MOMENTO DE TRANSPORTE - PRINC'!K:K)+SUMIF('MOMENTO DE TRANSPORTE - AUX'!A:A,'RESUMO MODULO TOTAL'!D47,'MOMENTO DE TRANSPORTE - AUX'!K:K),2) -> 0 | N47: 0 | O47: =N47 -> 0 | P47: =_xlfn.RANK.EQ(O47,$O$11:$O$55) -> 1 | Q47: INCC
B48: 29 | C48: SICRO | D48: 5914329 | E48: =IF(C48="CODEVASF",VLOOKUP(D48,'CPU CODEVASF'!E:H,2,FALSE),VLOOKUP(D48,'SINTÉTICO SICRO'!A:D,2,FALSE)) -> Transporte com caminhão basculante de 6 m³ - rodovia em revestimento primário | I48: tkm | J48: =ROUND(SUMIF('MOMENTO DE TRANSPORTE - PRINC'!A:A,'RESUMO MODULO TOTAL'!D48,'MOMENTO DE TRANSPORTE - PRINC'!K:K)+SUMIF('MOMENTO DE TRANSPORTE - AUX'!A:A,'RESUMO MODULO TOTAL'!D48,'MOMENTO DE TRANSPORTE - AUX'!K:K),2) -> 0 | N48: 0 | O48: 0 | P48: 1 | Q48: INCC
B49: 30 | C49: SICRO | D49: 5914344 | E49: =IF(C49="CODEVASF",VLOOKUP(D49,'CPU CODEVASF'!E:H,2,FALSE),VLOOKUP(D49,'SINTÉTICO SICRO'!A:D,2,FALSE)) -> Transporte com caminhão basculante de 6 m³ - rodovia pavimentada | I49: tkm | J49: =ROUND(SUMIF('MOMENTO DE TRANSPORTE - PRINC'!A:A,'RESUMO MODULO TOTAL'!D49,'MOMENTO DE TRANSPORTE - PRINC'!K:K)+SUMIF('MOMENTO DE TRANSPORTE - AUX'!A:A,'RESUMO MODULO TOTAL'!D49,'MOMENTO DE TRANSPORTE - AUX'!K:K),2) -> 10353 | N49: 0 | O49: 0 | P49: 1 | Q49: INCC
B50: 28 | C50: SICRO | D50: 5914449 | E50: =IF(C50="CODEVASF",VLOOKUP(D50,'CPU CODEVASF'!E:H,2,FALSE),VLOOKUP(D50,'SINTÉTICO SICRO'!A:D,2,FALSE)) -> Transporte com caminhão carroceria de 15 t - rodovia em leito natural | I50: tkm | J50: =ROUND(SUMIF('MOMENTO DE TRANSPORTE - PRINC'!A:A,'RESUMO MODULO TOTAL'!D50,'MOMENTO DE TRANSPORTE - PRINC'!K:K)+SUMIF('MOMENTO DE TRANSPORTE - AUX'!A:A,'RESUMO MODULO TOTAL'!D50,'MOMENTO DE TRANSPORTE - AUX'!K:K),2) -> 0 | N50: 0 | O50: 0 | P50: 1 | Q50: INCC
B51: 29 | C51: SICRO | D51: 5914464 | E51: =IF(C51="CODEVASF",VLOOKUP(D51,'CPU CODEVASF'!E:H,2,FALSE),VLOOKUP(D51,'SINTÉTICO SICRO'!A:D,2,FALSE)) -> Transporte com caminhão carroceria de 15 t - rodovia em revestimento primário | I51: tkm | J51: =ROUND(SUMIF('MOMENTO DE TRANSPORTE - PRINC'!A:A,'RESUMO MODULO TOTAL'!D51,'MOMENTO DE TRANSPORTE - PRINC'!K:K)+SUMIF('MOMENTO DE TRANSPORTE - AUX'!A:A,'RESUMO MODULO TOTAL'!D51,'MOMENTO DE TRANSPORTE - AUX'!K:K),2) -> 0 | N51: 0 | O51: 0 | P51: 1 | Q51: INCC
B52: 30 | C52: SICRO | D52: 5914479 | E52: =IF(C52="CODEVASF",VLOOKUP(D52,'CPU CODEVASF'!E:H,2,FALSE),VLOOKUP(D52,'SINTÉTICO SICRO'!A:D,2,FALSE)) -> Transporte com caminhão carroceria de 15 t - rodovia pavimentada | I52: tkm | J52: =ROUND(SUMIF('MOMENTO DE TRANSPORTE - PRINC'!A:A,'RESUMO MODULO TOTAL'!D52,'MOMENTO DE TRANSPORTE - PRINC'!K:K)+SUMIF('MOMENTO DE TRANSPORTE - AUX'!A:A,'RESUMO MODULO TOTAL'!D52,'MOMENTO DE TRANSPORTE - AUX'!K:K),2) -> 8901.16 | N52: 0 | O52: 0 | P52: 1 | Q52: INCC
B53: 31 | C53: SICRO | D53: 5914364 | E53: =IF(C53="CODEVASF",VLOOKUP(D53,'CPU CODEVASF'!E:H,2,FALSE),VLOOKUP(D53,'SINTÉTICO SICRO'!A:D,2,FALSE)) -> Transporte de cimento ou cal hidratada a granel com caminhão silo de 30 m³ - rodovia em leito natural | I53: tkm | J53: =ROUND(SUMIF('MOMENTO DE TRANSPORTE - PRINC'!A:A,'RESUMO MODULO TOTAL'!D53,'MOMENTO DE TRANSPORTE - PRINC'!K:K)+SUMIF('MOMENTO DE TRANSPORTE - AUX'!A:A,'RESUMO MODULO TOTAL'!D53,'MOMENTO DE TRANSPORTE - AUX'!K:K),2) -> 0 | N53: 0 | O53: 0 | P53: 1 | Q53: INCC
B54: 32 | C54: SICRO | D54: 5914365 | E54: =IF(C54="CODEVASF",VLOOKUP(D54,'CPU CODEVASF'!E:H,2,FALSE),VLOOKUP(D54,'SINTÉTICO SICRO'!A:D,2,FALSE)) -> Transporte de cimento ou cal hidratada a granel com caminhão silo de 30 m³ - rodovia em revestimento primário | I54: tkm | J54: =ROUND(SUMIF('MOMENTO DE TRANSPORTE - PRINC'!A:A,'RESUMO MODULO TOTAL'!D54,'MOMENTO DE TRANSPORTE - PRINC'!K:K)+SUMIF('MOMENTO DE TRANSPORTE - AUX'!A:A,'RESUMO MODULO TOTAL'!D54,'MOMENTO DE TRANSPORTE - AUX'!K:K),2) -> 0 | N54: 0 | O54: 0 | P54: 1 | Q54: INCC
B55: 33 | C55: SICRO | D55: 5914366 | E55: =IF(C55="CODEVASF",VLOOKUP(D55,'CPU CODEVASF'!E:H,2,FALSE),VLOOKUP(D55,'SINTÉTICO SICRO'!A:D,2,FALSE)) -> Transporte de cimento ou cal hidratada a granel com caminhão silo de 30 m³ - rodovia pavimentada | I55: tkm | J55: =ROUND(SUMIF('MOMENTO DE TRANSPORTE - PRINC'!A:A,'RESUMO MODULO TOTAL'!D55,'MOMENTO DE TRANSPORTE - PRINC'!K:K)+SUMIF('MOMENTO DE TRANSPORTE - AUX'!A:A,'RESUMO MODULO TOTAL'!D55,'MOMENTO DE TRANSPORTE - AUX'!K:K),2) -> 0 | N55: 0 | O55: 0 | P55: 1 | Q55: INCC
B56: VALOR TOTAL DO SRP | N56: =SUM(N11:N55) -> 0 | AA56: =SUM(AA11:AA40) -> 43858268.18
B57: Obs.: Os valores estão apresentados com apenas 2 casas decimais, mas os valores da presente planilha foram calculados utilizando a precisão de 6 casas decimais.
N60: 27688239.85
N62: =N56/J42 -> 0

Sheet MC MODULO
C1: Extensão | D1: = | E1: 2000 | F1: m | H1: QUANTIDADE DE MODULOS | I1: 17
C2: Largura | D2: = | E2: 7 | F2: m
C4: Extensão | D4: = | E4: 2 | F4: km
B6: MOBUILIZAÇÃO | L6: MOBUILIZAÇÃO
A7: 1 | B7: Implantação da obra | K7: 1 | L7: Implantação da obra
B9: Módulos(un) | D9: Módulos(un) | L9: Módulos(un) | N9: Módulos(un)
B10: 1 | C10: = | D10: =B10 -> 1 | L10: =I1 -> 17 | M10: = | N10: =L10 -> 17
A12: 2 | B12: Administração da obra | K12: 2 | L12: Administração da obra
B14: Módulos(un) | D14: Módulos(un) | L14: Módulos(un) | N14: Módulos(un)
B15: 1 | C15: = | D15: =B15 -> 1 | L15: =I1 -> 17 | M15: = | N15: =L15 -> 17
A17: 3 | B17: Canteiro de Obras e Almoxarifado | K17: 3 | L17: Canteiro de Obras e Almoxarifado
B19: Módulos(un) | D19: Módulos(un) | L19: Módulos(un) | N19: Módulos(un)
B20: 1 | C20: = | D20: =B20 -> 1 | L20: =I1 -> 17 | M20: = | N20: =L20 -> 17
A22: 4 | B22: Placa de Obra em Chapa de Aço Galvanizado | K22: 4 | L22: Placa de Obra em Chapa de Aço Galvanizado
B24: Módulos(un) | D24: Módulos(un) | L24: Módulos(un) | N24: Módulos(un)
B25: 1 | C25: = | D25: =B25 -> 1 | L25: =I1 -> 17 | M25: = | N25: =L25 -> 17
B27: TERRAPLENAGEM | L27: TERRAPLENAGEM
A29: 5 | B29: serviços topográficos para pavimentação, inclusive notas de serviços, acompanhamento e greide | K29: 5 | L29: serviços topográficos para pavimentação, inclusive notas de serviços, acompanhamento e greide
B31: Extensão (m) | D31: Largura (m) | H31: area (m2) | L31: Extensão (m) | N31: Largura (m) | R31: area (m2)
B32: =$E$1 -> 2000 | C32: x | D32: =$E$2 -> 7 | G32: = | H32: =B32*D32 -> 14000 | L32: =E1*$I$1 -> 34000 | M32: x | N32: =$E$2 -> 7 | Q32: = | R32: =L32*N32 -> 238000
A34: 6 | B34: Escavação, carga e transporte de material de 1ª categoria - DMT de 1.000 a 1.200 m - caminho de serviço em leito natural - com escavadeira e caminhão basculante de 14 m³ | K34: 6 | L34: Escavação, carga e transporte de material de 1ª categoria - DMT de 1.000 a 1.200 m - caminho de serviço em leito natural - com escavadeira e caminhão basculante de 14 m³
B36: Extensão (m) | D36: Largura (m) | F36: Espessura (m) | H36: Volume (m3) | L36: Extensão (m) | N36: Largura (m) | P36: Espessura (m) | R36: Volume (m3)
B37: =$E$1 -> 2000 | C37: x | D37: =$E$2 -> 7 | E37: x | F37: 0.325 | G37: = | H37: =B37*D37*F37 -> 4550 | L37: =E1*$I$1 -> 34000 | M37: x | N37: =$E$2 -> 7 | O37: x | P37: 0.325 | Q37: = | R37: =L37*N37*P37 -> 77350
A41: 7 | B41: Espalhamento de material em bota-fora | K41: 7 | L41: Espalhamento de material em bota-fora
B43: Extensão (m) | D43: Largura (m) | F43: Espessura (m) | H43: Volume (m3) | L43: Extensão (m) | N43: Largura (m) | P43: Espessura (m) | R43: Volume (m3)
B44: =$E$1 -> 2000 | C44: x | D44: =$E$2 -> 7 | E44: x | F44: 0.325 | G44: = | H44: =B44*D44*F44 -> 4550 | L44: =E1*$I$1 -> 34000 | M44: x | N44: =$E$2 -> 7 | O44: x | P44: 0.325 | Q44: = | R44: =L44*N44*P44 -> 77350
B46: PAVIMENTAÇÃO | L46: PAVIMENTAÇÃO
A48: 8 | B48: Capa Selante | K48: 8 | L48: Capa Selante
B50: Extensão (m) | C50: Largura (m) | H50: area (m2) | L50: Extensão (m) | M50: Largura (m) | R50: area (m2)
B51: =$E$1 -> 2000 | C51: =$E$2 -> 7 | G51: = | H51: =B51*C51 -> 14000 | L51: =$E$1*I1 -> 34000 | M51: =$E$2 -> 7 | Q51: = | R51: =L51*M51 -> 238000
U52: =1800+1200 -> 3000
U53: =1146.67*6 -> 6880.02
A54: 9 | B54: Tratamento Superficial Duplo com Emulsão - Brita Comercial | K54: 9 | L54: Tratamento Superficial Duplo com Emulsão - Brita Comercial
B56: Extensão (m) | D56: Largura (m) | H56: area (m2) | L56: Extensão (m) | N56: Largura (m) | R56: area (m2)
B57: =$E$1 -> 2000 | C57: x | D57: =$E$2 -> 7 | G57: = | H57: =B57*D57 -> 14000 | L57: =$E$1*I1 -> 34000 | M57: x | N57: =$E$2 -> 7 | Q57: = | R57: =L57*N57 -> 238000
A60: 10 | B60: Imprimação com asfalto diluído | K60: 10 | L60: Imprimação com asfalto diluído
B62: Extensão (m) | D62: Largura (m) | H62: area (m2) | L62: Extensão (m) | N62: Largura (m) | R62: area (m2)
B63: =$E$1 -> 2000 | C63: x | D63: =$E$2 -> 7 | G63: = | H63: =B63*D63 -> 14000 | L63: =$E$1*I1 -> 34000 | M63: x | N63: =$E$2 -> 7 | Q63: = | R63: =L63*N63 -> 238000
A65: 11 | B65: Base estabilizada granulometricamente com mistura solo brita (70% - 30%) em usina com material de jazida e brita comercial | K65: 11 | L65: Base estabilizada granulometricamente com mistura solo brita (70% - 30%) em usina com material de jazida e brita comercial
B67: Extensão (m) | D67: Largura (m) | F67: Espessura (m) | H67: Volume (m3) | L67: Extensão (m) | N67: Largura (m) | P67: Espessura (m) | R67: Volume (m3)
B68: =$E$1 -> 2000 | C68: x | D68: =$E$2 -> 7 | E68: x | F68: 0.2 | G68: = | H68: =B68*D68*F68 -> 2800 | L68: =E1*$I$1 -> 34000 | M68: x | N68: =$E$2 -> 7 | O68: x | P68: 0.2 | Q68: = | R68: =L68*N68*P68 -> 47600
A71: 12 | B71: Sub-base estabilizada granulometricamente com mistura solo brita (70% - 30%) em usina com material de jazida e brita comercial | K71: 12 | L71: Sub-base estabilizada granulometricamente com mistura solo brita (70% - 30%) em usina com material de jazida e brita comercial
B73: Extensão (m) | D73: Largura (m) | F73: Espessura (m) | H73: Volume (m3) | L73: Extensão (m) | N73: Largura (m) | P73: Espessura (m) | R73: Volume (m3)
B74: =$E$1 -> 2000 | C74: x | D74: =$E$2 -> 7 | E74: x | F74: 0.25 | G74: = | H74: =B74*D74*F74 -> 3500 | L74: =E1*$I$1 -> 34000 | M74: x | N74: =$E$2 -> 7 | O74: x | P74: 0.25 | Q74: = | R74: =L74*N74*P74 -> 59500
A77: 13 | B77: Regularização do subleito | K77: 13 | L77: Regularização do subleito
B79: Extensão (m) | D79: Largura (m) | H79: area (m2) | L79: Extensão (m) | N79: Largura (m) | R79: area (m2)
B80: =$E$1 -> 2000 | C80: x | D80: =$E$2 -> 7 | G80: = | H80: =B80*D80 -> 14000 | L80: =E1*$I$1 -> 34000 | M80: x | N80: =$E$2 -> 7 | Q80: = | R80: =L80*N80 -> 238000
B82: SINALIZAÇÃO | L82: SINALIZAÇÃO
A84: 20 | B84: Fornecimento e implantação de placa de regulamentação em aço D = 0,60 m - película retrorrefletiva tipo I + SI | K84: 20 | L84: Fornecimento e implantação de placa de regulamentação em aço D = 0,60 m - película retrorrefletiva tipo I + SI
B86: Extensão (km) | D86: Quant. (un) | H86: Quant. (un) | L86: Extensão (km) | N86: Quant. (un) | R86: Quant. (un)
B87: =$E$4 -> 2 | C87: x | D87: 0.5 | G87: = | H87: =B87*D87 -> 1 | L87: =$E$4*$I$1 -> 34 | M87: x | N87: 0.5 | Q87: = | R87: =L87*N87 -> 17
A90: 21 | B90: Fornecimento e implantação de suporte metálico galvanizado para placa de regulamentação - D = 0,60 m | K90: 21 | L90: Fornecimento e implantação de suporte metálico galvanizado para placa de regulamentação - D = 0,60 m
B92: Extensão (km) | D92: Quant. (un) | H92: Quant. (un) | L92: Extensão (km) | N92: Quant. (un) | R92: Quant. (un)
B93: =$E$4 -> 2 | C93: x | D93: 0.5 | G93: = | H93: =B93*D93 -> 1 | L93: =$E$4*$I$1 -> 34 | M93: x | N93: 0.5 | Q93: = | R93: =L93*N93 -> 17
A95: 22 | B95: Pintura de faixa com tinta acrílica - espessura de 0,4 mm (bordos) | K95: 22 | L95: Pintura de faixa com tinta acrílica - espessura de 0,4 mm (bordos)
B97: Extensão (m) | D97: Espessura (m) | H97: Quant. (m²) | L97: Extensão (m) | N97: Espessura (m) | R97: Quant. (m²)
B98: =E1 -> 2000 | C98: x | D98: 0.1 | G98: = | H98: =B98*D98 -> 200 | L98: =E1*I1 -> 34000 | M98: x | N98: 0.1 | Q98: = | R98: =L98*N98 -> 3400
B100: Pintura de faixa com tinta acrílica - espessura de 0,4 mm (faixa central) | L100: Pintura de faixa com tinta acrílica - espessura de 0,4 mm (faixa central)
H102: Quant. (m²) | R102: Quant. (m²)
H103: =H98*0.4 -> 80 | I103: =B98*0.1 -> 200 | R103: =R98*0.4 -> 1360
B106: DRENAGEM | L106: DRENAGEM
A107: 23 | B107: Meio-fio de concreto - MFC 03 - areia e brita comerciais - fôrma de madeira | K107: 23 | L107: Meio-fio de concreto - MFC 03 - areia e brita comerciais - fôrma de madeira
B109: Extensão (m) | D109: Quant. (un) | H109: Extensão(m) | L109: Extensão (m) | N109: Quant. (un) | R109: Extensão(m)
B110: =$E$1 -> 2000 | C110: x | D110: 2 | G110: = | H110: =B110*D110 -> 4000 | L110: =$E$1*$I$1 -> 34000 | M110: x | N110: 2 | Q110: = | R110: =L110*N110 -> 68000
B112: SERVIÇOS COMPLEMENTARES | L112: SERVIÇOS COMPLEMENTARES
A113: 24 | K113: 24
B115: Extensão (m) | D115: Largura (m) | G115: 0.1 | H115: extensão (m) | L115: Extensão (m) | N115: Largura (m) | Q115: 0.1 | R115: extensão (m)
B116: =$E$1 -> 2000 | C116: x | D116: 1 | E116: x | G116: = | H116: =G115*B116 -> 200 | L116: =$E$1*I1 -> 34000 | M116: x | N116: 1 | O116: x | Q116: = | R116: =Q115*L116 -> 3400
B119: PROJETO EXECUTIVO | L119: PROJETO EXECUTIVO
A120: 25 | B120: Projeto Executivo | K120: 25 | L120: Projeto Executivo
B122: Extensão (m) | D122: Largura (m) | F122: Quant. (un) | H122: Área (m²) | L122: Extensão (m) | N122: Largura (m) | P122: Quant. (un) | R122: Área (m²)
B123: =$E$1 -> 2000 | C123: x | D123: =E2 -> 7 | E123: x | F123: 1 | G123: = | H123: =B123*D123 -> 14000 | L123: =$E$1*I1 -> 34000 | M123: x | N123: =D123 -> 7 | O123: x | P123: 1 | Q123: = | R123: =L123*N123 -> 238000
B125: CONTROLE TECNOLOGICO - OBRA | L125: CONTROLE TECNOLOGICO - OBRA
A126: 26 | B126: Projeto Executivo | K126: 26 | L126: Projeto Executivo
B128: Extensão (m) | D128: Largura (m) | F128: Quant. (un) | H128: meses | L128: Extensão (m) | N128: Largura (m) | P128: Quant. (un) | R128: meses
G129: = | H129: =B10/2 -> 0.5 | Q129: = | R129: =0.5*I1 -> 8.5
F132: Perímetro caiação = 0,09 + 0,15

Sheet CRONOGRAMA TOTAL
A2: ='RESUMO MODULO TOTAL'!B1 -> EXECUÇÃO DE SERVIÇOS DE PAVIMENTAÇÃO COM TRATAMENTO SUPERFICIAL DUPLO EM VIAS DE MUNICÍPIOS DIVERSOS INSERIDOS NA ÁREA DE ATUAÇÃO DA CIDEVASF, NO ESTADO DO CEARÁ - LOTE 3
A3: Cronograma Físico e Financeiro
A4: Item | B4: Descrição | C4: Total Por Etapa | D4: 30 DIAS | E4: 60 DIAS | F4: 90 DIAS | G4: 120 DIAS | H4: 150 DIAS | I4: 180 DIAS | J4: 210 DIAS | K4: 240 DIAS | L4: 270 DIAS | M4: 300 DIAS | N4: 330 DIAS | O4: 360 DIAS
B5: ='RESUMO MODULO TOTAL'!E10 -> MOBILIZAÇÃO | C5: 1 | F5: =$C$5/10 -> 0.1 | G5: =$C$5/10 -> 0.1 | H5: 0.1 | I5: 0.1 | J5: 0.1 | K5: 0.1 | L5: 0.1 | M5: 0.1 | N5: 0.1 | O5: 0.1 | Q5: =SUM(D5:O5) -> 1
C6: =SUM('RESUMO MODULO TOTAL'!N11:N14) -> 0 | F6: =$C$6*F5 -> 0 | G6: 0 | H6: 0 | I6: 0 | J6: 0 | K6: 0 | L6: 0 | M6: 0 | N6: 0 | O6: 0 | Q6: =SUM(D6:O6) -> 0 | R6: =C6 -> 0 | S6: =Q6-R6 -> 0
B7: ='RESUMO MODULO TOTAL'!E15 -> TERRAPLANAGEM | C7: 1 | F7: 0.1667 | G7: 0.1667 | H7: 0.1667 | I7: 0.1667 | J7: 0.1667 | K7: =16.67%-0.0002 -> 0.1665 | Q7: =SUM(F7:O7) -> 1
C8: =SUM('RESUMO MODULO TOTAL'!N16:N18) -> 0 | F8: =$C$8*F7 -> 0 | G8: =$C$8*G7 -> 0 | H8: 0 | I8: 0 | J8: 0 | K8: 0 | Q8: 0 | R8: =C8 -> 0 | S8: =Q8-R8 -> 0
B9: ='RESUMO MODULO TOTAL'!E19 -> PAVIMENTAÇÃO | C9: 1 | I9: 0.1429 | J9: 0.1429 | K9: 0.1429 | L9: 0.1429 | M9: 0.1429 | N9: 0.1429 | O9: =14.29%-0.0003 -> 0.1426 | Q9: =SUM(F9:O9) -> 1
C10: =SUM('RESUMO MODULO TOTAL'!N20:N25) -> 0 | I10: =$C$10*I9 -> 0 | J10: 0 | K10: 0 | L10: 0 | M10: 0 | N10: 0 | O10: 0 | Q10: 0 | R10: =C10 -> 0 | S10: =Q10-R10 -> 0
B11: ='RESUMO MODULO TOTAL'!E31 -> SINALIZAÇÃO | C11: 1 | N11: 0.5 | O11: 0.5 | Q11: 1
C12: =SUM('RESUMO MODULO TOTAL'!N32:N34) -> 0 | N12: =$C$12*N11 -> 0 | O12: 0 | Q12: 0 | R12: =C12 -> 0 | S12: 0
B13: ='RESUMO MODULO TOTAL'!E35 -> DRENAGEM | C13: 1 | N13: 0.5 | O13: 0.5 | Q13: =SUM(D13:O13) -> 1
C14: ='RESUMO MODULO TOTAL'!N36 -> 0 | N14: =$C$14*N13 -> 0 | O14: 0 | Q14: 0 | R14: =C14 -> 0 | S14: 0
B15: AQUISIÇÃO E TRANSPORTE DE MATERIAL BETUMINOSO | C15: 1 | I15: 0.1429 | J15: 0.1429 | K15: 0.1429 | L15: 0.1429 | M15: 0.1429 | N15: 0.1429 | O15: 0.1426
C16: =SUM('RESUMO MODULO TOTAL'!N27:N30) -> 0 | I16: =$C$16*I15 -> 0 | J16: 0 | K16: 0 | L16: 0 | M16: 0 | N16: 0 | O16: 0
B17: ='RESUMO MODULO TOTAL'!E37 -> SERVIÇOS COMPLEMENTARES | C17: 1 | F17: 0.1 | G17: 0.1 | H17: 0.1 | I17: 0.1 | J17: 0.1 | K17: 0.1 | L17: 0.1 | M17: 0.1 | N17: 0.1 | O17: 0.1 | Q17: =SUM(D17:O17) -> 1
C18: =SUM('RESUMO MODULO TOTAL'!N38) -> 0 | F18: =$C$18*F17 -> 0 | G18: =$C$18*G17 -> 0 | H18: 0 | I18: 0 | J18: 0 | K18: 0 | L18: 0 | M18: 0 | N18: 0 | O18: 0 | Q18: 0 | R18: =C18 -> 0 | S18: =Q18-R18 -> 0
B19: ='RESUMO MODULO TOTAL'!E39 -> PROJETO EXECUTIVO | C19: 1 | D19: 0.5 | E19: 0.5 | Q19: 1
C20: =SUM('RESUMO MODULO TOTAL'!N40) -> 0 | D20: =$C$20*D19 -> 0 | E20: =$C$20*E19 -> 0 | Q20: 0 | R20: =C20 -> 0 | S20: =Q20-R20 -> 0
B21: ='RESUMO MODULO TOTAL'!E41 -> CONTROLE TECNOLÓGICO - OBRA | C21: 1 | D21: 0.0834 | E21: 0.0834 | F21: 0.0834 | G21: 0.0834 | H21: 0.0834 | I21: 0.0834 | J21: 0.0834 | K21: 0.0834 | L21: 0.0834 | M21: 0.0834 | N21: 0.0834 | O21: =8.34%-0.0008 -> 0.0826 | Q21: =SUM(D21:O21) -> 1
C22: =SUM('RESUMO MODULO TOTAL'!N42) -> 0 | D22: =$C$22*D21 -> 0 | E22: 0 | F22: 0 | G22: 0 | H22: 0 | I22: 0 | J22: 0 | K22: 0 | L22: 0 | M22: 0 | N22: 0 | O22: 0 | Q22: 0 | R22: =C22 -> 0 | S22: =Q22-R22 -> 0
B23: ='RESUMO MODULO TOTAL'!E43 -> MOMENTO DE TRANSPORTE | C23: 1 | F23: 0.1 | G23: 0.1 | H23: 0.1 | I23: 0.1 | J23: 0.1 | K23: 0.1 | L23: 0.1 | M23: 0.1 | N23: 0.1 | O23: 0.1 | Q23: =SUM(D23:O23) -> 1
C24: =SUM('RESUMO MODULO TOTAL'!N44:N55) -> 0 | F24: =$C$24*F23 -> 0 | G24: =$C$24*G23 -> 0 | H24: 0 | I24: 0 | J24: 0 | K24: 0 | L24: 0 | M24: 0 | N24: 0 | O24: 0 | Q24: 0 | R24: =C24 -> 0 | S24: =Q24-R24 -> 0
A26: Porcentagem | D26: =SUM(D6+D10+D12+D14+D16+D8+D18+D20+D22)/$O$31 ->  | E26: =SUM(E6+E10+E12+E14+E16+E8+E18+E20+E22)/$O$31 ->  | F26: =SUM(F6+F10+F12+F14+F16+F18+F20+F22+F8+F24)/$O$31 ->  | G26: =SUM(G6+G10+G12+G14+G16+G18+G20+G22+G8+G24)/$O$31 -> 
A27: Custo | D27: =$O$31*D26 ->  | E27: =$O$31*E26 ->  | F27: =$O$31*F26 -> 
A28: Porcentagem Acumulado | D28: =D26 ->  | E28: =D28+E26 ->  | F28: =E28+F26 -> 
A29: Custo Acumulado | D29: =D27 ->  | E29: =D29+E27 -> 
D31: Total Geral | N31: R$ | O31: ='RESUMO MODULO TOTAL'!$N$56 -> 0

Sheet CONSUMO DE MAT. B TOTAL
B3: CONSUMO DO MATERIAL BETUMINOSO TOTAL
B5: TRECHO | D5: QUANTIDADES | M5: MAT. BETUMINOSO
B6: Inicio (km) | C6: Fim (km) | D6: Extensão (m) | E6: Largura (m) | F6: Espess. (m) | G6: Área (m2) | H6: Volume (m3) | I6: Densidade (t/m3) | J6: Massa (t) | K6: Unid | L6: Quant. | M6: Tipo | N6: Consumo Taxa de Aplicação | O6: Unid. | P6: Quant.
B7: IMPRIMAÇÃO
F9: 1 | G9: ='MC MODULO'!R63 -> 238000 | H9: =G9*F9 -> 238000 | M9: CM-30 | N9: 1,2 l/m2 | O9: t | P9: =ROUND((G9*1.2)/1000,2) -> 285.6
B10: CAPA SELANTE
F11: 1 | G11: ='MC MODULO'!R51 -> 238000 | H11: =G11*F11 -> 238000 | M11: RR-2C | N11: 0,5 l/m2 | O11: t | P11: =ROUND((G11*0.5)/1000,2) -> 119
B12: TRATAMENTO SUPERFICIAL DUPLO - 1ª CAMADA
F13: 1 | G13: ='MC MODULO'!R57 -> 238000 | H13: =G13*F13 -> 238000 | M13: RR-2C | N13: 1,5 l/m² | O13: t | P13: =ROUND((G13*1.5)/1000,2) -> 357
B14: TRATAMENTO SUPERFICIAL DUPLO - 2ª CAMADA
F15: 1 | G15: ='MC MODULO'!R57 -> 238000 | H15: =G15*F15 -> 238000 | M15: RR-2C | N15: 1,0 l/m² | O15: t | P15: =ROUND((G15*1)/1000,2) -> 238
H17: =G17*F17 -> 0

Sheet CPU VEICULO
A2: Composição de Preços de Locação de Veículos
C3: Data de atualização: | D3: 2023-10-01 | F3: CV | G3: Média | H3: Mediana | L3: CV | M3: Média | N3: Mediana | W3: CV | X3: Média | Y3: Mediana
A4: CODEVASF | F4: =_xlfn.STDEV.S(F7:I7)/AVERAGE(F7:I7) -> 0.09692853429 | G4: =AVERAGE(F7:I7) -> 103847.75 | H4: =MEDIAN(F7:I7) -> 104391 | L4: =_xlfn.STDEV.S(M6:T6)/AVERAGE(M6:T6) -> 0.1487498525 | M4: =AVERAGE(M6:T6) -> 35.1725 | N4: =MEDIAN(M6:T6) -> 35.69 | W4: =_xlfn.STDEV.S(X6:AD6)/AVERAGE(X6:AD6) -> 0.1152686792 | X4: =AVERAGE(X6:AE6) -> 327.81375 | Y4: =MEDIAN(X6:AE6) -> 316.95
A5: OBS: Preço sem BDI e sem motorista BDI= | F5: Preço FIPE - maio/2023 | K5: PRODUTO | L5: MENOR | M5: COT. 1 | N5: COT. 2 | O5: COT. 3 | P5: COT. 4 | Q5: COT. 5 | R5: COT. 6 | S5: COT. 7 | T5: COT. 8 | V5: PRODUTO | W5: MENOR | X5: COT. 1 | Y5: COT. 2 | Z5: COT. 3 | AA5: COT. 4 | AB5: COT. 5 | AC5: COT. 6 | AD5: COT. 7 | AE5: COT. 8
A6: Veículo tipo pick-up, 1.6 T.Flex 16V CD | F6: Saveiro Cross 1.6 T.Flex 16V CD. | G6: Saveiro Robust 1.6 Total Flex 16V. | H6: Saveiro trendline 1.6 Total Flex 16 V. | I6: Saveiro Robust T. Flex 16V CD. | K6: LUBRIFICANTE 5W30 | L6: =SMALL(M4:N4,1) -> 35.1725 | M6: 29.64 | N6: 27.9 | O6: 38 | P6: 39.98 | Q6: 39.85 | R6: 33.38 | S6: 31.35 | T6: 41.28 | V6: Pneu 175/70 R14 | W6: =SMALL(X4:Y4,1) -> 316.95 | X6: 314.9 | Y6: 279.9 | Z6: 394.32 | AA6: 329.9 | AB6: 369.69 | AC6: 314.9 | AD6: 319 | AE6: 299.9
C7: Custo Mensal (R$): | D7: =D49 -> 4851.175527 | F7: 114656 | G7: 109138 | H7: 91953 | I7: 99644
C8: Custo Diária (R$): | D8: =D7/22 -> 220.5079785
C9: Custo Horário (R$): | D9: =D7/176 -> 27.56349731
C10: Custo por Km (R$): | D10: =D7/D23 -> 1.696215219
A11: A | C11: Depreciação mensal do equipamento
A12: A1 | C12: Preço de Aquisição | D12: =SMALL(G4:H4,1) -> 103847.75
A13: A2 | C13: Tempo previsto de vida útil (meses) | D13: 36
A14: A3 | C14: Previsão de recup. Na venda do bem usado | D14: 0.4
A15: A4 | C15: Custo mensal [A1-(A3xA1)]/A2 | D15: =(D12-(D14*D12))/D13 -> 1730.795833
A16: B | C16: Juros pelo Capital empregado
A17: B1 | C17: Taxa mensal de Juros * | D17: =POWER(1+D55,1/12)-1 -> 0.01005040212
A18: B2 | C18: Juros s/depreciação/aluguel (B1xA4) | D18: =D17*D15 -> 17.39519412
A19: C | C19: Conservação e manutenção ** | D19: 0.75
A20: C1 | C20: Taxa de gastos s/a deprec. Inc. seguros (%) | D20: =D19 -> 0.75
A21: C2 | C21: Incidência mensal (C1xA4) | D21: =D20*D15 -> 1298.096875
A22: D | C22: Combustível
A23: D1 | C23: Média mensal de quilômetro por veículo | D23: =130*22 -> 2860
A24: D2 | C24: Preço do litro de combustível | D24: =G61 -> 5.79
A25: D3 | C25: Quilômetros rodados com um litro combustivel | D25: 10
A26: D4 | C26: Combustivel (D1/D3)*D2 | D26: =(D23/D25)*D24 -> 1655.94
A27: E | C27: Lubrificantes
A28: E1 | C28: Quilometragem do Contrato (D1*12) | D28: =D23*12 -> 34320
A29: E2 | C29: Franquia por troca de óleo (km) | D29: 10000
A30: E3 | C30: Preço do litro de óleo | D30: =L6 -> 35.1725
A31: E4 | C31: Quantidade de litros de óleo por troca | D31: 5
A32: E5 | C32: Quantidade de dias do Contrato | D32: =365*1 -> 365
A33: E6 | C33: Lubrificantes E = (E1*E3*E4*30)/E2*E5 | D33: =(D28*D30*D31*30)/(D29*D32) -> 49.60767945
A34: F | C34: Pneus
A35: F1 | C35: Quilometragem do Contrato | D35: =D28 -> 34320
A36: F2 | C36: Vida do Pneu em quilômetros | D36: 45000
A37: F3 | C37: Quantidade de pneus | D37: 5
A38: F4 | C38: Preço do Pneu | D38: =W6 -> 316.95
A39: F5 | C39: Quantidade de dias do contrato | D39: =D32 -> 365
A40: F6 | C40: Pneus = (F1*F3*F4*30)/(F2*F5) | D40: =(D35*D37*D38*30)/(D36*D39) -> 99.33994521
A41: G | C41: Motorista
A42: G1 | C42: Salário com encargos sociais | D42: 4185.11
A43: H | C43: Custo Mensal
C44: Sem Motorista (A4+B2+C2+D4+E6+F6) | D44: =D15+D18+D21+D26+D33+D40 -> 4851.175527
C45: Com Motorista (A4+B2+C2+D4+E6+F6+G1) | D45: =D15+D18+D21+D26+D33+D40+D42 -> 9036.285527
A46: I | C46: Custo Direto p/ km Rodado
C47: Sem Motorista | D47: =D44/D23 -> 1.696215219
C48: Com Motorista | D48: =D45/D23 -> 3.159540394
A49: J | C49: Preço cobrado sem BDI | D49: =D44*(1+D5) -> 4851.175527
A50: J1 | C50: Sem Motorista | D50: =D49 -> 4851.175527
A51: J2 | C51: Com Motorista | D51: =D45 -> 9036.285527 | J51: https://www.google.com/search?q=lubrificante+5w30&sxsrf=AJOqlzUM514L6uswJHb1jIGpGgXchTtV5A:1677092590843&source=lnms&tbm=shop&sa=X&sqi=2&ved=2ahUKEwj_vYfh6Kn9AhVMBrkGHRT6Bv4Q_AUoAXoECAEQAw&biw=1600&bih=757&dpr=1 | U51: https://www.google.com/search?q=pneu+225%2F65+R17&sa=X&biw=1600&bih=757&tbm=shop&sxsrf=AJOqlzWsb-d4PS1_OUOEhKmRc2RbtSg3RQ%3A1677092596279&ei=9Gb2Y9K5ENTa5OUPvLykGA&ved=0ahUKEwjSg9Pj6Kn9AhVULbkGHTweCQMQ4dUDCAg&uact=5&oq=pneu+225%2F65+R17&gs_lcp=Cgtwcm9kdWN0cy1jYxADMgsIABCABBCxAxCDATIFCAAQgAQyBwgAEIAEEAoyBwgAEIAEEAoyBwgAEIAEEAoyBwgAEIAEEAoyBwgAEIAEEAoyBQgAEIAEMgcIABCABBAKMgcIABCABBAKOgQIIxAnOgQIABBDSgQIQRgAUABYoTJgqUBoAHAAeACAAdIFiAGUKZIBDTAuMi42LjIuMi4yLjGYAQCgAQHAAQE&sclient=products-cc
C53: OBSERVAÇÕES:
A54: * | C54: Calculado com base na taxa SELIC ABRIL/2023 - 13,75 % a.a
C55: Taxa de Juros Selic — Português (Brasil) (www.gov.br) | D55: 0.1275
A56: ** | C56: Conservação e manutenção - é calculado com o uso de um coeficiente multiplicador "k", conforme tabela abaixo, sobre a
C57: depreciação mensal do equipamento (Item A da planilha de composição de preços). Os valores de K são fornecidos por
C58: fabricantes.
C59: Metodologia conforme a bibliografia "Como Preparar Orçamentos de Obras", 3 edição, Aldo Dórea Mattos, 2019.
C60: Preço calculado sem BDI
F61: PREÇO DO DIESEL | G61: 5.79
F85: https://precos.petrobras.com.br/sele%C3%A7%C3%A3o-de-estados-diesel

Sheet CPU CODEVASF
A4: ='RESUMO MODULO TOTAL'!B1 -> EXECUÇÃO DE SERVIÇOS DE PAVIMENTAÇÃO COM TRATAMENTO SUPERFICIAL DUPLO EM VIAS DE MUNICÍPIOS DIVERSOS INSERIDOS NA ÁREA DE ATUAÇÃO DA CIDEVASF, NO ESTADO DO CEARÁ - LOTE 3
F5: BDI %: | G5: =BDI!$C$15 -> 0.233
E6: Encargos Sociais: | G6: Horista | H6: Mensalista
G7: ='ENC. SOCIAIS'!E51/100 -> 0 | H7: ='ENC. SOCIAIS'!F51/100 -> 0
A8: COMPOSIÇÕES DE CUSTO UNITARIO
A9: CPU-01 | B9: CODEVASF | C9: 74209/1 | D9: PLACA DE OBRA EM CHAPA DE ACO GALVANIZADO | E9: UND | F9: COEF. | G9: PRECO UNITÁRIO (R$) | H9: TOTAL (R$)
A11: INS. SINAPI | B11: SINAPI | C11: 5075 | D11: PREGO 18X30. | E11: kg | F11: 0.11 | G11: =IFERROR(VLOOKUP(C11,'INSUMOS SINAPI'!A:E,5,FALSE),VLOOKUP(C11,'COMP Sint. Sinapi'!G:K,5,FALSE)) -> 14.44 | H11: =F11*G11 -> 1.5884
A12: INS. SINAPI | B12: SINAPI | C12: 4491 | D12: PECA DE MADEIRA NATIVA / REGIONAL 7,5 X 7,5CM (3X3) NAO APARELHADA (P/FORMA) | E12: m | F12: 4 | G12: =IFERROR(VLOOKUP(C12,'INSUMOS SINAPI'!A:E,5,FALSE),VLOOKUP(C12,'COMP Sint. Sinapi'!G:K,5,FALSE)) -> 11.76 | H12: =F12*G12 -> 47.04
A13: INS. SINAPI | B13: SINAPI | C13: 4417 | D13: PECA DE MADEIRA DE LEI *2,5 X 7,5* CM (1" X 3"), NÃO APARELHADA, (P/TELHADO) | E13: m | F13: 1 | G13: =IFERROR(VLOOKUP(C13,'INSUMOS SINAPI'!A:E,5,FALSE),VLOOKUP(C13,'COMP Sint. Sinapi'!G:K,5,FALSE)) -> 6.8 | H13: 6.8
A14: INS. SINAPI | B14: SINAPI | C14: 4813 | D14: PLACA DE OBRA (PARA CONSTRUCAO CIVIL) EM CHAPA GALVANIZADA *Nº 22*, DE *2,0 X 1,125* M | E14: m² | F14: 4 | G14: =IFERROR(VLOOKUP(C14,'INSUMOS SINAPI'!A:E,5,FALSE),VLOOKUP(C14,'COMP Sint. Sinapi'!G:K,5,FALSE)) -> 250 | H14: 1000
A15: INS. SINAPI | B15: SINAPI | C15: 370 | D15: AREIA MÉDIA | E15: m³ | F15: 0.0049 | G15: =IFERROR(VLOOKUP(C15,'INSUMOS SINAPI'!A:E,5,FALSE),VLOOKUP(C15,'COMP Sint. Sinapi'!G:K,5,FALSE)) -> 140 | H15: 0.686
A16: INS. SINAPI | B16: SINAPI | C16: 1379 | D16: CIMENTO PORTLAND COMPOSTO CP II-32 | E16: kg | F16: 1.5 | G16: =IFERROR(VLOOKUP(C16,'INSUMOS SINAPI'!A:E,5,FALSE),VLOOKUP(C16,'COMP Sint. Sinapi'!G:K,5,FALSE)) -> 0.79 | H16: 1.185
A17: INS. SINAPI | B17: SINAPI | C17: 4718 | D17: PEDRA BRITADA Nº 2 | E17: m³ | F17: 0.0098 | G17: =IFERROR(VLOOKUP(C17,'INSUMOS SINAPI'!A:E,5,FALSE),VLOOKUP(C17,'COMP Sint. Sinapi'!G:K,5,FALSE)) -> 105.81 | H17: 1.036938
A18: COMP. SINAPI | B18: SINAPI | C18: 87445 | D18: BETONEIRA CAPACIDADE NOMINAL 400 L, CAPACIDADE DE MISTURA 310 L, MOTOR A DIESEL POTÊNCIA 5,0 HP, SEM CARREGADOR MECANICO (LOCACAO) | E18: h | F18: 0.0065 | G18: =IFERROR(VLOOKUP(C18,'INSUMOS SINAPI'!A:E,5,FALSE),VLOOKUP(C18,'COMP Sint. Sinapi'!G:K,5,FALSE)) -> 5.57 | H18: 0.036205
A19: COMP. SINAPI | B19: SINAPI | C19: 88262 | D19: CARPINTEIRO DE FORMAS COM ENCARGOS COMPLEMENTARES | E19: h | F19: 1 | G19: =IFERROR(VLOOKUP(C19,'INSUMOS SINAPI'!A:E,5,FALSE),VLOOKUP(C19,'COMP Sint. Sinapi'!G:K,5,FALSE)) -> 26.83 | H19: 26.83
A20: COMP. SINAPI | B20: SINAPI | C20: 88316 | D20: SERVENTE COM ENCARGOS COMPLEMENTARES | E20: h | F20: 2.06 | G20: =IFERROR(VLOOKUP(C20,'INSUMOS SINAPI'!A:E,5,FALSE),VLOOKUP(C20,'COMP Sint. Sinapi'!G:K,5,FALSE)) -> 20.46 | H20: 42.1476
E21: Sub total: | H21: =SUM(H11:H20) -> 1127.350143
F22: BDI | G22: =BDI!$C$15 -> 0.233 | H22: =H21*G22 -> 262.6725833
G23: Total Serviços: | H23: =H21+H22 -> 1390.022726
E24: =A9 -> CPU-01 | F24: PREÇO UNITÁRIO TOTAL: | H24: =H23 -> 1390.022726 | I24: =H21 -> 1127.350143
A26: CPU-02 | B26: CODEVASF | C26: Propria | D26: MOBILIZAÇÃO E DESMOBILIZAÇÃO | E26: M2 | F26: COEF. | G26: PRECO UNITÁRIO (R$) | H26: TOTAL (R$)
A28: COMP. SINAPI | B28: SINAPI | C28: 73340 | D28: CAMINHÃO TOCO, PBT 14.300 KG, CARGA ÚTIL MÁX. 9.710 KG, DIST. ENTRE EIXOS 3,56 M, POTÊNCIA 185 CV, INCLUSIVE CARROCERIA FIXA ABERTA DE MADEIRA P/ TR ANSPORTE GERAL DE CARGA SECA, DIMEN. APROX. 2,50 X 6,50 X 0,50 M - MATERIA IS NA OPERAÇÃO. AF_06/2014 | E28: H | F28: 2 | G28: =IFERROR(VLOOKUP(C28,'INSUMOS SINAPI'!A:E,5,FALSE),VLOOKUP(C28,'COMP Sint. Sinapi'!G:K,5,FALSE)) -> 167.12 | H28: =F28*G28 -> 334.24
A29: COMP. SINAPI | B29: SINAPI | C29: 67826 | D29: CAMINHÃO BASCULANTE 6 M3 TOCO, PESO BRUTO TOTAL 16.000 KG, CARGA ÚTIL MÁXI CHP MA 11.130 KG, DISTÂNCIA ENTRE EIXOS 5,36 M, POTÊNCIA 185 CV, INCLUSIVE CAÇAMBA METÁLICA - CHP DIURNO. AF_06/2014 | E29: CHP | F29: 2 | G29: =IFERROR(VLOOKUP(C29,'INSUMOS SINAPI'!A:E,5,FALSE),VLOOKUP(C29,'COMP Sint. Sinapi'!G:K,5,FALSE)) -> 200.57 | H29: 401.14
A30: COMP. SINAPI | B30: SINAPI | C30: 6259 | D30: CAMINHÃO PIPA 6.000 L, PESO BRUTO TOTAL 13.000 KG, DISTÂNCIA ENTRE EIXOS 4 CHP ,80 M, POTÊNCIA 189 CV INCLUSIVE TANQUE DE AÇO PARA TRANSPORTE DE ÁGUA, CAPACIDADE 6 M3 - CHP DIURNO. AF_06/2014 | E30: CHP | F30: 2 | G30: =IFERROR(VLOOKUP(C30,'INSUMOS SINAPI'!A:E,5,FALSE),VLOOKUP(C30,'COMP Sint. Sinapi'!G:K,5,FALSE)) -> 275.08 | H30: 550.16
A31: COMP. SICRO | B31: SICRO | C31: 5914640 | D31: TRANSPORTE COM CAVALO MECÂNICO COM SEMIRREBOQUE COM CAPACIDADE DE 30 T - RODOVIA PAVIMENTADA | E31: T x km | F31: ='Mob e Desmob'!E39 -> 2008.23 | G31: 0.59 | H31: 1184.8557
A32: INSUMO | B32: ORSE | C32: 5896 | D32: VEÍCULO TIPO SEDAN OU PICK-UP CAPACIDADE 0,6 TON | E32: h | F32: 3 | G32: 8.33 | H32: 24.99
E33: Sub total: | H33: =SUM(H28:H32) -> 2495.3857
F34: BDI | G34: =BDI!$C$15 -> 0.233 | H34: =H33*G34 -> 581.4248681
G35: Total Serviços: | H35: =H33+H34 -> 3076.810568
F36: PREÇO UNITÁRIO TOTAL: | H36: =H35 -> 3076.810568
E37: =A26 -> CPU-02 | G37: PREÇO POR M²: | H37: =H36/('MC MODULO'!$E$1*'MC MODULO'!$E$2) -> 0.2197721834 | I37: =H33/('MC MODULO'!$E$1*'MC MODULO'!$E$2) -> 0.1782418357
A38: CPU-03 | B38: CODEVASF | D38: ADMINISTRAÇÃO LOCAL | E38: M2 | F38: COEF. | G38: PRECO UNITÁRIO (R$) | H38: TOTAL (R$)
A40: COMP. SINAPI | B40: SINAPI | C40: 90777 | D40: ENGENHEIRO CIVIL DE OBRA JUNIOR COM ENCARGOS COMPLEMENTARES | E40: H | F40: 20 | G40: =IFERROR(VLOOKUP(C40,'INSUMOS SINAPI'!A:E,5,FALSE),VLOOKUP(C40,'COMP Sint. Sinapi'!G:K,5,FALSE)) -> 112.83 | H40: =F40*G40 -> 2256.6
A41: COMP. SINAPI | B41: SINAPI | C41: 90780 | D41: MESTRE DE OBRAS COM ENCARGOS COMPLEMENTARES | E41: H | F41: 40 | G41: =IFERROR(VLOOKUP(C41,'INSUMOS SINAPI'!A:E,5,FALSE),VLOOKUP(C41,'COMP Sint. Sinapi'!G:K,5,FALSE)) -> 38.85 | H41: 1554
A42: COMP. SINAPI | B42: SINAPI | C42: 90772 | D42: AUXILIAR DE ESCRITORIO COM ENCARGOS COMPLEMENTARES | E42: H | F42: 40 | G42: =IFERROR(VLOOKUP(C42,'INSUMOS SINAPI'!A:E,5,FALSE),VLOOKUP(C42,'COMP Sint. Sinapi'!G:K,5,FALSE)) -> 17.36 | H42: 694.4
A43: COMP. SINAPI | B43: SINAPI | C43: 100309 | D43: TÉCNICO EM SEGURANÇA DO TRABALHO COM ENCARGOS COMPLEMENTARES | E43: H | F43: 40 | G43: =IFERROR(VLOOKUP(C43,'INSUMOS SINAPI'!A:E,5,FALSE),VLOOKUP(C43,'COMP Sint. Sinapi'!G:K,5,FALSE)) -> 29.85 | H43: 1194
A44: INS. SINAPI | B44: SINAPI | C44: 14250 | D44: ENERGIA | E44: KW/H | F44: 100 | G44: =IFERROR(VLOOKUP(C44,'INSUMOS SINAPI'!A:E,5,FALSE),VLOOKUP(C44,'COMP Sint. Sinapi'!G:K,5,FALSE)) -> 1 | H44: 100
A45: INS. SINAPI | B45: SINAPI | C45: 44480 | D45: ÁGUA TARIFA "A" ENTRE 0 E 20M3 FORNECIMENTO D'AGUA | E45: M3 | F45: 1 | G45: =IFERROR(VLOOKUP(C45,'INSUMOS SINAPI'!A:E,5,FALSE),VLOOKUP(C45,'COMP Sint. Sinapi'!G:K,5,FALSE)) -> 18.92 | H45: 18.92
A46: INSUMO | B46: ORSE | C46: 4415 | D46: VEÍCULO LEVE - VOLKSWAGEN:GOL 1000 - AUTOMÓVEL ATÉ 100 HP | E46: h | F46: 40 | G46: 13.18 | H46: 527.2
E47: ADM. LOCAL : | H47: =SUM(H40:H46) -> 6345.12
E48: Total para 6 meses:
F49: BDI | G49: =BDI!$C$15 -> 0.233 | H49: =G49*H47 -> 1478.41296
F50: PREÇO TOTAL: | H50: =H49+H47 -> 7823.53296
E51: =A38 -> CPU-03 | G51: PREÇO POR M²: | H51: =H50/('MC MODULO'!$E$1*'MC MODULO'!$E$2) -> 0.5588237829 | I51: =H47/('MC MODULO'!$E$1*'MC MODULO'!$E$2) -> 0.4532228571
A52: CPU-04 | B52: CODEVASF | D52: CANTEIRO DE OBRAS E ALMOXARIFADO | E52: UND | F52: COEF. | G52: PRECO UNITÁRIO (R$) | H52: TOTAL (R$)
A54: INS. SINAPI | B54: SINAPI | C54: 10775 | D54: LOCACAO DE CONTAINER 2,30 X 6,00 M, ALT. 2,50 M, COM 1 SANITARIO, PARA ESCRITORIO, COMPLETO, SEM DIVISORIAS INTERNAS (NAO INCLUI MOBILIZACAO/DESMOBILIZACAO) | E54: mês | F54: 0.2 | G54: =IFERROR(VLOOKUP(C54,'INSUMOS SINAPI'!A:E,5,FALSE),VLOOKUP(C54,'COMP Sint. Sinapi'!G:K,5,FALSE)) -> 1400 | H54: =F54*G54 -> 280
A55: INS. SINAPI | B55: SINAPI | C55: 10776 | D55: LOCACAO DE CONTAINER 2,30 X 6,00 M, ALT. 2,50 M, PARA ESCRITORIO, SEM DIVISORIAS INTERNAS E SEM SANITARIO (NAO INCLUI MOBILIZACAO/DESMOBILIZACAO) | E55: mês | F55: 0.2 | G55: =IFERROR(VLOOKUP(C55,'INSUMOS SINAPI'!A:E,5,FALSE),VLOOKUP(C55,'COMP Sint. Sinapi'!G:K,5,FALSE)) -> 1093.75 | H55: 218.75
E56: Sub total: | H56: =SUM(H54:H55) -> 498.75
F57: BDI | G57: =BDI!$C$15 -> 0.233 | H57: =H56*G57 -> 116.20875
G58: Total Serviços: | H58: =H56+H57 -> 614.95875
E59: =A52 -> CPU-04 | F59: PREÇO UNITÁRIO TOTAL: | H59: =H58 -> 614.95875 | I59: =H56 -> 498.75
A61: CPU-11 | B61: CODEVASF | D61: LIMPEZA GERAL | E61: UNID | F61: COEF. | G61: PRECO UNITÁRIO (R$) | H61: TOTAL (R$)
A63: COMP. SINAPI | B63: SINAPI | C63: 88316 | D63: SERVENTE COM ENCARGOS COMPLEMENTARES | E63: H | F63: 0.05 | G63: =IFERROR(VLOOKUP(C63,'INSUMOS SINAPI'!A:E,5,FALSE),VLOOKUP(C63,'COMP Sint. Sinapi'!G:K,5,FALSE)) -> 20.46 | H63: =F63*G63 -> 1.023
E64: Sub total: | H64: =SUM(H63:H63) -> 1.023
F65: BDI | G65: =BDI!$C$15 -> 0.233 | H65: =H64*G65 -> 0.238359
G66: Total Serviços: | H66: =H64+H65 -> 1.261359
E67: =A61 -> CPU-11 | F67: PREÇO UNITÁRIO TOTAL: | H67: =H66 -> 1.261359 | I67: =H64 -> 1.023
A69: CPU-12 | B69: CODEVASF | D69: Correção de vazamentos no ramal na rua sem pavimento com fornecimento do material hidráulico | E69: m | F69: COEF. | G69: PRECO UNITÁRIO (R$) | H69: TOTAL (R$)
A71: Composição Auxiliar | B71: SINAPI | C71: 88316 | D71: SERVENTE COM ENCARGOS COMPLEMENTARES | E71: H | F71: 0.2 | G71: =IFERROR(VLOOKUP(C71,'INSUMOS SINAPI'!A:E,5,FALSE),VLOOKUP(C71,'COMP Sint. Sinapi'!G:K,5,FALSE)) -> 20.46 | H71: =F71*G71 -> 4.092
A72: Composição Auxiliar | B72: SINAPI | C72: 88267 | D72: ENCANADOR OU BOMBEIRO HIDRÁULICO COM ENCARGOS COMPLEMENTARES | E72: H | F72: 0.1 | G72: =IFERROR(VLOOKUP(C72,'INSUMOS SINAPI'!A:E,5,FALSE),VLOOKUP(C72,'COMP Sint. Sinapi'!G:K,5,FALSE)) -> 26.46 | H72: 2.646
A73: Insumo | B73: SINAPI | C73: 9867 | D73: TUBO PVC, SOLDAVEL, DN 20 MM, AGUA FRIA (NBR-5648) | E73: m | F73: 1 | G73: =IFERROR(VLOOKUP(C73,'INSUMOS SINAPI'!A:E,5,FALSE),VLOOKUP(C73,'COMP Sint. Sinapi'!G:K,5,FALSE)) -> 4.17 | H73: 4.17
A74: Insumo | B74: ORSE | C74: 10585 | D74: Arco de serra | E74: un | F74: 0.1 | G74: 22.47 | H74: 2.247
A75: Insumo | B75: SINAPI | C75: 3859 | D75: LUVA SOLDAVEL COM ROSCA, PVC, 20 MM X 1/2", PARA AGUA FRIA PREDIAL | E75: un | F75: 2 | G75: =IFERROR(VLOOKUP(C75,'INSUMOS SINAPI'!A:E,5,FALSE),VLOOKUP(C75,'COMP Sint. Sinapi'!G:K,5,FALSE)) -> 1.5 | H75: 3
E76: Sub total: | H76: =SUM(H71:H75) -> 16.155
F77: BDI | G77: =BDI!$C$15 -> 0.233 | H77: =H76*G77 -> 3.764115
G78: Total Serviços: | H78: =H76+H77 -> 19.919115
E79: =A69 -> CPU-12 | F79: PREÇO UNITÁRIO TOTAL: | H79: =H78 -> 19.919115 | I79: =H76 -> 16.155
A81: CPU-14 | B81: CODEVASF | D81: AQUISIÇÃO DE CM-30 | E81: t | F81: COEF. | G81: PRECO UNITÁRIO (R$) | H81: TOTAL (R$)
D83: CM-30 | E83: t | F83: 1 | G83: =RESUMO_Transp!$V$17 -> 5234.081709 | H83: =F83*G83 -> 5234.081709
E84: Sub total: | H84: =SUM(H83) -> 5234.081709
F85: BDI | G85: 0.15 | H85: =H84*G85 -> 785.1122564
G86: Total Serviços: | H86: =H84+H85 -> 6019.193966
E87: =A81 -> CPU-14 | F87: PREÇO UNITÁRIO TOTAL: | H87: =H86 -> 6019.193966 | I87: =H84 -> 5234.081709
A89: CPU-15 | B89: CODEVASF | D89: AQUISIÇÃO DE EMULSÃO ASFÁLTICA RR-2C | E89: t | F89: COEF. | G89: PRECO UNITÁRIO (R$) | H89: TOTAL (R$)
D91: EMULSÃO ASFÁLTICA RR-2C | E91: t | F91: 1 | G91: =RESUMO_Transp!$V$24 -> 3297.093323 | H91: =F91*G91 -> 3297.093323
E92: Sub total: | H92: =SUM(H91) -> 3297.093323
F93: BDI | G93: 0.15 | H93: =H92*G93 -> 494.5639985
G94: Total Serviços: | H94: =H92+H93 -> 3791.657322
E95: =A89 -> CPU-15 | F95: PREÇO UNITÁRIO TOTAL: | H95: =H94 -> 3791.657322 | I95: =H92 -> 3297.093323
A97: CPU-16 | B97: CODEVASF | D97: SERVIÇOS TOPOGRÁFICOS PARA PAVIMENTAÇÃO, INCLUSIVE NOTAS DE SERVIÇOS, ACOMPANHAMENTO E GREIDE | E97: M2 | F97: COEF. | G97: PRECO UNITÁRIO (R$) | H97: TOTAL (R$)
A99: Insumo | B99: SINAPI | C99: 20206 | D99: =VLOOKUP(C99,'INSUMOS SINAPI'!A:E,2,0) -> SARRAFO APARELHADO *2 X 10* CM, EM MACARANDUBA/MASSARANDUBA, ANGELIM OU EQUIVALENTE DA REGIAO | E99: m | F99: 0.002886 | G99: =IFERROR(VLOOKUP(C99,'INSUMOS SINAPI'!A:E,5,FALSE),VLOOKUP(C99,'COMP Sint. Sinapi'!G:K,5,FALSE)) -> 8.59 | H99: =F99*G99 -> 0.02479074
A100: Composição | B100: SINAPI | C100: 88253 | D100: =VLOOKUP(C100,'COMP Sint. Sinapi'!G:K,2,0) -> AUXILIAR DE TOPÓGRAFO COM ENCARGOS COMPLEMENTARES | E100: h | F100: 0.0025 | G100: =IFERROR(VLOOKUP(C100,'INSUMOS SINAPI'!A:E,5,FALSE),VLOOKUP(C100,'COMP Sint. Sinapi'!G:K,5,FALSE)) -> 18.67 | H100: 0.046675
A101: Composição | B101: SINAPI | C101: 88288 | D101: =VLOOKUP(C101,'COMP Sint. Sinapi'!G:K,2,0) -> NIVELADOR COM ENCARGOS COMPLEMENTARES | E101: h | F101: 0.0025 | G101: =IFERROR(VLOOKUP(C101,'INSUMOS SINAPI'!A:E,5,FALSE),VLOOKUP(C101,'COMP Sint. Sinapi'!G:K,5,FALSE)) -> 23.29 | H101: 0.058225
A102: Composição | B102: SINAPI | C102: 88316 | D102: =VLOOKUP(C102,'COMP Sint. Sinapi'!G:K,2,0) -> SERVENTE COM ENCARGOS COMPLEMENTARES | E102: h | F102: 0.0075 | G102: =IFERROR(VLOOKUP(C102,'INSUMOS SINAPI'!A:E,5,FALSE),VLOOKUP(C102,'COMP Sint. Sinapi'!G:K,5,FALSE)) -> 20.46 | H102: 0.15345
A103: Composição | B103: SINAPI | C103: 88597 | D103: =VLOOKUP(C103,'COMP Sint. Sinapi'!G:K,2,0) -> DESENHISTA DETALHISTA COM ENCARGOS COMPLEMENTARES | E103: h | F103: 0.002 | G103: =IFERROR(VLOOKUP(C103,'INSUMOS SINAPI'!A:E,5,FALSE),VLOOKUP(C103,'COMP Sint. Sinapi'!G:K,5,FALSE)) -> 41.11 | H103: 0.08222
A104: Composição | B104: SINAPI | C104: 92145 | D104: =VLOOKUP(C104,'COMP Sint. Sinapi'!G:K,2,0) -> CAMINHONETE CABINE SIMPLES COM MOTOR 1.6 FLEX, CÂMBIO MANUAL, POTÊNCIA 101/104 CV, 2 PORTAS - CHP DIURNO. AF_11/2015 | E104: chp | F104: 0.001 | G104: =IFERROR(VLOOKUP(C104,'INSUMOS SINAPI'!A:E,5,FALSE),VLOOKUP(C104,'COMP Sint. Sinapi'!G:K,5,FALSE)) -> 81.57 | H104: 0.08157
E105: Sub total: | H105: =SUM(H99:H104) -> 0.44693074
F106: BDI | G106: =BDI!$C$15 -> 0.233 | H106: =H105*G106 -> 0.1041348624
G107: Total Serviços: | H107: =H105+H106 -> 0.5510656024
E108: =A97 -> CPU-16 | F108: PREÇO UNITÁRIO TOTAL: | H108: =H107 -> 0.5510656024 | I108: =H105 -> 0.44693074
A110: CPU-18 | B110: CODEVASF | D110: TRANSPORTE DE CM-30 | E110: t | F110: COEF. | G110: PRECO UNITÁRIO (R$) | H110: TOTAL (R$)
D112: TRANSPORTE DE CM-30 | E112: t | F112: 1 | G112: =RESUMO_Transp!$U$17 -> 321.23 | H112: =F112*G112 -> 321.23
E113: Sub total: | H113: =SUM(H112) -> 321.23
F114: BDI | G114: 0.15 | H114: =H113*G114 -> 48.1845
G115: Total Serviços: | H115: =H113+H114 -> 369.4145
E116: =A110 -> CPU-18 | F116: PREÇO UNITÁRIO TOTAL: | H116: =H115 -> 369.4145 | I116: =H113 -> 321.23
A118: CPU-19 | B118: CODEVASF | D118: TRANSPORTE DE EMULSÃO ASFÁLTICA RR-2C | E118: t | F118: COEF. | G118: PRECO UNITÁRIO (R$) | H118: TOTAL (R$)
D120: TRANSPORTE DE EMULSÃO ASFÁLTICA RR-2C | E120: t | F120: 1 | G120: =RESUMO_Transp!$U$24 -> 317.43 | H120: =F120*G120 -> 317.43
E121: Sub total: | H121: =SUM(H120) -> 317.43
F122: BDI | G122: 0.15 | H122: =H121*G122 -> 47.6145
G123: Total Serviços: | H123: =H121+H122 -> 365.0445
E124: =A118 -> CPU-19 | F124: PREÇO UNITÁRIO TOTAL: | H124: =H123 -> 365.0445 | I124: =H121 -> 317.43
A126: CPU-20 | B126: CODEVASF | D126: CONTROLE TECNOLÓGICO - PROJETO | E126: m² | F126: COEF. | G126: PRECO UNITÁRIO (R$) | H126: TOTAL (R$)
A128: Insumo | B128: SICRO | C128: P9858 | D128: Laboratorista | E128: mês | F128: =0.15/14000 -> 1.071428571e-05 | G128: 6857.5 | H128: =F128*G128 -> 0.07347321429
A129: Composição | B129: SICRO | C129: P9833 | D129: Auxiliar de Laboratório | E129: mês | F129: =0.15/14000 -> 1.071428571e-05 | G129: 5232.86 | H129: 0.05606635714
A130: Composição | B130: SICRO | C130: *B8957 | D130: Laboratório de Solos | E130: mês | F130: 1.071428571e-05 | G130: 4311.34 | H130: =F130*G130 -> 0.04619292857
A131: Composição | B131: SICRO | C131: *B8955 | D131: Laboratório de Asfalto | E131: mês | F131: 1.071428571e-05 | G131: 5400.53 | H131: 0.05786282143
B132: *Relatório de Custos Gerais do DNIT, página 1 | E132: Sub total: | H132: =SUM(H128:H131) -> 0.2335953214
F133: BDI | G133: =BDI!$C$15 -> 0.233 | H133: =H132*G133 -> 0.05442770989
E134: CPU-20 | F134: PREÇO UNITÁRIO TOTAL: | H134: =H132+H133 -> 0.2880230313 | I134: =H132 -> 0.2335953214
A136: CPU-21 | B136: CODEVASF | D136: CONTROLE TECNOLÓGICO - OBRA | E136: m² | F136: COEF. | G136: PRECO UNITÁRIO (R$) | H136: TOTAL (R$)
A138: Insumo | B138: SICRO | C138: P9858 | D138: Laboratorista | E138: mês | F138: =0.35/14000 -> 2.5e-05 | G138: 6857.5 | H138: =F138*G138 -> 0.1714375
A139: Composição | B139: SICRO | C139: P9833 | D139: Auxiliar de Laboratório | E139: mês | F139: =0.35/14000 -> 2.5e-05 | G139: 5232.86 | H139: 0.1308215
A140: Composição | B140: SICRO | C140: *B8957 | D140: Laboratório de Solos | E140: mês | F140: 2.5e-05 | G140: 4311.34 | H140: 0.1077835
A141: Composição | B141: SICRO | C141: *B8955 | D141: Laboratório de Asfalto | E141: mês | F141: 2.5e-05 | G141: 5400.53 | H141: 0.13501325
B142: *Relatório de Custos Gerais do DNIT, página 1 | E142: Sub total: | H142: =SUM(H138:H141) -> 0.54505575
F143: BDI | G143: =BDI!$C$15 -> 0.233 | H143: =G143*H142 -> 0.1269979897
E144: CPU-21 | F144: PREÇO UNITÁRIO TOTAL: | H144: =H142+H143 -> 0.6720537397 | I144: =H142 -> 0.54505575

Sheet Projeto Executivo
A1: COMPOSIÇAO PREÇO PROJETO EXECUTIVO (POR KM)
A3: DISCRIMINAÇAO | F3: Pr. Unit. | G3: Pr. Total
A5: A· EOUIPE TECNICA | G5: =G6+G9 -> 3563.2
B6: A. 1 - Pessoal de Nível Superior | C6: Unidade | D6: Quantitativo | E6: Código SINAPI | G6: =G7+G8 -> 2868.3
B7: Engenheiro | C7: h | D7: 20 | E7: 34780 | F7: =IFERROR(VLOOKUP(E7,'INSUMOS SINAPI'!A:E,5,FALSE),VLOOKUP(E7,'COMP Sint. Sinapi'!G:K,5,FALSE)) -> 124.99 | G7: =F7*D7 -> 2499.8
B8: Topógrafo | C8: h | D8: 10 | E8: 7592 | F8: =IFERROR(VLOOKUP(E8,'INSUMOS SINAPI'!A:E,5,FALSE),VLOOKUP(E8,'COMP Sint. Sinapi'!G:K,5,FALSE)) -> 36.85 | G8: =F8*D8 -> 368.5
B9: A.2 - Pessoal de Nível Técnico e Aux. | G9: =G10+G11 -> 694.9
B10: Auxiliar de topógrafo | C10: h | D10: 10 | E10: 244 | F10: =IFERROR(VLOOKUP(E10,'INSUMOS SINAPI'!A:E,5,FALSE),VLOOKUP(E10,'COMP Sint. Sinapi'!G:K,5,FALSE)) -> 16.57 | G10: =F10*D10 -> 165.7
B11: Cadista/calculista | C11: h | D11: 20 | E11: 2359 | F11: =IFERROR(VLOOKUP(E11,'INSUMOS SINAPI'!A:E,5,FALSE),VLOOKUP(E11,'COMP Sint. Sinapi'!G:K,5,FALSE)) -> 26.46 | G11: =F11*D11 -> 529.2
A12: B - ENCARGOS SOCIAIS | G12: =G13 -> 0
B13: =CONCATENATE("Taxas ",'ENC. SOCIAIS'!E51,"%") -> Taxas % | C13: JÁ INCLUSAS EM "A"
A14: C - DESPESAS GERAIS | G14: =G15+G16+G17+G18 -> 376.3239785
B15: C.1 - MATERIAIS DE CONSUMO | C15: Estimativa % como referência de equipe técnica com encargos sociais | D15: 0.03 | F15: =G5+G13 -> 3563.2 | G15: =F15*D15 -> 106.896
B16: C.2 - VEÍCULOS | C16: H | D16: 8 | E16: CPU VEÍCULO | F16: ='[50]CPU VEICULO'!D9 -> 27.56349731 | G16: =F16*D16 -> 220.5079785
B17: C.3 - COMBUSTÍVEL | C17: L | D17: 2 | E17: 4221 | F17: =IFERROR(VLOOKUP(E17,'INSUMOS SINAPI'!A:E,5,FALSE),VLOOKUP(E17,'COMP Sint. Sinapi'!G:K,5,FALSE)) -> 6.46 | G17: =F17*D17 -> 12.92
B18: C.3 - EQUIPAMENTOS, INSTALAÇÕES E MOBILIÁRIO | C18: H | D18: 16 | E18: 7247 | F18: =IFERROR(VLOOKUP(E18,'INSUMOS SINAPI'!A:E,5,FALSE),VLOOKUP(E18,'COMP Sint. Sinapi'!G:K,5,FALSE)) -> 2.25 | G18: =F18*D18 -> 36
A19: D - ENSAIOS | G19: =G20 -> 1635.16725
B20: D.1 - ENSAIOS | C20: M² | D20: ='[51]MC MODULO'!E2*1000 -> 7000 | E20: Composição Ensaios (CPU-20) | F20: ='CPU CODEVASF'!H132 -> 0.2335953214 | G20: =F20*D20 -> 1635.16725
A21: I - SOMA (A+B+C+D) | G21: =G5+G12+G14+G19 -> 5574.691229
A22: II - CUSTOS ADMINISTRATIVOS | D22: =BDI!C15 -> 0.233 | G22: =D22*G21 -> 1298.903056
A23: III - TOTAL (I+II) | G23: =SUM(G21:G22) -> 6873.594285
F25: Por m²: | G25: =G23/('MC MODULO'!E2*1000) -> 0.9819420407

Sheet Mob e Desmob
A5: ='RESUMO MODULO TOTAL'!B1 -> EXECUÇÃO DE SERVIÇOS DE PAVIMENTAÇÃO COM TRATAMENTO SUPERFICIAL DUPLO EM VIAS DE MUNICÍPIOS DIVERSOS INSERIDOS NA ÁREA DE ATUAÇÃO DA CIDEVASF, NO ESTADO DO CEARÁ - LOTE 3
A7: MEMÓRIA DE CÁLCULO DOS MOMENTOS DE TRANSPORTE PARA MOBILIZAÇÃO E DESMOBILIZAÇÃO
A10: Deslocamento:
C11: Distancia méd. (Km) | D11: Qtde. | E11: Total (Km)
A12: Mobilização (entre os trechos de serviço): | C12: 1 | D12: 1 | E12: =C12*D12 -> 1
A13: Desmobilização (entre os trechos de serviço): | C13: 1 | D13: 1 | E13: =C13*D13 -> 1
A14: Mobilização inter-municipal (entre as localidades): | C14: 20 | D14: 1 | E14: =C14*D14 -> 20
A15: Desmobilização inter-municipal (entre as localidades): | C15: 20 | D15: 1 | E15: =C15*D15 -> 20
A16: Mobilização - Total (km) | E16: =E12+E14 -> 21
A17: Desmobilização - Total (km) | E17: =E13+E15 -> 21
A20: Peso das máquinas:
E21: Pá carregadeira | H21: 10.1 | I21: ton
E22: Motoniveladora | H22: 12.47 | I22: ton
E23: Trator de pneus | H23: 2.8 | I23: ton
E24: Grade de disco | H24: 1 | I24: ton
E25: Usina misturadora | H25: 20 | I25: ton
E26: Tanque de Armazenamento 30 ton | H26: 5 | I26: ton
E27: Acabadora | H27: 12.6 | I27: ton
E28: Rolo Compactador Vibratório PD | H28: 15.33 | I28: ton
E29: Rolo Compactador Vibratório Liso | H29: 15.33 | I29: ton
E30: Grade de Disco | H30: 1 | I30: ton
E31: Caminhão Pipa | I31: ton
E32: Caminhão Basculannte | I32: ton
E33: Caminhão Espagidor | I33: ton
E34: Caminhão de Apoio | I34: ton
E36: Total | H36: =ROUND(SUM(H20:H35),2) -> 95.63 | I36: ton
A38: Portanto: | B38: Portanto
A39: Mobilização - Total (km) | E39: =E16*H36 -> 2008.23 | F39: t x km
A40: Desmobilização - Total (km) | E40: =E17*H36 -> 2008.23 | F40: t x km
A44: E9010 | B44: Balança plataforma digital com mesa de 75 x 75 cm com capacidade de 500 kg | I44: Caminhão carroceria
A45: E9064 | B45: Transportador manual gerica com capacidade de 180 l | I45: Caminhão carroceria
A46: E9066 | B46: Grupo gerador - 13/14 kVA | I46: Caminhão carroceria
A47: E9071 | B47: Transportador manual carrinho de mão com capacidade de 80 l | I47: Caminhão carroceria
A48: E9076 | B48: Equipamento de pintura com cabine de 7,00 kW e estufa de 80.000 kCal para pintura eletrostática | I48: Caminhão carroceria
A49: E9519 | B49: Betoneira com motor a gasolina com capacidade de 600 l - 10 kW | I49: Caminhão carroceria
A50: E9521 | B50: Grupo gerador - 2,5/3 kVA | I50: Caminhão carroceria
A51: E9568 | B51: Furadeira de impacto de 12,5 mm - 0,8 kW | I51: Caminhão carroceria
A52: E9622 | B52: Máquina de bancada universal para corte de chapa - 1,5 kW | I52: Caminhão carroceria
A53: E9623 | B53: Máquina de bancada guilhotina - 4 kW | I53: Caminhão carroceria
A54: E9675 | B54: Martelete perfurador/rompedor elétrico - 1,5 kW | I54: Caminhão carroceria
A55: E9779 | B55: Grupo gerador - 100/110 kVA | I55: Caminhão carroceria
A58: E9506 | B58: Caminhão basculante com capacidade de 6 m³ - 136 kW | I58: Rodoviario
A59: E9571 | B59: Caminhão tanque com capacidade de 10.000 l - 188 kW | I59: Rodoviario
A60: E9579 | B60: Caminhão basculante com capacidade de 10 m³ - 188 kW | I60: Rodoviario
A61: E9592 | B61: Caminhão carroceria com capacidade de 15 t - 188 kW | I61: Rodoviario
A62: E9644 | B62: Caminhão demarcador de faixas com sistema de pintura a frio - 28 kW/115 kW | I62: Rodoviario
A63: E9686 | B63: Caminhão carroceria com guindauto com capacidade de 20 t.m - 136 kW | I63: Rodoviario
A64: E9687 | B64: Caminhão carroceria com capacidade de 5 t - 115 kW | I64: Rodoviario
A65: E9514 | B65: Distribuidor de agregados autopropelido - 130 kW | I65: Rodoviario
A67: E9511 | B67: Carregadeira de pneus com capacidade de 3,40 m³ - 195 kW | I67: TRANSPORTE COM CAVALO MECÂNICO COM SEMIRREBOQUE COM CAPACIDADE DE 30 T - RODOVIA PAVIMENTADA
A68: E9524 | B68: Motoniveladora - 93 kW | I68: TRANSPORTE COM CAVALO MECÂNICO COM SEMIRREBOQUE COM CAPACIDADE DE 30 T - RODOVIA PAVIMENTADA
A69: E9530 | B69: Rolo compactador liso autopropelido vibratório de 11 t - 97 kW | I69: TRANSPORTE COM CAVALO MECÂNICO COM SEMIRREBOQUE COM CAPACIDADE DE 30 T - RODOVIA PAVIMENTADA
A70: E9577 | B70: Trator agrícola - 77 kW | I70: TRANSPORTE COM CAVALO MECÂNICO COM SEMIRREBOQUE COM CAPACIDADE DE 30 T - RODOVIA PAVIMENTADA
A71: E9685 | B71: Rolo compactador pé de carneiro vibratório autopropelido de 11,6 t - 82 kW | I71: TRANSPORTE COM CAVALO MECÂNICO COM SEMIRREBOQUE COM CAPACIDADE DE 30 T - RODOVIA PAVIMENTADA
A72: E9762 | B72: Rolo compactador de pneus autopropelido de 27 t - 85 kW | I72: TRANSPORTE COM CAVALO MECÂNICO COM SEMIRREBOQUE COM CAPACIDADE DE 30 T - RODOVIA PAVIMENTADA
A73: E9518 | B73: Grade de 24 discos rebocável de 24" | I73: TRANSPORTE COM CAVALO MECÂNICO COM SEMIRREBOQUE COM CAPACIDADE DE 30 T - RODOVIA PAVIMENTADA
A74: E9615 | B74: Usina misturadora de solos com capacidade de 300 t/h | I74: TRANSPORTE COM CAVALO MECÂNICO COM SEMIRREBOQUE COM CAPACIDADE DE 30 T - RODOVIA PAVIMENTADA

Sheet BDI
A2: DETALHAMENTO DO BDI - SEM DESONERAÇÃO
A3: ='RESUMO MODULO TOTAL'!B1 -> EXECUÇÃO DE SERVIÇOS DE PAVIMENTAÇÃO COM TRATAMENTO SUPERFICIAL DUPLO EM VIAS DE MUNICÍPIOS DIVERSOS INSERIDOS NA ÁREA DE ATUAÇÃO DA CIDEVASF, NO ESTADO DO CEARÁ - LOTE 3
A5: Descrição dos serviços | B5: Preço de Venda (%) | C5: Custo Direto (%)
A6: ADMINISTRAÇÃO CENTRAL | C6: 0.06
A7: CUSTOS FINANCEIROS | B7: 0.0095
A8: RISCOS | B8: 0.005
A9: SEGUROS E GARANTIAS CONTRATUAIS | B9: 0.0025
A10: LUCRO OPERACIONAL | C10: 0.07
A11: PIS | B11: 0.0065
A12: COFINS | B12: 0.03
A13: ISSQN | B13: 0.03
A14: Contribuição Previdenciaria | B14: 0
B15: BDI | C15: =ROUND((1+(C6+C10))/(1-(B7+B8+B9+B11+B12+B13+B14))-1,4) -> 0.233
A16: Observação: O percentual de ISSQN aqui utilizado consiste apenas em um referencial médio.
A17: O valor real do ISSQN a ser adotado deve ser aquele proveniente das alíquotas dos municípios situados na área de
A18: influência das obras.
A43: DETALHAMENTO DO BDI DIFERENCIADO - SEM DESONERAÇÃO
A44: ='RESUMO MODULO TOTAL'!B1 -> EXECUÇÃO DE SERVIÇOS DE PAVIMENTAÇÃO COM TRATAMENTO SUPERFICIAL DUPLO EM VIAS DE MUNICÍPIOS DIVERSOS INSERIDOS NA ÁREA DE ATUAÇÃO DA CIDEVASF, NO ESTADO DO CEARÁ - LOTE 3
A46: DESCRIÇÃO DOS SERVIÇOS | B46: PREÇO DE VENDA (%) | C46: CUSTO DIRETO (%)
A47: ADMINISTRAÇÃO CENTRAL | C47: 0.0377
A48: DESPESA FINANCEIRAS | B48: 0.0102
A49: SEGUROS E GARANTIAS CONTRATUAIS | B49: 0.0025
A50: RISCOS | B50: 0.005
A51: LUCRO OPERACIONAL | C51: 0.05
A52: PIS | B52: 0.0065
A53: COFINS | B53: 0.03
A54: ISSQN | B54: 0
A55: Contribuição Previdenciaria | B55: 0
B56: BDI | C56: =ROUND((1+(C47+C51))/(1-(B48+B49+B50+B52+B53+B54+B55))-1,4) -> 0.15
A57: Fonte da composição, valores de referência e fórmula do BDI: Instrução Normativa N° 62/DNIT SEDE

Sheet ENC. SOCIAIS
A6: NOME DA CONCORRENTE:
A7: EDITAL:
A8: FOLHA:
A9: ='RESUMO MODULO TOTAL'!B1 -> EXECUÇÃO DE SERVIÇOS DE PAVIMENTAÇÃO COM TRATAMENTO SUPERFICIAL DUPLO EM VIAS DE MUNICÍPIOS DIVERSOS INSERIDOS NA ÁREA DE ATUAÇÃO DA CIDEVASF, NO ESTADO DO CEARÁ - LOTE 3
A11: DETALHAMENTO DOS ENCARGOS SOCIAIS (%)

Sheet Transporte CM-30
C2: MEMÓRIA DE CÁLCULO
C7: REAJUSTE | F7: TIPOLOGIA DO MATERIAL | I7: ASFALTOS DILUÍDOS CM-30 | M7: IMPOSTOS | N7: COFINS | O7: 0.0065 | P7: 0.0065
G8: ÍNDICE DE PAVIMENTAÇÃO DNIT | H8: 2014-07-01 | I8: ÍNDICE INICIAL | J8: 270.237 | N8: PIS | O8: 0.03 | P8: 0.03 | AC8: As empresas tributadas pelo Lucro Presumido pagam 0,65% de PIS e 3% de COFINS
H9: 2023-09-01 | I9: ÍNDICE FINAL | J9: 555.551 | N9: ICMS | O9: 0.18 | P9: 0.18 | Q9: =1-(O9/1) -> 0.82 | R9: =1-(P9/1) -> 0.82 | S9: =1-(Q9/1) -> 0.18 | AC9: As empresas tributadas pelo Lucro Real pagam 1,65% de PIS e 7,60% de COFINS
F10: CAP50/70 | G10: Data ANP | H10: 2023-08-01
C11: DATA-BASE | D11: PRODUTOS | E11: LOCALIDADES | J11: CUSTO ANP (R$/Kg) | L11: CUSTO ANP | M11: IMPOSTOS DO PRODUTO | N11: CUSTO DO PRODUTO COM IMPOSTOS | O11: DMT's | P11: DMT's FLUVIAL | Q11: CUSTO DO TRANSPORTE RODOVIA PAVIMENTADA | R11: CUSTO DO TRANSPORTE FLUVIAL | S11: CUSTO DO TRANSPORTE TOTAL | T11: ICMS | U11: ATUALIZAÇÃO DO CUSTO DE TRANSPORTE | V11: CUSTO DO TRANSPORTE RODOVIA PAVIMENTADA COM IMPOSTOS E ATUALIZAÇÃO MONETÁRIA | W11: PEDÁGIO | Y11: TOTAL TRANSPORTE | Z11: AQUISIÇÃO DO PRODUTO | AA11: TOTAL GERAL (TRANSP + AQUISIÇÃO) | AC11: 1 | AD11: 2 | AE11: 3
C12: =H9 -> 2023-09-01 | E12: REFINARIAS | F12: ENDEREÇO | G12: ESTADO | H12: CIDADE | I12: DESTINO | J12: ESTADO | K12: REGIÃO | L12: R$/t | M12: R$/t | N12: R$/t | O12: KM | P12: KM | Q12: R$/t | R12: R$/t | S12: R$/t | T12: R$/t | U12: R$/t | V12: R$/t | W12: CUSTO | X12: R$/t | Y12: R$/t | Z12: R$/t | AA12: R$/t | AC12: TOTAL GERAL ( TRANSP + AQUISIÇÃO) | AD12: TOTAL TRANSPORTE | AE12: AQUISIÇÃO DO PRODUTO
B13: =AA13 -> 5778.225995 | C13: 1 | D13: =I7 -> ASFALTOS DILUÍDOS CM-30 | E13: Refinaria Abreu e Lima | F13: Rodovia PE 60, Km 10 - Ipojuca - PE CEP:55590-000 | G13: Pernambuco | H13: IPOJUCA - PE | I13: Carius - CE | J13: =VLOOKUP(G13,OFFSET('ANP ESTADO'!$A$1,MATCH($I$7,'ANP ESTADO'!B:B,0)+MATCH($H$10,OFFSET('ANP ESTADO'!$A$1,MATCH($I$7,'ANP ESTADO'!B:B,0),0,100000,1),0),2,100000,2),2,FALSE) -> - | K13: =VLOOKUP($H$10,OFFSET('ANP REGIÃO'!$A$9,MATCH('Transporte CM-30'!$I$7,'ANP REGIÃO'!A:A,0),1,10000,10000),MATCH('Transporte CM-30'!AH13,'ANP REGIÃO'!$B$8:$G$8,0),FALSE) -> 4.100901709 | L13: =IF(AND(J13="-",K13="-"),"",IF(AND(J13<>0,K13="-"),J13*1000,IF(AND(J13="-",K13<>0),K13*1000,IF(AND(J13<>0,K13<>0),J13*1000,"")))) -> 4100.901709 | M13: =ROUND(((L13/(1-$O$7-$O$8-$O$9))-L13),2) -> 1133.18 | N13: =L13+M13 -> 5234.081709 | O13: 744 | Q13: =ROUND((26.939+0.253*O13),2) -> 215.17 | S13: =Q13+R13 -> 215.17 | T13: =TRUNC(S13*($O$9/(1-$O$9)),2) -> 47.23 | U13: =TRUNC(IF($J$8="","",(($J$9-$J$8)/$J$8)*(S13+T13)),2) -> 277.03 | V13: =S13+T13+U13 -> 539.43 | W13: 61.2 | X13: =EVEN(' CONSUMO DE MAT. B TOTAL'!$P$9*2/28)*W13/' CONSUMO DE MAT. B TOTAL'!$P$9 -> 4.714285714 | Y13: =IF(AND(S13="",T13=""),"",V13+X13) -> 544.1442857 | Z13: =IF(OR(L13="",M13=""),"",L13+M13) -> 5234.081709 | AA13: =IF(OR(Y13="",Z13=""),"",Y13+Z13) -> 5778.225995 | AC13: =AA13 -> 5778.225995 | AD13: =Y13 -> 544.1442857 | AE13: =Z13 -> 5234.081709 | AH13: =IF(OR(G13=$D$52,G13=$D$53,G13=$D$55,G13=$D$61,G13=$D$45,G13=$D$41,G13=$D$37,G13=$D$50,G13=$D$40),"NORDESTE",IF(OR(G13=$D$36,G13=$D$38,G13=$D$39,G13=$D$49,G13=$D$57,G13=$D$58,G13=$D$62),"NORTE",IF(OR(G13=$D$42,G13=$D$44,G13=$D$46,G13=$D$47),"CENTRO-OESTE",IF(OR(G13=$D$60,G13=$D$54,G13=$D$48,G13=$D$43),"SUDESTE",IF(OR(G13=$D$59,G13=$D$51,G13=$D$56),"SUL",""))))) -> NORDESTE
B14: =AA14 -> 7798.115999 | C14: 2 | E14: ISAC SAABA | F14: Rua Rio Quixito, 1, Vila Buriti - Distrito Industrial - Manaus - AM CEP: 69072-070 | G14: Amazonas | H14: MANAUS-AM | I14: Carius - CE | J14: =VLOOKUP(G14,OFFSET('ANP ESTADO'!$A$1,MATCH($I$7,'ANP ESTADO'!B:B,0)+MATCH($H$10,OFFSET('ANP ESTADO'!$A$1,MATCH($I$7,'ANP ESTADO'!B:B,0),0,100000,1),0),2,100000,2),2,FALSE) -> - | K14: =VLOOKUP($H$10,OFFSET('ANP REGIÃO'!$A$9,MATCH('Transporte CM-30'!$I$7,'ANP REGIÃO'!A:A,0),1,10000,10000),MATCH('Transporte CM-30'!AH14,'ANP REGIÃO'!$B$8:$G$8,0),FALSE) -> 4.043215999 | L14: =IF(AND(J14="-",K14=""),"",IF(AND(J14<>0,K14=""),J14*1000,IF(AND(J14="-",K14<>0),K14*1000,IF(AND(J14<>0,K14<>0),J14*1000,"")))) -> 4043.215999 | M14: =ROUND(((L14/(1-$O$7-$O$8-$O$9))-L14),2) -> 1117.24 | N14: =L14+M14 -> 5160.455999 | O14: 4052 | Q14: =ROUND((26.939+0.253*O14),2) -> 1052.1 | S14: =Q14+R14 -> 1052.1 | T14: =TRUNC(S14*($O$9/(1-$O$9)),2) -> 230.94 | U14: =TRUNC(IF($J$8="","",(($J$9-$J$8)/$J$8)*(S14+T14)),2) -> 1354.62 | V14: =S14+T14+U14 -> 2637.66 | W14: 0 | X14: =EVEN(' CONSUMO DE MAT. B TOTAL'!$P$9*2/28)*W14/' CONSUMO DE MAT. B TOTAL'!$P$9 -> 0 | Y14: =IF(AND(S14="",T14=""),"",V14+X14) -> 2637.66 | Z14: 5160.455999 | AA14: =IF(OR(Y14="",Z14=""),"",Y14+Z14) -> 7798.115999 | AC14: =AA14 -> 7798.115999 | AD14: =Y14 -> 2637.66 | AE14: 5160.455999 | AH14: =IF(OR(G14=$D$52,G14=$D$53,G14=$D$55,G14=$D$61,G14=$D$45,G14=$D$41,G14=$D$37,G14=$D$50,G14=$D$40),"NORDESTE",IF(OR(G14=$D$36,G14=$D$38,G14=$D$39,G14=$D$49,G14=$D$57,G14=$D$58,G14=$D$62),"NORTE",IF(OR(G14=$D$42,G14=$D$44,G14=$D$46,G14=$D$47),"CENTRO-OESTE",IF(OR(G14=$D$60,G14=$D$54,G14=$D$48,G14=$D$43),"SUDESTE",IF(OR(G14=$D$59,G14=$D$51,G14=$D$56),"SUL",""))))) -> NORTE
B15: 5622.561709 | C15: 3 | E15: Refinaria Potiguar Clara Camarão | F15: Rodovia RN 221, KM 25 - Guamaré - RN CEP:59598-000 | G15: Rio Grande do Norte | H15: GUAMARÉ - RN | I15: Carius - CE | J15: =VLOOKUP(G15,OFFSET('ANP ESTADO'!$A$1,MATCH($I$7,'ANP ESTADO'!B:B,0)+MATCH($H$10,OFFSET('ANP ESTADO'!$A$1,MATCH($I$7,'ANP ESTADO'!B:B,0),0,100000,1),0),2,100000,2),2,FALSE) -> - | K15: =VLOOKUP($H$10,OFFSET('ANP REGIÃO'!$A$9,MATCH('Transporte CM-30'!$I$7,'ANP REGIÃO'!A:A,0),1,10000,10000),MATCH('Transporte CM-30'!AH15,'ANP REGIÃO'!$B$8:$G$8,0),FALSE) -> 4.100901709 | L15: 4100.901709 | M15: =ROUND(((L15/(1-$O$7-$O$8-$O$9))-L15),2) -> 1133.18 | N15: 5234.081709 | O15: 506 | Q15: =ROUND((26.939+0.253*O15),2) -> 154.96 | S15: 154.96 | T15: 34.01 | U15: 199.51 | V15: 388.48 | W15: 0 | X15: =EVEN(' CONSUMO DE MAT. B TOTAL'!$P$9*2/28)*W15/' CONSUMO DE MAT. B TOTAL'!$P$9 -> 0 | Y15: 388.48 | Z15: 5234.081709 | AA15: 5622.561709 | AC15: 5622.561709 | AD15: 388.48 | AE15: 5234.081709 | AH15: NORDESTE
B16: 5824.140113 | C16: 4 | E16: Refinaria Landulpho Alves (RLAM) | F16: Rodovia BA 523, KM 4 – Mataripe São Francisco do Conde - BA CEP:43900-000 | G16: Bahia | H16: SÃO FRANCISCO DO CONDE - BA | I16: Carius - CE | J16: =VLOOKUP(G16,OFFSET('ANP ESTADO'!$A$1,MATCH($I$7,'ANP ESTADO'!B:B,0)+MATCH($H$10,OFFSET('ANP ESTADO'!$A$1,MATCH($I$7,'ANP ESTADO'!B:B,0),0,100000,1),0),2,100000,2),2,FALSE) -> - | K16: =VLOOKUP($H$10,OFFSET('ANP REGIÃO'!$A$9,MATCH('Transporte CM-30'!$I$7,'ANP REGIÃO'!A:A,0),1,10000,10000),MATCH('Transporte CM-30'!AH16,'ANP REGIÃO'!$B$8:$G$8,0),FALSE) -> 4.100901709 | L16: 4100.901709 | M16: =ROUND(((L16/(1-$O$7-$O$8-$O$9))-L16),2) -> 1133.18 | N16: 5234.081709 | O16: 823 | Q16: =ROUND((26.939+0.253*O16),2) -> 235.16 | S16: 235.16 | T16: 51.62 | U16: 302.77 | V16: 589.55 | W16: 6.6 | X16: =EVEN(' CONSUMO DE MAT. B TOTAL'!$P$9*2/28)*W16/' CONSUMO DE MAT. B TOTAL'!$P$9 -> 0.5084033613 | Y16: 590.0584034 | Z16: 5234.081709 | AA16: 5824.140113 | AC16: 5824.140113 | AD16: 590.0584034 | AE16: 5234.081709 | AH16: NORDESTE
A17: 2403 | B17: 5555.311709 | C17: 5 | E17: Refinaria Lubrificantes e Derivados do Nordeste (Lubnor) | F17: Av. Leite Barbosa, s/nº - Mucuripe Fortaleza - Ceará CEP:60180-420 | G17: Ceará | H17: FORTALEZA - CE | I17: Carius - CE | J17: =VLOOKUP(G17,OFFSET('ANP ESTADO'!$A$1,MATCH($I$7,'ANP ESTADO'!B:B,0)+MATCH($H$10,OFFSET('ANP ESTADO'!$A$1,MATCH($I$7,'ANP ESTADO'!B:B,0),0,100000,1),0),2,100000,2),2,FALSE) -> 4.100901709 | K17: =VLOOKUP($H$10,OFFSET('ANP REGIÃO'!$A$9,MATCH('Transporte CM-30'!$I$7,'ANP REGIÃO'!A:A,0),1,10000,10000),MATCH('Transporte CM-30'!AH17,'ANP REGIÃO'!$B$8:$G$8,0),FALSE) -> 4.100901709 | L17: =IF(AND(J17="-",K17=""),"",IF(AND(J17<>0,K17=""),J17*1000,IF(AND(J17="-",K17<>0),K17*1000,IF(AND(J17<>0,K17<>0),J17*1000,"")))) -> 4100.901709 | M17: =ROUND(((L17/(1-$O$7-$O$8-$O$9))-L17),2) -> 1133.18 | N17: 5234.081709 | O17: 400 | Q17: 128.14 | S17: 128.14 | T17: 28.12 | U17: 164.97 | V17: 321.23 | W17: 0 | X17: =EVEN(' CONSUMO DE MAT. B TOTAL'!$P$9*2/28)*W17/' CONSUMO DE MAT. B TOTAL'!$P$9 -> 0 | Y17: 321.23 | Z17: 5234.081709 | AA17: 5555.311709 | AC17: 5555.311709 | AD17: 321.23 | AE17: 5234.081709 | AH17: NORDESTE
B18: 7003.933075 | C18: 6 | E18: Refinaria Capuava (Recap) | F18: Av. Alberto Soares Sampaio, 2122-A Capuava – Mauá - SP | G18: São Paulo | H18: MAUÁ - SP | I18: Carius - CE | J18: =VLOOKUP(G18,OFFSET('ANP ESTADO'!$A$1,MATCH($I$7,'ANP ESTADO'!B:B,0)+MATCH($H$10,OFFSET('ANP ESTADO'!$A$1,MATCH($I$7,'ANP ESTADO'!B:B,0),0,100000,1),0),2,100000,2),2,FALSE) -> - | K18: =VLOOKUP($H$10,OFFSET('ANP REGIÃO'!$A$9,MATCH('Transporte CM-30'!$I$7,'ANP REGIÃO'!A:A,0),1,10000,10000),MATCH('Transporte CM-30'!AH18,'ANP REGIÃO'!$B$8:$G$8,0),FALSE) -> 3.964297949 | L18: 3964.297949 | M18: =ROUND(((L18/(1-$O$7-$O$8-$O$9))-L18),2) -> 1095.43 | N18: 5059.727949 | O18: 2855 | Q18: 749.25 | S18: 749.25 | T18: 164.46 | U18: 964.68 | V18: 1878.39 | W18: 854.4 | X18: =EVEN(' CONSUMO DE MAT. B TOTAL'!$P$9*2/28)*W18/' CONSUMO DE MAT. B TOTAL'!$P$9 -> 65.81512605 | Y18: 1944.205126 | Z18: 5059.727949 | AA18: 7003.933075 | AC18: 7003.933075 | AD18: 1944.205126 | AE18: 5059.727949 | AH18: SUDESTE
B19: 6579.779041 | C19: 7 | E19: Refinaria Duque de Caxias (Reduc) | F19: Rodovia Washington Luiz, km 113,7 Campos Elíseos – Duque de Caxias - RJ CEP:25213-005 | G19: Rio de Janeiro | H19: DUQUE DE CAXIAS - RJ | I19: Carius - CE | J19: =VLOOKUP(G19,OFFSET('ANP ESTADO'!$A$1,MATCH($I$7,'ANP ESTADO'!B:B,0)+MATCH($H$10,OFFSET('ANP ESTADO'!$A$1,MATCH($I$7,'ANP ESTADO'!B:B,0),0,100000,1),0),2,100000,2),2,FALSE) -> - | K19: =VLOOKUP($H$10,OFFSET('ANP REGIÃO'!$A$9,MATCH('Transporte CM-30'!$I$7,'ANP REGIÃO'!A:A,0),1,10000,10000),MATCH('Transporte CM-30'!AH19,'ANP REGIÃO'!$B$8:$G$8,0),FALSE) -> 3.964297949 | L19: 3964.297949 | M19: 1095.43 | N19: 5059.727949 | O19: 2255 | Q19: 597.45 | S19: 597.45 | T19: 131.14 | U19: 769.23 | V19: 1497.82 | W19: 288.6 | X19: =EVEN(' CONSUMO DE MAT. B TOTAL'!$P$9*2/28)*W19/' CONSUMO DE MAT. B TOTAL'!$P$9 -> 22.23109244 | Y19: 1520.051092 | Z19: 5059.727949 | AA19: 6579.779041 | AC19: 6579.779041 | AD19: 1520.051092 | AE19: 5059.727949 | AH19: SUDESTE
B20: 7585.5535 | C20: 8 | E20: Refinaria Alberto Pasqualini (Refap) | F20: Avenida Getúlio Vargas, 11001 - Bairro Brigadeira Canoas - RS - Brasil CEP:92420-221 | G20: Rio grande do sul | H20: CANOAS - RS | I20: Carius - CE | J20: =VLOOKUP(G20,OFFSET('ANP ESTADO'!$A$1,MATCH($I$7,'ANP ESTADO'!B:B,0)+MATCH($H$10,OFFSET('ANP ESTADO'!$A$1,MATCH($I$7,'ANP ESTADO'!B:B,0),0,100000,1),0),2,100000,2),2,FALSE) -> 3.903384845 | K20: =VLOOKUP($H$10,OFFSET('ANP REGIÃO'!$A$9,MATCH('Transporte CM-30'!$I$7,'ANP REGIÃO'!A:A,0),1,10000,10000),MATCH('Transporte CM-30'!AH20,'ANP REGIÃO'!$B$8:$G$8,0),FALSE) -> 4.055989778 | L20: 3903.384845 | M20: 1078.6 | N20: 4981.984845 | O20: 3920 | Q20: 1018.7 | S20: 1018.7 | T20: 223.61 | U20: 1311.62 | V20: 2553.93 | W20: 644.4 | X20: =EVEN(' CONSUMO DE MAT. B TOTAL'!$P$9*2/28)*W20/' CONSUMO DE MAT. B TOTAL'!$P$9 -> 49.63865546 | Y20: 2603.568655 | Z20: 4981.984845 | AA20: 7585.5535 | AC20: 7585.5535 | AD20: 2603.568655 | AE20: 4981.984845 | AH20: SUL
B21: 7513.431023 | C21: 9 | E21: Unidade de Industrialização do Xisto (SIX) | F21: Rodovia do Xisto, BR 476, km 153 São Mateus do Sul – PR CEP 83900-000 | G21: Paraná | H21: SÃO MATEUS DO SUL - PR | I21: Carius - CE | J21: =VLOOKUP(G21,OFFSET('ANP ESTADO'!$A$1,MATCH($I$7,'ANP ESTADO'!B:B,0)+MATCH($H$10,OFFSET('ANP ESTADO'!$A$1,MATCH($I$7,'ANP ESTADO'!B:B,0),0,100000,1),0),2,100000,2),2,FALSE) -> 4.203751779 | K21: =VLOOKUP($H$10,OFFSET('ANP REGIÃO'!$A$9,MATCH('Transporte CM-30'!$I$7,'ANP REGIÃO'!A:A,0),1,10000,10000),MATCH('Transporte CM-30'!AH21,'ANP REGIÃO'!$B$8:$G$8,0),FALSE) -> 4.055989778 | L21: 4203.751779 | M21: 1161.6 | N21: 5365.351779 | O21: 3209 | Q21: 838.82 | S21: 838.82 | T21: 184.13 | U21: 1080.02 | V21: 2102.97 | W21: 585.6 | X21: =EVEN(' CONSUMO DE MAT. B TOTAL'!$P$9*2/28)*W21/' CONSUMO DE MAT. B TOTAL'!$P$9 -> 45.1092437 | Y21: 2148.079244 | Z21: 5365.351779 | AA21: 7513.431023 | AC21: 7513.431023 | AD21: 2148.079244 | AE21: 5365.351779 | AH21: SUL
B22: 6463.362403 | C22: 10 | E22: Refinaria Gabriel Passos (Regap) | F22: Av. Refinaria Gabriel Passos, 690 Distrito Industrial Paulo Camilo Sul Betim - MG CEP:32669-205 | G22: Minas Gerais | H22: BETIM - MG | I22: Carius - CE | J22: =VLOOKUP(G22,OFFSET('ANP ESTADO'!$A$1,MATCH($I$7,'ANP ESTADO'!B:B,0)+MATCH($H$10,OFFSET('ANP ESTADO'!$A$1,MATCH($I$7,'ANP ESTADO'!B:B,0),0,100000,1),0),2,100000,2),2,FALSE) -> - | K22: =VLOOKUP($H$10,OFFSET('ANP REGIÃO'!$A$9,MATCH('Transporte CM-30'!$I$7,'ANP REGIÃO'!A:A,0),1,10000,10000),MATCH('Transporte CM-30'!AH22,'ANP REGIÃO'!$B$8:$G$8,0),FALSE) -> 3.964297949 | L22: 3964.297949 | M22: 1095.43 | N22: 5059.727949 | O22: 2085 | Q22: 554.44 | S22: 554.44 | T22: 121.7 | U22: 713.86 | V22: 1390 | W22: 177 | X22: =EVEN(' CONSUMO DE MAT. B TOTAL'!$P$9*2/28)*W22/' CONSUMO DE MAT. B TOTAL'!$P$9 -> 13.63445378 | Y22: 1403.634454 | Z22: 5059.727949 | AA22: =IF(OR(Y22="",Z22=""),"",Y22+Z22) -> 6463.362403 | AC22: 6463.362403 | AD22: 1403.634454 | AE22: 5059.727949 | AH22: SUDESTE
B23: 7523.541023 | C23: 11 | E23: Refinaria Presidente Getúlio Vargas (Repar) | F23: Rodovia do Xisto, BR 476, km 16 Araucária - PR CEP:83707-440 | G23: Paraná | H23: ARAUCÁRIA - PR | I23: Carius - CE | J23: =VLOOKUP(G23,OFFSET('ANP ESTADO'!$A$1,MATCH($I$7,'ANP ESTADO'!B:B,0)+MATCH($H$10,OFFSET('ANP ESTADO'!$A$1,MATCH($I$7,'ANP ESTADO'!B:B,0),0,100000,1),0),2,100000,2),2,FALSE) -> 4.203751779 | K23: =VLOOKUP($H$10,OFFSET('ANP REGIÃO'!$A$9,MATCH('Transporte CM-30'!$I$7,'ANP REGIÃO'!A:A,0),1,10000,10000),MATCH('Transporte CM-30'!AH23,'ANP REGIÃO'!$B$8:$G$8,0),FALSE) -> 4.055989778 | L23: 4203.751779 | M23: 1161.6 | N23: 5365.351779 | O23: 3225 | Q23: 842.86 | S23: 842.86 | T23: 185.01 | U23: 1085.21 | V23: 2113.08 | W23: 585.6 | X23: =EVEN(' CONSUMO DE MAT. B TOTAL'!$P$9*2/28)*W23/' CONSUMO DE MAT. B TOTAL'!$P$9 -> 45.1092437 | Y23: 2158.189244 | Z23: 5365.351779 | AA23: 7523.541023 | AC23: 7523.541023 | AD23: 2158.189244 | AE23: 5365.351779 | AH23: SUL
B24: 6975.445344 | C24: 12 | E24: Refinaria Presidente Bernardes (RPBC) | F24: Av. 9 de abril, 777 - Jardim das Indústrias Cubatão - SP CEP:11505-000 | G24: São Paulo | H24: CUBATÃO - SP | I24: Carius - CE | J24: =VLOOKUP(G24,OFFSET('ANP ESTADO'!$A$1,MATCH($I$7,'ANP ESTADO'!B:B,0)+MATCH($H$10,OFFSET('ANP ESTADO'!$A$1,MATCH($I$7,'ANP ESTADO'!B:B,0),0,100000,1),0),2,100000,2),2,FALSE) -> - | K24: =VLOOKUP($H$10,OFFSET('ANP REGIÃO'!$A$9,MATCH('Transporte CM-30'!$I$7,'ANP REGIÃO'!A:A,0),1,10000,10000),MATCH('Transporte CM-30'!AH24,'ANP REGIÃO'!$B$8:$G$8,0),FALSE) -> 3.964297949 | L24: 3964.297949 | M24: 1095.43 | N24: 5059.727949 | O24: 2876 | Q24: 754.57 | S24: 754.57 | T24: 165.63 | U24: 971.53 | V24: 1891.73 | W24: 311.4 | X24: =EVEN(' CONSUMO DE MAT. B TOTAL'!$P$9*2/28)*W24/' CONSUMO DE MAT. B TOTAL'!$P$9 -> 23.98739496 | Y24: 1915.717395 | Z24: 5059.727949 | AA24: 6975.445344 | AC24: 6975.445344 | AD24: 1915.717395 | AE24: 5059.727949 | AH24: SUDESTE
B25: 6875.375008 | C25: 13 | E25: Refinaria de Paulínia (Replan) | F25: Rodovia SP 332 - Km. 130 Bonfim - Paulínia – SP CEP:13140-000 | G25: São Paulo | H25: PAULÍNIA - SP | I25: Carius - CE | J25: =VLOOKUP(G25,OFFSET('ANP ESTADO'!$A$1,MATCH($I$7,'ANP ESTADO'!B:B,0)+MATCH($H$10,OFFSET('ANP ESTADO'!$A$1,MATCH($I$7,'ANP ESTADO'!B:B,0),0,100000,1),0),2,100000,2),2,FALSE) -> - | K25: =VLOOKUP($H$10,OFFSET('ANP REGIÃO'!$A$9,MATCH('Transporte CM-30'!$I$7,'ANP REGIÃO'!A:A,0),1,10000,10000),MATCH('Transporte CM-30'!AH25,'ANP REGIÃO'!$B$8:$G$8,0),FALSE) -> 3.964297949 | L25: 3964.297949 | M25: 1095.43 | N25: 5059.727949 | O25: 2703 | Q25: 710.8 | S25: 710.8 | T25: 156.02 | U25: 915.18 | V25: 1782 | W25: 436.8 | X25: =EVEN(' CONSUMO DE MAT. B TOTAL'!$P$9*2/28)*W25/' CONSUMO DE MAT. B TOTAL'!$P$9 -> 33.64705882 | Y25: 1815.647059 | Z25: 5059.727949 | AA25: 6875.375008 | AC25: 6875.375008 | AD25: 1815.647059 | AE25: 5059.727949 | AH25: SUDESTE
B26: 6979.059461 | C26: 14 | E26: Refinaria Henrique Lage (Revap) | F26: Rodovia Presidente Dutra, KM 143, S/N Bairro Jardim Diamante - São José dos Campos – SP CEP:12223-900 | G26: São Paulo | H26: SÃO JOSÉ DOS CAMPOS - SP | I26: Carius - CE | J26: =VLOOKUP(G26,OFFSET('ANP ESTADO'!$A$1,MATCH($I$7,'ANP ESTADO'!B:B,0)+MATCH($H$10,OFFSET('ANP ESTADO'!$A$1,MATCH($I$7,'ANP ESTADO'!B:B,0),0,100000,1),0),2,100000,2),2,FALSE) -> - | K26: =VLOOKUP($H$10,OFFSET('ANP REGIÃO'!$A$9,MATCH('Transporte CM-30'!$I$7,'ANP REGIÃO'!A:A,0),1,10000,10000),MATCH('Transporte CM-30'!AH26,'ANP REGIÃO'!$B$8:$G$8,0),FALSE) -> 3.964297949 | L26: 3964.297949 | M26: 1095.43 | N26: 5059.727949 | O26: 2871 | Q26: 753.3 | S26: 753.3 | T26: 165.35 | U26: 969.9 | V26: 1888.55 | W26: 399.6 | X26: =EVEN(' CONSUMO DE MAT. B TOTAL'!$P$9*2/28)*W26/' CONSUMO DE MAT. B TOTAL'!$P$9 -> 30.78151261 | Y26: 1919.331513 | Z26: 5059.727949 | AA26: 6979.059461 | AC26: 6979.059461 | AD26: 1919.331513 | AE26: 5059.727949 | AH26: SUDESTE
D36: Acre
D37: Alagoas
D38: Amapá
D39: Amazonas
D40: Bahia
D41: Ceará
D42: Distrito Federal
D43: Espírito Santo
D44: Goiás
D45: Maranhão
D46: Mato Grosso
D47: Mato Grosso do Sul
D48: Minas Gerais
D49: Pará
D50: Paraíba
D51: Paraná
D52: Pernambuco
D53: Piauí
D54: Rio de Janeiro
D55: Rio Grande do Norte
D56: Rio Grande do Sul
D57: Rondônia
D58: Roraima
D59: Santa Catarina
D60: São Paulo
D61: Sergipe
D62: Tocantins
D66: ASFALTOS DILUÍDOS CM-30
D67: ASFALTOS DILUÍDOS CM-70
D68: ASFALTOS DILUÍDOS CR-250
D69: ASFALTOS DILUÍDOS CR-70
D70: CAP MODIFICADO POR BORRACHA DE PNEU AB22
D71: CAP MODIFICADO POR BORRACHA DE PNEU AB8
D72: CAP MODIFICADO POR POLÍMERO 55-75-E
D73: CAP MODIFICADO POR POLÍMERO 60-85-E
D74: CAP MODIFICADO POR POLÍMERO 65-90-E
D75: CIMENTOS ASFÁLTICOS CAP-150-200
D76: CIMENTOS ASFÁLTICOS CAP-30-45
D77: CIMENTOS ASFÁLTICOS CAP-50-70
D78: CIMENTOS ASFÁLTICOS CAP-85-100
D79: EMULSÃO ASFÁLTICA CATIÔNICA DE RUPTURA CONTROLADA PARA SERVIÇO DE LAMA ASFÁLTICA
D80: EMULSÃO ASFÁLTICA DE RUPTURA LENTA CATIÔNICA PARA SERVIÇO DE LAMA ASFÁLTICA
D81: EMULSÃO ASFÁLTICA DE RUPTURA LENTA DE CARGA NEUTRA PARA SERVIÇO DE LAMA ASFÁLTICA
D82: EMULSÃO ASFÁLTICA PARA SERVIÇO DE IMPRIMAÇÃO
D83: EMULSÕES ASF. MOD. POR POLÍMEROS RC1C-E
D84: EMULSÕES ASF. MOD. POR POLÍMEROS RL1C-E
D85: EMULSÕES ASF. MOD. POR POLÍMEROS RM1C-E
D86: EMULSÕES ASF. MOD. POR POLÍMEROS RR1C-E
D87: EMULSÕES ASF. MOD. POR POLÍMEROS RR2C-E
D88: EMULSÕES ASFÁLTICAS RL-1C
D89: EMULSÕES ASFÁLTICAS RM-1C
D90: EMULSÕES ASFÁLTICAS RM-2C
D91: EMULSÕES ASFÁLTICAS RR-1C
D92: EMULSÕES ASFÁLTICAS RR-2C

Sheet Transporte RR-2C
C2: MEMÓRIA DE CÁLCULO
C7: REAJUSTE | F7: TIPOLOGIA DO MATERIAL | I7: EMULSÕES ASFÁLTICAS RR-2C | M7: IMPOSTOS | N7: COFINS | O7: 0.0065 | P7: 0.0065
G8: ÍNDICE DE PAVIMENTAÇÃO DNIT | H8: 2014-07-01 | I8: ÍNDICE INICIAL | J8: 270.237 | N8: PIS | O8: 0.03 | P8: 0.03 | AC8: As empresas tributadas pelo Lucro Presumido pagam 0,65% de PIS e 3% de COFINS
H9: 2023-09-01 | I9: ÍNDICE FINAL | J9: 555.551 | N9: ICMS | O9: 0.18 | P9: 0.18 | Q9: =1-(O9/1) -> 0.82 | R9: =1-(P9/1) -> 0.82 | S9: =1-(Q9/1) -> 0.18 | AC9: As empresas tributadas pelo Lucro Real pagam 1,65% de PIS e 7,60% de COFINS
G10: Data ANP | H10: 2023-08-01
C11: DATA-BASE | D11: PRODUTOS | E11: LOCALIDADES | J11: CUSTO ANP (R$/Kg) | L11: CUSTO ANP | M11: IMPOSTOS DO PRODUTO | N11: CUSTO DO PRODUTO COM IMPOSTOS | O11: DMT's | P11: DMT'S FLUVIAL | Q11: CUSTO DO TRANSPORTE RODOVIA PAVIMENTADA | R11: CUSTO DO TRANSPORTE FLUVIAL | S11: CUSTO DO TRANSPORTE TOTAL | T11: ICMS | U11: ATUALIZAÇÃO DO CUSTO DE TRANSPORTE | V11: CUSTO DO TRANSPORTE RODOVIA PAVIMENTADA COM IMPOSTOS E ATUALIZAÇÃO MONETÁRIA | W11: PEDÁGIO | Y11: TOTAL TRANSPORTE | Z11: AQUISIÇÃO DO PRODUTO | AA11: TOTAL GERAL ( TRANSP + AQUISIÇÃO) | AC11: 1 | AD11: 2 | AE11: 3
C12: =H9 -> 2023-09-01 | E12: REFINARIAS | F12: ENDEREÇO | G12: ESTADO | H12: CIDADE | I12: DESTINO | J12: ESTADO | K12: REGIÃO | L12: R$/t | M12: R$/t | N12: R$/t | O12: KM | P12: KM | Q12: R$/t | R12: R$/t | S12: R$/t | T12: R$/t | U12: R$/t | V12: R$/t | W12: CUSTO | X12: R$/t | Y12: R$/t | Z12: R$/t | AA12: R$/t | AC12: TOTAL GERAL ( TRANSP + AQUISIÇÃO) | AD12: TOTAL TRANSPORTE | AE12: AQUISIÇÃO DO PRODUTO
B13: =AA13 -> 4997.182255 | C13: 1 | D13: =I7 -> EMULSÕES ASFÁLTICAS RR-2C | E13: 'CENTRO OESTE ASFALTOS LTDA. | F13: SETOR DE INFLAMÁVEIS, S/N TRECHO 02 - LOTE 1.100 - GUARÁ - CEP:71225-000 | G13: Distrito Federal | H13: BRASÍLIA - DF | I13: Morada Nova - CE | J13: =VLOOKUP(G13,OFFSET('ANP ESTADO'!$A$1,MATCH($I$7,'ANP ESTADO'!B:B,0)+MATCH($H$10,OFFSET('ANP ESTADO'!$A$1,MATCH($I$7,'ANP ESTADO'!B:B,0),0,100000,1),0),2,100000,2),2,FALSE) -> - | K13: =VLOOKUP($H$10,OFFSET('ANP REGIÃO'!$A$9,MATCH('Transporte RR-2C'!$I$7,'ANP REGIÃO'!A:A,0),1,10000,10000),MATCH('Transporte RR-2C'!AH13,'ANP REGIÃO'!$B$8:$G$8,0),FALSE) -> 2.944366625 | L13: =IF(AND(J13="-",K13="-"),"",IF(AND(J13<>0,K13="-"),J13*1000,IF(AND(J13="-",K13<>0),K13*1000,IF(AND(J13<>0,K13<>0),J13*1000,"")))) -> 2944.366625 | M13: =ROUND(((L13/(1-$O$7-$O$8-$O$9))-L13),2) -> 813.6 | N13: =L13+M13 -> 3757.966625 | O13: 1839 | Q13: =ROUND((26.939+0.253*O13),2) -> 492.21 | S13: =ROUND((26.939+0.253*Q13),2) -> 151.47 | T13: =TRUNC(Q13*($O$9/(1-$O$9)),2) -> 108.04 | U13: =TRUNC(IF($J$8="","",(($J$9-$J$8)/$J$8)*(Q13+T13)),2) -> 633.73 | V13: =Q13+T13+U13 -> 1233.98 | W13: 70.8 | X13: =EVEN((' CONSUMO DE MAT. B TOTAL'!$P$13+' CONSUMO DE MAT. B TOTAL'!P15)*2/28)*W13/(' CONSUMO DE MAT. B TOTAL'!$P$13+' CONSUMO DE MAT. B TOTAL'!P15) -> 5.235630252 | Y13: =IF(AND(Q13="",T13=""),"",V13+X13) -> 1239.21563 | Z13: =IF(OR(L13="",M13=""),"",L13+M13) -> 3757.966625 | AA13: =IF(OR(Y13="",Z13=""),"",Y13+Z13) -> 4997.182255 | AC13: =AA13 -> 4997.182255 | AD13: =Y13 -> 1239.21563 | AE13: =Z13 -> 3757.966625 | AH13: =IF(OR(G13=$D$59,G13=$D$60,G13=$D$62,G13=$D$68,G13=$D$52,G13=$D$48,G13=$D$44,G13=$D$57,G13=$D$47),"NORDESTE",IF(OR(G13=$D$43,G13=$D$45,G13=$D$46,G13=$D$56,G13=$D$64,G13=$D$65,G13=$D$69),"NORTE",IF(OR(G13=$D$49,G13=$D$51,G13=$D$53,G13=$D$54),"CENTRO-OESTE",IF(OR(G13=$D$67,G13=$D$61,G13=$D$55,G13=$D$50),"SUDESTE",IF(OR(G13=$D$66,G13=$D$58,G13=$D$63),"SUL",""))))) -> CENTRO-OESTE
B14: =AA14 -> 7340.648855 | C14: 2 | E14: ISAC SAABA | F14: Rua Rio Quixito, 1, Vila Buriti - Distrito Industrial - Manaus - AM CEP: 69072-070 | G14: Amazonas | H14: MANAUS - AM | I14: Morada Nova - CE | J14: =VLOOKUP(G14,OFFSET('ANP ESTADO'!$A$1,MATCH($I$7,'ANP ESTADO'!B:B,0)+MATCH($H$10,OFFSET('ANP ESTADO'!$A$1,MATCH($I$7,'ANP ESTADO'!B:B,0),0,100000,1),0),2,100000,2),2,FALSE) -> 3.684788855 | K14: =VLOOKUP($H$10,OFFSET('ANP REGIÃO'!$A$9,MATCH('Transporte RR-2C'!$I$7,'ANP REGIÃO'!A:A,0),1,10000,10000),MATCH('Transporte RR-2C'!AH14,'ANP REGIÃO'!$B$8:$G$8,0),FALSE) -> 3.067703723 | L14: =IF(AND(J14="-",K14="-"),"",IF(AND(J14<>0,K14="-"),J14*1000,IF(AND(J14="-",K14<>0),K14*1000,IF(AND(J14<>0,K14<>0),J14*1000,"")))) -> 3684.788855 | M14: =ROUND(((L14/(1-$O$7-$O$8-$O$9))-L14),2) -> 1018.2 | N14: =L14+M14 -> 4702.988855 | O14: 4052 | Q14: =ROUND((26.939+0.253*O14),2) -> 1052.1 | S14: =ROUND((26.939+0.253*Q14),2) -> 293.12 | T14: =TRUNC(Q14*($O$9/(1-$O$9)),2) -> 230.94 | U14: =TRUNC(IF($J$8="","",(($J$9-$J$8)/$J$8)*(Q14+T14)),2) -> 1354.62 | V14: =Q14+T14+U14 -> 2637.66 | W14: 0 | X14: =EVEN((' CONSUMO DE MAT. B TOTAL'!$P$13+' CONSUMO DE MAT. B TOTAL'!P16)*2/28)*W14/(' CONSUMO DE MAT. B TOTAL'!$P$13+' CONSUMO DE MAT. B TOTAL'!P16) -> 0 | Y14: 2637.66 | Z14: 4702.988855 | AA14: =IF(OR(Y14="",Z14=""),"",Y14+Z14) -> 7340.648855 | AC14: =AA14 -> 7340.648855 | AD14: =Y14 -> 2637.66 | AE14: 4702.988855 | AH14: =IF(OR(G14=$D$59,G14=$D$60,G14=$D$62,G14=$D$68,G14=$D$52,G14=$D$48,G14=$D$44,G14=$D$57,G14=$D$47),"NORDESTE",IF(OR(G14=$D$43,G14=$D$45,G14=$D$46,G14=$D$56,G14=$D$64,G14=$D$65,G14=$D$69),"NORTE",IF(OR(G14=$D$49,G14=$D$51,G14=$D$53,G14=$D$54),"CENTRO-OESTE",IF(OR(G14=$D$67,G14=$D$61,G14=$D$55,G14=$D$50),"SUDESTE",IF(OR(G14=$D$66,G14=$D$58,G14=$D$63),"SUL",""))))) -> NORTE
B15: 5011.605587 | C15: 2 | E15: STRATURA ASFALTOS S/A | F15: AVENIDA PRESIDENTE WILSON, 08 - JUNDIAÍ - CEP:75115-100 | G15: Goiás | H15: ANÁPOLIS - GO | I15: Morada Nova - CE | J15: =VLOOKUP(G15,OFFSET('ANP ESTADO'!$A$1,MATCH($I$7,'ANP ESTADO'!B:B,0)+MATCH($H$10,OFFSET('ANP ESTADO'!$A$1,MATCH($I$7,'ANP ESTADO'!B:B,0),0,100000,1),0),2,100000,2),2,FALSE) -> 2.880324159 | K15: =VLOOKUP($H$10,OFFSET('ANP REGIÃO'!$A$9,MATCH('Transporte RR-2C'!$I$7,'ANP REGIÃO'!A:A,0),1,10000,10000),MATCH('Transporte RR-2C'!AH15,'ANP REGIÃO'!$B$8:$G$8,0),FALSE) -> 2.944366625 | L15: 2880.324159 | M15: 795.9 | N15: 3676.224159 | O15: 1986 | Q15: 529.4 | S15: 160.88 | T15: 116.2 | U15: 681.61 | V15: 1327.21 | W15: 112.2 | X15: =EVEN((' CONSUMO DE MAT. B TOTAL'!$P$13+' CONSUMO DE MAT. B TOTAL'!P17)*2/28)*W15/(' CONSUMO DE MAT. B TOTAL'!$P$13+' CONSUMO DE MAT. B TOTAL'!P17) -> 8.171428571 | Y15: 1335.381429 | Z15: 3676.224159 | AA15: 5011.605587 | AC15: 5011.605587 | AD15: 1335.381429 | AE15: 3676.224159 | AH15: CENTRO-OESTE
B16: 5056.964159 | C16: 3 | E16: DISTRIBUIDORA BRASILEIRA DE ASFALTO SA - DISBRAL | F16: VIA PRIMARIA 8, S/N QD-18, MODS. 24/47 - DAIAG - CEP:74980-970 | G16: Goiás | H16: APARECIDA DE GOIANIA - GO | I16: Morada Nova - CE | J16: =VLOOKUP(G16,OFFSET('ANP ESTADO'!$A$1,MATCH($I$7,'ANP ESTADO'!B:B,0)+MATCH($H$10,OFFSET('ANP ESTADO'!$A$1,MATCH($I$7,'ANP ESTADO'!B:B,0),0,100000,1),0),2,100000,2),2,FALSE) -> 2.880324159 | K16: =VLOOKUP($H$10,OFFSET('ANP REGIÃO'!$A$9,MATCH('Transporte RR-2C'!$I$7,'ANP REGIÃO'!A:A,0),1,10000,10000),MATCH('Transporte RR-2C'!AH16,'ANP REGIÃO'!$B$8:$G$8,0),FALSE) -> 2.944366625 | L16: 2880.324159 | M16: 795.9 | N16: 3676.224159 | O16: 2054 | Q16: 546.6 | S16: 165.23 | T16: 119.98 | U16: 703.76 | V16: 1370.34 | W16: 142.8 | X16: =EVEN((' CONSUMO DE MAT. B TOTAL'!$P$13+' CONSUMO DE MAT. B TOTAL'!P18)*2/28)*W16/(' CONSUMO DE MAT. B TOTAL'!$P$13+' CONSUMO DE MAT. B TOTAL'!P18) -> 10.4 | Y16: 1380.74 | Z16: 3676.224159 | AA16: 5056.964159 | AC16: 5056.964159 | AD16: 1380.74 | AE16: 3676.224159 | AH16: CENTRO-OESTE
A17: 2403 | B17: 3614.523323 | C17: 4 | E17: BETUNEL INDÚSTRIA E COMÉRCIO LTDA. | F17: Via Principal, 111-242 - Distrito Industrial III, Fortaleza - CE, 61931-050 | G17: Ceará | H17: MARACANAU - CE | I17: Morada Nova - CE | J17: =VLOOKUP(G17,OFFSET('ANP ESTADO'!$A$1,MATCH($I$7,'ANP ESTADO'!B:B,0)+MATCH($H$10,OFFSET('ANP ESTADO'!$A$1,MATCH($I$7,'ANP ESTADO'!B:B,0),0,100000,1),0),2,100000,2),2,FALSE) -> 2.583273323 | K17: =VLOOKUP($H$10,OFFSET('ANP REGIÃO'!$A$9,MATCH('Transporte RR-2C'!$I$7,'ANP REGIÃO'!A:A,0),1,10000,10000),MATCH('Transporte RR-2C'!AH17,'ANP REGIÃO'!$B$8:$G$8,0),FALSE) -> 2.721645567 | L17: 2583.273323 | M17: 713.82 | N17: 3297.093323 | O17: 394 | Q17: 126.62 | S17: 58.97 | T17: 27.79 | U17: 163.02 | V17: 317.43 | W17: 0 | X17: =EVEN((' CONSUMO DE MAT. B TOTAL'!$P$13+' CONSUMO DE MAT. B TOTAL'!P19)*2/28)*W17/(' CONSUMO DE MAT. B TOTAL'!$P$13+' CONSUMO DE MAT. B TOTAL'!P19) -> 0 | Y17: 317.43 | Z17: 3297.093323 | AA17: 3614.523323 | AC17: 3614.523323 | AD17: 317.43 | AE17: 3297.093323 | AH17: NORDESTE
B18: 4916.26907 | C18: 5 | E18: STRATURA ASFALTOS S/A | F18: RUA VICTOR RODRIGUES RESENDE, 333 - DISTRITO IND. DE UBERLÂNDIA - CEP:38405-440 | G18: Minas Gerais | H18: UBERLANDIA - MG | I18: Morada Nova - CE | J18: =VLOOKUP(G18,OFFSET('ANP ESTADO'!$A$1,MATCH($I$7,'ANP ESTADO'!B:B,0)+MATCH($H$10,OFFSET('ANP ESTADO'!$A$1,MATCH($I$7,'ANP ESTADO'!B:B,0),0,100000,1),0),2,100000,2),2,FALSE) -> 2.681668314 | K18: =VLOOKUP($H$10,OFFSET('ANP REGIÃO'!$A$9,MATCH('Transporte RR-2C'!$I$7,'ANP REGIÃO'!A:A,0),1,10000,10000),MATCH('Transporte RR-2C'!AH18,'ANP REGIÃO'!$B$8:$G$8,0),FALSE) -> 2.617830778 | L18: 2681.668314 | M18: 741.01 | N18: 3422.678314 | O18: 2228 | Q18: 590.62 | S18: 176.37 | T18: 129.64 | U18: 760.44 | V18: 1480.7 | W18: 177 | X18: =EVEN((' CONSUMO DE MAT. B TOTAL'!$P$13+' CONSUMO DE MAT. B TOTAL'!P20)*2/28)*W18/(' CONSUMO DE MAT. B TOTAL'!$P$13+' CONSUMO DE MAT. B TOTAL'!P20) -> 12.8907563 | Y18: 1493.590756 | Z18: 3422.678314 | AA18: 4916.26907 | AC18: 4916.26907 | AD18: 1493.590756 | AE18: 3422.678314 | AH18: SUDESTE
B19: 4916.26907 | C19: 6 | E19: BETUNEL INDÚSTRIA E COMÉRCIO LTDA. | F19: RUA VICTOR RODRIGUES DE REZENDE, 185 - DISTRITO INDUSTRIAL - CEP:38402-334 | G19: Minas Gerais | H19: UBERLANDIA - MG | I19: Morada Nova - CE | J19: =VLOOKUP(G19,OFFSET('ANP ESTADO'!$A$1,MATCH($I$7,'ANP ESTADO'!B:B,0)+MATCH($H$10,OFFSET('ANP ESTADO'!$A$1,MATCH($I$7,'ANP ESTADO'!B:B,0),0,100000,1),0),2,100000,2),2,FALSE) -> 2.681668314 | K19: =VLOOKUP($H$10,OFFSET('ANP REGIÃO'!$A$9,MATCH('Transporte RR-2C'!$I$7,'ANP REGIÃO'!A:A,0),1,10000,10000),MATCH('Transporte RR-2C'!AH19,'ANP REGIÃO'!$B$8:$G$8,0),FALSE) -> 2.617830778 | L19: 2681.668314 | M19: 741.01 | N19: 3422.678314 | O19: 2228 | Q19: 590.62 | S19: 176.37 | T19: 129.64 | U19: 760.44 | V19: 1480.7 | W19: 177 | X19: =EVEN((' CONSUMO DE MAT. B TOTAL'!$P$13+' CONSUMO DE MAT. B TOTAL'!P21)*2/28)*W19/(' CONSUMO DE MAT. B TOTAL'!$P$13+' CONSUMO DE MAT. B TOTAL'!P21) -> 12.8907563 | Y19: 1493.590756 | Z19: 3422.678314 | AA19: 4916.26907 | AC19: 4916.26907 | AD19: 1493.590756 | AE19: 3422.678314 | AH19: SUDESTE
B20: 5350.458009 | C20: 7 | E20: ARAPETRO DISTRIBUIDORA DE PETRÓLEO LTDA. | F20: RUA 04, S/N° LOTES 17 A 20. - DISTRITO INDUSTRIAL 1/8 - CEP:78600-000 | G20: Mato grosso | H20: BARRA DO GARCAS - MT | I20: Morada Nova - CE | J20: =VLOOKUP(G20,OFFSET('ANP ESTADO'!$A$1,MATCH($I$7,'ANP ESTADO'!B:B,0)+MATCH($H$10,OFFSET('ANP ESTADO'!$A$1,MATCH($I$7,'ANP ESTADO'!B:B,0),0,100000,1),0),2,100000,2),2,FALSE) -> 2.973298009 | K20: =VLOOKUP($H$10,OFFSET('ANP REGIÃO'!$A$9,MATCH('Transporte RR-2C'!$I$7,'ANP REGIÃO'!A:A,0),1,10000,10000),MATCH('Transporte RR-2C'!AH20,'ANP REGIÃO'!$B$8:$G$8,0),FALSE) -> 2.944366625 | L20: =IF(AND(J20="-",K20="-"),"",IF(AND(J20<>0,K20="-"),J20*1000,IF(AND(J20="-",K20<>0),K20*1000,IF(AND(J20<>0,K20<>0),J20*1000,"")))) -> 2973.298009 | M20: =ROUND(((L20/(1-$O$7-$O$8-$O$9))-L20),2) -> 821.59 | N20: 3794.888009 | O20: 2346 | Q20: 620.48 | S20: 183.92 | T20: 136.2 | U20: 798.89 | V20: 1555.57 | W20: 0 | X20: =EVEN((' CONSUMO DE MAT. B TOTAL'!$P$13+' CONSUMO DE MAT. B TOTAL'!P22)*2/28)*W20/(' CONSUMO DE MAT. B TOTAL'!$P$13+' CONSUMO DE MAT. B TOTAL'!P22) -> 0 | Y20: 1555.57 | Z20: 3794.888009 | AA20: 5350.458009 | AH20: CENTRO-OESTE
B21: 4827.47907 | C21: 8 | E21: DISTRIBUIDORA BRASILEIRA DE ASFALTO SA - DISBRAL | F21: SÃO JUDAS TADEU, 288 - DISTRITO INDUSTRIAL - CEP:32450-000 | G21: Minas Gerais | H21: SARZEDO - MG | I21: Morada Nova - CE | J21: =VLOOKUP(G21,OFFSET('ANP ESTADO'!$A$1,MATCH($I$7,'ANP ESTADO'!B:B,0)+MATCH($H$10,OFFSET('ANP ESTADO'!$A$1,MATCH($I$7,'ANP ESTADO'!B:B,0),0,100000,1),0),2,100000,2),2,FALSE) -> 2.681668314 | K21: =VLOOKUP($H$10,OFFSET('ANP REGIÃO'!$A$9,MATCH('Transporte RR-2C'!$I$7,'ANP REGIÃO'!A:A,0),1,10000,10000),MATCH('Transporte RR-2C'!AH21,'ANP REGIÃO'!$B$8:$G$8,0),FALSE) -> 2.617830778 | L21: 2681.668314 | M21: 741.01 | N21: 3422.678314 | O21: 2088 | Q21: 555.2 | S21: 167.4 | T21: 121.87 | U21: 714.84 | V21: 1391.91 | W21: 177 | X21: =EVEN((' CONSUMO DE MAT. B TOTAL'!$P$13+' CONSUMO DE MAT. B TOTAL'!P23)*2/28)*W21/(' CONSUMO DE MAT. B TOTAL'!$P$13+' CONSUMO DE MAT. B TOTAL'!P23) -> 12.8907563 | Y21: 1404.800756 | Z21: 3422.678314 | AA21: 4827.47907 | AH21: SUDESTE
B22: 4473.932409 | C22: 9 | E22: 'INDÚSTRIA NACIONAL DE ASFALTOS LTDA. | F22: INDÚSTRIA NACIONAL DE ASFALTOS LTDA - CEP:77053-080 | G22: Tocantins | H22: PALMAS - TO | I22: Morada Nova - CE | J22: =VLOOKUP(G22,OFFSET('ANP ESTADO'!$A$1,MATCH($I$7,'ANP ESTADO'!B:B,0)+MATCH($H$10,OFFSET('ANP ESTADO'!$A$1,MATCH($I$7,'ANP ESTADO'!B:B,0),0,100000,1),0),2,100000,2),2,FALSE) -> 2.731812409 | K22: =VLOOKUP($H$10,OFFSET('ANP REGIÃO'!$A$9,MATCH('Transporte RR-2C'!$I$7,'ANP REGIÃO'!A:A,0),1,10000,10000),MATCH('Transporte RR-2C'!AH22,'ANP REGIÃO'!$B$8:$G$8,0),FALSE) -> 3.067703723 | L22: 2731.812409 | M22: 754.87 | N22: 3486.682409 | O22: 1450 | Q22: 393.79 | S22: 126.57 | T22: 86.44 | U22: 507.02 | V22: 987.25 | W22: 0 | X22: =EVEN((' CONSUMO DE MAT. B TOTAL'!$P$13+' CONSUMO DE MAT. B TOTAL'!P24)*2/28)*W22/(' CONSUMO DE MAT. B TOTAL'!$P$13+' CONSUMO DE MAT. B TOTAL'!P24) -> 0 | Y22: 987.25 | Z22: 3486.682409 | AA22: 4473.932409 | AH22: NORTE
B23: 5098.834489 | C23: 10 | E23: 'NTA - NOVAS TÉCNICAS DE ASFALTOS S/A | F23: RUA SOFIA ATAURI FADIN, 150 SALA A - B. SANTA TEREZINHA - CEP:13140-000 | G23: São Paulo | H23: PAULINIA - SP | I23: Morada Nova - CE | J23: =VLOOKUP(G23,OFFSET('ANP ESTADO'!$A$1,MATCH($I$7,'ANP ESTADO'!B:B,0)+MATCH($H$10,OFFSET('ANP ESTADO'!$A$1,MATCH($I$7,'ANP ESTADO'!B:B,0),0,100000,1),0),2,100000,2),2,FALSE) -> 2.573812724 | K23: =VLOOKUP($H$10,OFFSET('ANP REGIÃO'!$A$9,MATCH('Transporte RR-2C'!$I$7,'ANP REGIÃO'!A:A,0),1,10000,10000),MATCH('Transporte RR-2C'!AH23,'ANP REGIÃO'!$B$8:$G$8,0),FALSE) -> 2.617830778 | L23: 2573.812724 | M23: =ROUND(((L23/(1-$O$7-$O$8-$O$9))-L23),2) -> 711.21 | N23: 3285.022724 | O23: 2703 | Q23: 710.8 | S23: 206.77 | T23: 156.02 | U23: 915.18 | V23: 1782 | W23: 436.8 | X23: =EVEN((' CONSUMO DE MAT. B TOTAL'!$P$13+' CONSUMO DE MAT. B TOTAL'!P25)*2/28)*W23/(' CONSUMO DE MAT. B TOTAL'!$P$13+' CONSUMO DE MAT. B TOTAL'!P25) -> 31.81176471 | Y23: 1813.811765 | Z23: 3285.022724 | AA23: 5098.834489 | AC23: 5098.834489 | AD23: 1813.811765 | AE23: 3285.022724 | AH23: SUDESTE
B24: 5141.758186 | C24: 11 | E24: COMPANHIA BRASILEIRA DE ASFALTOS DA AMAZÔNIA - IMPORTAÇÃO E EXPORTAÇÃO | F24: Avenida Doutor Olindo Dártora 2451, Galpão 02, Morro Grande - CEP:07726-555 | G24: São Paulo | H24: CAIEIRAS - SP | I24: Morada Nova - CE | J24: =VLOOKUP(G24,OFFSET('ANP ESTADO'!$A$1,MATCH($I$7,'ANP ESTADO'!B:B,0)+MATCH($H$10,OFFSET('ANP ESTADO'!$A$1,MATCH($I$7,'ANP ESTADO'!B:B,0),0,100000,1),0),2,100000,2),2,FALSE) -> 2.573812724 | K24: =VLOOKUP($H$10,OFFSET('ANP REGIÃO'!$A$9,MATCH('Transporte RR-2C'!$I$7,'ANP REGIÃO'!A:A,0),1,10000,10000),MATCH('Transporte RR-2C'!AH24,'ANP REGIÃO'!$B$8:$G$8,0),FALSE) -> 2.617830778 | L24: 2573.812724 | M24: =ROUND(((L24/(1-$O$7-$O$8-$O$9))-L24),2) -> 711.21 | N24: 3285.022724 | O24: 2787 | Q24: 732.05 | S24: 212.15 | T24: 160.69 | U24: 942.54 | V24: 1835.28 | W24: 294.6 | X24: =EVEN((' CONSUMO DE MAT. B TOTAL'!$P$13+' CONSUMO DE MAT. B TOTAL'!P26)*2/28)*W24/(' CONSUMO DE MAT. B TOTAL'!$P$13+' CONSUMO DE MAT. B TOTAL'!P26) -> 21.45546218 | Y24: 1856.735462 | Z24: 3285.022724 | AA24: 5141.758186 | AH24: SUDESTE
B25: 5451.509892 | C25: 12 | E25: BETUNEL INDÚSTRIA E COMÉRCIO LTDA. | F25: R 16 , 82, Vila Nova Campo Grande - CEP:79.103-834 | G25: Mato Grosso do Sul | H25: CAMPO GRANDE - MS | I25: Morada Nova - CE | J25: =VLOOKUP(G25,OFFSET('ANP ESTADO'!$A$1,MATCH($I$7,'ANP ESTADO'!B:B,0)+MATCH($H$10,OFFSET('ANP ESTADO'!$A$1,MATCH($I$7,'ANP ESTADO'!B:B,0),0,100000,1),0),2,100000,2),2,FALSE) -> 2.777009135 | K25: =VLOOKUP($H$10,OFFSET('ANP REGIÃO'!$A$9,MATCH('Transporte RR-2C'!$I$7,'ANP REGIÃO'!A:A,0),1,10000,10000),MATCH('Transporte RR-2C'!AH25,'ANP REGIÃO'!$B$8:$G$8,0),FALSE) -> 2.944366625 | L25: 2777.009135 | M25: =ROUND(((L25/(1-$O$7-$O$8-$O$9))-L25),2) -> 767.35 | N25: 3544.359135 | O25: 2880 | Q25: 755.58 | S25: 218.1 | T25: 165.85 | U25: 972.83 | V25: 1894.26 | W25: 177 | X25: =EVEN((' CONSUMO DE MAT. B TOTAL'!$P$13+' CONSUMO DE MAT. B TOTAL'!P27)*2/28)*W25/(' CONSUMO DE MAT. B TOTAL'!$P$13+' CONSUMO DE MAT. B TOTAL'!P27) -> 12.8907563 | Y25: 1907.150756 | Z25: 3544.359135 | AA25: 5451.509892 | AH25: CENTRO-OESTE
B26: 5683.359438 | C26: 13 | E26: CENTRO OESTE ASFALTOS LTDA. | F26: RUA N, S/N.º LOTES 39/43 E LOTES 129/133 - DISTRITO INDUSTRIAL - CEP:78098-400 | G26: Mato Grosso | H26: CUIABA - MT | I26: Morada Nova - CE | J26: =VLOOKUP(G26,OFFSET('ANP ESTADO'!$A$1,MATCH($I$7,'ANP ESTADO'!B:B,0)+MATCH($H$10,OFFSET('ANP ESTADO'!$A$1,MATCH($I$7,'ANP ESTADO'!B:B,0),0,100000,1),0),2,100000,2),2,FALSE) -> 2.973298009 | K26: =VLOOKUP($H$10,OFFSET('ANP REGIÃO'!$A$9,MATCH('Transporte RR-2C'!$I$7,'ANP REGIÃO'!A:A,0),1,10000,10000),MATCH('Transporte RR-2C'!AH26,'ANP REGIÃO'!$B$8:$G$8,0),FALSE) -> 2.944366625 | L26: 2973.298009 | M26: 821.59 | N26: 3794.888009 | O26: 2858 | Q26: 750.01 | S26: 216.69 | T26: 164.63 | U26: 965.66 | V26: 1880.3 | W26: 112.2 | X26: =EVEN((' CONSUMO DE MAT. B TOTAL'!$P$13+' CONSUMO DE MAT. B TOTAL'!P28)*2/28)*W26/(' CONSUMO DE MAT. B TOTAL'!$P$13+' CONSUMO DE MAT. B TOTAL'!P28) -> 8.171428571 | Y26: 1888.471429 | Z26: 3794.888009 | AA26: 5683.359438 | AH26: CENTRO-OESTE
B27: 5683.359438 | C27: 14 | E27: BETUNEL INDÚSTRIA E COMÉRCIO LTDA. | F27: RUA N ESQUINA COM RUA X, S/N QD. IND. 7 L 01/08 - DIST. IND. - CEP:78015-285 | G27: Mato Grosso | H27: CUIABA - MT | I27: Hidrolândia - CE | J27: =VLOOKUP(G27,OFFSET('ANP ESTADO'!$A$1,MATCH($I$7,'ANP ESTADO'!B:B,0)+MATCH($H$10,OFFSET('ANP ESTADO'!$A$1,MATCH($I$7,'ANP ESTADO'!B:B,0),0,100000,1),0),2,100000,2),2,FALSE) -> 2.973298009 | K27: =VLOOKUP($H$10,OFFSET('ANP REGIÃO'!$A$9,MATCH('Transporte RR-2C'!$I$7,'ANP REGIÃO'!A:A,0),1,10000,10000),MATCH('Transporte RR-2C'!AH27,'ANP REGIÃO'!$B$8:$G$8,0),FALSE) -> 2.944366625 | L27: 2973.298009 | M27: 821.59 | N27: 3794.888009 | O27: 2858 | Q27: 750.01 | S27: 216.69 | T27: 164.63 | U27: 965.66 | V27: 1880.3 | W27: 112.2 | X27: =EVEN((' CONSUMO DE MAT. B TOTAL'!$P$13+' CONSUMO DE MAT. B TOTAL'!P29)*2/28)*W27/(' CONSUMO DE MAT. B TOTAL'!$P$13+' CONSUMO DE MAT. B TOTAL'!P29) -> 8.171428571 | Y27: 1888.471429 | Z27: 3794.888009 | AA27: 5683.359438 | AH27: CENTRO-OESTE
B28: 5697.54574 | C28: 15 | E28: EMAM - EMULSÕES E TRANSPORTES LTDA. | F28: RODOVIA DOS IMIGRANTES, S/Nº KM 8,6 - - CEP:60035-351 | G28: Mato Grosso | H28: VARZEA GRANDE - MT | I28: Hidrolândia - CE | J28: =VLOOKUP(G28,OFFSET('ANP ESTADO'!$A$1,MATCH($I$7,'ANP ESTADO'!B:B,0)+MATCH($H$10,OFFSET('ANP ESTADO'!$A$1,MATCH($I$7,'ANP ESTADO'!B:B,0),0,100000,1),0),2,100000,2),2,FALSE) -> 2.973298009 | K28: =VLOOKUP($H$10,OFFSET('ANP REGIÃO'!$A$9,MATCH('Transporte RR-2C'!$I$7,'ANP REGIÃO'!A:A,0),1,10000,10000),MATCH('Transporte RR-2C'!AH28,'ANP REGIÃO'!$B$8:$G$8,0),FALSE) -> 2.944366625 | L28: 2973.298009 | M28: 821.59 | N28: 3794.888009 | O28: 2864 | Q28: 751.53 | S28: 217.08 | T28: 164.97 | U28: 967.63 | V28: 1884.13 | W28: 254.4 | X28: =EVEN((' CONSUMO DE MAT. B TOTAL'!$P$13+' CONSUMO DE MAT. B TOTAL'!P30)*2/28)*W28/(' CONSUMO DE MAT. B TOTAL'!$P$13+' CONSUMO DE MAT. B TOTAL'!P30) -> 18.52773109 | Y28: 1902.657731 | Z28: 3794.888009 | AA28: 5697.54574 | AC28: 5697.54574 | AD28: 1902.657731 | AE28: 3794.888009 | AH28: CENTRO-OESTE
B29: 5217.265245 | C29: 16 | E29: VIAPOL LTDA. | F29: VITO ARDITO, 6401 KM 118,5 - JARDIM CAMPO GRANDE - CEP:12282-535 | G29: São Paulo | H29: CACAPAVA - SP | I29: Hidrolândia - CE | J29: =VLOOKUP(G29,OFFSET('ANP ESTADO'!$A$1,MATCH($I$7,'ANP ESTADO'!B:B,0)+MATCH($H$10,OFFSET('ANP ESTADO'!$A$1,MATCH($I$7,'ANP ESTADO'!B:B,0),0,100000,1),0),2,100000,2),2,FALSE) -> 2.573812724 | K29: =VLOOKUP($H$10,OFFSET('ANP REGIÃO'!$A$9,MATCH('Transporte RR-2C'!$I$7,'ANP REGIÃO'!A:A,0),1,10000,10000),MATCH('Transporte RR-2C'!AH29,'ANP REGIÃO'!$B$8:$G$8,0),FALSE) -> 2.617830778 | L29: 2573.812724 | M29: 711.21 | N29: 3285.022724 | O29: 2894 | Q29: 759.12 | S29: 219 | T29: 166.63 | U29: 977.39 | V29: 1903.14 | W29: 399.6 | X29: =EVEN((' CONSUMO DE MAT. B TOTAL'!$P$13+' CONSUMO DE MAT. B TOTAL'!P31)*2/28)*W29/(' CONSUMO DE MAT. B TOTAL'!$P$13+' CONSUMO DE MAT. B TOTAL'!P31) -> 29.10252101 | Y29: 1932.242521 | Z29: 3285.022724 | AA29: 5217.265245 | AC29: 5217.265245 | AD29: 1932.242521 | AE29: 3285.022724 | AH29: SUDESTE
B30: 4860.039266 | C30: 17 | E30: STRATURA ASFALTOS S/A | F30: RUA LUIS DE CAMÕES, 26 - CAMPOS ELÍSEOS - CEP:25225-030 | G30: Rio de Janeiro | H30: DUQUE DE CAXIAS - RJ | I30: Hidrolândia - CE | J30: =VLOOKUP(G30,OFFSET('ANP ESTADO'!$A$1,MATCH($I$7,'ANP ESTADO'!B:B,0)+MATCH($H$10,OFFSET('ANP ESTADO'!$A$1,MATCH($I$7,'ANP ESTADO'!B:B,0),0,100000,1),0),2,100000,2),2,FALSE) -> - | K30: =VLOOKUP($H$10,OFFSET('ANP REGIÃO'!$A$9,MATCH('Transporte RR-2C'!$I$7,'ANP REGIÃO'!A:A,0),1,10000,10000),MATCH('Transporte RR-2C'!AH30,'ANP REGIÃO'!$B$8:$G$8,0),FALSE) -> 2.617830778 | L30: 2617.830778 | M30: 723.37 | N30: 3341.200778 | O30: 2255 | Q30: =ROUND((26.939+0.253*O30),2) -> 597.45 | S30: 178.09 | T30: 131.14 | U30: 769.23 | V30: 1497.82 | W30: 288.6 | X30: =EVEN((' CONSUMO DE MAT. B TOTAL'!$P$13+' CONSUMO DE MAT. B TOTAL'!P32)*2/28)*W30/(' CONSUMO DE MAT. B TOTAL'!$P$13+' CONSUMO DE MAT. B TOTAL'!P32) -> 21.01848739 | Y30: 1518.838487 | Z30: 3341.200778 | AA30: 4860.039266 | AC30: 4860.039266 | AD30: =Y30 -> 1518.838487 | AE30: 3341.200778 | AH30: SUDESTE
B31: 4870.199266 | C31: 18 | E31: PROBITEC - PRODUTOS BETUMINOSOS E TECNOLOGIA DE APLICAÇÃO LTDA. | F31: AVENIDA CANAL DA PAVUNA, 620 - PAVUNA - CEP:21535-630 | G31: Rio de Janeiro | H31: RIO DE JANEIRO - RJ | I31: Hidrolândia - CE | J31: =VLOOKUP(G31,OFFSET('ANP ESTADO'!$A$1,MATCH($I$7,'ANP ESTADO'!B:B,0)+MATCH($H$10,OFFSET('ANP ESTADO'!$A$1,MATCH($I$7,'ANP ESTADO'!B:B,0),0,100000,1),0),2,100000,2),2,FALSE) -> - | K31: =VLOOKUP($H$10,OFFSET('ANP REGIÃO'!$A$9,MATCH('Transporte RR-2C'!$I$7,'ANP REGIÃO'!A:A,0),1,10000,10000),MATCH('Transporte RR-2C'!AH31,'ANP REGIÃO'!$B$8:$G$8,0),FALSE) -> 2.617830778 | L31: 2617.830778 | M31: 723.37 | N31: 3341.200778 | O31: 2271 | Q31: 601.5 | S31: 179.12 | T31: 132.03 | U31: 774.45 | V31: 1507.98 | W31: 288.6 | X31: =EVEN((' CONSUMO DE MAT. B TOTAL'!$P$13+' CONSUMO DE MAT. B TOTAL'!P33)*2/28)*W31/(' CONSUMO DE MAT. B TOTAL'!$P$13+' CONSUMO DE MAT. B TOTAL'!P33) -> 21.01848739 | Y31: 1528.998487 | Z31: 3341.200778 | AA31: 4870.199266 | AC31: 4870.199266 | AD31: 1528.998487 | AE31: 3341.200778 | AH31: SUDESTE
B32: 5452.02899 | C32: 19 | E32: CASA DO ASFALTO DISTRIBUIDORA, INDÚSTRIA E COMÉRCIO DE ASFALTO LTDA. | F32: BR 376, PARQUE INDUSTRIAL, S/N LOTE 6/7/7-A-3-1 - GL.PATR.MARIALVA - CEP:86990-000 | G32: Paraná | H32: MARIALVA - PR | I32: Hidrolândia - CE | J32: =VLOOKUP(G32,OFFSET('ANP ESTADO'!$A$1,MATCH($I$7,'ANP ESTADO'!B:B,0)+MATCH($H$10,OFFSET('ANP ESTADO'!$A$1,MATCH($I$7,'ANP ESTADO'!B:B,0),0,100000,1),0),2,100000,2),2,FALSE) -> 2.662185629 | K32: =VLOOKUP($H$10,OFFSET('ANP REGIÃO'!$A$9,MATCH('Transporte RR-2C'!$I$7,'ANP REGIÃO'!A:A,0),1,10000,10000),MATCH('Transporte RR-2C'!AH32,'ANP REGIÃO'!$B$8:$G$8,0),FALSE) -> 2.657710202 | L32: 2662.185629 | M32: 735.63 | N32: 3397.815629 | O32: 3030 | Q32: 793.53 | S32: 227.7 | T32: 174.18 | U32: 1021.7 | V32: 1989.41 | W32: 889.8 | X32: =EVEN((' CONSUMO DE MAT. B TOTAL'!$P$13+' CONSUMO DE MAT. B TOTAL'!P34)*2/28)*W32/(' CONSUMO DE MAT. B TOTAL'!$P$13+' CONSUMO DE MAT. B TOTAL'!P34) -> 64.80336134 | Y32: 2054.213361 | Z32: 3397.815629 | AA32: 5452.02899 | AC32: 5452.02899 | AD32: 2054.213361 | AE32: 3397.815629 | AH32: SUL
B33: 5477.832688 | C33: 20 | E33: PETROBRAS DISTRIBUIDORA S.A. | F33: RUA MAQUINISTA ELEODORO JACINTO, 100 - OFICINAS - CEP:84045-170 | G33: Paraná | H33: PONTA GROSSA - PR | I33: Hidrolândia - CE | J33: =VLOOKUP(G33,OFFSET('ANP ESTADO'!$A$1,MATCH($I$7,'ANP ESTADO'!B:B,0)+MATCH($H$10,OFFSET('ANP ESTADO'!$A$1,MATCH($I$7,'ANP ESTADO'!B:B,0),0,100000,1),0),2,100000,2),2,FALSE) -> 2.662185629 | K33: =VLOOKUP($H$10,OFFSET('ANP REGIÃO'!$A$9,MATCH('Transporte RR-2C'!$I$7,'ANP REGIÃO'!A:A,0),1,10000,10000),MATCH('Transporte RR-2C'!AH33,'ANP REGIÃO'!$B$8:$G$8,0),FALSE) -> 2.657710202 | L33: 2662.185629 | M33: 735.63 | N33: 3397.815629 | O33: 3087 | Q33: 807.95 | S33: 231.35 | T33: 177.35 | U33: 1040.27 | V33: 2025.57 | W33: 747.6 | X33: =EVEN((' CONSUMO DE MAT. B TOTAL'!$P$13+' CONSUMO DE MAT. B TOTAL'!P35)*2/28)*W33/(' CONSUMO DE MAT. B TOTAL'!$P$13+' CONSUMO DE MAT. B TOTAL'!P35) -> 54.44705882 | Y33: 2080.017059 | Z33: 3397.815629 | AA33: 5477.832688 | AC33: 5477.832688 | AD33: 2080.017059 | AE33: 3397.815629 | AH33: SUL
D43: Acre
D44: Alagoas
D45: Amapá
D46: Amazonas
D47: Bahia
D48: Ceará
D49: Distrito Federal
D50: Espírito Santo
D51: Goiás
D52: Maranhão
D53: Mato Grosso
D54: Mato Grosso do Sul
D55: Minas Gerais
D56: Pará
D57: Paraíba
D58: Paraná
D59: Pernambuco
D60: Piauí
D61: Rio de Janeiro
D62: Rio Grande do Norte
D63: Rio Grande do Sul
D64: Rondônia
D65: Roraima
D66: Santa Catarina
D67: São Paulo
D68: Sergipe
D69: Tocantins
D73: ASFALTOS DILUÍDOS CM-30
D74: ASFALTOS DILUÍDOS CM-70
D75: ASFALTOS DILUÍDOS CR-250
D76: ASFALTOS DILUÍDOS CR-70
D77: CAP MODIFICADO POR BORRACHA DE PNEU AB22
D78: CAP MODIFICADO POR BORRACHA DE PNEU AB8
D79: CAP MODIFICADO POR POLÍMERO 55-75-E
D80: CAP MODIFICADO POR POLÍMERO 60-85-E
D81: CAP MODIFICADO POR POLÍMERO 65-90-E
D82: CIMENTOS ASFÁLTICOS CAP-150-200
D83: CIMENTOS ASFÁLTICOS CAP-30-45
D84: CIMENTOS ASFÁLTICOS CAP-50-70
D85: CIMENTOS ASFÁLTICOS CAP-85-100
D86: EMULSÃO ASFÁLTICA CATIÔNICA DE RUPTURA CONTROLADA PARA SERVIÇO DE LAMA ASFÁLTICA
D87: EMULSÃO ASFÁLTICA DE RUPTURA LENTA CATIÔNICA PARA SERVIÇO DE LAMA ASFÁLTICA
D88: EMULSÃO ASFÁLTICA DE RUPTURA LENTA DE CARGA NEUTRA PARA SERVIÇO DE LAMA ASFÁLTICA
D89: EMULSÃO ASFÁLTICA PARA SERVIÇO DE IMPRIMAÇÃO
D90: EMULSÕES ASF. MOD. POR POLÍMEROS RC1C-E
D91: EMULSÕES ASF. MOD. POR POLÍMEROS RL1C-E
D92: EMULSÕES ASF. MOD. POR POLÍMEROS RM1C-E
D93: EMULSÕES ASF. MOD. POR POLÍMEROS RR1C-E
D94: EMULSÕES ASF. MOD. POR POLÍMEROS RR2C-E
D95: EMULSÕES ASFÁLTICAS RL-1C
D96: EMULSÕES ASFÁLTICAS RM-1C
D97: EMULSÕES ASFÁLTICAS RM-2C
D98: EMULSÕES ASFÁLTICAS RR-1C
D99: EMULSÕES ASFÁLTICAS RR-2C

Sheet RESUMO_Transp
B11: ÍNDICE DE PAVIMENTAÇÃO DNIT | E11: TIPOLOGIA DO MATERIAL | G11: LIGANTE BETUMINOSO | K11: IMPOSTOS | L11: COFINS | M11: ='Transporte RR-2C'!O7 -> 0.0065 | N11: ='Transporte RR-2C'!P7 -> 0.0065
C12: DATA INICIAL | F12: 2014-07-01 | G12: ÍNDICE INICIAL | H12: ='Transporte RR-2C'!J8 -> 270.237 | L12: PIS | M12: ='Transporte RR-2C'!O8 -> 0.03 | N12: ='Transporte RR-2C'!P8 -> 0.03
C13: DATA FINAL | F13: ='Transporte RR-2C'!H9 -> 2023-09-01 | G13: ÍNDICE FINAL | H13: ='Transporte RR-2C'!J9 -> 555.551 | L13: ICMS | M13: ='Transporte RR-2C'!O9 -> 0.18 | N13: ='Transporte RR-2C'!P9 -> 0.18
B15: DATA-BASE | C15: PRODUTOS | D15: LOCALIDADES | H15: CUSTO ANP (R$/Kg) | J15: CUSTO ANP | K15: IMPOSTOS DO PRODUTO | L15: CUSTO DO PRODUTO COM IMPOSTOS | M15: DMT's | N15: DMT's | O15: CUSTO DO TRANSPORTE TOTAL | P15: ICMS | Q15: ATUALIZAÇÃO DO CUSTO DE TRANSPORTE | R15: CUSTO DO TRANSPORTE RODOVIA PAVIMENTADA COM IMPOSTOS E ATUALIZAÇÃO MONETÁRIA | S15: PEDÁGIO | U15: TOTAL TRANSPORTE | V15: TOTAL PRODUTO | W15: TOTAL GERAL
B16: =F13 -> 2023-09-01 | D16: REFINARIAS | E16: ENDEREÇO | F16: ORIGEM REFINARIAS / DISTRIBUIDORAS | G16: DESTINO | H16: ESTADO | I16: REGIÃO | J16: R$/t | K16: R$/t | L16: R$/t | M16: KM | N16: KM | O16: R$/t | P16: R$/t | Q16: R$/t | R16: R$/t | S16: CUSTO POR EIXO | T16: R$/t | U16: R$/t | V16: R$/t | W16: R$/t
B17: 1 | C17: CM-30 | D17: Refinaria Abreu e Lima | E17: Rodovia PE 60, Km 10 - Ipojuca - PE CEP:55590-000 | F17: =VLOOKUP($W17,'Transporte CM-30'!$B:$AA,7,FALSE) -> FORTALEZA - CE | G17: =VLOOKUP($W17,'Transporte CM-30'!$B:$AA,8,FALSE) -> Carius - CE | H17: =VLOOKUP($W17,'Transporte CM-30'!$B:$AA,9,FALSE) -> 4.100901709 | I17: =VLOOKUP($W17,'Transporte CM-30'!$B:$AA,10,FALSE) -> 4.100901709 | J17: =VLOOKUP($W17,'Transporte CM-30'!$B:$AA,11,FALSE) -> 4100.901709 | K17: =VLOOKUP($W17,'Transporte CM-30'!$B:$AA,12,FALSE) -> 1133.18 | L17: =VLOOKUP($W17,'Transporte CM-30'!$B:$AA,13,FALSE) -> 5234.081709 | M17: =VLOOKUP($W17,'Transporte CM-30'!$B:$AA,14,FALSE) -> 400 | N17: =VLOOKUP($W17,'Transporte CM-30'!$B:$AA,15,FALSE) -> 0 | O17: =VLOOKUP($W17,'Transporte CM-30'!$B:$AA,18,FALSE) -> 128.14 | P17: =VLOOKUP($W17,'Transporte CM-30'!$B:$AA,19,FALSE) -> 28.12 | Q17: =VLOOKUP($W17,'Transporte CM-30'!$B:$AA,20,FALSE) -> 164.97 | R17: =VLOOKUP($W17,'Transporte CM-30'!$B:$AA,21,FALSE) -> 321.23 | S17: =VLOOKUP($W17,'Transporte CM-30'!$B:$AA,22,FALSE) -> 0 | T17: =VLOOKUP($W17,'Transporte CM-30'!$B:$AA,23,FALSE) -> 0 | U17: =VLOOKUP($W17,'Transporte CM-30'!$B:$AA,24,FALSE) -> 321.23 | V17: =VLOOKUP($W17,'Transporte CM-30'!$B:$AA,25,FALSE) -> 5234.081709 | W17: =SMALL('Transporte CM-30'!$AA:$AA,1) -> 5555.311709
B18: 2 | D18: Refinaria Potiguar Clara Camarão | E18: Rodovia RN 221, KM 25 - Guamaré - RN CEP:59598-000 | F18: =VLOOKUP($W18,'Transporte CM-30'!$B:$AA,7,FALSE) -> GUAMARÉ - RN | G18: =VLOOKUP($W18,'Transporte CM-30'!$B:$AA,8,FALSE) -> Carius - CE | H18: =VLOOKUP($W18,'Transporte CM-30'!$B:$AA,9,FALSE) -> - | I18: =VLOOKUP($W18,'Transporte CM-30'!$B:$AA,10,FALSE) -> 4.100901709 | J18: =VLOOKUP($W18,'Transporte CM-30'!$B:$AA,11,FALSE) -> 4100.901709 | K18: =VLOOKUP($W18,'Transporte CM-30'!$B:$AA,12,FALSE) -> 1133.18 | L18: =VLOOKUP($W18,'Transporte CM-30'!$B:$AA,13,FALSE) -> 5234.081709 | M18: =VLOOKUP($W18,'Transporte CM-30'!$B:$AA,14,FALSE) -> 506 | N18: =VLOOKUP($W18,'Transporte CM-30'!$B:$AA,15,FALSE) -> 0 | O18: =VLOOKUP($W18,'Transporte CM-30'!$B:$AA,18,FALSE) -> 154.96 | P18: =VLOOKUP($W18,'Transporte CM-30'!$B:$AA,19,FALSE) -> 34.01 | Q18: =VLOOKUP($W18,'Transporte CM-30'!$B:$AA,20,FALSE) -> 199.51 | R18: =VLOOKUP($W18,'Transporte CM-30'!$B:$AA,21,FALSE) -> 388.48 | S18: =VLOOKUP($W18,'Transporte CM-30'!$B:$AA,22,FALSE) -> 0 | T18: =VLOOKUP($W18,'Transporte CM-30'!$B:$AA,23,FALSE) -> 0 | U18: =VLOOKUP($W18,'Transporte CM-30'!$B:$AA,24,FALSE) -> 388.48 | V18: =VLOOKUP($W18,'Transporte CM-30'!$B:$AA,25,FALSE) -> 5234.081709 | W18: =SMALL('Transporte CM-30'!$AA:$AA,2) -> 5622.561709
B19: 3 | D19: Complexo Petroquímico do Rio de Janeiro (Comperj) | E19: Rodovia Estadual RJ-116 - Km 5,2 - Acesso A-1, s/n, Complemento Sambaetiba - Zona Urbana do 4º Distrito de Itaboraí - RJ CEP:24841-203 | F19: =VLOOKUP($W19,'Transporte CM-30'!$B:$AA,7,FALSE) -> IPOJUCA - PE | G19: =VLOOKUP($W19,'Transporte CM-30'!$B:$AA,8,FALSE) -> Carius - CE | H19: =VLOOKUP($W19,'Transporte CM-30'!$B:$AA,9,FALSE) -> - | I19: =VLOOKUP($W19,'Transporte CM-30'!$B:$AA,10,FALSE) -> 4.100901709 | J19: =VLOOKUP($W19,'Transporte CM-30'!$B:$AA,11,FALSE) -> 4100.901709 | K19: =VLOOKUP($W19,'Transporte CM-30'!$B:$AA,12,FALSE) -> 1133.18 | L19: =VLOOKUP($W19,'Transporte CM-30'!$B:$AA,13,FALSE) -> 5234.081709 | M19: =VLOOKUP($W19,'Transporte CM-30'!$B:$AA,14,FALSE) -> 744 | N19: =VLOOKUP($W19,'Transporte CM-30'!$B:$AA,15,FALSE) -> 0 | O19: =VLOOKUP($W19,'Transporte CM-30'!$B:$AA,18,FALSE) -> 215.17 | P19: =VLOOKUP($W19,'Transporte CM-30'!$B:$AA,19,FALSE) -> 47.23 | Q19: =VLOOKUP($W19,'Transporte CM-30'!$B:$AA,20,FALSE) -> 277.03 | R19: =VLOOKUP($W19,'Transporte CM-30'!$B:$AA,21,FALSE) -> 539.43 | S19: =VLOOKUP($W19,'Transporte CM-30'!$B:$AA,22,FALSE) -> 61.2 | T19: =VLOOKUP($W19,'Transporte CM-30'!$B:$AA,23,FALSE) -> 4.714285714 | U19: =VLOOKUP($W19,'Transporte CM-30'!$B:$AA,24,FALSE) -> 544.1442857 | V19: =VLOOKUP($W19,'Transporte CM-30'!$B:$AA,25,FALSE) -> 5234.081709 | W19: =SMALL('Transporte CM-30'!$AA:$AA,3) -> 5778.225995
B20: 4 | F20: =VLOOKUP($W20,'Transporte CM-30'!$B:$AA,7,FALSE) -> SÃO FRANCISCO DO CONDE - BA | G20: =VLOOKUP($W20,'Transporte CM-30'!$B:$AA,8,FALSE) -> Carius - CE | H20: =VLOOKUP($W20,'Transporte CM-30'!$B:$AA,9,FALSE) -> - | I20: =VLOOKUP($W20,'Transporte CM-30'!$B:$AA,10,FALSE) -> 4.100901709 | J20: =VLOOKUP($W20,'Transporte CM-30'!$B:$AA,11,FALSE) -> 4100.901709 | K20: =VLOOKUP($W20,'Transporte CM-30'!$B:$AA,12,FALSE) -> 1133.18 | L20: =VLOOKUP($W20,'Transporte CM-30'!$B:$AA,13,FALSE) -> 5234.081709 | M20: =VLOOKUP($W20,'Transporte CM-30'!$B:$AA,14,FALSE) -> 823 | N20: =VLOOKUP($W20,'Transporte CM-30'!$B:$AA,15,FALSE) -> 0 | O20: =VLOOKUP($W20,'Transporte CM-30'!$B:$AA,18,FALSE) -> 235.16 | P20: =VLOOKUP($W20,'Transporte CM-30'!$B:$AA,19,FALSE) -> 51.62 | Q20: =VLOOKUP($W20,'Transporte CM-30'!$B:$AA,20,FALSE) -> 302.77 | R20: =VLOOKUP($W20,'Transporte CM-30'!$B:$AA,21,FALSE) -> 589.55 | S20: =VLOOKUP($W20,'Transporte CM-30'!$B:$AA,22,FALSE) -> 6.6 | T20: =VLOOKUP($W20,'Transporte CM-30'!$B:$AA,23,FALSE) -> 0.5084033613 | U20: =VLOOKUP($W20,'Transporte CM-30'!$B:$AA,24,FALSE) -> 590.0584034 | V20: =VLOOKUP($W20,'Transporte CM-30'!$B:$AA,25,FALSE) -> 5234.081709 | W20: =SMALL('Transporte CM-30'!$AA:$AA,4) -> 5824.140113
B21: 5 | F21: =VLOOKUP($W21,'Transporte CM-30'!$B:$AA,7,FALSE) -> BETIM - MG | G21: =VLOOKUP($W21,'Transporte CM-30'!$B:$AA,8,FALSE) -> Carius - CE | H21: =VLOOKUP($W21,'Transporte CM-30'!$B:$AA,9,FALSE) -> - | I21: =VLOOKUP($W21,'Transporte CM-30'!$B:$AA,10,FALSE) -> 3.964297949 | J21: =VLOOKUP($W21,'Transporte CM-30'!$B:$AA,11,FALSE) -> 3964.297949 | K21: =VLOOKUP($W21,'Transporte CM-30'!$B:$AA,12,FALSE) -> 1095.43 | L21: =VLOOKUP($W21,'Transporte CM-30'!$B:$AA,13,FALSE) -> 5059.727949 | M21: =VLOOKUP($W21,'Transporte CM-30'!$B:$AA,14,FALSE) -> 2085 | N21: =VLOOKUP($W21,'Transporte CM-30'!$B:$AA,15,FALSE) -> 0 | O21: =VLOOKUP($W21,'Transporte CM-30'!$B:$AA,18,FALSE) -> 554.44 | P21: =VLOOKUP($W21,'Transporte CM-30'!$B:$AA,19,FALSE) -> 121.7 | Q21: =VLOOKUP($W21,'Transporte CM-30'!$B:$AA,20,FALSE) -> 713.86 | R21: =VLOOKUP($W21,'Transporte CM-30'!$B:$AA,21,FALSE) -> 1390 | S21: =VLOOKUP($W21,'Transporte CM-30'!$B:$AA,22,FALSE) -> 177 | T21: =VLOOKUP($W21,'Transporte CM-30'!$B:$AA,23,FALSE) -> 13.63445378 | U21: =VLOOKUP($W21,'Transporte CM-30'!$B:$AA,24,FALSE) -> 1403.634454 | V21: =VLOOKUP($W21,'Transporte CM-30'!$B:$AA,25,FALSE) -> 5059.727949 | W21: =SMALL('Transporte CM-30'!$AA:$AA,5) -> 6463.362403
B22: 6 | F22: =VLOOKUP($W22,'Transporte CM-30'!$B:$AA,7,FALSE) -> DUQUE DE CAXIAS - RJ | G22: =VLOOKUP($W22,'Transporte CM-30'!$B:$AA,8,FALSE) -> Carius - CE | H22: =VLOOKUP($W22,'Transporte CM-30'!$B:$AA,9,FALSE) -> - | I22: =VLOOKUP($W22,'Transporte CM-30'!$B:$AA,10,FALSE) -> 3.964297949 | J22: =VLOOKUP($W22,'Transporte CM-30'!$B:$AA,11,FALSE) -> 3964.297949 | K22: =VLOOKUP($W22,'Transporte CM-30'!$B:$AA,12,FALSE) -> 1095.43 | L22: =VLOOKUP($W22,'Transporte CM-30'!$B:$AA,13,FALSE) -> 5059.727949 | M22: =VLOOKUP($W22,'Transporte CM-30'!$B:$AA,14,FALSE) -> 2255 | N22: =VLOOKUP($W22,'Transporte CM-30'!$B:$AA,15,FALSE) -> 0 | O22: =VLOOKUP($W22,'Transporte CM-30'!$B:$AA,18,FALSE) -> 597.45 | P22: =VLOOKUP($W22,'Transporte CM-30'!$B:$AA,19,FALSE) -> 131.14 | Q22: =VLOOKUP($W22,'Transporte CM-30'!$B:$AA,20,FALSE) -> 769.23 | R22: =VLOOKUP($W22,'Transporte CM-30'!$B:$AA,21,FALSE) -> 1497.82 | S22: =VLOOKUP($W22,'Transporte CM-30'!$B:$AA,22,FALSE) -> 288.6 | T22: =VLOOKUP($W22,'Transporte CM-30'!$B:$AA,23,FALSE) -> 22.23109244 | U22: =VLOOKUP($W22,'Transporte CM-30'!$B:$AA,24,FALSE) -> 1520.051092 | V22: =VLOOKUP($W22,'Transporte CM-30'!$B:$AA,25,FALSE) -> 5059.727949 | W22: =SMALL('Transporte CM-30'!$AA:$AA,6) -> 6579.779041
B24: 1 | C24: RR2-C | D24: Refinaria Abreu e Lima | E24: Rodovia PE 60, Km 10 - Ipojuca - PE CEP:55590-000 | F24: =VLOOKUP($W24,'Transporte RR-2C'!$B:$AA,7,FALSE) -> MARACANAU - CE | G24: =VLOOKUP($W24,'Transporte RR-2C'!$B:$AA,8,FALSE) -> Morada Nova - CE | H24: =VLOOKUP($W24,'Transporte RR-2C'!$B:$AA,9,FALSE) -> 2.583273323 | I24: =VLOOKUP($W24,'Transporte RR-2C'!$B:$AA,10,FALSE) -> 2.721645567 | J24: =VLOOKUP($W24,'Transporte RR-2C'!$B:$AA,11,FALSE) -> 2583.273323 | K24: =VLOOKUP($W24,'Transporte RR-2C'!$B:$AA,12,FALSE) -> 713.82 | L24: =VLOOKUP($W24,'Transporte RR-2C'!$B:$AA,13,FALSE) -> 3297.093323 | M24: =VLOOKUP($W24,'Transporte RR-2C'!$B:$AA,14,FALSE) -> 394 | N24: =VLOOKUP($W24,'Transporte RR-2C'!$B:$AA,15,FALSE) -> 0 | O24: =VLOOKUP($W24,'Transporte RR-2C'!$B:$AA,18,FALSE) -> 58.97 | P24: =VLOOKUP($W24,'Transporte RR-2C'!$B:$AA,19,FALSE) -> 27.79 | Q24: =VLOOKUP($W24,'Transporte RR-2C'!$B:$AA,20,FALSE) -> 163.02 | R24: =VLOOKUP($W24,'Transporte RR-2C'!$B:$AA,21,FALSE) -> 317.43 | S24: =VLOOKUP($W24,'Transporte RR-2C'!$B:$AA,22,FALSE) -> 0 | T24: =VLOOKUP($W24,'Transporte RR-2C'!$B:$AA,23,FALSE) -> 0 | U24: =VLOOKUP($W24,'Transporte RR-2C'!$B:$AA,24,FALSE) -> 317.43 | V24: =VLOOKUP($W24,'Transporte RR-2C'!$B:$AA,25,FALSE) -> 3297.093323 | W24: =SMALL('Transporte RR-2C'!$AA:$AA,1) -> 3614.523323
B25: 2 | D25: Refinaria Potiguar Clara Camarão | E25: Rodovia RN 221, KM 25 - Guamaré - RN CEP:59598-000 | F25: =VLOOKUP($W25,'Transporte RR-2C'!$B:$AA,7,FALSE) -> PALMAS - TO | G25: =VLOOKUP($W25,'Transporte RR-2C'!$B:$AA,8,FALSE) -> Morada Nova - CE | H25: =VLOOKUP($W25,'Transporte RR-2C'!$B:$AA,9,FALSE) -> 2.731812409 | I25: =VLOOKUP($W25,'Transporte RR-2C'!$B:$AA,10,FALSE) -> 3.067703723 | J25: =VLOOKUP($W25,'Transporte RR-2C'!$B:$AA,11,FALSE) -> 2731.812409 | K25: =VLOOKUP($W25,'Transporte RR-2C'!$B:$AA,12,FALSE) -> 754.87 | L25: =VLOOKUP($W25,'Transporte RR-2C'!$B:$AA,13,FALSE) -> 3486.682409 | M25: =VLOOKUP($W25,'Transporte RR-2C'!$B:$AA,14,FALSE) -> 1450 | N25: =VLOOKUP($W25,'Transporte RR-2C'!$B:$AA,15,FALSE) -> 0 | O25: =VLOOKUP($W25,'Transporte RR-2C'!$B:$AA,18,FALSE) -> 126.57 | P25: =VLOOKUP($W25,'Transporte RR-2C'!$B:$AA,19,FALSE) -> 86.44 | Q25: =VLOOKUP($W25,'Transporte RR-2C'!$B:$AA,20,FALSE) -> 507.02 | R25: =VLOOKUP($W25,'Transporte RR-2C'!$B:$AA,21,FALSE) -> 987.25 | S25: =VLOOKUP($W25,'Transporte RR-2C'!$B:$AA,22,FALSE) -> 0 | T25: =VLOOKUP($W25,'Transporte RR-2C'!$B:$AA,23,FALSE) -> 0 | U25: =VLOOKUP($W25,'Transporte RR-2C'!$B:$AA,24,FALSE) -> 987.25 | V25: =VLOOKUP($W25,'Transporte RR-2C'!$B:$AA,25,FALSE) -> 3486.682409 | W25: =SMALL('Transporte RR-2C'!$AA:$AA,2) -> 4473.932409
B26: 3 | D26: Complexo Petroquímico do Rio de Janeiro (Comperj) | E26: Rodovia Estadual RJ-116 - Km 5,2 - Acesso A-1, s/n, Complemento Sambaetiba - Zona Urbana do 4º Distrito de Itaboraí - RJ CEP:24841-203 | F26: =VLOOKUP($W26,'Transporte RR-2C'!$B:$AA,7,FALSE) -> SARZEDO - MG | G26: =VLOOKUP($W26,'Transporte RR-2C'!$B:$AA,8,FALSE) -> Morada Nova - CE | H26: =VLOOKUP($W26,'Transporte RR-2C'!$B:$AA,9,FALSE) -> 2.681668314 | I26: =VLOOKUP($W26,'Transporte RR-2C'!$B:$AA,10,FALSE) -> 2.617830778 | J26: =VLOOKUP($W26,'Transporte RR-2C'!$B:$AA,11,FALSE) -> 2681.668314 | K26: =VLOOKUP($W26,'Transporte RR-2C'!$B:$AA,12,FALSE) -> 741.01 | L26: =VLOOKUP($W26,'Transporte RR-2C'!$B:$AA,13,FALSE) -> 3422.678314 | M26: =VLOOKUP($W26,'Transporte RR-2C'!$B:$AA,14,FALSE) -> 2088 | N26: =VLOOKUP($W26,'Transporte RR-2C'!$B:$AA,15,FALSE) -> 0 | O26: =VLOOKUP($W26,'Transporte RR-2C'!$B:$AA,18,FALSE) -> 167.4 | P26: =VLOOKUP($W26,'Transporte RR-2C'!$B:$AA,19,FALSE) -> 121.87 | Q26: =VLOOKUP($W26,'Transporte RR-2C'!$B:$AA,20,FALSE) -> 714.84 | R26: =VLOOKUP($W26,'Transporte RR-2C'!$B:$AA,21,FALSE) -> 1391.91 | S26: =VLOOKUP($W26,'Transporte RR-2C'!$B:$AA,22,FALSE) -> 177 | T26: =VLOOKUP($W26,'Transporte RR-2C'!$B:$AA,23,FALSE) -> 12.8907563 | U26: =VLOOKUP($W26,'Transporte RR-2C'!$B:$AA,24,FALSE) -> 1404.800756 | V26: =VLOOKUP($W26,'Transporte RR-2C'!$B:$AA,25,FALSE) -> 3422.678314 | W26: =SMALL('Transporte RR-2C'!$AA:$AA,3) -> 4827.47907
B27: 4 | D27: Refinaria Abreu e Lima | E27: Rodovia PE 60, Km 10 - Ipojuca - PE CEP:55590-000 | F27: =VLOOKUP($W27,'Transporte RR-2C'!$B:$AA,7,FALSE) -> DUQUE DE CAXIAS - RJ | G27: =VLOOKUP($W27,'Transporte RR-2C'!$B:$AA,8,FALSE) -> Hidrolândia - CE | H27: =VLOOKUP($W27,'Transporte RR-2C'!$B:$AA,9,FALSE) -> - | I27: =VLOOKUP($W27,'Transporte RR-2C'!$B:$AA,10,FALSE) -> 2.617830778 | J27: =VLOOKUP($W27,'Transporte RR-2C'!$B:$AA,11,FALSE) -> 2617.830778 | K27: =VLOOKUP($W27,'Transporte RR-2C'!$B:$AA,12,FALSE) -> 723.37 | L27: =VLOOKUP($W27,'Transporte RR-2C'!$B:$AA,13,FALSE) -> 3341.200778 | M27: =VLOOKUP($W27,'Transporte RR-2C'!$B:$AA,14,FALSE) -> 2255 | N27: =VLOOKUP($W27,'Transporte RR-2C'!$B:$AA,15,FALSE) -> 0 | O27: =VLOOKUP($W27,'Transporte RR-2C'!$B:$AA,18,FALSE) -> 178.09 | P27: =VLOOKUP($W27,'Transporte RR-2C'!$B:$AA,19,FALSE) -> 131.14 | Q27: =VLOOKUP($W27,'Transporte RR-2C'!$B:$AA,20,FALSE) -> 769.23 | R27: =VLOOKUP($W27,'Transporte RR-2C'!$B:$AA,21,FALSE) -> 1497.82 | S27: =VLOOKUP($W27,'Transporte RR-2C'!$B:$AA,22,FALSE) -> 288.6 | T27: =VLOOKUP($W27,'Transporte RR-2C'!$B:$AA,23,FALSE) -> 21.01848739 | U27: =VLOOKUP($W27,'Transporte RR-2C'!$B:$AA,24,FALSE) -> 1518.838487 | V27: =VLOOKUP($W27,'Transporte RR-2C'!$B:$AA,25,FALSE) -> 3341.200778 | W27: =SMALL('Transporte RR-2C'!$AA:$AA,4) -> 4860.039266
B28: 5 | D28: Refinaria Potiguar Clara Camarão | E28: Rodovia RN 221, KM 25 - Guamaré - RN CEP:59598-000 | F28: =VLOOKUP($W28,'Transporte RR-2C'!$B:$AA,7,FALSE) -> RIO DE JANEIRO - RJ | G28: =VLOOKUP($W28,'Transporte RR-2C'!$B:$AA,8,FALSE) -> Hidrolândia - CE | H28: =VLOOKUP($W28,'Transporte RR-2C'!$B:$AA,9,FALSE) -> - | I28: =VLOOKUP($W28,'Transporte RR-2C'!$B:$AA,10,FALSE) -> 2.617830778 | J28: =VLOOKUP($W28,'Transporte RR-2C'!$B:$AA,11,FALSE) -> 2617.830778 | K28: =VLOOKUP($W28,'Transporte RR-2C'!$B:$AA,12,FALSE) -> 723.37 | L28: =VLOOKUP($W28,'Transporte RR-2C'!$B:$AA,13,FALSE) -> 3341.200778 | M28: =VLOOKUP($W28,'Transporte RR-2C'!$B:$AA,14,FALSE) -> 2271 | N28: =VLOOKUP($W28,'Transporte RR-2C'!$B:$AA,15,FALSE) -> 0 | O28: =VLOOKUP($W28,'Transporte RR-2C'!$B:$AA,18,FALSE) -> 179.12 | P28: =VLOOKUP($W28,'Transporte RR-2C'!$B:$AA,19,FALSE) -> 132.03 | Q28: =VLOOKUP($W28,'Transporte RR-2C'!$B:$AA,20,FALSE) -> 774.45 | R28: =VLOOKUP($W28,'Transporte RR-2C'!$B:$AA,21,FALSE) -> 1507.98 | S28: =VLOOKUP($W28,'Transporte RR-2C'!$B:$AA,22,FALSE) -> 288.6 | T28: =VLOOKUP($W28,'Transporte RR-2C'!$B:$AA,23,FALSE) -> 21.01848739 | U28: =VLOOKUP($W28,'Transporte RR-2C'!$B:$AA,24,FALSE) -> 1528.998487 | V28: =VLOOKUP($W28,'Transporte RR-2C'!$B:$AA,25,FALSE) -> 3341.200778 | W28: =SMALL('Transporte RR-2C'!$AA:$AA,5) -> 4870.199266
B29: 6 | D29: Complexo Petroquímico do Rio de Janeiro (Comperj) | E29: Rodovia Estadual RJ-116 - Km 5,2 - Acesso A-1, s/n, Complemento Sambaetiba - Zona Urbana do 4º Distrito de Itaboraí - RJ CEP:24841-203 | F29: =VLOOKUP($W29,'Transporte RR-2C'!$B:$AA,7,FALSE) -> UBERLANDIA - MG | G29: =VLOOKUP($W29,'Transporte RR-2C'!$B:$AA,8,FALSE) -> Morada Nova - CE | H29: =VLOOKUP($W29,'Transporte RR-2C'!$B:$AA,9,FALSE) -> 2.681668314 | I29: =VLOOKUP($W29,'Transporte RR-2C'!$B:$AA,10,FALSE) -> 2.617830778 | J29: =VLOOKUP($W29,'Transporte RR-2C'!$B:$AA,11,FALSE) -> 2681.668314 | K29: =VLOOKUP($W29,'Transporte RR-2C'!$B:$AA,12,FALSE) -> 741.01 | L29: =VLOOKUP($W29,'Transporte RR-2C'!$B:$AA,13,FALSE) -> 3422.678314 | M29: =VLOOKUP($W29,'Transporte RR-2C'!$B:$AA,14,FALSE) -> 2228 | N29: =VLOOKUP($W29,'Transporte RR-2C'!$B:$AA,15,FALSE) -> 0 | O29: =VLOOKUP($W29,'Transporte RR-2C'!$B:$AA,18,FALSE) -> 176.37 | P29: =VLOOKUP($W29,'Transporte RR-2C'!$B:$AA,19,FALSE) -> 129.64 | Q29: =VLOOKUP($W29,'Transporte RR-2C'!$B:$AA,20,FALSE) -> 760.44 | R29: =VLOOKUP($W29,'Transporte RR-2C'!$B:$AA,21,FALSE) -> 1480.7 | S29: =VLOOKUP($W29,'Transporte RR-2C'!$B:$AA,22,FALSE) -> 177 | T29: =VLOOKUP($W29,'Transporte RR-2C'!$B:$AA,23,FALSE) -> 12.8907563 | U29: =VLOOKUP($W29,'Transporte RR-2C'!$B:$AA,24,FALSE) -> 1493.590756 | V29: =VLOOKUP($W29,'Transporte RR-2C'!$B:$AA,25,FALSE) -> 3422.678314 | W29: =SMALL('Transporte RR-2C'!$AA:$AA,6) -> 4916.26907

Sheet MOMENTO DE TRANSPORTE - PRINC
B4: ='RESUMO MODULO TOTAL'!B1 -> EXECUÇÃO DE SERVIÇOS DE PAVIMENTAÇÃO COM TRATAMENTO SUPERFICIAL DUPLO EM VIAS DE MUNICÍPIOS DIVERSOS INSERIDOS NA ÁREA DE ATUAÇÃO DA CIDEVASF, NO ESTADO DO CEARÁ - LOTE 3
B5: ESTADO: | C5: Ceará | D5: DATA BASE: | E5: 2023-04-01
C7: RESUMO DO TRANSPORTE PRINCIPAL
B8: CODIGO | C8: DESCRIÇÃO | D8: TKM
B9: 5914359 | C9: =VLOOKUP(B9,'SINTÉTICO SICRO'!$A:$D,2,0) -> Transporte com caminhão basculante de 10 m³ - rodovia em leito natural | D9: =ROUND(SUMIF('MOMENTO DE TRANSPORTE - PRINC'!A:A,B9,'MOMENTO DE TRANSPORTE - PRINC'!K:K),2) -> 0
B10: 5914374 | C10: =VLOOKUP(B10,'SINTÉTICO SICRO'!$A:$D,2,0) -> Transporte com caminhão basculante de 10 m³ - rodovia em revestimento primário | D10: =ROUND(SUMIF('MOMENTO DE TRANSPORTE - PRINC'!A:A,B10,'MOMENTO DE TRANSPORTE - PRINC'!K:K),2) -> 0
B11: 5914389 | C11: =VLOOKUP(B11,'SINTÉTICO SICRO'!$A:$D,2,0) -> Transporte com caminhão basculante de 10 m³ - rodovia pavimentada | D11: =ROUND(SUMIF('MOMENTO DE TRANSPORTE - PRINC'!A:A,B11,'MOMENTO DE TRANSPORTE - PRINC'!K:K),2) -> 2289203
B12: 5914449 | C12: =VLOOKUP(B12,'SINTÉTICO SICRO'!$A:$D,2,0) -> Transporte com caminhão carroceria de 15 t - rodovia em leito natural | D12: =ROUND(SUMIF('MOMENTO DE TRANSPORTE - PRINC'!A:A,B12,'MOMENTO DE TRANSPORTE - PRINC'!K:K),2) -> 0
B13: 5914464 | C13: =VLOOKUP(B13,'SINTÉTICO SICRO'!$A:$D,2,0) -> Transporte com caminhão carroceria de 15 t - rodovia em revestimento primário | D13: =ROUND(SUMIF('MOMENTO DE TRANSPORTE - PRINC'!A:A,B13,'MOMENTO DE TRANSPORTE - PRINC'!K:K),2) -> 0
B14: 5914479 | C14: =VLOOKUP(B14,'SINTÉTICO SICRO'!$A:$D,2,0) -> Transporte com caminhão carroceria de 15 t - rodovia pavimentada | D14: =ROUND(SUMIF('MOMENTO DE TRANSPORTE - PRINC'!A:A,B14,'MOMENTO DE TRANSPORTE - PRINC'!K:K),2) -> 0
B15: 5914364 | C15: =VLOOKUP(B15,'SINTÉTICO SICRO'!$A:$D,2,0) -> Transporte de cimento ou cal hidratada a granel com caminhão silo de 30 m³ - rodovia em leito natural | D15: =ROUND(SUMIF('MOMENTO DE TRANSPORTE - PRINC'!A:A,B15,'MOMENTO DE TRANSPORTE - PRINC'!K:K),2) -> 0
B16: 5914365 | C16: =VLOOKUP(B16,'SINTÉTICO SICRO'!$A:$D,2,0) -> Transporte de cimento ou cal hidratada a granel com caminhão silo de 30 m³ - rodovia em revestimento primário | D16: =ROUND(SUMIF('MOMENTO DE TRANSPORTE - PRINC'!A:A,B16,'MOMENTO DE TRANSPORTE - PRINC'!K:K),2) -> 0
B17: 5914366 | C17: =VLOOKUP(B17,'SINTÉTICO SICRO'!$A:$D,2,0) -> Transporte de cimento ou cal hidratada a granel com caminhão silo de 30 m³ - rodovia pavimentada | D17: =ROUND(SUMIF('MOMENTO DE TRANSPORTE - PRINC'!A:A,B17,'MOMENTO DE TRANSPORTE - PRINC'!K:K),2) -> 0
B18: 5914344 | C18: =VLOOKUP(B18,'SINTÉTICO SICRO'!$A:$D,2,0) -> Transporte com caminhão basculante de 6 m³ - rodovia pavimentada | D18: =ROUND(SUMIF('MOMENTO DE TRANSPORTE - PRINC'!A:A,B18,'MOMENTO DE TRANSPORTE - PRINC'!K:K),2) -> 10353
B20: TIPO (P, RP ou LN) | C20: DMT ESTIMADA
B21: P | C21: 10
B23: COMPOSIÇÕES PRINCIPAIS
B26: SISTEMA DE CUSTOS REFERENCIAIS DE OBRAS - SICRO | E26: =C5 -> Ceará
B27: Custo Unitário de Referência | E27: =E5 -> 2023-04-01 | I27: Quantitativo | K27: m²
B28: 4915637 | C28: Capa Selante | I28: =SUMIF('RESUMO MODULO TOTAL'!D:D,B28,'RESUMO MODULO TOTAL'!J:J) -> 238000
B29: F - MOMENTO DE TRANSPORTE | D29: Quantidade | E29: Unidade | F29: CÓDIGO TRANSPORTE
F30: LN | G30: RP | H30: P | I30: TIPO (P, RP ou LN) | J30: DMT ESTIMADA (km) | K30: QUANTITATIVO TOTAL DE TRANSPORTE (tkm)
A31: =IF(I31="P",H31,IF(I31="RP",G31,IF(I31="LN",F31,""))) -> 5914344 | B31: M0028 | C31: Areia média - Caminhão Basculante com capacidade de 6m³ | D31: 0.00435 | E31: tkm | F31: 5914314 | G31: 5914329 | H31: 5914344 | I31: P | J31: =$C$21 -> 10 | K31: =IF(ISBLANK(J31),"",J31*D31)*I28 -> 10353
A32: =IF(I32="P",H32,IF(I32="RP",G32,IF(I32="LN",F32,""))) -> 
B33: Obs.
B34: SISTEMA DE CUSTOS REFERENCIAIS DE OBRAS - SICRO | E34: =C5 -> Ceará
B35: Custo Unitário de Referência | E35: =E5 -> 2023-04-01 | I35: Quantitativo | K35: m²
B36: 4011376 | C36: Tratamento superficial duplo com emulsão com polímero - brita comercial | I36: =SUMIF('RESUMO MODULO TOTAL'!D:D,B36,'RESUMO MODULO TOTAL'!J:J) -> 238000
B37: F - MOMENTO DE TRANSPORTE | D37: Quantidade | E37: Unidade | F37: CÓDIGO TRANSPORTE
F38: LN | G38: RP | H38: P | I38: TIPO (P, RP ou LN) | J38: DMT ESTIMADA (km) | K38: QUANTITATIVO TOTAL DE TRANSPORTE (tkm)
A39: =IF(I39="P",H39,IF(I39="RP",G39,IF(I39="LN",F39,""))) -> 5914389 | B39: M005 | C39: Brita 0 - Caminhão basculante com capacidade de 10 m³ - 188 Kw | D39: 0.011 | E39: tkm | F39: 5914359 | G39: 5914374 | H39: 5914389 | I39: P | J39: =$C$21 -> 10 | K39: =IF(ISBLANK(J39),"",J39*D39)*I36 -> 26180
A40: =IF(I40="P",H40,IF(I40="RP",G40,IF(I40="LN",F40,""))) -> 5914389 | B40: M0191 | C40: Brita 1 - Caminhão basculante com capacidade de 10 m³ - 188 kW | D40: 0.0225 | E40: tkm | F40: 5914359 | G40: 5914374 | H40: 5914389 | I40: P | J40: =$C$21 -> 10 | K40: =IF(ISBLANK(J40),"",J40*D40)*I36 -> 53550
A41: =IF(I41="P",H41,IF(I41="RP",G41,IF(I41="LN",F41,""))) -> 
B44: SISTEMA DE CUSTOS REFERENCIAIS DE OBRAS - SICRO | E44: =C5 -> Ceará
B45: Custo Unitário de Referência | E45: =E5 -> 2023-04-01 | I45: Quantitativo | K45: un
B46: 4011268 | C46: Base estabilizada granulometricamente com mistura solo brita (70% - 30%) em usina com material de jazida e brita comercial | I46: =SUMIF('RESUMO MODULO TOTAL'!D:D,B46,'RESUMO MODULO TOTAL'!J:J) -> 47600
B47: D - ATIVIDADES AUXILIARES | D47: Quantidade | E47: Unidade
B48: 6416030 | C48: Usinagem de solo brita (70% - 30%) com material de jazida e brita comercial em usina de 300 t/h | D48: 1 | E48: m³
B50: F - MOMENTO DE TRANSPORTE | D50: Quantidade | E50: Unidade | F50: CÓDIGO TRANSPORTE
F51: LN | G51: RP | H51: P | I51: TIPO (P, RP ou LN) | J51: DMT ESTIMADA (km) | K51: QUANTITATIVO TOTAL DE TRANSPORTE (tkm)
A52: 5914389 | B52: 6416030 | C52: Usinagem de solo brita (70% - 30%) com material de jazida e brita comercial em usina de 300 t/h - Caminhão basculante 10 m³ | D52: 2.063 | E52: tkm | F52: 5914359 | G52: 5914374 | H52: 5914389 | I52: P | J52: =$C$21 -> 10 | K52: =IF(ISBLANK(J52),"",J52*D52)*I46 -> 981988
B54: Obs.
B56: SISTEMA DE CUSTOS REFERENCIAIS DE OBRAS - SICRO | E56: =C5 -> Ceará
B57: Custo Unitário de Referência | E57: =E5 -> 2023-04-01 | I57: Quantitativo | K57: un
B58: 4011235 | C58: Sub-base estabilizada granulometricamente com mistura solo brita (70% - 30%) em usina com material de jazida e brita comercial | I58: =SUMIF('RESUMO MODULO TOTAL'!D:D,B58,'RESUMO MODULO TOTAL'!J:J) -> 59500
B59: D - ATIVIDADES AUXILIARES | D59: Quantidade | E59: Unidade
B60: 6416030 | C60: Usinagem de solo brita (70% - 30%) com material de jazida e brita comercial em usina de 300 t/h | D60: 1 | E60: m³
B62: F - MOMENTO DE TRANSPORTE | D62: Quantidade | E62: Unidade | F62: CÓDIGO TRANSPORTE
F63: LN | G63: RP | H63: P | I63: TIPO (P, RP ou LN) | J63: DMT ESTIMADA (km) | K63: QUANTITATIVO TOTAL DE TRANSPORTE (tkm)
A64: 5914389 | B64: 6416030 | C64: Usinagem de solo brita (70% - 30%) com material de jazida e brita comercial em usina de 300 t/h - Caminhão basculante 10 m³ | D64: 2.063 | E64: tkm | F64: 5914359 | G64: 5914374 | H64: 5914389 | I64: P | J64: =$C$21 -> 10 | K64: =IF(ISBLANK(J64),"",J64*D64)*I58 -> 1227485
B66: Obs.
B68: SISTEMA DE CUSTOS REFERENCIAIS DE OBRAS - SICRO | E68: =C5 -> Ceará
B69: Custo Unitário de Referência | E69: =E5 -> 2023-04-01 | I69: Quantitativo | K69: m
B70: 2003373 | C70: Meio-fio de concreto - MFC 03 - areia e brita comerciais - fôrma de madeira | I70: =SUMIF('RESUMO MODULO TOTAL'!D:D,B70,'RESUMO MODULO TOTAL'!J:J) -> 68000
B71: D - ATIVIDADES AUXILIARES | D71: Quantidade | E71: Unidade
B72: 1107892 | C72: Concreto fck = 20 MPa - confecção em betoneira e lançamento manual - areia e brita comerciais | D72: 0.042 | E72: m³
B73: 2003842 | C73: Enchimento de junta de concreto com argamassa asfáltica de densidade 1.700 kg/m³ - espessura de 1 cm | D73: 0.0595 | E73: kg
B74: 4805750 | C74: Escavação manual em material de 1ª categoria na profundidade de até 1 m | D74: 0.03 | E74: m³
B75: 3103302 | C75: Fôrmas de tábuas de pinho para dispositivos de drenagem - utilização de 3 vezes - confecção, instalação e retirada | D75: 0.0867 | E75: m²
B77: F - MOMENTO DE TRANSPORTE | D77: Quantidade | E77: Unidade | F77: CÓDIGO TRANSPORTE
F78: LN | G78: RP | H78: P | I78: TIPO (P, RP ou LN) | J78: DMT ESTIMADA (km) | K78: QUANTITATIVO TOTAL DE TRANSPORTE (tkm)

Sheet MOMENTO DE TRANSPORTE - AUX
B4: ='RESUMO MODULO TOTAL'!B1 -> EXECUÇÃO DE SERVIÇOS DE PAVIMENTAÇÃO COM TRATAMENTO SUPERFICIAL DUPLO EM VIAS DE MUNICÍPIOS DIVERSOS INSERIDOS NA ÁREA DE ATUAÇÃO DA CIDEVASF, NO ESTADO DO CEARÁ - LOTE 3
B5: ESTADO: | C5: ='MOMENTO DE TRANSPORTE - PRINC'!C5 -> Ceará | D5: DATA BASE: | E5: ='MOMENTO DE TRANSPORTE - PRINC'!E5 -> 2023-04-01
B7: RESUMO DO TRANSPORTE AUXILIAR
B8: CODIGO | C8: DESCRIÇÃO | D8: TKM
B9: 5914359 | C9: =VLOOKUP(B9,'SINTÉTICO SICRO'!$A:$D,2,0) -> Transporte com caminhão basculante de 10 m³ - rodovia em leito natural | D9: =ROUND(SUMIF(A:A,B9,K:K),2) -> 0
B10: 5914374 | C10: =VLOOKUP(B10,'SINTÉTICO SICRO'!$A:$D,2,0) -> Transporte com caminhão basculante de 10 m³ - rodovia em revestimento primário | D10: 0
B11: 5914389 | C11: =VLOOKUP(B11,'SINTÉTICO SICRO'!$A:$D,2,0) -> Transporte com caminhão basculante de 10 m³ - rodovia pavimentada | D11: 2268106.82
B12: 5914449 | C12: =VLOOKUP(B12,'SINTÉTICO SICRO'!$A:$D,2,0) -> Transporte com caminhão carroceria de 15 t - rodovia em leito natural | D12: 0
B13: 5914464 | C13: =VLOOKUP(B13,'SINTÉTICO SICRO'!$A:$D,2,0) -> Transporte com caminhão carroceria de 15 t - rodovia em revestimento primário | D13: 0
B14: 5914479 | C14: =VLOOKUP(B14,'SINTÉTICO SICRO'!$A:$D,2,0) -> Transporte com caminhão carroceria de 15 t - rodovia pavimentada | D14: 8901.16
B15: 5914364 | C15: =VLOOKUP(B15,'SINTÉTICO SICRO'!$A:$D,2,0) -> Transporte de cimento ou cal hidratada a granel com caminhão silo de 30 m³ - rodovia em leito natural | D15: 0
B16: 5914365 | C16: =VLOOKUP(B16,'SINTÉTICO SICRO'!$A:$D,2,0) -> Transporte de cimento ou cal hidratada a granel com caminhão silo de 30 m³ - rodovia em revestimento primário | D16: 0
B17: 5914366 | C17: =VLOOKUP(B17,'SINTÉTICO SICRO'!$A:$D,2,0) -> Transporte de cimento ou cal hidratada a granel com caminhão silo de 30 m³ - rodovia pavimentada | D17: 0
B18: 5914344 | C18: =VLOOKUP(B18,'SINTÉTICO SICRO'!$A:$D,2,0) -> Transporte com caminhão basculante de 6 m³ - rodovia pavimentada | D18: =ROUND(SUMIF(A:A,B18,'MOMENTO DE TRANSPORTE - PRINC'!K:K),2) -> 0
B20: COMPOSIÇÕES AUXILIARES
B22: SISTEMA DE CUSTOS REFERENCIAIS DE OBRAS - SICRO | E22: =C5 -> Ceará | I22: Quantitivo
B23: Custo Unitário de Referência | E23: =E5 -> 2023-04-01 | I23: (Coeficiente na composição principal) x (quantidade da principal no orçamento) | K23: m³
B24: 1107892 | C24: Concreto fck = 20 MPa - confecção em betoneira e lançamento manual - areia e brita comerciais | I24: ='MOMENTO DE TRANSPORTE - PRINC'!D72*VLOOKUP(C33,'RESUMO MODULO TOTAL'!D:Q,7,FALSE) -> 2856
B25: F - MOMENTO DE TRANSPORTE | D25: Quantidade | E25: Unidade | F25: DMT
F26: LN | G26: RP | H26: P | I26: TIPO (P, RP ou LN) | J26: DMT ESTIMADA (km) | K26: QUANTITATIVO TOTAL DE TRANSPORTE DE MATERIAL (tkm)
A27: =IF(I27="P",H27,IF(I27="RP",G27,IF(I27="LN",F27,""))) -> 5914479 | B27: M0030 | C27: Aditivo plastificante e retardador de pega para concreto e argamassa - Caminhão carroceria 15 t | D27: 0.00085 | E27: tkm | F27: 5914449 | G27: 5914464 | H27: 5914479 | I27: P | J27: ='MOMENTO DE TRANSPORTE - PRINC'!$C$21 -> 10 | K27: =IF(ISBLANK(J27),"",J27*(D27*$I$24)) -> 24.276
A28: =IF(I28="P",H28,IF(I28="RP",G28,IF(I28="LN",F28,""))) -> 5914389 | B28: M0082 | C28: Areia média lavada - Caminhão basculante 10 m³ | D28: 0.95001 | E28: tkm | F28: 5914359 | G28: 5914374 | H28: 5914389 | I28: P | J28: ='MOMENTO DE TRANSPORTE - PRINC'!$C$21 -> 10 | K28: =IF(ISBLANK(J28),"",J28*(D28*$I$24)) -> 27132.2856
A29: 5914389 | B29: M0191 | C29: Brita 1 - Caminhão basculante 10 m³ | D29: 0.55131 | E29: tkm | F29: 5914359 | G29: 5914374 | H29: 5914389 | I29: P | J29: ='MOMENTO DE TRANSPORTE - PRINC'!$C$21 -> 10 | K29: =IF(ISBLANK(J29),"",J29*(D29*$I$24)) -> 15745.4136
A30: 5914389 | B30: M0192 | C30: Brita 2 - Caminhão basculante 10 m³ | D30: 0.55131 | E30: tkm | F30: 5914359 | G30: 5914374 | H30: 5914389 | I30: P | J30: ='MOMENTO DE TRANSPORTE - PRINC'!$C$21 -> 10 | K30: =IF(ISBLANK(J30),"",J30*(D30*$I$24)) -> 15745.4136
A31: 5914479 | B31: M0424 | C31: Cimento Portland CP II - 32 - saco - Caminhão carroceria 15 t | D31: 0.28215 | E31: tkm | F31: 5914449 | G31: 5914464 | H31: 5914479 | I31: P | J31: ='MOMENTO DE TRANSPORTE - PRINC'!$C$21 -> 10 | K31: =IF(ISBLANK(J31),"",J31*(D31*$I$24)) -> 8058.204
B33: PRINCIPAL: | C33: 2003373
B35: SISTEMA DE CUSTOS REFERENCIAIS DE OBRAS - SICRO | E35: =C5 -> Ceará | I35: Quantitivo
B36: Custo Unitário de Referência | E36: =E5 -> 2023-04-01 | I36: (Coeficiente na composição principal) x (quantidade da principal no orçamento) | K36: kg
B37: 2003842 | C37: Enchimento de junta de concreto com argamassa asfáltica de densidade 1.700 kg/m³ - espessura de 1 cm | I37: ='MOMENTO DE TRANSPORTE - PRINC'!D73*VLOOKUP(C42,'RESUMO MODULO TOTAL'!D:Q,7,FALSE) -> 4046
B38: F - MOMENTO DE TRANSPORTE | D38: Quantidade | E38: Unidade | F38: DMT
F39: LN | G39: RP | H39: P | I39: TIPO (P, RP ou LN) | J39: DMT ESTIMADA (km) | K39: QUANTITATIVO TOTAL DE TRANSPORTE DE MATERIAL (tkm)
A40: 5914479 | B40: M2158 | C40: Argamassa asfáltica - Caminhão carroceria com capacidade de 15 t - 188 Kw | D40: 0.001 | E40: tkm | F40: 5914449 | G40: 5914464 | H40: 5914479 | I40: P | J40: ='MOMENTO DE TRANSPORTE - PRINC'!$C$21 -> 10 | K40: =IF(ISBLANK(J40),"",J40*(D40*$I$37)) -> 40.46
B42: PRINCIPAL: | C42: 2003373
B44: SISTEMA DE CUSTOS REFERENCIAIS DE OBRAS - SICRO | E44: =C5 -> Ceará | I44: Quantitivo
B45: Custo Unitário de Referência | E45: =E5 -> 2023-04-01 | I45: (Coeficiente na composição principal) x (quantidade da principal no orçamento) | K45: m²
B46: 3103302 | C46: Fôrmas de tábuas de pinho para dispositivos de drenagem - utilização de 3 vezes - confecção, instalação e retirada | I46: ='MOMENTO DE TRANSPORTE - PRINC'!D75*VLOOKUP(C54,'RESUMO MODULO TOTAL'!D:Q,7,FALSE) -> 5895.6
B47: F - MOMENTO DE TRANSPORTE | D47: Quantidade | E47: Unidade | F47: DMT
F48: LN | G48: RP | H48: P | I48: TIPO (P, RP ou LN) | J48: DMT ESTIMADA (km) | K48: QUANTITATIVO TOTAL DE TRANSPORTE DE MATERIAL (tkm)
A49: 5914479 | B49: M0560 | C49: Desmoldante para fôrmas de madeira - Caminhão carroceria com capacidade de 15 t - 188 Kw | D49: 2e-05 | E49: tkm | F49: 5914449 | G49: 5914464 | H49: 5914479 | I49: P | J49: ='MOMENTO DE TRANSPORTE - PRINC'!$C$21 -> 10 | K49: =IF(ISBLANK(J49),"",J49*(D49*$I$46)) -> 1.17912
A50: 5914479 | B50: M1205 | C50: Prego de ferro - Caminhão carroceria com capacidade de 15 t - 188 kW | D50: 3e-05 | E50: tkm | F50: 5914449 | G50: 5914464 | H50: 5914479 | I50: P | J50: ='MOMENTO DE TRANSPORTE - PRINC'!$C$21 -> 10 | K50: =IF(ISBLANK(J50),"",J50*(D50*$I$46)) -> 1.76868
A51: 5914479 | B51: M0290 | C51: Tábua - E = 2,5 cm e L = 10 cm - Caminhão carroceria com capacidade de 15 t - 188 kW | D51: 0.00304 | E51: tkm | F51: 5914449 | G51: 5914464 | H51: 5914479 | I51: P | J51: ='MOMENTO DE TRANSPORTE - PRINC'!$C$21 -> 10 | K51: =IF(ISBLANK(J51),"",J51*(D51*$I$46)) -> 179.22624
A52: 5914479 | B52: M1429 | C52: Tábua de pinho de terceira - E = 2,5 cm - Caminhão carroceria com capacidade de 15 t - 188 kW | D52: 0.01011 | E52: tkm | F52: 5914449 | G52: 5914464 | H52: 5914479 | I52: P | J52: ='MOMENTO DE TRANSPORTE - PRINC'!$C$21 -> 10 | K52: =IF(ISBLANK(J52),"",J52*(D52*$I$46)) -> 596.04516
B54: PRINCIPAL: | C54: 2003373
B56: SISTEMA DE CUSTOS REFERENCIAIS DE OBRAS - SICRO | E56: =C5 -> Ceará | I56: Quantitivo
B57: Custo Unitário de Referência | E57: =E5 -> 2023-04-01 | I57: (Coeficiente na composição principal) x (quantidade da principal no orçamento) | K57: m³
B58: 6416030 | C58: Usinagem de solo brita (70% - 30%) com material de jazida e brita comercial em usina de 300 t/h | I58: ='MOMENTO DE TRANSPORTE - PRINC'!D48*VLOOKUP(C64,'RESUMO MODULO TOTAL'!D:Q,7,FALSE) -> 47600
B59: F - MOMENTO DE TRANSPORTE | D59: Quantidade | E59: Unidade | F59: DMT
F60: LN | G60: RP | H60: P | I60: TIPO (P, RP ou LN) | J60: DMT ESTIMADA (km) | K60: QUANTITATIVO TOTAL DE TRANSPORTE DE MATERIAL (tkm)
A61: 5914389 | B61: 4016096 | C61: Escavação e carga de material de jazida com escavadeira hidráulica de 1,56 m³ - Caminhão basculante 10 m³ | D61: 1.44411 | E61: tkm | F61: 5914359 | G61: 5914374 | H61: 5914389 | I61: P | J61: ='MOMENTO DE TRANSPORTE - PRINC'!$C$21 -> 10 | K61: =IF(ISBLANK(J61),"",J61*(D61*$I$58)) -> 687396.36
A62: 5914389 | B62: M0191 | C62: Brita 1 - Caminhão basculante 10 m³ | D62: 0.6189 | E62: tkm | F62: 5914359 | G62: 5914374 | H62: 5914389 | I62: P | J62: ='MOMENTO DE TRANSPORTE - PRINC'!$C$21 -> 10 | K62: =IF(ISBLANK(J62),"",J62*(D62*$I$58)) -> 294596.4
B64: PRINCIPAL: | C64: 4011268
B66: SISTEMA DE CUSTOS REFERENCIAIS DE OBRAS - SICRO | E66: =C5 -> Ceará | I66: Quantitivo
B67: Custo Unitário de Referência | E67: =E5 -> 2023-04-01 | I67: (Coeficiente na composição principal) x (quantidade da principal no orçamento) | K67: m³
B68: 6416030 | C68: Usinagem de solo brita (70% - 30%) com material de jazida e brita comercial em usina de 300 t/h | I68: ='MOMENTO DE TRANSPORTE - PRINC'!D60*VLOOKUP(C74,'RESUMO MODULO TOTAL'!D:Q,7,FALSE) -> 59500
B69: F - MOMENTO DE TRANSPORTE | D69: Quantidade | E69: Unidade | F69: DMT
F70: LN | G70: RP | H70: P | I70: TIPO (P, RP ou LN) | J70: DMT ESTIMADA (km) | K70: QUANTITATIVO TOTAL DE TRANSPORTE DE MATERIAL (tkm)
A71: 5914389 | B71: 4016096 | C71: Escavação e carga de material de jazida com escavadeira hidráulica de 1,56 m³ - Caminhão basculante 10 m³ | D71: 1.44411 | E71: tkm | F71: 5914359 | G71: 5914374 | H71: 5914389 | I71: P | J71: ='MOMENTO DE TRANSPORTE - PRINC'!$C$21 -> 10 | K71: =IF(ISBLANK(J71),"",J71*(D71*$I$68)) -> 859245.45
A72: 5914389 | B72: M0191 | C72: Brita 1 - Caminhão basculante 10 m³ | D72: 0.6189 | E72: tkm | F72: 5914359 | G72: 5914374 | H72: 5914389 | I72: P | J72: ='MOMENTO DE TRANSPORTE - PRINC'!$C$21 -> 10 | K72: =IF(ISBLANK(J72),"",J72*(D72*$I$68)) -> 368245.5
B74: PRINCIPAL: | C74: 4011235

Sheet ANP ESTADO
A1: Agência Nacional do Petróleo, Gás Natural e Biocombustíveis
A2: Superintendência de Defesa da Concorrência
A5: PREÇO MÉDIO MENSAL PONDERADO PRATICADO PELOS DISTRIBUIDORES DE PRODUTOS ASFÁLTICOS (R$/KG)
A7: Importante: | B7: Quando não houver declaração de venda do produto selecionado, ou quando a declaração de venda do produto ocorrer por menos de 03 (três) distribuidoras, a tabela indicará campo vazio.
A8: Mês | B8: Produto | C8: Estado | D8: Preço
A9: 2013-01-01 | B9: ASFALTOS DILUÍDOS CM-30 | C9: Acre | D9: -
A10: 2013-01-01 | B10: ASFALTOS DILUÍDOS CM-30 | C10: Alagoas | D10: -
A11: 2013-01-01 | B11: ASFALTOS DILUÍDOS CM-30 | C11: Amapá | D11: -
A12: 2013-01-01 | B12: ASFALTOS DILUÍDOS CM-30 | C12: Amazonas | D12: 1.453527021
A13: 2013-01-01 | B13: ASFALTOS DILUÍDOS CM-30 | C13: Bahia | D13: 1.464044142
A14: 2013-01-01 | B14: ASFALTOS DILUÍDOS CM-30 | C14: Ceará | D14: 1.447997934
A15: 2013-01-01 | B15: ASFALTOS DILUÍDOS CM-30 | C15: Distrito Federal | D15: -
A16: 2013-01-01 | B16: ASFALTOS DILUÍDOS CM-30 | C16: Espírito Santo | D16: -
A17: 2013-01-01 | B17: ASFALTOS DILUÍDOS CM-30 | C17: Goiás | D17: 1.686383065
A18: 2013-01-01 | B18: ASFALTOS DILUÍDOS CM-30 | C18: Maranhão | D18: -
A19: 2013-01-01 | B19: ASFALTOS DILUÍDOS CM-30 | C19: Mato Grosso | D19: -
A20: 2013-01-01 | B20: ASFALTOS DILUÍDOS CM-30 | C20: Mato Grosso do Sul | D20: -
A21: 2013-01-01 | B21: ASFALTOS DILUÍDOS CM-30 | C21: Minas Gerais | D21: 1.451106114
A22: 2013-01-01 | B22: ASFALTOS DILUÍDOS CM-30 | C22: Pará | D22: -
A23: 2013-01-01 | B23: ASFALTOS DILUÍDOS CM-30 | C23: Paraíba | D23: -
A24: 2013-01-01 | B24: ASFALTOS DILUÍDOS CM-30 | C24: Paraná | D24: 1.520125031
A25: 2013-01-01 | B25: ASFALTOS DILUÍDOS CM-30 | C25: Pernambuco | D25: -
A26: 2013-01-01 | B26: ASFALTOS DILUÍDOS CM-30 | C26: Piauí | D26: -
A27: 2013-01-01 | B27: ASFALTOS DILUÍDOS CM-30 | C27: Rio de Janeiro | D27: 1.330475106
A28: 2013-01-01 | B28: ASFALTOS DILUÍDOS CM-30 | C28: Rio Grande do Norte | D28: -
A29: 2013-01-01 | B29: ASFALTOS DILUÍDOS CM-30 | C29: Rio Grande do Sul | D29: 1.598611074
A30: 2013-01-01 | B30: ASFALTOS DILUÍDOS CM-30 | C30: Rondônia | D30: -
A31: 2013-01-01 | B31: ASFALTOS DILUÍDOS CM-30 | C31: Roraima | D31: -
A32: 2013-01-01 | B32: ASFALTOS DILUÍDOS CM-30 | C32: Santa Catarina | D32: -
A33: 2013-01-01 | B33: ASFALTOS DILUÍDOS CM-30 | C33: São Paulo | D33: 1.471008423
A34: 2013-01-01 | B34: ASFALTOS DILUÍDOS CM-30 | C34: Sergipe | D34: -
A35: 2013-01-01 | B35: ASFALTOS DILUÍDOS CM-30 | C35: Tocantins | D35: -
A36: 2013-02-01 | B36: ASFALTOS DILUÍDOS CM-30 | C36: Acre | D36: -
A37: 2013-02-01 | B37: ASFALTOS DILUÍDOS CM-30 | C37: Alagoas | D37: -
A38: 2013-02-01 | B38: ASFALTOS DILUÍDOS CM-30 | C38: Amapá | D38: -
A39: 2013-02-01 | B39: ASFALTOS DILUÍDOS CM-30 | C39: Amazonas | D39: 1.485578179
A40: 2013-02-01 | B40: ASFALTOS DILUÍDOS CM-30 | C40: Bahia | D40: 1.457014101
A41: 2013-02-01 | B41: ASFALTOS DILUÍDOS CM-30 | C41: Ceará | D41: 1.413192336
A42: 2013-02-01 | B42: ASFALTOS DILUÍDOS CM-30 | C42: Distrito Federal | D42: -
A43: 2013-02-01 | B43: ASFALTOS DILUÍDOS CM-30 | C43: Espírito Santo | D43: -
A44: 2013-02-01 | B44: ASFALTOS DILUÍDOS CM-30 | C44: Goiás | D44: 1.667459711
A45: 2013-02-01 | B45: ASFALTOS DILUÍDOS CM-30 | C45: Maranhão | D45: -
A46: 2013-02-01 | B46: ASFALTOS DILUÍDOS CM-30 | C46: Mato Grosso | D46: -
A47: 2013-02-01 | B47: ASFALTOS DILUÍDOS CM-30 | C47: Mato Grosso do Sul | D47: -
A48: 2013-02-01 | B48: ASFALTOS DILUÍDOS CM-30 | C48: Minas Gerais | D48: 1.452121117
A49: 2013-02-01 | B49: ASFALTOS DILUÍDOS CM-30 | C49: Pará | D49: -
A50: 2013-02-01 | B50: ASFALTOS DILUÍDOS CM-30 | C50: Paraíba | D50: -
A51: 2013-02-01 | B51: ASFALTOS DILUÍDOS CM-30 | C51: Paraná | D51: 1.493783173
A52: 2013-02-01 | B52: ASFALTOS DILUÍDOS CM-30 | C52: Pernambuco | D52: -
A53: 2013-02-01 | B53: ASFALTOS DILUÍDOS CM-30 | C53: Piauí | D53: -
A54: 2013-02-01 | B54: ASFALTOS DILUÍDOS CM-30 | C54: Rio de Janeiro | D54: 1.418234901
A55: 2013-02-01 | B55: ASFALTOS DILUÍDOS CM-30 | C55: Rio Grande do Norte | D55: -
A56: 2013-02-01 | B56: ASFALTOS DILUÍDOS CM-30 | C56: Rio Grande do Sul | D56: 1.435861782
A57: 2013-02-01 | B57: ASFALTOS DILUÍDOS CM-30 | C57: Rondônia | D57: -
A58: 2013-02-01 | B58: ASFALTOS DILUÍDOS CM-30 | C58: Roraima | D58: -
A59: 2013-02-01 | B59: ASFALTOS DILUÍDOS CM-30 | C59: Santa Catarina | D59: -
A60: 2013-02-01 | B60: ASFALTOS DILUÍDOS CM-30 | C60: São Paulo | D60: 1.434190204
A61: 2013-02-01 | B61: ASFALTOS DILUÍDOS CM-30 | C61: Sergipe | D61: -
A62: 2013-02-01 | B62: ASFALTOS DILUÍDOS CM-30 | C62: Tocantins | D62: -
A63: 2013-03-01 | B63: ASFALTOS DILUÍDOS CM-30 | C63: Acre | D63: -
A64: 2013-03-01 | B64: ASFALTOS DILUÍDOS CM-30 | C64: Alagoas | D64: -
A65: 2013-03-01 | B65: ASFALTOS DILUÍDOS CM-30 | C65: Amapá | D65: -
A66: 2013-03-01 | B66: ASFALTOS DILUÍDOS CM-30 | C66: Amazonas | D66: 1.507923921
A67: 2013-03-01 | B67: ASFALTOS DILUÍDOS CM-30 | C67: Bahia | D67: 1.449440325
A68: 2013-03-01 | B68: ASFALTOS DILUÍDOS CM-30 | C68: Ceará | D68: 1.401607485
A69: 2013-03-01 | B69: ASFALTOS DILUÍDOS CM-30 | C69: Distrito Federal | D69: -
A70: 2013-03-01 | B70: ASFALTOS DILUÍDOS CM-30 | C70: Espírito Santo | D70: -
A71: 2013-03-01 | B71: ASFALTOS DILUÍDOS CM-30 | C71: Goiás | D71: 1.661758701
A72: 2013-03-01 | B72: ASFALTOS DILUÍDOS CM-30 | C72: Maranhão | D72: -
A73: 2013-03-01 | B73: ASFALTOS DILUÍDOS CM-30 | C73: Mato Grosso | D73: -
A74: 2013-03-01 | B74: ASFALTOS DILUÍDOS CM-30 | C74: Mato Grosso do Sul | D74: -
A75: 2013-03-01 | B75: ASFALTOS DILUÍDOS CM-30 | C75: Minas Gerais | D75: 1.44324333
A76: 2013-03-01 | B76: ASFALTOS DILUÍDOS CM-30 | C76: Pará | D76: -
A77: 2013-03-01 | B77: ASFALTOS DILUÍDOS CM-30 | C77: Paraíba | D77: -
A78: 2013-03-01 | B78: ASFALTOS DILUÍDOS CM-30 | C78: Paraná | D78: 1.468995996
A79: 2013-03-01 | B79: ASFALTOS DILUÍDOS CM-30 | C79: Pernambuco | D79: -
A80: 2013-03-01 | B80: ASFALTOS DILUÍDOS CM-30 | C80: Piauí | D80: -
A81: 2013-03-01 | B81: ASFALTOS DILUÍDOS CM-30 | C81: Rio de Janeiro | D81: 1.438055574
A82: 2013-03-01 | B82: ASFALTOS DILUÍDOS CM-30 | C82: Rio Grande do Norte | D82: -
A83: 2013-03-01 | B83: ASFALTOS DILUÍDOS CM-30 | C83: Rio Grande do Sul | D83: 1.581425878
A84: 2013-03-01 | B84: ASFALTOS DILUÍDOS CM-30 | C84: Rondônia | D84: -
A85: 2013-03-01 | B85: ASFALTOS DILUÍDOS CM-30 | C85: Roraima | D85: -
A86: 2013-03-01 | B86: ASFALTOS DILUÍDOS CM-30 | C86: Santa Catarina | D86: -
A87: 2013-03-01 | B87: ASFALTOS DILUÍDOS CM-30 | C87: São Paulo | D87: 1.466061702
A88: 2013-03-01 | B88: ASFALTOS DILUÍDOS CM-30 | C88: Sergipe | D88: -
A89: 2013-03-01 | B89: ASFALTOS DILUÍDOS CM-30 | C89: Tocantins | D89: -
A90: 2013-04-01 | B90: ASFALTOS DILUÍDOS CM-30 | C90: Acre | D90: -
A91: 2013-04-01 | B91: ASFALTOS DILUÍDOS CM-30 | C91: Alagoas | D91: -
A92: 2013-04-01 | B92: ASFALTOS DILUÍDOS CM-30 | C92: Amapá | D92: -
A93: 2013-04-01 | B93: ASFALTOS DILUÍDOS CM-30 | C93: Amazonas | D93: 1.484796656
A94: 2013-04-01 | B94: ASFALTOS DILUÍDOS CM-30 | C94: Bahia | D94: 1.454836546
A95: 2013-04-01 | B95: ASFALTOS DILUÍDOS CM-30 | C95: Ceará | D95: 1.387073962
A96: 2013-04-01 | B96: ASFALTOS DILUÍDOS CM-30 | C96: Distrito Federal | D96: -
A97: 2013-04-01 | B97: ASFALTOS DILUÍDOS CM-30 | C97: Espírito Santo | D97: -
A98: 2013-04-01 | B98: ASFALTOS DILUÍDOS CM-30 | C98: Goiás | D98: 1.673481836
A99: 2013-04-01 | B99: ASFALTOS DILUÍDOS CM-30 | C99: Maranhão | D99: -
A100: 2013-04-01 | B100: ASFALTOS DILUÍDOS CM-30 | C100: Mato Grosso | D100: 1.921938422
A101: 2013-04-01 | B101: ASFALTOS DILUÍDOS CM-30 | C101: Mato Grosso do Sul | D101: -
A102: 2013-04-01 | B102: ASFALTOS DILUÍDOS CM-30 | C102: Minas Gerais | D102: 1.456556683
A103: 2013-04-01 | B103: ASFALTOS DILUÍDOS CM-30 | C103: Pará | D103: -
A104: 2013-04-01 | B104: ASFALTOS DILUÍDOS CM-30 | C104: Paraíba | D104: -
A105: 2013-04-01 | B105: ASFALTOS DILUÍDOS CM-30 | C105: Paraná | D105: 1.534419498
A106: 2013-04-01 | B106: ASFALTOS DILUÍDOS CM-30 | C106: Pernambuco | D106: -
A107: 2013-04-01 | B107: ASFALTOS DILUÍDOS CM-30 | C107: Piauí | D107: -
A108: 2013-04-01 | B108: ASFALTOS DILUÍDOS CM-30 | C108: Rio de Janeiro | D108: 1.418419516
A109: 2013-04-01 | B109: ASFALTOS DILUÍDOS CM-30 | C109: Rio Grande do Norte | D109: -
A110: 2013-04-01 | B110: ASFALTOS DILUÍDOS CM-30 | C110: Rio Grande do Sul | D110: 1.572582456
A111: 2013-04-01 | B111: ASFALTOS DILUÍDOS CM-30 | C111: Rondônia | D111: -
A112: 2013-04-01 | B112: ASFALTOS DILUÍDOS CM-30 | C112: Roraima | D112: -
A113: 2013-04-01 | B113: ASFALTOS DILUÍDOS CM-30 | C113: Santa Catarina | D113: -
A114: 2013-04-01 | B114: ASFALTOS DILUÍDOS CM-30 | C114: São Paulo | D114: 1.475764348
A115: 2013-04-01 | B115: ASFALTOS DILUÍDOS CM-30 | C115: Sergipe | D115: -
A116: 2013-04-01 | B116: ASFALTOS DILUÍDOS CM-30 | C116: Tocantins | D116: -
A117: 2013-05-01 | B117: ASFALTOS DILUÍDOS CM-30 | C117: Acre | D117: -
A118: 2013-05-01 | B118: ASFALTOS DILUÍDOS CM-30 | C118: Alagoas | D118: -
A119: 2013-05-01 | B119: ASFALTOS DILUÍDOS CM-30 | C119: Amapá | D119: -
A120: 2013-05-01 | B120: ASFALTOS DILUÍDOS CM-30 | C120: Amazonas | D120: -
A121: 2013-05-01 | B121: ASFALTOS DILUÍDOS CM-30 | C121: Bahia | D121: 1.492587424
A122: 2013-05-01 | B122: ASFALTOS DILUÍDOS CM-30 | C122: Ceará | D122: 1.376263021
A123: 2013-05-01 | B123: ASFALTOS DILUÍDOS CM-30 | C123: Distrito Federal | D123: -
A124: 2013-05-01 | B124: ASFALTOS DILUÍDOS CM-30 | C124: Espírito Santo | D124: -
A125: 2013-05-01 | B125: ASFALTOS DILUÍDOS CM-30 | C125: Goiás | D125: 1.668214819
A126: 2013-05-01 | B126: ASFALTOS DILUÍDOS CM-30 | C126: Maranhão | D126: -
A127: 2013-05-01 | B127: ASFALTOS DILUÍDOS CM-30 | C127: Mato Grosso | D127: 1.903098159
A128: 2013-05-01 | B128: ASFALTOS DILUÍDOS CM-30 | C128: Mato Grosso do Sul | D128: -
A129: 2013-05-01 | B129: ASFALTOS DILUÍDOS CM-30 | C129: Minas Gerais | D129: 1.464709716
A130: 2013-05-01 | B130: ASFALTOS DILUÍDOS CM-30 | C130: Pará | D130: -
A131: 2013-05-01 | B131: ASFALTOS DILUÍDOS CM-30 | C131: Paraíba | D131: -
A132: 2013-05-01 | B132: ASFALTOS DILUÍDOS CM-30 | C132: Paraná | D132: 1.489027849
A133: 2013-05-01 | B133: ASFALTOS DILUÍDOS CM-30 | C133: Pernambuco | D133: -
A134: 2013-05-01 | B134: ASFALTOS DILUÍDOS CM-30 | C134: Piauí | D134: -
A135: 2013-05-01 | B135: ASFALTOS DILUÍDOS CM-30 | C135: Rio de Janeiro | D135: 1.399256048
A136: 2013-05-01 | B136: ASFALTOS DILUÍDOS CM-30 | C136: Rio Grande do Norte | D136: -
A137: 2013-05-01 | B137: ASFALTOS DILUÍDOS CM-30 | C137: Rio Grande do Sul | D137: 1.539636961
A138: 2013-05-01 | B138: ASFALTOS DILUÍDOS CM-30 | C138: Rondônia | D138: -
A139: 2013-05-01 | B139: ASFALTOS DILUÍDOS CM-30 | C139: Roraima | D139: -
A140: 2013-05-01 | B140: ASFALTOS DILUÍDOS CM-30 | C140: Santa Catarina | D140: -
A141: 2013-05-01 | B141: ASFALTOS DILUÍDOS CM-30 | C141: São Paulo | D141: 1.451215936
A142: 2013-05-01 | B142: ASFALTOS DILUÍDOS CM-30 | C142: Sergipe | D142: -
A143: 2013-05-01 | B143: ASFALTOS DILUÍDOS CM-30 | C143: Tocantins | D143: -
A144: 2013-06-01 | B144: ASFALTOS DILUÍDOS CM-30 | C144: Acre | D144: -
A145: 2013-06-01 | B145: ASFALTOS DILUÍDOS CM-30 | C145: Alagoas | D145: -
A146: 2013-06-01 | B146: ASFALTOS DILUÍDOS CM-30 | C146: Amapá | D146: -
A147: 2013-06-01 | B147: ASFALTOS DILUÍDOS CM-30 | C147: Amazonas | D147: 1.586325818
A148: 2013-06-01 | B148: ASFALTOS DILUÍDOS CM-30 | C148: Bahia | D148: 1.44812907
A149: 2013-06-01 | B149: ASFALTOS DILUÍDOS CM-30 | C149: Ceará | D149: 1.382700989
A150: 2013-06-01 | B150: ASFALTOS DILUÍDOS CM-30 | C150: Distrito Federal | D150: -
A151: 2013-06-01 | B151: ASFALTOS DILUÍDOS CM-30 | C151: Espírito Santo | D151: -
A152: 2013-06-01 | B152: ASFALTOS DILUÍDOS CM-30 | C152: Goiás | D152: 1.699613867
A153: 2013-06-01 | B153: ASFALTOS DILUÍDOS CM-30 | C153: Maranhão | D153: -
A154: 2013-06-01 | B154: ASFALTOS DILUÍDOS CM-30 | C154: Mato Grosso | D154: 1.915975658
A155: 2013-06-01 | B155: ASFALTOS DILUÍDOS CM-30 | C155: Mato Grosso do Sul | D155: -
A156: 2013-06-01 | B156: ASFALTOS DILUÍDOS CM-30 | C156: Minas Gerais | D156: 1.475366896
A157: 2013-06-01 | B157: ASFALTOS DILUÍDOS CM-30 | C157: Pará | D157: -
A158: 2013-06-01 | B158: ASFALTOS DILUÍDOS CM-30 | C158: Paraíba | D158: -
A159: 2013-06-01 | B159: ASFALTOS DILUÍDOS CM-30 | C159: Paraná | D159: 1.432166974
A160: 2013-06-01 | B160: ASFALTOS DILUÍDOS CM-30 | C160: Pernambuco | D160: -
A161: 2013-06-01 | B161: ASFALTOS DILUÍDOS CM-30 | C161: Piauí | D161: -
A162: 2013-06-01 | B162: ASFALTOS DILUÍDOS CM-30 | C162: Rio de Janeiro | D162: 1.527420226
A163: 2013-06-01 | B163: ASFALTOS DILUÍDOS CM-30 | C163: Rio Grande do Norte | D163: -
A164: 2013-06-01 | B164: ASFALTOS DILUÍDOS CM-30 | C164: Rio Grande do Sul | D164: 1.59868349
A165: 2013-06-01 | B165: ASFALTOS DILUÍDOS CM-30 | C165: Rondônia | D165: -
A166: 2013-06-01 | B166: ASFALTOS DILUÍDOS CM-30 | C166: Roraima | D166: -
A167: 2013-06-01 | B167: ASFALTOS DILUÍDOS CM-30 | C167: Santa Catarina | D167: -
A168: 2013-06-01 | B168: ASFALTOS DILUÍDOS CM-30 | C168: São Paulo | D168: 1.432748187
A169: 2013-06-01 | B169: ASFALTOS DILUÍDOS CM-30 | C169: Sergipe | D169: -
A170: 2013-06-01 | B170: ASFALTOS DILUÍDOS CM-30 | C170: Tocantins | D170: -
A171: 2013-07-01 | B171: ASFALTOS DILUÍDOS CM-30 | C171: Acre | D171: -
A172: 2013-07-01 | B172: ASFALTOS DILUÍDOS CM-30 | C172: Alagoas | D172: -
A173: 2013-07-01 | B173: ASFALTOS DILUÍDOS CM-30 | C173: Amapá | D173: -
A174: 2013-07-01 | B174: ASFALTOS DILUÍDOS CM-30 | C174: Amazonas | D174: 1.509890931
A175: 2013-07-01 | B175: ASFALTOS DILUÍDOS CM-30 | C175: Bahia | D175: 1.436150016
A176: 2013-07-01 | B176: ASFALTOS DILUÍDOS CM-30 | C176: Ceará | D176: 1.424835845
A177: 2013-07-01 | B177: ASFALTOS DILUÍDOS CM-30 | C177: Distrito Federal | D177: -
A178: 2013-07-01 | B178: ASFALTOS DILUÍDOS CM-30 | C178: Espírito Santo | D178: -
A179: 2013-07-01 | B179: ASFALTOS DILUÍDOS CM-30 | C179: Goiás | D179: 1.663778454
A180: 2013-07-01 | B180: ASFALTOS DILUÍDOS CM-30 | C180: Maranhão | D180: -
A181: 2013-07-01 | B181: ASFALTOS DILUÍDOS CM-30 | C181: Mato Grosso | D181: 1.930589551
A182: 2013-07-01 | B182: ASFALTOS DILUÍDOS CM-30 | C182: Mato Grosso do Sul | D182: -
A183: 2013-07-01 | B183: ASFALTOS DILUÍDOS CM-30 | C183: Minas Gerais | D183: 1.476572352
A184: 2013-07-01 | B184: ASFALTOS DILUÍDOS CM-30 | C184: Pará | D184: -
A185: 2013-07-01 | B185: ASFALTOS DILUÍDOS CM-30 | C185: Paraíba | D185: -
A186: 2013-07-01 | B186: ASFALTOS DILUÍDOS CM-30 | C186: Paraná | D186: 1.477167274
A187: 2013-07-01 | B187: ASFALTOS DILUÍDOS CM-30 | C187: Pernambuco | D187: -
A188: 2013-07-01 | B188: ASFALTOS DILUÍDOS CM-30 | C188: Piauí | D188: -
A189: 2013-07-01 | B189: ASFALTOS DILUÍDOS CM-30 | C189: Rio de Janeiro | D189: 1.584464713
A190: 2013-07-01 | B190: ASFALTOS DILUÍDOS CM-30 | C190: Rio Grande do Norte | D190: -
A191: 2013-07-01 | B191: ASFALTOS DILUÍDOS CM-30 | C191: Rio Grande do Sul | D191: 1.612487925
A192: 2013-07-01 | B192: ASFALTOS DILUÍDOS CM-30 | C192: Rondônia | D192: -
A193: 2013-07-01 | B193: ASFALTOS DILUÍDOS CM-30 | C193: Roraima | D193: -
A194: 2013-07-01 | B194: ASFALTOS DILUÍDOS CM-30 | C194: Santa Catarina | D194: -
A195: 2013-07-01 | B195: ASFALTOS DILUÍDOS CM-30 | C195: São Paulo | D195: 1.507844909
A196: 2013-07-01 | B196: ASFALTOS DILUÍDOS CM-30 | C196: Sergipe | D196: -
A197: 2013-07-01 | B197: ASFALTOS DILUÍDOS CM-30 | C197: Tocantins | D197: -
A198: 2013-08-01 | B198: ASFALTOS DILUÍDOS CM-30 | C198: Acre | D198: -
A199: 2013-08-01 | B199: ASFALTOS DILUÍDOS CM-30 | C199: Alagoas | D199: -
A200: 2013-08-01 | B200: ASFALTOS DILUÍDOS CM-30 | C200: Amapá | D200: -
A201: 2013-08-01 | B201: ASFALTOS DILUÍDOS CM-30 | C201: Amazonas | D201: 1.509275641
A202: 2013-08-01 | B202: ASFALTOS DILUÍDOS CM-30 | C202: Bahia | D202: 1.416699323
A203: 2013-08-01 | B203: ASFALTOS DILUÍDOS CM-30 | C203: Ceará | D203: 1.447403364
... 4297 more rows

Sheet ANP REGIÃO
A1: Agência Nacional do Petróleo, Gás Natural e Biocombustíveis
A2: Superintendência de Defesa da Concorrência
A6: PREÇO MÉDIO MENSAL PONDERADO PRATICADO PELOS DISTRIBUIDORES DE PRODUTOS ASFÁLTICOS (R$/KG)
A8: Produto | B8: Mês | C8: Norte | D8: Nordeste | E8: Centro-Oeste | F8: Sudeste | G8: Sul | H8: Brasil
A9: ASFALTOS DILUÍDOS CM-30 | B9: 2008-11-01 | C9: 1.775468292 | D9: 1.55087853 | E9: 2.022143291 | F9: 1.55449367 | G9: 1.584532899 | H9: 1.64286837
A10: ASFALTOS DILUÍDOS CM-30 | B10: 2008-12-01 | C10: 1.806837667 | D10: 1.509118192 | E10: 2.013020124 | F10: 1.610902223 | G10: 1.607187591 | H10: 1.637581471
A11: ASFALTOS DILUÍDOS CM-30 | B11: 2009-01-01 | C11: 1.497052858 | D11: 1.504296346 | E11: 1.963097671 | F11: 1.524672247 | G11: 1.585137209 | H11: 1.564945876
A12: ASFALTOS DILUÍDOS CM-30 | B12: 2009-02-01 | C12: 1.42787112 | D12: 1.497693283 | E12: 1.981065098 | F12: 1.583490231 | G12: 1.595924062 | H12: 1.565451036
A13: ASFALTOS DILUÍDOS CM-30 | B13: 2009-03-01 | C13: 1.404941405 | D13: 1.497647987 | E13: 1.893430263 | F13: 1.52754782 | G13: 1.588720029 | H13: 1.532713147
A14: ASFALTOS DILUÍDOS CM-30 | B14: 2009-04-01 | C14: 1.410510748 | D14: 1.484826261 | E14: 1.909226429 | F14: 1.464149371 | G14: 1.553831928 | H14: 1.516717648
A15: ASFALTOS DILUÍDOS CM-30 | B15: 2009-05-01 | C15: 1.480355678 | D15: 1.466898928 | E15: 1.891590435 | F15: 1.435443718 | G15: 1.54161118 | H15: 1.537574371
A16: ASFALTOS DILUÍDOS CM-30 | B16: 2009-06-01 | C16: 1.580751039 | D16: 1.444888837 | E16: 1.842074119 | F16: 1.424264315 | G16: 1.501526696 | H16: 1.541315575
A17: ASFALTOS DILUÍDOS CM-30 | B17: 2009-07-01 | C17: 1.905432476 | D17: 1.482618211 | E17: 1.949046345 | F17: 1.584435299 | G17: 1.610310436 | H17: 1.651032523
A18: ASFALTOS DILUÍDOS CM-30 | B18: 2009-08-01 | C18: 1.716995184 | D18: 1.423854915 | E18: 1.712385478 | F18: 1.418000805 | G18: 1.520643497 | H18: 1.504911469
A19: ASFALTOS DILUÍDOS CM-30 | B19: 2009-09-01 | C19: 1.64329494 | D19: 1.445317761 | E19: 1.731518803 | F19: 1.419374251 | G19: 1.500735895 | H19: 1.50552312
A20: ASFALTOS DILUÍDOS CM-30 | B20: 2009-10-01 | C20: 1.588031924 | D20: 1.458932649 | E20: 1.762015056 | F20: 1.429024419 | G20: 1.513753831 | H20: 1.511681904
A21: ASFALTOS DILUÍDOS CM-30 | B21: 2009-11-01 | C21: 1.639348604 | D21: 1.449059777 | E21: 1.772650817 | F21: 1.434122677 | G21: 1.526043188 | H21: 1.499657392
A22: ASFALTOS DILUÍDOS CM-30 | B22: 2009-12-01 | C22: 1.664266853 | D22: 1.441966636 | E22: 1.890574802 | F22: 1.429077727 | G22: 1.520539334 | H22: 1.508864598
A23: ASFALTOS DILUÍDOS CM-30 | B23: 2010-01-01 | C23: 1.842506144 | D23: 1.454977129 | E23: 1.865022447 | F23: 1.414817608 | G23: 1.474450765 | H23: 1.497735227
A24: ASFALTOS DILUÍDOS CM-30 | B24: 2010-02-01 | C24: 1.709886915 | D24: 1.442956487 | E24: 1.919844741 | F24: 1.433146251 | G24: 1.500882448 | H24: 1.496542251
A25: ASFALTOS DILUÍDOS CM-30 | B25: 2010-03-01 | C25: 1.535743416 | D25: 1.448880499 | E25: 1.935062728 | F25: 1.435026116 | G25: 1.480618635 | H25: 1.486789802
A26: ASFALTOS DILUÍDOS CM-30 | B26: 2010-04-01 | C26: 1.710046479 | D26: 1.440300254 | E26: 1.911935961 | F26: 1.421102153 | G26: 1.481270937 | H26: 1.511086431
A27: ASFALTOS DILUÍDOS CM-30 | B27: 2010-05-01 | C27: 1.755610465 | D27: 1.435277221 | E27: 1.873293889 | F27: 1.406944432 | G27: 1.48177605 | H27: 1.537170565
A28: ASFALTOS DILUÍDOS CM-30 | B28: 2010-06-01 | C28: 1.602224314 | D28: 1.396004336 | E28: 1.731734721 | F28: 1.399996227 | G28: 1.49193962 | H28: 1.498073418
A29: ASFALTOS DILUÍDOS CM-30 | B29: 2010-07-01 | C29: 1.559901627 | D29: 1.381016708 | E29: 1.732688214 | F29: 1.402904856 | G29: 1.473854427 | H29: 1.490075269
A30: ASFALTOS DILUÍDOS CM-30 | B30: 2010-08-01 | C30: 1.526639389 | D30: 1.38817836 | E30: 1.738946087 | F30: 1.398751236 | G30: 1.455749849 | H30: 1.495828516
A31: ASFALTOS DILUÍDOS CM-30 | B31: 2010-09-01 | C31: 1.565378829 | D31: 1.408204664 | E31: 1.757027378 | F31: 1.411642875 | G31: 1.487257745 | H31: 1.512257128
A32: ASFALTOS DILUÍDOS CM-30 | B32: 2010-10-01 | C32: 1.481711294 | D32: 1.404357715 | E32: 1.751159947 | F32: 1.403489437 | G32: 1.469340847 | H32: 1.49988826
A33: ASFALTOS DILUÍDOS CM-30 | B33: 2010-11-01 | C33: 1.519267672 | D33: 1.410130904 | E33: 1.779405625 | F33: 1.421283822 | G33: 1.458559112 | H33: 1.481658635
A34: ASFALTOS DILUÍDOS CM-30 | B34: 2010-12-01 | C34: 1.559287556 | D34: 1.40982051 | E34: 1.825185618 | F34: 1.417673572 | G34: 1.473243884 | H34: 1.469113031
A35: ASFALTOS DILUÍDOS CM-30 | B35: 2011-01-01 | C35: 1.525923305 | D35: 1.445794092 | E35: 1.774600924 | F35: 1.403274235 | G35: 1.466002814 | H35: 1.457256066
A36: ASFALTOS DILUÍDOS CM-30 | B36: 2011-02-01 | C36: 1.552825112 | D36: 1.392094259 | E36: 1.763836123 | F36: 1.385194937 | G36: 1.44955884 | H36: 1.426250478
A37: ASFALTOS DILUÍDOS CM-30 | B37: 2011-03-01 | C37: 1.469219693 | D37: 1.369442916 | E37: 1.696017922 | F37: 1.353812804 | G37: 1.435170694 | H37: 1.400130249
A38: ASFALTOS DILUÍDOS CM-30 | B38: 2011-04-01 | C38: 1.470570262 | D38: 1.373220492 | E38: 1.650829394 | F38: 1.345928103 | G38: 1.42199894 | H38: 1.400493522
A39: ASFALTOS DILUÍDOS CM-30 | B39: 2011-05-01 | C39: 1.428528955 | D39: 1.322646267 | E39: 1.700380913 | F39: 1.345068163 | G39: 1.439361431 | H39: 1.428058019
A40: ASFALTOS DILUÍDOS CM-30 | B40: 2011-06-01 | C40: 1.407622163 | D40: 1.305708657 | E40: 1.741843669 | F40: 1.354620495 | G40: 1.399501693 | H40: 1.44029982
A41: ASFALTOS DILUÍDOS CM-30 | B41: 2011-07-01 | C41: 1.259234065 | D41: 1.312033305 | E41: 1.737489696 | F41: 1.33656388 | G41: 1.422474887 | H41: 1.420839252
A42: ASFALTOS DILUÍDOS CM-30 | B42: 2011-08-01 | C42: 1.470680061 | D42: 1.299778765 | E42: 1.727443485 | F42: 1.341477821 | G42: 1.353018352 | H42: 1.425675534
A43: ASFALTOS DILUÍDOS CM-30 | B43: 2011-09-01 | C43: 1.56132872 | D43: 1.321196084 | E43: 1.729821548 | F43: 1.357451483 | G43: 1.395684798 | H43: 1.455202413
A44: ASFALTOS DILUÍDOS CM-30 | B44: 2011-10-01 | C44: 1.520569722 | D44: 1.326218736 | E44: 1.71738046 | F44: 1.332691392 | G44: 1.3577774 | H44: 1.442295871
A45: ASFALTOS DILUÍDOS CM-30 | B45: 2011-11-01 | C45: 1.465886334 | D45: 1.337041154 | E45: 1.741004886 | F45: 1.345486103 | G45: 1.447580565 | H45: 1.445354137
A46: ASFALTOS DILUÍDOS CM-30 | B46: 2011-12-01 | C46: 1.470883899 | D46: 1.335587636 | E46: 1.778724141 | F46: 1.408293068 | G46: 1.428112306 | H46: 1.422418604
A47: ASFALTOS DILUÍDOS CM-30 | B47: 2012-01-01 | C47: 1.384955015 | D47: 1.350130156 | E47: 1.780783883 | F47: 1.421354107 | G47: 1.430352474 | H47: 1.394658167
A48: ASFALTOS DILUÍDOS CM-30 | B48: 2012-02-01 | C48: 1.332181678 | D48: 1.368143891 | E48: 1.741020394 | F48: 1.400200985 | G48: 1.425400986 | H48: 1.410605707
A49: ASFALTOS DILUÍDOS CM-30 | B49: 2012-03-01 | C49: 1.411621867 | D49: 1.349122214 | E49: 1.620096006 | F49: 1.393295764 | G49: 1.406130569 | H49: 1.409768786
A50: ASFALTOS DILUÍDOS CM-30 | B50: 2012-04-01 | C50: 1.549007912 | D50: 1.383976456 | E50: 1.640712752 | F50: 1.404716397 | G50: 1.440617793 | H50: 1.45608482
A51: ASFALTOS DILUÍDOS CM-30 | B51: 2012-05-01 | C51: 1.596178941 | D51: 1.386362272 | E51: 1.712061183 | F51: 1.39923955 | G51: 1.448350887 | H51: 1.498461969
A52: ASFALTOS DILUÍDOS CM-30 | B52: 2012-06-01 | C52: 1.701432576 | D52: 1.388053518 | E52: 1.740352007 | F52: 1.422118749 | G52: 1.449196072 | H52: 1.527722717
A53: ASFALTOS DILUÍDOS CM-30 | B53: 2012-07-01 | C53: 1.652026742 | D53: 1.39436857 | E53: 1.718644846 | F53: 1.439670261 | G53: 1.46187567 | H53: 1.523069159
A54: ASFALTOS DILUÍDOS CM-30 | B54: 2012-08-01 | C54: 1.689998835 | D54: 1.40333785 | E54: 1.741895041 | F54: 1.421723369 | G54: 1.445685799 | H54: 1.536533078
A55: ASFALTOS DILUÍDOS CM-30 | B55: 2012-09-01 | C55: 1.690177972 | D55: 1.421500003 | E55: 1.780920724 | F55: 1.445180432 | G55: 1.483645866 | H55: 1.549410653
A56: ASFALTOS DILUÍDOS CM-30 | B56: 2012-10-01 | C56: 1.574840342 | D56: 1.417066109 | E56: 1.794832036 | F56: 1.451304526 | G56: 1.482037109 | H56: 1.550631802
A57: ASFALTOS DILUÍDOS CM-30 | B57: 2012-11-01 | C57: 1.655163526 | D57: 1.455878748 | E57: 1.840129766 | F57: 1.461204615 | G57: 1.483499722 | H57: 1.552500776
A58: ASFALTOS DILUÍDOS CM-30 | B58: 2012-12-01 | C58: 1.714876125 | D58: 1.435854741 | E58: 1.804066573 | F58: 1.45222765 | G58: 1.509417648 | H58: 1.523411999
A59: ASFALTOS DILUÍDOS CM-30 | B59: 2013-01-01 | C59: 1.495776335 | D59: 1.449494588 | E59: 1.854050525 | F59: 1.44638752 | G59: 1.563753675 | H59: 1.502137259
A60: ASFALTOS DILUÍDOS CM-30 | B60: 2013-02-01 | C60: 1.635067666 | D60: 1.420609638 | E60: 1.731071498 | F60: 1.442746356 | G60: 1.461828405 | H60: 1.4739561
A61: ASFALTOS DILUÍDOS CM-30 | B61: 2013-03-01 | C61: 1.646229098 | D61: 1.413299983 | E61: 1.83828087 | F61: 1.450015152 | G61: 1.525760413 | H61: 1.506542904
A62: ASFALTOS DILUÍDOS CM-30 | B62: 2013-04-01 | C62: 1.581864474 | D62: 1.399189564 | E62: 1.793825113 | F62: 1.458704755 | G62: 1.551913702 | H62: 1.523623636
A63: ASFALTOS DILUÍDOS CM-30 | B63: 2013-05-01 | C63: 1.815646773 | D63: 1.390143517 | E63: 1.812783313 | F63: 1.44951052 | G63: 1.504233457 | H63: 1.549918592
A64: ASFALTOS DILUÍDOS CM-30 | B64: 2013-06-01 | C64: 1.631101583 | D64: 1.383186536 | E64: 1.816642105 | F64: 1.474232641 | G64: 1.503043689 | H64: 1.581049429
A65: ASFALTOS DILUÍDOS CM-30 | B65: 2013-07-01 | C65: 1.86596563 | D65: 1.422051117 | E65: 1.793072753 | F65: 1.498018808 | G65: 1.533391901 | H65: 1.59880513
A66: ASFALTOS DILUÍDOS CM-30 | B66: 2013-08-01 | C66: 1.700325546 | D66: 1.435094415 | E66: 1.821452614 | F66: 1.511722868 | G66: 1.530793596 | H66: 1.606176585
A67: ASFALTOS DILUÍDOS CM-30 | B67: 2013-09-01 | C67: 1.562873733 | D67: 1.472197748 | E67: 1.879842712 | F67: 1.542652867 | G67: 1.490667543 | H67: 1.627945893
A68: ASFALTOS DILUÍDOS CM-30 | B68: 2013-10-01 | C68: 1.648504013 | D68: 1.472152345 | E68: 1.825494997 | F68: 1.501177682 | G68: 1.48378912 | H68: 1.597538775
A69: ASFALTOS DILUÍDOS CM-30 | B69: 2013-11-01 | C69: 1.619179062 | D69: 1.486413317 | E69: 1.844012679 | F69: 1.496326809 | G69: 1.506096878 | H69: 1.581665844
A70: ASFALTOS DILUÍDOS CM-30 | B70: 2013-12-01 | C70: 1.633358293 | D70: 1.494818097 | E70: 1.897197176 | F70: 1.502864538 | G70: 1.517074296 | H70: 1.572475244
A71: ASFALTOS DILUÍDOS CM-30 | B71: 2014-01-01 | C71: 1.688311265 | D71: 1.494181305 | E71: 1.798355903 | F71: 1.484202293 | G71: 1.533353813 | H71: 1.542909737
A72: ASFALTOS DILUÍDOS CM-30 | B72: 2014-02-01 | C72: 1.598304434 | D72: 1.479706587 | E72: 1.814390215 | F72: 1.514829392 | G72: 1.522800588 | H72: 1.528970287
A73: ASFALTOS DILUÍDOS CM-30 | B73: 2014-03-01 | C73: 1.648287687 | D73: 1.472852501 | E73: 1.76657319 | F73: 1.513020673 | G73: 1.506185248 | H73: 1.530181178
A74: ASFALTOS DILUÍDOS CM-30 | B74: 2014-04-01 | C74: 1.534459987 | D74: 1.493898767 | E74: 1.757271278 | F74: 1.533021309 | G74: 1.524275274 | H74: 1.550566305
A75: ASFALTOS DILUÍDOS CM-30 | B75: 2014-05-01 | C75: 1.58658327 | D75: 1.490834685 | E75: 1.804339251 | F75: 1.501138131 | G75: 1.567043824 | H75: 1.586452272
A76: ASFALTOS DILUÍDOS CM-30 | B76: 2014-06-01 | C76: 1.658277164 | D76: 1.505801121 | E76: 1.839593445 | F76: 1.5068632 | G76: 1.523776953 | H76: 1.636070702
A77: ASFALTOS DILUÍDOS CM-30 | B77: 2014-07-01 | C77: 1.890299542 | D77: 1.500730514 | E77: 1.708277865 | F77: 1.487293964 | G77: 1.505956069 | H77: 1.587065158
A78: ASFALTOS DILUÍDOS CM-30 | B78: 2014-08-01 | C78: 1.632741832 | D78: 1.501945324 | E78: 1.671203189 | F78: 1.482359341 | G78: 1.506327366 | H78: 1.557910377
A79: ASFALTOS DILUÍDOS CM-30 | B79: 2014-09-01 | C79: 1.66956717 | D79: 1.546830427 | E79: 1.864797016 | F79: 1.496764585 | G79: 1.570533242 | H79: 1.639281057
A80: ASFALTOS DILUÍDOS CM-30 | B80: 2014-10-01 | C80: 1.742876916 | D80: 1.508978569 | E80: 1.746650466 | F80: 1.470773645 | G80: 1.454273462 | H80: 1.57912022
A81: ASFALTOS DILUÍDOS CM-30 | B81: 2014-11-01 | C81: 1.864723419 | D81: 1.57943059 | E81: 1.749156218 | F81: 1.465084479 | G81: 1.529147988 | H81: 1.601359821
A82: ASFALTOS DILUÍDOS CM-30 | B82: 2014-12-01 | C82: 1.812671914 | D82: 1.704844348 | E82: 1.963310066 | F82: 1.623676702 | G82: 1.649644659 | H82: 1.718826981
A83: ASFALTOS DILUÍDOS CM-30 | B83: 2015-01-01 | C83: 2.154807062 | D83: 2.023760447 | E83: 2.318863736 | F83: 1.866588967 | G83: 1.898380434 | H83: 2.007792032
A84: ASFALTOS DILUÍDOS CM-30 | B84: 2015-02-01 | C84: 2.260238625 | D84: 2.005673765 | E84: 2.393875762 | F84: 1.854519766 | G84: 1.927395107 | H84: 2.007653781
A85: ASFALTOS DILUÍDOS CM-30 | B85: 2015-03-01 | C85: 2.124176462 | D85: 1.968822849 | E85: 2.279643254 | F85: 1.887760911 | G85: 1.930217145 | H85: 1.984816916
A86: ASFALTOS DILUÍDOS CM-30 | B86: 2015-04-01 | C86: 2.030049505 | D86: 2.001506448 | E86: 2.379118903 | F86: 1.85245167 | G86: 1.949025254 | H86: 1.98064321
A87: ASFALTOS DILUÍDOS CM-30 | B87: 2015-05-01 | C87: 2.507271651 | D87: 1.946869908 | E87: 2.254758192 | F87: 1.807470001 | G87: 2.016929536 | H87: 2.005474234
A88: ASFALTOS DILUÍDOS CM-30 | B88: 2015-06-01 | C88: 2.248320042 | D88: 1.944259736 | E88: 2.314331796 | F88: 1.846998595 | G88: 1.968565125 | H88: 2.042581344
A89: ASFALTOS DILUÍDOS CM-30 | B89: 2015-07-01 | C89: 1.992222758 | D89: 1.992791635 | E89: 2.046769953 | F89: 1.782648603 | G89: 1.931671385 | H89: 1.942627362
A90: ASFALTOS DILUÍDOS CM-30 | B90: 2015-08-01 | C90: 2.307605931 | D90: 2.038089127 | E90: 2.252748105 | F90: 1.828097705 | G90: 1.939824481 | H90: 2.08193616
A91: ASFALTOS DILUÍDOS CM-30 | B91: 2015-09-01 | C91: 2.314289704 | D91: 2.095307531 | E91: 2.344561987 | F91: 1.942551091 | G91: 2.005352614 | H91: 2.168175541
A92: ASFALTOS DILUÍDOS CM-30 | B92: 2015-10-01 | C92: 2.329456663 | D92: 2.170570012 | E92: 2.43273012 | F92: 2.035624751 | G92: 2.110261148 | H92: 2.237533782
A93: ASFALTOS DILUÍDOS CM-30 | B93: 2015-11-01 | C93: 2.606056566 | D93: 2.437098304 | E93: 2.711612141 | F93: 2.280113896 | G93: 2.326446297 | H93: 2.474998781
A94: ASFALTOS DILUÍDOS CM-30 | B94: 2015-12-01 | C94: 2.635374006 | D94: 2.395920309 | E94: 2.693528386 | F94: 2.272528129 | G94: 2.330740659 | H94: 2.452848156
A95: ASFALTOS DILUÍDOS CM-30 | B95: 2016-01-01 | C95: 2.715863993 | D95: 2.373861647 | E95: 2.844670602 | F95: 2.263650658 | G95: 2.232631691 | H95: 2.400563394
A96: ASFALTOS DILUÍDOS CM-30 | B96: 2016-02-01 | C96: 2.80468316 | D96: 2.466846816 | E96: 2.791787007 | F96: 2.295637115 | G96: 2.346556173 | H96: 2.464348548
A97: ASFALTOS DILUÍDOS CM-30 | B97: 2016-03-01 | C97: 2.5805021 | D97: 2.470678753 | E97: 2.707688025 | F97: 2.235301999 | G97: 2.383115972 | H97: 2.423563924
A98: ASFALTOS DILUÍDOS CM-30 | B98: 2016-04-01 | C98: 2.942006312 | D98: 2.740742032 | E98: 2.759071855 | F98: 2.544439178 | G98: 2.710751632 | H98: 2.680274833
A99: ASFALTOS DILUÍDOS CM-30 | B99: 2016-05-01 | C99: 3.010579472 | D99: 2.650277047 | E99: 2.857121361 | F99: 2.575583152 | G99: 2.770413362 | H99: 2.70973327
A100: ASFALTOS DILUÍDOS CM-30 | B100: 2016-06-01 | C100: 2.909179844 | D100: 2.621385041 | E100: 2.943487281 | F100: 2.659109515 | G100: 2.684759555 | H100: 2.743619517
A101: ASFALTOS DILUÍDOS CM-30 | B101: 2016-07-01 | C101: 2.985740381 | D101: 2.591644045 | E101: 2.98927803 | F101: 2.604396599 | G101: 2.660884423 | H101: 2.745135539
A102: ASFALTOS DILUÍDOS CM-30 | B102: 2016-08-01 | C102: 2.935243919 | D102: 2.623917329 | E102: 2.970490854 | F102: 2.679486504 | G102: 2.727025649 | H102: 2.781385962
A103: ASFALTOS DILUÍDOS CM-30 | B103: 2016-09-01 | C103: 2.649136821 | D103: 2.521054851 | E103: 2.781583925 | F103: 2.51393313 | G103: 2.371271501 | H103: 2.595617128
A104: ASFALTOS DILUÍDOS CM-30 | B104: 2016-10-01 | C104: 2.626109257 | D104: 2.444469093 | E104: 2.781617873 | F104: 2.507383127 | G104: 2.38325399 | H104: 2.566999037
A105: ASFALTOS DILUÍDOS CM-30 | B105: 2016-11-01 | C105: 2.535087408 | D105: 2.374145527 | E105: 2.952768674 | F105: 2.481263765 | G105: 2.382206771 | H105: 2.542842366
A106: ASFALTOS DILUÍDOS CM-30 | B106: 2016-12-01 | C106: 2.50039107 | D106: 2.253413483 | E106: 3.038519458 | F106: 2.589438892 | G106: 2.395593424 | H106: 2.476439295
A107: ASFALTOS DILUÍDOS CM-30 | B107: 2017-01-01 | C107: 2.392875504 | D107: 2.232695674 | E107: 3.089080971 | F107: 2.535744039 | G107: 2.378694833 | H107: 2.374216192
A108: ASFALTOS DILUÍDOS CM-30 | B108: 2017-02-01 | C108: 2.68039414 | D108: 2.271897225 | E108: 2.764408032 | F108: 2.573933685 | G108: 2.384644398 | H108: 2.470721466
A109: ASFALTOS DILUÍDOS CM-30 | B109: 2017-03-01 | C109: 2.23884121 | D109: 2.386958079 | E109: 2.667220252 | F109: 2.372165947 | G109: 2.30121887 | H109: 2.378796986
A110: ASFALTOS DILUÍDOS CM-30 | B110: 2017-04-01 | C110: 2.420191398 | D110: 2.307969596 | E110: 2.794093014 | F110: 2.258409912 | G110: 2.256434297 | H110: 2.380268484
A111: ASFALTOS DILUÍDOS CM-30 | B111: 2017-05-01 | C111: 2.432106692 | D111: 2.167919128 | E111: 2.699836936 | F111: 2.255387192 | G111: 2.204026958 | H111: 2.361515909
A112: ASFALTOS DILUÍDOS CM-30 | B112: 2017-06-01 | C112: 2.428301776 | D112: 2.181938689 | E112: 2.756672055 | F112: 2.234549022 | G112: 2.305778546 | H112: 2.44553453
A113: ASFALTOS DILUÍDOS CM-30 | B113: 2017-07-01 | C113: 2.453752061 | D113: 2.218075334 | E113: 2.694625022 | F113: 2.414329247 | G113: 2.269601102 | H113: 2.473436106
A114: ASFALTOS DILUÍDOS CM-30 | B114: 2017-08-01 | C114: 2.447930976 | D114: 2.153112031 | E114: 2.595349952 | F114: 2.302919065 | G114: 2.170148667 | H114: 2.380876423
A115: ASFALTOS DILUÍDOS CM-30 | B115: 2017-09-01 | C115: 2.494551504 | D115: 2.14243989 | E115: 2.623166503 | F115: 2.371308095 | G115: 2.303698507 | H115: 2.393542204
A116: ASFALTOS DILUÍDOS CM-30 | B116: 2017-10-01 | C116: 2.349953944 | D116: 2.18056004 | E116: 2.614160957 | F116: 2.415254962 | G116: 2.20079573 | H116: 2.367947121
A117: ASFALTOS DILUÍDOS CM-30 | B117: 2017-11-01 | C117: 2.670126991 | D117: 2.433169195 | E117: 2.908627464 | F117: 2.58469482 | G117: 2.415192709 | H117: 2.602101348
A118: ASFALTOS DILUÍDOS CM-30 | B118: 2017-12-01 | C118: 2.587352645 | D118: 2.425358882 | E118: 2.906633765 | F118: 2.602890298 | G118: 2.42288976 | H118: 2.531764464
A119: ASFALTOS DILUÍDOS CM-30 | B119: 2018-01-01 | C119: 2.950360755 | D119: 2.662862923 | E119: 2.875953993 | F119: 2.620738484 | G119: 2.646955252 | H119: 2.735956369
A120: ASFALTOS DILUÍDOS CM-30 | B120: 2018-02-01 | C120: 2.677899567 | D120: 2.672498164 | E120: 2.942595474 | F120: 2.62043113 | G120: 2.567885662 | H120: 2.668369933
A121: ASFALTOS DILUÍDOS CM-30 | B121: 2018-03-01 | C121: 2.733363025 | D121: 2.589050022 | E121: 2.809172556 | F121: 2.561928393 | G121: 2.575946067 | H121: 2.634876584
A122: ASFALTOS DILUÍDOS CM-30 | B122: 2018-04-01 | C122: 2.75780112 | D122: 2.669553602 | E122: 2.773908242 | F122: 2.59547006 | G122: 2.556042394 | H122: 2.6643302
A123: ASFALTOS DILUÍDOS CM-30 | B123: 2018-05-01 | C123: 2.841213362 | D123: 2.672025877 | E123: 2.884501482 | F123: 2.686718021 | G123: 2.736485103 | H123: 2.77737896
A124: ASFALTOS DILUÍDOS CM-30 | B124: 2018-06-01 | C124: 3.008444789 | D124: 2.919605178 | E124: 3.158454886 | F124: 2.84673108 | G124: 2.953523993 | H124: 2.982291635
A125: ASFALTOS DILUÍDOS CM-30 | B125: 2018-07-01 | C125: 3.268237549 | D125: 3.036524094 | E125: 3.399360399 | F125: 3.026467598 | G125: 3.19779631 | H125: 3.164126546
A126: ASFALTOS DILUÍDOS CM-30 | B126: 2018-08-01 | C126: 3.56441315 | D126: 3.415193769 | E126: 3.707706206 | F126: 3.425079349 | G126: 3.356722461 | H126: 3.515558112
A127: ASFALTOS DILUÍDOS CM-30 | B127: 2018-09-01 | C127: 3.173913778 | D127: 3.445064118 | E127: 3.73526324 | F127: 3.385816186 | G127: 3.607309454 | H127: 3.483238429
A128: ASFALTOS DILUÍDOS CM-30 | B128: 2018-10-01 | C128: 3.487778119 | D128: 3.460508804 | E128: 3.721444057 | F128: 3.432525565 | G128: 3.60602088 | H128: 3.545390344
A129: ASFALTOS DILUÍDOS CM-30 | B129: 2018-11-01 | C129: 4.047272484 | D129: 3.814893312 | E129: 4.280131586 | F129: 4.178126777 | G129: 3.967681367 | H129: 3.990147183
A130: ASFALTOS DILUÍDOS CM-30 | B130: 2018-12-01 | C130: 3.951491146 | D130: 3.967113195 | E130: 4.341144202 | F130: 3.916766066 | G130: 3.911993357 | H130: 3.999742654
A131: ASFALTOS DILUÍDOS CM-30 | B131: 2019-01-01 | C131: 3.796855325 | D131: 3.870018889 | E131: 4.201901762 | F131: 3.954196997 | G131: 3.976786028 | H131: 3.933951911
A132: ASFALTOS DILUÍDOS CM-30 | B132: 2019-02-01 | C132: 3.516584073 | D132: 4.090361178 | E132: 4.498422953 | F132: 4.469942475 | G132: 4.254590254 | H132: 4.188544679
A133: ASFALTOS DILUÍDOS CM-30 | B133: 2019-03-01 | C133: 4.216758117 | D133: 4.361910728 | E133: 4.907194889 | F133: 4.398717729 | G133: 4.290823922 | H133: 4.360295279
A134: ASFALTOS DILUÍDOS CM-30 | B134: 2019-04-01 | C134: 4.281648205 | D134: 4.234661428 | E134: 4.531627215 | F134: 4.43722653 | G134: 4.466881471 | H134: 4.38082044
A135: ASFALTOS DILUÍDOS CM-30 | B135: 2019-05-01 | C135: 4.287644659 | D135: 4.190699738 | E135: 4.857910872 | F135: 4.267461963 | G135: 4.633806379 | H135: 4.366402151
A136: ASFALTOS DILUÍDOS CM-30 | B136: 2019-06-01 | C136: 4.475609892 | D136: 3.965052934 | E136: 4.66272934 | F136: 4.350600604 | G136: 4.211229921 | H136: 4.319323669
A137: ASFALTOS DILUÍDOS CM-30 | B137: 2019-07-01 | C137: 4.394498989 | D137: 4.058039305 | E137: 4.834221945 | F137: 4.094659414 | G137: 4.233003281 | H137: 4.346977757
A138: ASFALTOS DILUÍDOS CM-30 | B138: 2019-08-01 | C138: 4.48173504 | D138: 3.910662496 | E138: 4.576329081 | F138: 4.11161654 | G138: 4.255419985 | H138: 4.258345083
A139: ASFALTOS DILUÍDOS CM-30 | B139: 2019-09-01 | C139: 4.439578796 | D139: 3.859904896 | E139: 4.495256968 | F139: 4.111321475 | G139: 4.117359152 | H139: 4.251607085
A140: ASFALTOS DILUÍDOS CM-30 | B140: 2019-10-01 | C140: 4.335888631 | D140: 3.772324962 | E140: 4.459242357 | F140: 4.056084115 | G140: 3.942458011 | H140: 4.07740702
A141: ASFALTOS DILUÍDOS CM-30 | B141: 2019-11-01 | C141: 4.316238692 | D141: 3.910245509 | E141: 4.581841077 | F141: 4.07902404 | G141: 4.106621274 | H141: 4.094561212
A142: ASFALTOS DILUÍDOS CM-30 | B142: 2019-12-01 | C142: 4.199435972 | D142: 3.980119663 | E142: 4.673774805 | F142: 4.434268142 | G142: 3.986410312 | H142: 4.164691616
A143: ASFALTOS DILUÍDOS CM-30 | B143: 2020-01-01 | C143: 3.59298003 | D143: 3.895320617 | E143: 4.685420623 | F143: 4.387074674 | G143: 4.124467668 | H143: 4.053338937
A144: ASFALTOS DILUÍDOS CM-30 | B144: 2020-02-01 | C144: 3.642667016 | D144: 3.877395187 | E144: 4.438194543 | F144: 3.699944607 | G144: 3.778164011 | H144: 3.839010438
A145: ASFALTOS DILUÍDOS CM-30 | B145: 2020-03-01 | C145: 4.676668339 | D145: 3.791138977 | E145: 4.289222343 | F145: 3.718402734 | G145: 3.60908619 | H145: 3.93117068
A146: ASFALTOS DILUÍDOS CM-30 | B146: 2020-04-01 | C146: 4.313362837 | D146: 3.6957655 | E146: 4.255395321 | F146: 3.865895531 | G146: 3.732253382 | H146: 3.964125211
A147: ASFALTOS DILUÍDOS CM-30 | B147: 2020-05-01 | C147: 3.249134658 | D147: 3.637769912 | E147: 4.113544882 | F147: 3.760550026 | G147: 3.710618099 | H147: 3.65617504
A148: ASFALTOS DILUÍDOS CM-30 | B148: 2020-06-01 | C148: 4.017903076 | D148: 3.567031492 | E148: 4.277369171 | F148: 3.937886485 | G148: 3.625830069 | H148: 3.924524506
A149: ASFALTOS DILUÍDOS CM-30 | B149: 2020-07-01 | C149: 3.840497509 | D149: 3.51327048 | E149: 4.21549069 | F149: 3.954223886 | G149: 3.688841275 | H149: 3.843774448
A150: ASFALTOS DILUÍDOS CM-30 | B150: 2020-08-01 | C150: 4.174467203 | D150: 3.465394219 | E150: 4.277710211 | F150: 4.06746494 | G150: 3.62858863 | H150: 3.947166917
A151: ASFALTOS DILUÍDOS CM-30 | B151: 2020-09-01 | C151: 4.167371331 | D151: 3.746360816 | E151: 4.167424356 | F151: 3.795621791 | G151: 3.627729935 | H151: 3.973129945
A152: ASFALTOS DILUÍDOS CM-30 | B152: 2020-10-01 | C152: 4.408099527 | D152: 3.718989878 | E152: 4.278979192 | F152: 4.008746906 | G152: 3.591048183 | H152: 4.03964377
A153: ASFALTOS DILUÍDOS CM-30 | B153: 2020-11-01 | C153: 4.056306006 | D153: 3.969209281 | E153: 4.547900893 | F153: 4.27945542 | G153: 3.973347244 | H153: 4.175826149
A154: ASFALTOS DILUÍDOS CM-30 | B154: 2020-12-01 | C154: 4.132064138 | D154: 3.851632751 | E154: 4.426704386 | F154: 3.906236422 | G154: 3.8709398 | H154: 4.035347374
A155: ASFALTOS DILUÍDOS CM-30 | B155: 2021-01-01 | C155: 3.489836333 | D155: 3.951525937 | E155: 4.628269702 | F155: 4.011577011 | G155: 3.935136638 | H155: 3.917092391
A156: ASFALTOS DILUÍDOS CM-30 | B156: 2021-02-01 | C156: 4.099318116 | D156: 4.267109523 | E156: 4.832061615 | F156: 4.414202706 | G156: 4.149048932 | H156: 4.26819704
A157: ASFALTOS DILUÍDOS CM-30 | B157: 2021-03-01 | C157: 4.528355792 | D157: 4.239831731 | E157: 4.926314562 | F157: 4.269697839 | G157: 4.130655409 | H157: 4.377833785
A158: ASFALTOS DILUÍDOS CM-30 | B158: 2021-04-01 | C158: 4.349271867 | D158: 4.086995154 | E158: 4.477597522 | F158: 4.156113398 | G158: 4.044189822 | H158: 4.253361798
A159: ASFALTOS DILUÍDOS CM-30 | B159: 2021-05-01 | C159: 4.488889413 | D159: 4.707945815 | E159: 5.101489686 | F159: 4.784034896 | G159: 4.523986615 | H159: 4.790548085
A160: ASFALTOS DILUÍDOS CM-30 | B160: 2021-06-01 | C160: 4.010467711 | D160: 4.479592126 | E160: 5.113041212 | F160: 4.779739905 | G160: 4.721214307 | H160: 4.764890884
A161: ASFALTOS DILUÍDOS CM-30 | B161: 2021-07-01 | C161: 4.752234128 | D161: 4.559350506 | E161: 5.004758283 | F161: 4.80272972 | G161: 4.748550678 | H161: 4.817586047
A162: ASFALTOS DILUÍDOS CM-30 | B162: 2021-08-01 | C162: 5.085284532 | D162: 4.772501255 | E162: 5.198537142 | F162: 5.244735259 | G162: 4.76131175 | H162: 5.0981692
A163: ASFALTOS DILUÍDOS CM-30 | B163: 2021-09-01 | C163: 5.110300267 | D163: 4.538072365 | E163: 5.241721185 | F163: 5.017144197 | G163: 4.862861245 | H163: 5.016958886
A164: ASFALTOS DILUÍDOS CM-30 | B164: 2021-10-01 | C164: 5.080697261 | D164: 4.66826742 | E164: 5.119544199 | F164: 5.384779065 | G164: 4.658516432 | H164: 5.021294312
A165: ASFALTOS DILUÍDOS CM-30 | B165: 2021-11-01 | C165: 5.436518753 | D165: 5.08776781 | E165: 5.150063985 | F165: 5.634257884 | G165: 5.174530131 | H165: 5.228141289
A166: ASFALTOS DILUÍDOS CM-30 | B166: 2021-12-01 | C166: 5.184291386 | D166: 4.975486975 | E166: 5.572122251 | F166: 6.135655205 | G166: 5.01180992 | H166: 5.339565801
A167: ASFALTOS DILUÍDOS CM-30 | B167: 2022-01-01 | C167: 4.928191974 | D167: 5.023555623 | E167: 6.018407512 | F167: 5.214773026 | G167: 5.481979244 | H167: 5.250789679
A168: ASFALTOS DILUÍDOS CM-30 | B168: 2022-02-01 | C168: 5.545684189 | D168: 5.708628413 | E168: 6.011065894 | F168: 4.8651 | G168: 5.763367147 | H168: 5.736057428
A169: ASFALTOS DILUÍDOS CM-30 | B169: 2022-03-01 | C169: 6.326844735 | D169: 5.644687904 | E169: 5.930807225 | F169: 6.181141143 | G169: 5.498041682 | H169: 5.922781038
A170: ASFALTOS DILUÍDOS CM-30 | B170: 2022-04-01 | C170: 5.974220681 | D170: 5.832747324 | E170: 6.206692615 | F170: 5.720329997 | G170: 6.17800291 | H170: 6.012354229
A171: ASFALTOS DILUÍDOS CM-30 | B171: 2022-05-01 | C171: 5.354015586 | D171: 5.464335309 | E171: 6.007611639 | F171: 5.995095583 | G171: 5.49095009 | H171: 5.670722744
A172: ASFALTOS DILUÍDOS CM-30 | B172: 2022-06-01 | C172: 5.802443798 | D172: 5.316964203 | E172: 5.25267889 | F172: 5.813931518 | G172: 5.644996328 | H172: 5.469498687
A173: ASFALTOS DILUÍDOS CM-30 | B173: 2022-07-01 | C173: 5.965614765 | D173: 5.829314879 | E173: 5.919099711 | F173: 5.742484775 | G173: 5.674430543 | H173: 5.862020702
A174: ASFALTOS DILUÍDOS CM-30 | B174: 2022-08-01 | C174: 6.424230463 | D174: 5.758256878 | E174: 5.752352843 | F174: 5.791905352 | G174: 5.31271724 | H174: 5.823186051
A175: ASFALTOS DILUÍDOS CM-30 | B175: 2022-09-01 | C175: 5.540097074 | D175: 5.609921619 | E175: 5.963592489 | F175: 5.302181194 | G175: 4.977929161 | H175: 5.699429921
A176: ASFALTOS DILUÍDOS CM-30 | B176: 2022-10-01 | C176: 4.785670999 | D176: 4.727521094 | E176: 5.339105147 | F176: 4.851160007 | G176: 4.532580513 | H176: 5.041661715
A177: ASFALTOS DILUÍDOS CM-30 | B177: 2022-11-01 | C177: 7.765855923 | D177: 4.775654982 | E177: 5.237626127 | F177: 4.636383138 | G177: 4.460593179 | H177: 5.074993862
A178: ASFALTOS DILUÍDOS CM-30 | B178: 2022-12-01 | C178: 4.65725 | D178: 4.966905362 | E178: 5.655161554 | F178: 4.840935672 | G178: 4.661007861 | H178: 5.11324949
A179: ASFALTOS DILUÍDOS CM-30 | B179: 2023-01-01 | C179: 4.948950319 | D179: 5.056264922 | E179: 5.359597966 | F179: 4.426497959 | G179: 4.103267888 | H179: 4.715605129
A180: ASFALTOS DILUÍDOS CM-30 | B180: 2023-02-01 | C180: 5.407494667 | D180: 4.335771195 | E180: 4.746646601 | F180: 4.674884727 | G180: 4.014547173 | H180: 4.417800736
A181: ASFALTOS DILUÍDOS CM-30 | B181: 2023-03-01 | C181: 4.99131 | D181: 4.01354912 | E181: 4.74625028 | F181: 4.08071937 | G181: 4.082484954 | H181: 4.270345723
A182: ASFALTOS DILUÍDOS CM-30 | B182: 2023-04-01 | C182: 4.438479015 | D182: 4.094201354 | E182: 5.135816186 | F182: 4.368265095 | G182: 3.859308149 | H182: 4.153818797
A183: ASFALTOS DILUÍDOS CM-30 | B183: 2023-05-01 | C183: 5.018589297 | D183: 4.506282643 | E183: 5.616638293 | F183: 4.034756925 | G183: 4.063701717 | H183: 4.686492725
A184: ASFALTOS DILUÍDOS CM-30 | B184: 2023-06-01 | C184: 4.439644526 | D184: 4.495805354 | E184: 5.228174524 | F184: 3.772028745 | G184: 4.009042073 | H184: 4.588045148
A185: ASFALTOS DILUÍDOS CM-30 | B185: 2023-07-01 | C185: 4.360399352 | D185: 4.250187634 | E185: 6.188049155 | F185: 3.699216781 | G185: 4.315773768 | H185: 4.790717553
A186: ASFALTOS DILUÍDOS CM-30 | B186: 2023-08-01 | C186: 4.043215999 | D186: 4.100901709 | E186: 5.414198228 | F186: 3.964297949 | G186: 4.055989778 | H186: 4.607810697
A187: ASFALTOS DILUÍDOS CM-70 | B187: 2008-11-01 | C187: *** | D187: *** | E187: *** | F187: *** | G187: *** | H187: ***
A188: ASFALTOS DILUÍDOS CM-70 | B188: 2008-12-01 | C188: *** | D188: *** | E188: *** | F188: *** | G188: *** | H188: ***
A189: ASFALTOS DILUÍDOS CM-70 | B189: 2009-01-01 | C189: *** | D189: *** | E189: *** | F189: *** | G189: *** | H189: ***
A190: ASFALTOS DILUÍDOS CM-70 | B190: 2009-02-01 | C190: *** | D190: *** | E190: *** | F190: *** | G190: *** | H190: ***
A191: ASFALTOS DILUÍDOS CM-70 | B191: 2009-03-01 | C191: *** | D191: *** | E191: *** | F191: *** | G191: *** | H191: ***
A192: ASFALTOS DILUÍDOS CM-70 | B192: 2009-04-01 | C192: *** | D192: *** | E192: *** | F192: *** | G192: *** | H192: ***
A193: ASFALTOS DILUÍDOS CM-70 | B193: 2009-05-01 | C193: *** | D193: *** | E193: *** | F193: *** | G193: *** | H193: ***
A194: ASFALTOS DILUÍDOS CM-70 | B194: 2009-06-01 | C194: *** | D194: *** | E194: *** | F194: *** | G194: *** | H194: ***
A195: ASFALTOS DILUÍDOS CM-70 | B195: 2009-07-01 | C195: *** | D195: *** | E195: *** | F195: *** | G195: *** | H195: ***
A196: ASFALTOS DILUÍDOS CM-70 | B196: 2009-08-01 | C196: *** | D196: *** | E196: *** | F196: *** | G196: *** | H196: ***
A197: ASFALTOS DILUÍDOS CM-70 | B197: 2009-09-01 | C197: *** | D197: *** | E197: *** | F197: *** | G197: *** | H197: ***
A198: ASFALTOS DILUÍDOS CM-70 | B198: 2009-10-01 | C198: *** | D198: *** | E198: *** | F198: *** | G198: *** | H198: ***
A199: ASFALTOS DILUÍDOS CM-70 | B199: 2009-11-01 | C199: *** | D199: *** | E199: *** | F199: *** | G199: *** | H199: ***
A200: ASFALTOS DILUÍDOS CM-70 | B200: 2009-12-01 | C200: *** | D200: *** | E200: *** | F200: *** | G200: *** | H200: ***
A201: ASFALTOS DILUÍDOS CM-70 | B201: 2010-01-01 | C201: *** | D201: *** | E201: *** | F201: *** | G201: *** | H201: ***
A202: ASFALTOS DILUÍDOS CM-70 | B202: 2010-02-01 | C202: *** | D202: *** | E202: *** | F202: *** | G202: *** | H202: ***
A203: ASFALTOS DILUÍDOS CM-70 | B203: 2010-03-01 | C203: *** | D203: *** | E203: *** | F203: *** | G203: *** | H203: ***
A204: ASFALTOS DILUÍDOS CM-70 | B204: 2010-04-01 | C204: *** | D204: *** | E204: *** | F204: *** | G204: *** | H204: ***
... 4303 more rows

Sheet SINTÉTICO SICRO
A1: CGCIT | B1: SISTEMA DE CUSTOS REFERENCIAIS DE OBRAS - SICRO | D1: DNIT
B2: Ceará - Abril/2023
A3: Código | B3: Descrição do Serviço | C3: Unidade | D3: Custo Unitário (R$) | F3: 1
A4: 307731 | B4: Aparelho de apoio de neoprene fretado para estruturas moldadas no local - fornecimento e instalação | C4: dm³ | D4: 111.82
A5: 307732 | B5: Aparelho de apoio de neoprene fretado para estruturas pré-moldadas - fornecimento e instalação | C5: dm³ | D5: 87.45
A6: 308308 | B6: Aparelho de apoio metálico elastomérico fixo com capacidade de 1.500 kN - fornecimento e instalação | C6: un | D6: 14237.53
A7: 308313 | B7: Aparelho de apoio metálico elastomérico fixo com capacidade de 10.000 kN - fornecimento e instalação | C7: un | D7: 93294.92
A8: 308309 | B8: Aparelho de apoio metálico elastomérico fixo com capacidade de 2.500 kN - fornecimento e instalação | C8: un | D8: 23252.41
A9: 308310 | B9: Aparelho de apoio metálico elastomérico fixo com capacidade de 4.000 kN - fornecimento e instalação | C9: un | D9: 37442
A10: 308311 | B10: Aparelho de apoio metálico elastomérico fixo com capacidade de 5.500 kN - fornecimento e instalação | C10: un | D10: 50248.25
A11: 308312 | B11: Aparelho de apoio metálico elastomérico fixo com capacidade de 7.500 kN - fornecimento e instalação | C11: un | D11: 68928.79
A12: 308307 | B12: Aparelho de apoio metálico elastomérico fixo com capacidade de 700 kN - fornecimento e instalação | C12: un | D12: 9572.85
A13: 308322 | B13: Aparelho de apoio metálico elastomérico multidirecional com capacidade de 1.500 kN - fornecimento e instalação | C13: un | D13: 8644.78
A14: 308327 | B14: Aparelho de apoio metálico elastomérico multidirecional com capacidade de 10.000 kN - fornecimento e instalação | C14: un | D14: 56207.04
A15: 308323 | B15: Aparelho de apoio metálico elastomérico multidirecional com capacidade de 2.500 kN - fornecimento e instalação | C15: un | D15: 12012.6
A16: 308324 | B16: Aparelho de apoio metálico elastomérico multidirecional com capacidade de 4.000 kN - fornecimento e instalação | C16: un | D16: 19994.3
A17: 308325 | B17: Aparelho de apoio metálico elastomérico multidirecional com capacidade de 5.500 kN - fornecimento e instalação | C17: un | D17: 28713.32
A18: 308326 | B18: Aparelho de apoio metálico elastomérico multidirecional com capacidade de 7.500 kN - fornecimento e instalação | C18: un | D18: 40609.77
A19: 308321 | B19: Aparelho de apoio metálico elastomérico multidirecional com capacidade de 700 kN - fornecimento e instalação | C19: un | D19: 5002.8
A20: 308315 | B20: Aparelho de apoio metálico elastomérico unidirecional com capacidade de 1.500 kN - fornecimento e instalação | C20: un | D20: 10228.9
A21: 308320 | B21: Aparelho de apoio metálico elastomérico unidirecional com capacidade de 10.000 kN - fornecimento e instalação | C21: un | D21: 59932.33
A22: 308316 | B22: Aparelho de apoio metálico elastomérico unidirecional com capacidade de 2.500 kN - fornecimento e instalação | C22: un | D22: 15163.14
A23: 308317 | B23: Aparelho de apoio metálico elastomérico unidirecional com capacidade de 4.000 kN - fornecimento e instalação | C23: un | D23: 25058.51
A24: 308318 | B24: Aparelho de apoio metálico elastomérico unidirecional com capacidade de 5.500 kN - fornecimento e instalação | C24: un | D24: 32552.75
A25: 308319 | B25: Aparelho de apoio metálico elastomérico unidirecional com capacidade de 7.500 kN - fornecimento e instalação | C25: un | D25: 45167.36
A26: 308314 | B26: Aparelho de apoio metálico elastomérico unidirecional com capacidade de 700 kN - fornecimento e instalação | C26: un | D26: 6937.03
A27: 308250 | B27: Aparelho de apoio metálico esférico fixo com capacidade de 1.000 kN - fornecimento e instalação | C27: un | D27: 5823.65
A28: 308251 | B28: Aparelho de apoio metálico esférico fixo com capacidade de 1.500 kN - fornecimento e instalação | C28: un | D28: 8651.5
A29: 308268 | B29: Aparelho de apoio metálico esférico fixo com capacidade de 10.000 kN - fornecimento e instalação | C29: un | D29: 129206.11
A30: 308252 | B30: Aparelho de apoio metálico esférico fixo com capacidade de 2.000 kN - fornecimento e instalação | C30: un | D30: 10943.22
A31: 308253 | B31: Aparelho de apoio metálico esférico fixo com capacidade de 2.500 kN - fornecimento e instalação | C31: un | D31: 13804.81
A32: 308254 | B32: Aparelho de apoio metálico esférico fixo com capacidade de 3.000 kN - fornecimento e instalação | C32: un | D32: 15855.38
A33: 308255 | B33: Aparelho de apoio metálico esférico fixo com capacidade de 3.500 kN - fornecimento e instalação | C33: un | D33: 19146.3
A34: 308256 | B34: Aparelho de apoio metálico esférico fixo com capacidade de 4.000 kN - fornecimento e instalação | C34: un | D34: 22568.49
A35: 308257 | B35: Aparelho de apoio metálico esférico fixo com capacidade de 4.500 kN - fornecimento e instalação | C35: un | D35: 57178.35
A36: 308258 | B36: Aparelho de apoio metálico esférico fixo com capacidade de 5.000 kN - fornecimento e instalação | C36: un | D36: 63569.38
A37: 308259 | B37: Aparelho de apoio metálico esférico fixo com capacidade de 5.500 kN - fornecimento e instalação | C37: un | D37: 68927.51
A38: 308260 | B38: Aparelho de apoio metálico esférico fixo com capacidade de 6.000 kN - fornecimento e instalação | C38: un | D38: 74338.12
A39: 308261 | B39: Aparelho de apoio metálico esférico fixo com capacidade de 6.500 kN - fornecimento e instalação | C39: un | D39: 84465.89
A40: 308262 | B40: Aparelho de apoio metálico esférico fixo com capacidade de 7.000 kN - fornecimento e instalação | C40: un | D40: 87170.15
A41: 308263 | B41: Aparelho de apoio metálico esférico fixo com capacidade de 7.500 kN - fornecimento e instalação | C41: un | D41: 97386.12
A42: 308264 | B42: Aparelho de apoio metálico esférico fixo com capacidade de 8.000 kN - fornecimento e instalação | C42: un | D42: 104136.91
A43: 308265 | B43: Aparelho de apoio metálico esférico fixo com capacidade de 8.500 kN - fornecimento e instalação | C43: un | D43: 106674.51
A44: 308266 | B44: Aparelho de apoio metálico esférico fixo com capacidade de 9.000 kN - fornecimento e instalação | C44: un | D44: 115279.08
A45: 308267 | B45: Aparelho de apoio metálico esférico fixo com capacidade de 9.500 kN - fornecimento e instalação | C45: un | D45: 121556.92
A46: 308288 | B46: Aparelho de apoio metálico esférico multidirecional com capacidade de 1.000 kN - fornecimento e instalação | C46: un | D46: 12211.3
A47: 308289 | B47: Aparelho de apoio metálico esférico multidirecional com capacidade de 1.500 kN - fornecimento e instalação | C47: un | D47: 17261.97
A48: 308306 | B48: Aparelho de apoio metálico esférico multidirecional com capacidade de 10.000 kN - fornecimento e instalação | C48: un | D48: 114692.05
A49: 308290 | B49: Aparelho de apoio metálico esférico multidirecional com capacidade de 2.000 kN - fornecimento e instalação | C49: un | D49: 22956.73
A50: 308291 | B50: Aparelho de apoio metálico esférico multidirecional com capacidade de 2.500 kN - fornecimento e instalação | C50: un | D50: 27360.89
A51: 308292 | B51: Aparelho de apoio metálico esférico multidirecional com capacidade de 3.000 kN - fornecimento e instalação | C51: un | D51: 32057
A52: 308293 | B52: Aparelho de apoio metálico esférico multidirecional com capacidade de 3.500 kN - fornecimento e instalação | C52: un | D52: 36434.1
A53: 308294 | B53: Aparelho de apoio metálico esférico multidirecional com capacidade de 4.000 kN - fornecimento e instalação | C53: un | D53: 41562.26
A54: 308295 | B54: Aparelho de apoio metálico esférico multidirecional com capacidade de 4.500 kN - fornecimento e instalação | C54: un | D54: 48159.26
A55: 308296 | B55: Aparelho de apoio metálico esférico multidirecional com capacidade de 5.000 kN - fornecimento e instalação | C55: un | D55: 53624.82
A56: 308297 | B56: Aparelho de apoio metálico esférico multidirecional com capacidade de 5.500 kN - fornecimento e instalação | C56: un | D56: 58125.6
A57: 308298 | B57: Aparelho de apoio metálico esférico multidirecional com capacidade de 6.000 kN - fornecimento e instalação | C57: un | D57: 66279.85
A58: 308299 | B58: Aparelho de apoio metálico esférico multidirecional com capacidade de 6.500 kN - fornecimento e instalação | C58: un | D58: 71608.75
A59: 308300 | B59: Aparelho de apoio metálico esférico multidirecional com capacidade de 7.000 kN - fornecimento e instalação | C59: un | D59: 77089.71
A60: 308301 | B60: Aparelho de apoio metálico esférico multidirecional com capacidade de 7.500 kN - fornecimento e instalação | C60: un | D60: 83202.53
A61: 308302 | B61: Aparelho de apoio metálico esférico multidirecional com capacidade de 8.000 kN - fornecimento e instalação | C61: un | D61: 88653.85
A62: 308303 | B62: Aparelho de apoio metálico esférico multidirecional com capacidade de 8.500 kN - fornecimento e instalação | C62: un | D62: 97554.45
A63: 308304 | B63: Aparelho de apoio metálico esférico multidirecional com capacidade de 9.000 kN - fornecimento e instalação | C63: un | D63: 102800.84
A64: 308305 | B64: Aparelho de apoio metálico esférico multidirecional com capacidade de 9.500 kN - fornecimento e instalação | C64: un | D64: 109207.84
A65: 308269 | B65: Aparelho de apoio metálico esférico unidirecional com capacidade de 1.000 kN - fornecimento e instalação | C65: un | D65: 7032.86
A66: 308270 | B66: Aparelho de apoio metálico esférico unidirecional com capacidade de 1.500 kN - fornecimento e instalação | C66: un | D66: 10837.35
A67: 308287 | B67: Aparelho de apoio metálico esférico unidirecional com capacidade de 10.000 kN - fornecimento e instalação | C67: un | D67: 127815.13
A68: 308271 | B68: Aparelho de apoio metálico esférico unidirecional com capacidade de 2.000 kN - fornecimento e instalação | C68: un | D68: 13150.44
A69: 308272 | B69: Aparelho de apoio metálico esférico unidirecional com capacidade de 2.500 kN - fornecimento e instalação | C69: un | D69: 16372.83
A70: 308273 | B70: Aparelho de apoio metálico esférico unidirecional com capacidade de 3.000 kN - fornecimento e instalação | C70: un | D70: 20153.54
A71: 308274 | B71: Aparelho de apoio metálico esférico unidirecional com capacidade de 3.500 kN - fornecimento e instalação | C71: un | D71: 22837.73
A72: 308275 | B72: Aparelho de apoio metálico esférico unidirecional com capacidade de 4.000 kN - fornecimento e instalação | C72: un | D72: 34239.13
A73: 308276 | B73: Aparelho de apoio metálico esférico unidirecional com capacidade de 4.500 kN - fornecimento e instalação | C73: un | D73: 56409.55
A74: 308277 | B74: Aparelho de apoio metálico esférico unidirecional com capacidade de 5.000 kN - fornecimento e instalação | C74: un | D74: 62444.24
A75: 308278 | B75: Aparelho de apoio metálico esférico unidirecional com capacidade de 5.500 kN - fornecimento e instalação | C75: un | D75: 67858.32
A76: 308279 | B76: Aparelho de apoio metálico esférico unidirecional com capacidade de 6.000 kN - fornecimento e instalação | C76: un | D76: 71377.57
A77: 308280 | B77: Aparelho de apoio metálico esférico unidirecional com capacidade de 6.500 kN - fornecimento e instalação | C77: un | D77: 81532.49
A78: 308281 | B78: Aparelho de apoio metálico esférico unidirecional com capacidade de 7.000 kN - fornecimento e instalação | C78: un | D78: 87594.39
A79: 308282 | B79: Aparelho de apoio metálico esférico unidirecional com capacidade de 7.500 kN - fornecimento e instalação | C79: un | D79: 94197.34
A80: 308283 | B80: Aparelho de apoio metálico esférico unidirecional com capacidade de 8.000 kN - fornecimento e instalação | C80: un | D80: 100090.79
A81: 308284 | B81: Aparelho de apoio metálico esférico unidirecional com capacidade de 8.500 kN - fornecimento e instalação | C81: un | D81: 108243.28
A82: 308285 | B82: Aparelho de apoio metálico esférico unidirecional com capacidade de 9.000 kN - fornecimento e instalação | C82: un | D82: 114941.91
A83: 308286 | B83: Aparelho de apoio metálico esférico unidirecional com capacidade de 9.500 kN - fornecimento e instalação | C83: un | D83: 121679.22
A84: 307733 | B84: Junta de dilatação em elastômero e perfil VV - L = 20 mm e H = 40 mm - fornecimento e instalação | C84: m | D84: 445.31
A85: 307734 | B85: Junta de dilatação em elastômero e perfil VV - L = 25 mm e H = 50 mm - fornecimento e instalação | C85: m | D85: 574.63
A86: 307735 | B86: Junta de dilatação em elastômero e perfil VV - L = 35 mm e H = 60 mm - fornecimento e instalação | C86: m | D86: 980.83
A87: 307736 | B87: Junta de dilatação em elastômero e perfil VV - L = 40 mm e H = 70 mm - fornecimento e instalação | C87: m | D87: 1322.9
A88: 307737 | B88: Junta de dilatação em elastômero e perfil VV - L = 50 mm e H = 80 mm - fornecimento e instalação | C88: m | D88: 1619.32
A89: 307730 | B89: Junta de dilatação em perfil extrudado de borracha vulcanizada | C89: m | D89: 0
A90: 307084 | B90: Lábios poliméricos em junta de pavimento de concreto - L = 20 mm e H = 30 mm - confecção e assentamento | C90: m | D90: 29.55
A91: 407818 | B91: Armação em aço CA-25 - fornecimento, preparo e colocação | C91: kg | D91: 13.28
A92: 407819 | B92: Armação em aço CA-50 - fornecimento, preparo e colocação | C92: kg | D92: 12.98
A93: 407820 | B93: Armação em aço CA-60 - fornecimento, preparo e colocação | C93: kg | D93: 13.29
A94: 407740 | B94: Chumbador tipo espera em aço CA-25 para fixação de estrutura metálica em concreto - fornecimento e instalação | C94: kg | D94: 15.98
A95: 408037 | B95: Luva de emenda com rosca cônica para aço CA-50 - D = 12,5 mm - fornecimento e instalação | C95: un | D95: 25.55
A96: 408038 | B96: Luva de emenda com rosca cônica para aço CA-50 - D = 16 mm - fornecimento e instalação | C96: un | D96: 35.39
A97: 408039 | B97: Luva de emenda com rosca cônica para aço CA-50 - D = 20 mm - fornecimento e instalação | C97: un | D97: 47.09
A98: 408041 | B98: Luva de emenda com rosca cônica para aço CA-50 - D = 25 mm - fornecimento e instalação | C98: un | D98: 67.22
A99: 408042 | B99: Luva de emenda com rosca cônica para aço CA-50 - D = 32 mm - fornecimento e instalação | C99: un | D99: 100.32
A100: 408031 | B100: Luva de emenda prensada para aço CA-50 - D = 12,5 mm - fornecimento e instalação | C100: un | D100: 23.59
A101: 408032 | B101: Luva de emenda prensada para aço CA-50 - D = 16 mm - fornecimento e instalação | C101: un | D101: 32.32
A102: 408033 | B102: Luva de emenda prensada para aço CA-50 - D = 20 mm - fornecimento e instalação | C102: un | D102: 46.21
A103: 408035 | B103: Luva de emenda prensada para aço CA-50 - D = 25 mm - fornecimento e instalação | C103: un | D103: 81.65
A104: 408036 | B104: Luva de emenda prensada para aço CA-50 - D = 32 mm - fornecimento e instalação | C104: un | D104: 159.86
A105: 408067 | B105: Tela de aço eletrossoldada - fornecimento, preparo e colocação | C105: kg | D105: 12.52
A106: 407743 | B106: Treliça nervurada três barras longitudinais interligadas por duas diagonais sinusoidal - fornecimento e instalação | C106: kg | D106: 14.14
A107: 607137 | B107: Arco metálico galvanizado tipo MP 152S - arco alto - vão = 10,08 m e altura = 6,12 m - aterro rodoviário mínimo = 0,90 m e máximo = 5,00 m - areia e brita comerciais | C107: m | D107: 60952.67
A108: 606785 | B108: Arco metálico galvanizado tipo MP 152S - arco alto - vão = 10,08 m e altura = 6,12 m - aterro rodoviário mínimo = 0,90 m e máximo = 5,00 m - areia extraída e brita produzida | C108: m | D108: 60291.69
A109: 607139 | B109: Arco metálico galvanizado tipo MP 152S - arco alto - vão = 10,31 m e altura = 6,17 m - aterro rodoviário mínimo = 0,90 m e máximo = 4,90 m - areia e brita comerciais | C109: m | D109: 61809.47
A110: 606787 | B110: Arco metálico galvanizado tipo MP 152S - arco alto - vão = 10,31 m e altura = 6,17 m - aterro rodoviário mínimo = 0,90 m e máximo = 4,90 m - areia extraída e brita produzida | C110: m | D110: 60808.49
A111: 607140 | B111: Arco metálico galvanizado tipo MP 152S - arco alto - vão = 10,36 m e altura = 5,38 m - aterro rodoviário mínimo = 1,20 m e máximo = 3,60 m - areia e brita comerciais | C111: m | D111: 56462.37
A112: 606788 | B112: Arco metálico galvanizado tipo MP 152S - arco alto - vão = 10,36 m e altura = 5,38 m - aterro rodoviário mínimo = 1,20 m e máximo = 3,60 m - areia extraída e brita produzida | C112: m | D112: 56179.06
A113: 607141 | B113: Arco metálico galvanizado tipo MP 152S - arco alto - vão = 10,54 m e altura = 6,05 m - aterro rodoviário mínimo = 1,20 m e máximo = 4,20 m - areia e brita comerciais | C113: m | D113: 62865.27
A114: 606789 | B114: Arco metálico galvanizado tipo MP 152S - arco alto - vão = 10,54 m e altura = 6,05 m - aterro rodoviário mínimo = 1,20 m e máximo = 4,20 m - areia extraída e brita produzida | C114: m | D114: 62178.5
A115: 607144 | B115: Arco metálico galvanizado tipo MP 152S - arco alto - vão = 10,57 m e altura = 5,41 m - aterro rodoviário mínimo = 1,20 m e máximo = 4,10 m - areia e brita comerciais | C115: m | D115: 73659.92
A116: 606792 | B116: Arco metálico galvanizado tipo MP 152S - arco alto - vão = 10,57 m e altura = 5,41 m - aterro rodoviário mínimo = 1,20 m e máximo = 4,10 m - areia extraída e brita produzida | C116: m | D116: 73031.45
A117: 607142 | B117: Arco metálico galvanizado tipo MP 152S - arco alto - vão = 10,74 m e altura = 6,48 m - aterro rodoviário mínimo = 1,20 m e máximo = 4,70 m - areia e brita comerciais | C117: m | D117: 65961.87
A118: 606790 | B118: Arco metálico galvanizado tipo MP 152S - arco alto - vão = 10,74 m e altura = 6,48 m - aterro rodoviário mínimo = 1,20 m e máximo = 4,70 m - areia extraída e brita produzida | C118: m | D118: 65220.22
A119: 607145 | B119: Arco metálico galvanizado tipo MP 152S - arco alto - vão = 10,77 m e altura = 6,10 m - aterro rodoviário mínimo = 1,20 m e máximo = 4,70 m - areia e brita comerciais | C119: m | D119: 81356.57
A120: 606793 | B120: Arco metálico galvanizado tipo MP 152S - arco alto - vão = 10,77 m e altura = 6,10 m - aterro rodoviário mínimo = 1,20 m e máximo = 4,70 m - areia extraída e brita produzida | C120: m | D120: 80648.73
A121: 607146 | B121: Arco metálico galvanizado tipo MP 152S - arco alto - vão = 10,97 m e altura = 6,53 m - aterro rodoviário mínimo = 1,20 m e máximo = 4,70 m - areia e brita comerciais | C121: m | D121: 84838.66
A122: 606794 | B122: Arco metálico galvanizado tipo MP 152S - arco alto - vão = 10,97 m e altura = 6,53 m - aterro rodoviário mínimo = 1,20 m e máximo = 4,70 m - areia extraída e brita produzida | C122: m | D122: 84075.28
A123: 607143 | B123: Arco metálico galvanizado tipo MP 152S - arco alto - vão = 11,35 m e altura = 7,12 m - aterro rodoviário mínimo = 1,20 m e máximo = 4,70 m - areia e brita comerciais | C123: m | D123: 71256.04
A124: 606791 | B124: Arco metálico galvanizado tipo MP 152S - arco alto - vão = 11,35 m e altura = 7,12 m - aterro rodoviário mínimo = 1,20 m e máximo = 4,70 m - areia extraída e brita produzida | C124: m | D124: 70401.51
A125: 607147 | B125: Arco metálico galvanizado tipo MP 152S - arco alto - vão = 11,58 m e altura = 7,16 m - aterro rodoviário mínimo = 1,20 m e máximo = 6,40 m - areia e brita comerciais | C125: m | D125: 91507.72
A126: 606795 | B126: Arco metálico galvanizado tipo MP 152S - arco alto - vão = 11,58 m e altura = 7,16 m - aterro rodoviário mínimo = 1,20 m e máximo = 6,40 m - areia extraída e brita produzida | C126: m | D126: 90630.71
A127: 607112 | B127: Arco metálico galvanizado tipo MP 152S - arco alto - vão = 6,12 m e altura = 2,77 m - aterro rodoviário mínimo = 0,75 m e máximo = 5,40 m - areia e brita comerciais | C127: m | D127: 29787.7
A128: 606760 | B128: Arco metálico galvanizado tipo MP 152S - arco alto - vão = 6,12 m e altura = 2,77 m - aterro rodoviário mínimo = 0,75 m e máximo = 5,40 m - areia extraída e brita produzida | C128: m | D128: 29556.42
A129: 607113 | B129: Arco metálico galvanizado tipo MP 152S - arco alto - vão = 6,30 m e altura = 3,68 m - aterro rodoviário mínimo = 0,75 m e máximo = 7,50 m - areia e brita comerciais | C129: m | D129: 34879.4
A130: 606761 | B130: Arco metálico galvanizado tipo MP 152S - arco alto - vão = 6,30 m e altura = 3,68 m - aterro rodoviário mínimo = 0,75 m e máximo = 7,50 m - areia extraída e brita produzida | C130: m | D130: 34614.19
A131: 606762 | B131: Arco metálico galvanizado tipo MP 152S - arco alto - vão = 6,55 m e altura = 3,56 m - aterro rodoviário mínimo = 0,75 m e máximo = 4,9 m - areia extraída e brita produzida | C131: m | D131: 34485.36
A132: 607114 | B132: Arco metálico galvanizado tipo MP 152S - arco alto - vão = 6,55 m e altura = 3,56 m - aterro rodoviário mínimo = 0,75 m e máximo = 4,90 m - areia e brita comerciais | C132: m | D132: 34753.64
A133: 607116 | B133: Arco metálico galvanizado tipo MP 152S - arco alto - vão = 6,78 m e altura = 3,61 m - aterro rodoviário mínimo = 0,75 m e máximo = 4,80 m - areia e brita comerciais | C133: m | D133: 36702.09
A134: 606764 | B134: Arco metálico galvanizado tipo MP 152S - arco alto - vão = 6,78 m e altura = 3,61 m - aterro rodoviário mínimo = 0,75 m e máximo = 4,80 m - areia extraída e brita produzida | C134: m | D134: 36419.85
A135: 607115 | B135: Arco metálico galvanizado tipo MP 152S - arco alto - vão = 6,96 m e altura = 4,42 m - aterro rodoviário mínimo = 0,75 m e máximo = 8,10 m - areia e brita comerciais | C135: m | D135: 41684.65
A136: 606763 | B136: Arco metálico galvanizado tipo MP 152S - arco alto - vão = 6,96 m e altura = 4,42 m - aterro rodoviário mínimo = 0,75 m e máximo = 8,10 m - areia extraída e brita produzida | C136: m | D136: 41343.85
A137: 607117 | B137: Arco metálico galvanizado tipo MP 152S - arco alto - vão = 6,99 m e altura = 4,27 m - aterro rodoviário mínimo = 0,75 m e máximo = 5,70 m - areia e brita comerciais | C137: m | D137: 41677.14
A138: 606765 | B138: Arco metálico galvanizado tipo MP 152S - arco alto - vão = 6,99 m e altura = 4,27 m - aterro rodoviário mínimo = 0,75 m e máximo = 5,70 m - areia extraída e brita produzida | C138: m | D138: 41345.41
A139: 607118 | B139: Arco metálico galvanizado tipo MP 152S - arco alto - vão = 7,01 m e altura = 3,63 m - aterro rodoviário mínimo = 0,75 m e máximo = 4,60 m - areia e brita comerciais | C139: m | D139: 37366.15
A140: 606766 | B140: Arco metálico galvanizado tipo MP 152S - arco alto - vão = 7,01 m e altura = 3,63 m - aterro rodoviário mínimo = 0,75 m e máximo = 4,60 m - areia extraída e brita produzida | C140: m | D140: 37072.6
A141: 607120 | B141: Arco metálico galvanizado tipo MP 152S - arco alto - vão = 7,24 m e altura = 3,68 m - aterro rodoviário mínimo = 0,90 m e máximo = 4,4 m - areia e brita comerciais | C141: m | D141: 38032.23
A142: 606768 | B142: Arco metálico galvanizado tipo MP 152S - arco alto - vão = 7,24 m e altura = 3,68 m - aterro rodoviário mínimo = 0,90 m e máximo = 4,40 m - areia extraída e brita produzida | C142: m | D142: 37725.36
A143: 607119 | B143: Arco metálico galvanizado tipo MP 152S - arco alto - vão = 7,42 m e altura = 4,52 m - aterro rodoviário mínimo = 0,90 m e máximo = 6,40 m - areia e brita comerciais | C143: m | D143: 43684.57
A144: 606767 | B144: Arco metálico galvanizado tipo MP 152S - arco alto - vão = 7,42 m e altura = 4,52 m - aterro rodoviário mínimo = 0,90 m e máximo = 6,40 m - areia extraída e brita produzida | C144: m | D144: 43313.7
A145: 607121 | B145: Arco metálico galvanizado tipo MP 152S - arco alto - vão = 7,47 m e altura = 4,19 m - aterro rodoviário mínimo = 0,90 m e máximo = 4,30 m - areia e brita comerciais | C145: m | D145: 41198.47
A146: 606769 | B146: Arco metálico galvanizado tipo MP 152S - arco alto - vão = 7,47 m e altura = 4,19 m - aterro rodoviário mínimo = 0,90 m e máximo = 4,30 m - areia extraída e brita produzida | C146: m | D146: 40847.02
A147: 607123 | B147: Arco metálico galvanizado tipo MP 152S - arco alto - vão = 7,67 m e altura = 3,99 m - aterro rodoviário mínimo = 0,90 m e máximo = 4,10 m - areia e brita comerciais | C147: m | D147: 40626.48
A148: 606771 | B148: Arco metálico galvanizado tipo MP 152S - arco alto - vão = 7,67 m e altura = 3,99 m - aterro rodoviário mínimo = 0,90 m e máximo = 4,10 m - areia extraída e brita produzida | C148: m | D148: 40278.93
A149: 607122 | B149: Arco metálico galvanizado tipo MP 152S - arco alto - vão = 7,85 m e altura = 4,60 m - aterro rodoviário mínimo = 0,90 m e máximo = 6,00 m - areia e brita comerciais | C149: m | D149: 45054.06
A150: 606770 | B150: Arco metálico galvanizado tipo MP 152S - arco alto - vão = 7,85 m e altura = 4,60 m - aterro rodoviário mínimo = 0,90 m e máximo = 6,00 m - areia extraída e brita produzida | C150: m | D150: 44654.39
A151: 607125 | B151: Arco metálico galvanizado tipo MP 152S - arco alto - vão = 7,90 m e altura = 4,04 m - aterro rodoviário mínimo = 0,90 m e máximo = 4,00 m - areia e brita comerciais | C151: m | D151: 41971.95
A152: 606773 | B152: Arco metálico galvanizado tipo MP 152S - arco alto - vão = 7,90 m e altura = 4,04 m - aterro rodoviário mínimo = 0,90 m e máximo = 4,00 m - areia extraída e brita produzida | C152: m | D152: 41608.66
A153: 607124 | B153: Arco metálico galvanizado tipo MP 152S - arco alto - vão = 8,08 m e altura = 4,65 m - aterro rodoviário mínimo = 0,90 m e máximo = 5,80 m - areia e brita comerciais | C153: m | D153: 45760.25
A154: 606772 | B154: Arco metálico galvanizado tipo MP 152S - arco alto - vão = 8,08 m e altura = 4,65 m - aterro rodoviário mínimo = 0,90 m e máximo = 5,80 m - areia extraída e brita produzida | C154: m | D154: 45344.7
A155: 607126 | B155: Arco metálico galvanizado tipo MP 152S - arco alto - vão = 8,31 m e altura = 4,70 m - aterro rodoviário mínimo = 0,90 m e máximo = 5,60 m - areia e brita comerciais | C155: m | D155: 47003.45
A156: 606774 | B156: Arco metálico galvanizado tipo MP 152S - arco alto - vão = 8,31 m e altura = 4,70 m - aterro rodoviário mínimo = 0,90 m e máximo = 5,60 m - areia extraída e brita produzida | C156: m | D156: 46570.46
A157: 607127 | B157: Arco metálico galvanizado tipo MP 152S - arco alto - vão = 8,36 m e altura = 4,11 m - aterro rodoviário mínimo = 0,90 m e máximo = 3,70 m - areia e brita comerciais | C157: m | D157: 43320.8
A158: 606775 | B158: Arco metálico galvanizado tipo MP 152S - arco alto - vão = 8,36 m e altura = 4,11 m - aterro rodoviário mínimo = 0,90 m e máximo = 3,70 m - areia extraída e brita produzida | C158: m | D158: 42929.85
A159: 607129 | B159: Arco metálico galvanizado tipo MP 152S - arco alto - vão = 8,59 m e altura = 4,39 m - aterro rodoviário mínimo = 0,90 m e máximo = 3,60 m - areia e brita comerciais | C159: m | D159: 45306
A160: 606777 | B160: Arco metálico galvanizado tipo MP 152S - arco alto - vão = 8,59 m e altura = 4,39 m - aterro rodoviário mínimo = 0,90 m e máximo = 3,60 m - areia extraída e brita produzida | C160: m | D160: 44881.35
A161: 607128 | B161: Arco metálico galvanizado tipo MP 152S - arco alto - vão = 8,97 m e altura = 5,00 m - aterro rodoviário mínimo = 0,90 m e máximo = 5,80 m - areia e brita comerciais | C161: m | D161: 49803.54
A162: 606776 | B162: Arco metálico galvanizado tipo MP 152S - arco alto - vão = 8,97 m e altura = 5,00 m - aterro rodoviário mínimo = 0,90 m e máximo = 5,80 m - areia extraída e brita produzida | C162: m | D162: 49308.73
A163: 607130 | B163: Arco metálico galvanizado tipo MP 152S - arco alto - vão = 9,17 m e altura = 5,49 m - aterro rodoviário mínimo = 0,90 m e máximo = 5,60 m - areia e brita comerciais | C163: m | D163: 53091.28
A164: 606778 | B164: Arco metálico galvanizado tipo MP 152S - arco alto - vão = 9,17 m e altura = 5,49 m - aterro rodoviário mínimo = 0,90 m e máximo = 5,60 m - areia extraída e brita produzida | C164: m | D164: 52546.37
A165: 607131 | B165: Arco metálico galvanizado tipo MP 152S - arco alto - vão = 9,22 m e altura = 4,70 m - aterro rodoviário mínimo = 0,90 m e máximo = 4,10 m - areia e brita comerciais | C165: m | D165: 49814.75
A166: 606779 | B166: Arco metálico galvanizado tipo MP 152S - arco alto - vão = 9,22 m e altura = 4,70 m - aterro rodoviário mínimo = 0,90 m e máximo = 4,10 m - areia extraída e brita produzida | C166: m | D166: 49333.41
A167: 607133 | B167: Arco metálico galvanizado tipo MP 152S - arco alto - vão = 9,45 m e altura = 4,75 m - aterro rodoviário mínimo = 0,90 m e máximo = 4,00 m - areia e brita comerciais | C167: m | D167: 50612.34
A168: 606781 | B168: Arco metálico galvanizado tipo MP 152S - arco alto - vão = 9,45 m e altura = 4,75 m - aterro rodoviário mínimo = 0,90 m e máximo = 4,00 m - areia extraída e brita produzida | C168: m | D168: 50111.17
A169: 607132 | B169: Arco metálico galvanizado tipo MP 152S - arco alto - vão = 9,63 m e altura = 5,59 m - aterro rodoviário mínimo = 0,90 m e máximo = 5,30 m - areia e brita comerciais | C169: m | D169: 55150.71
A170: 606780 | B170: Arco metálico galvanizado tipo MP 152S - arco alto - vão = 9,63 m e altura = 5,59 m - aterro rodoviário mínimo = 0,90 m e máximo = 5,30 m - areia extraída e brita produzida | C170: m | D170: 54566.88
A171: 607134 | B171: Arco metálico galvanizado tipo MP 152S - arco alto - vão = 9,65 m e altura = 5,41 m - aterro rodoviário mínimo = 0,90 m e máximo = 4,70 m - areia e brita comerciais | C171: m | D171: 54600.88
A172: 606782 | B172: Arco metálico galvanizado tipo MP 152S - arco alto - vão = 9,65 m e altura = 5,41 m - aterro rodoviário mínimo = 0,90 m e máximo = 4,70 m - areia extraída e brita produzida | C172: m | D172: 54031.15
A173: 607136 | B173: Arco metálico galvanizado tipo MP 152S - arco alto - vão = 9,68 m e altura = 5,23 m - aterro rodoviário mínimo = 0,90 m e máximo = 3,90 m - areia e brita comerciais | C173: m | D173: 53908.39
A174: 606784 | B174: Arco metálico galvanizado tipo MP 152S - arco alto - vão = 9,68 m e altura = 5,23 m - aterro rodoviário mínimo = 0,90 m e máximo = 3,90 m - areia extraída e brita produzida | C174: m | D174: 53352.36
A175: 607135 | B175: Arco metálico galvanizado tipo MP 152S - arco alto - vão = 9,86 m e altura = 6,07 m - aterro rodoviário mínimo = 0,90 m e máximo = 5,20 m - areia e brita comerciais | C175: m | D175: 60096.04
A176: 606783 | B176: Arco metálico galvanizado tipo MP 152S - arco alto - vão = 9,86 m e altura = 6,07 m - aterro rodoviário mínimo = 0,90 m e máximo = 5,20 m - areia extraída e brita produzida | C176: m | D176: 59456.28
A177: 607138 | B177: Arco metálico galvanizado tipo MP 152S - arco alto - vão = 9,91 m e altura = 5,28 m - aterro rodoviário mínimo = 0,90 m e máximo = 3,80 m - areia e brita comerciais | C177: m | D177: 54814.28
A178: 606786 | B178: Arco metálico galvanizado tipo MP 152S - arco alto - vão = 9,91 m e altura = 5,28 m - aterro rodoviário mínimo = 0,90 m e máximo = 3,80 m - areia extraída e brita produzida | C178: m | D178: 54225.09
A179: 606842 | B179: Arco metálico galvanizado tipo MP 152S - ovoide - vão = 7,21 m e altura = 7,82 m - aterro rodoviário mínimo = 0,75 m e máximo = 6,70 m - areia e brita comerciais | C179: m | D179: 68064.38
A180: 606832 | B180: Arco metálico galvanizado tipo MP 152S - ovoide - vão = 7,21 m e altura = 7,82 m - aterro rodoviário mínimo = 0,75 m e máximo = 6,70 m - areia extraída e brita produzida | C180: m | D180: 67737.14
A181: 606843 | B181: Arco metálico galvanizado tipo MP 152S - ovoide - vão = 7,31 m e altura = 7,87 m - aterro rodoviário mínimo = 0,90 m e máximo = 6,80 m - areia e brita comerciais | C181: m | D181: 70721.4
A182: 606833 | B182: Arco metálico galvanizado tipo MP 152S - ovoide - vão = 7,31 m e altura = 7,87 m - aterro rodoviário mínimo = 0,90 m e máximo = 6,80 m - areia extraída e brita produzida | C182: m | D182: 70377.41
A183: 606845 | B183: Arco metálico galvanizado tipo MP 152S - ovoide - vão = 7,57 m e altura = 8,44 m - aterro rodoviário mínimo = 0,90 m e máximo = 5,60 m - areia e brita comerciais | C183: m | D183: 73308.95
A184: 606835 | B184: Arco metálico galvanizado tipo MP 152S - ovoide - vão = 7,57 m e altura = 8,44 m - aterro rodoviário mínimo = 0,90 m e máximo = 5,60 m - areia extraída e brita produzida | C184: m | D184: 72966.61
A185: 606844 | B185: Arco metálico galvanizado tipo MP 152S - ovoide - vão = 7,77 m e altura = 7,90 m - aterro rodoviário mínimo = 0,90 m e máximo = 6,80 m - areia e brita comerciais | C185: m | D185: 71819.65
A186: 606834 | B186: Arco metálico galvanizado tipo MP 152S - ovoide - vão = 7,77 m e altura = 7,90 m - aterro rodoviário mínimo = 0,90 m e máximo = 6,80 m - areia extraída e brita produzida | C186: m | D186: 71465.95
A187: 606847 | B187: Arco metálico galvanizado tipo MP 152S - ovoide - vão = 8,13 m e altura = 8,01 m - aterro rodoviário mínimo = 0,90 m e máximo = 3,50 m - areia e brita comerciais | C187: m | D187: 76671.24
A188: 606837 | B188: Arco metálico galvanizado tipo MP 152S - ovoide - vão = 8,13 m e altura = 8,01 m - aterro rodoviário mínimo = 0,90 m e máximo = 3,50 m - areia extraída e brita produzida | C188: m | D188: 76283.94
A189: 606846 | B189: Arco metálico galvanizado tipo MP 152S - ovoide - vão = 8,36 m e altura = 8,23 m - aterro rodoviário mínimo = 0,90 m e máximo = 4,30 m - areia e brita comerciais | C189: m | D189: 77557.68
A190: 606836 | B190: Arco metálico galvanizado tipo MP 152S - ovoide - vão = 8,36 m e altura = 8,23 m - aterro rodoviário mínimo = 0,90 m e máximo = 4,30 m - areia extraída e brita produzida | C190: m | D190: 77167.37
A191: 606848 | B191: Arco metálico galvanizado tipo MP 152S - ovoide - vão = 8,56 m e altura = 8,48 m - aterro rodoviário mínimo = 0,90 m e máximo = 5,30 m - areia e brita comerciais | C191: m | D191: 77429.43
A192: 606838 | B192: Arco metálico galvanizado tipo MP 152S - ovoide - vão = 8,56 m e altura = 8,48 m - aterro rodoviário mínimo = 0,90 m e máximo = 5,30 m - areia extraída e brita produzida | C192: m | D192: 77022.94
A193: 606849 | B193: Arco metálico galvanizado tipo MP 152S - ovoide - vão = 8,71 m e altura = 9,32 m - aterro rodoviário mínimo = 0,90 m e máximo = 6,00 m - areia e brita comerciais | C193: m | D193: 83662.18
A194: 606839 | B194: Arco metálico galvanizado tipo MP 152S - ovoide - vão = 8,71 m e altura = 9,32 m - aterro rodoviário mínimo = 0,90 m e máximo = 6,00 m - areia extraída e brita produzida | C194: m | D194: 83266.84
A195: 606850 | B195: Arco metálico galvanizado tipo MP 152S - ovoide - vão = 9,15 m e altura = 9,04 m - aterro rodoviário mínimo = 0,90 m e máximo = 4,70 m - areia e brita comerciais | C195: m | D195: 84364.58
A196: 606840 | B196: Arco metálico galvanizado tipo MP 152S - ovoide - vão = 9,15 m e altura = 9,04 m - aterro rodoviário mínimo = 0,90 m e máximo = 4,70 m - areia extraída e brita produzida | C196: m | D196: 83930.97
A197: 606851 | B197: Arco metálico galvanizado tipo MP 152S - ovoide - vão = 9,15 m e altura = 9,50 m - aterro rodoviário mínimo = 0,90 m e máximo = 5,70 m - areia e brita comerciais | C197: m | D197: 85161.72
A198: 606841 | B198: Arco metálico galvanizado tipo MP 152S - ovoide - vão = 9,15 m e altura = 9,50 m - aterro rodoviário mínimo = 0,90 m e máximo = 5,70 m - areia extraída e brita produzida | C198: m | D198: 84746.62
A199: 605604 | B199: Argamassa de solo-cimento com 10% de cimento e material de jazida - preparo e injeção em tunnel liner | C199: m³ | D199: 299.09
A200: 605695 | B200: Bueiro metálico com chapas múltiplas MP 100 com revestimento em epóxi - D = 0,60 m - brita comercial | C200: m | D200: 1616.88
... 6154 more rows

Sheet INSUMOS SINAPI
A1: PRECOS DE INSUMOS
A3: MES DE COLETA: 09/2023
A4: LOCALIDADE: 0760 - FORTALEZA
A5: ENCARGOS SOCIAIS (%) HORISTA 114,15 MENSALISTA 71,31
A7: CODIGO | B7: DESCRICAO DO INSUMO | C7: UNIDADE | D7: ORIGEM DO PRECO | E7: PRECO MEDIANO R$
A8: 38605 | B8: ABERTURA PARA ENCAIXE DE CUBA OU LAVATORIO EM BANCADA DE MARMORE/ GRANITO OU OUTRO TIPO DE PEDRA NATURAL | C8: UN | D8: CR | E8: 126.16
A9: 11270 | B9: ABRACADEIRA DE LATAO PARA FIXACAO DE CABO PARA-RAIO, DIMENSOES 32 X 24 X 24 MM | C9: UN | D9: CR | E9: 3.56
A10: 412 | B10: ABRACADEIRA DE NYLON PARA AMARRACAO DE CABOS, COMPRIMENTO DE *230* X *7,6* MM | C10: UN | D10: CR | E10: 0.82
A11: 414 | B11: ABRACADEIRA DE NYLON PARA AMARRACAO DE CABOS, COMPRIMENTO DE 100 X 2,5 MM | C11: UN | D11: CR | E11: 0.05
A12: 410 | B12: ABRACADEIRA DE NYLON PARA AMARRACAO DE CABOS, COMPRIMENTO DE 150 X *3,6* MM | C12: UN | D12: CR | E12: 0.12
A13: 411 | B13: ABRACADEIRA DE NYLON PARA AMARRACAO DE CABOS, COMPRIMENTO DE 200 X *4,6* MM | C13: UN | D13: C | E13: 0.16
A14: 408 | B14: ABRACADEIRA DE NYLON PARA AMARRACAO DE CABOS, COMPRIMENTO DE 390 X *4,6* MM | C14: UN | D14: CR | E14: 0.79
A15: 39131 | B15: ABRACADEIRA EM ACO PARA AMARRACAO DE ELETRODUTOS, TIPO D, COM 1 1/2" E CUNHA DE FIXACAO | C15: UN | D15: CR | E15: 6.28
A16: 394 | B16: ABRACADEIRA EM ACO PARA AMARRACAO DE ELETRODUTOS, TIPO D, COM 1 1/2" E PARAFUSO DE FIXACAO | C16: UN | D16: CR | E16: 6.35
A17: 39130 | B17: ABRACADEIRA EM ACO PARA AMARRACAO DE ELETRODUTOS, TIPO D, COM 1 1/4" E CUNHA DE FIXACAO | C17: UN | D17: CR | E17: 5.73
A18: 395 | B18: ABRACADEIRA EM ACO PARA AMARRACAO DE ELETRODUTOS, TIPO D, COM 1 1/4" E PARAFUSO DE FIXACAO | C18: UN | D18: CR | E18: 6.12
A19: 39127 | B19: ABRACADEIRA EM ACO PARA AMARRACAO DE ELETRODUTOS, TIPO D, COM 1/2" E CUNHA DE FIXACAO | C19: UN | D19: CR | E19: 3.02
A20: 392 | B20: ABRACADEIRA EM ACO PARA AMARRACAO DE ELETRODUTOS, TIPO D, COM 1/2" E PARAFUSO DE FIXACAO | C20: UN | D20: CR | E20: 3.1
A21: 39129 | B21: ABRACADEIRA EM ACO PARA AMARRACAO DE ELETRODUTOS, TIPO D, COM 1" E CUNHA DE FIXACAO | C21: UN | D21: CR | E21: 3.53
A22: 393 | B22: ABRACADEIRA EM ACO PARA AMARRACAO DE ELETRODUTOS, TIPO D, COM 1" E PARAFUSO DE FIXACAO | C22: UN | D22: C | E22: 3.69
A23: 39133 | B23: ABRACADEIRA EM ACO PARA AMARRACAO DE ELETRODUTOS, TIPO D, COM 2 1/2" E CUNHA DE FIXACAO | C23: UN | D23: CR | E23: 8.24
A24: 397 | B24: ABRACADEIRA EM ACO PARA AMARRACAO DE ELETRODUTOS, TIPO D, COM 2 1/2" E PARAFUSO DE FIXACAO | C24: UN | D24: CR | E24: 9.1
A25: 39132 | B25: ABRACADEIRA EM ACO PARA AMARRACAO DE ELETRODUTOS, TIPO D, COM 2" E CUNHA DE FIXACAO | C25: UN | D25: CR | E25: 6.59
A26: 396 | B26: ABRACADEIRA EM ACO PARA AMARRACAO DE ELETRODUTOS, TIPO D, COM 2" E PARAFUSO DE FIXACAO | C26: UN | D26: CR | E26: 7.06
A27: 39135 | B27: ABRACADEIRA EM ACO PARA AMARRACAO DE ELETRODUTOS, TIPO D, COM 3 1/2" E CUNHA DE FIXACAO | C27: UN | D27: CR | E27: 13.18
A28: 39128 | B28: ABRACADEIRA EM ACO PARA AMARRACAO DE ELETRODUTOS, TIPO D, COM 3/4" E CUNHA DE FIXACAO | C28: UN | D28: CR | E28: 3.29
A29: 400 | B29: ABRACADEIRA EM ACO PARA AMARRACAO DE ELETRODUTOS, TIPO D, COM 3/4" E PARAFUSO DE FIXACAO | C29: UN | D29: CR | E29: 3.21
A30: 39125 | B30: ABRACADEIRA EM ACO PARA AMARRACAO DE ELETRODUTOS, TIPO D, COM 3/8" E PARAFUSO DE FIXACAO | C30: UN | D30: CR | E30: 3.29
A31: 39134 | B31: ABRACADEIRA EM ACO PARA AMARRACAO DE ELETRODUTOS, TIPO D, COM 3" E CUNHA DE FIXACAO | C31: UN | D31: CR | E31: 10.99
A32: 398 | B32: ABRACADEIRA EM ACO PARA AMARRACAO DE ELETRODUTOS, TIPO D, COM 3" E PARAFUSO DE FIXACAO | C32: UN | D32: CR | E32: 10.12
A33: 39126 | B33: ABRACADEIRA EM ACO PARA AMARRACAO DE ELETRODUTOS, TIPO D, COM 4" E CUNHA DE FIXACAO | C33: UN | D33: CR | E33: 14.83
A34: 399 | B34: ABRACADEIRA EM ACO PARA AMARRACAO DE ELETRODUTOS, TIPO D, COM 4" E PARAFUSO DE FIXACAO | C34: UN | D34: CR | E34: 13.07
A35: 39158 | B35: ABRACADEIRA EM ACO PARA AMARRACAO DE ELETRODUTOS, TIPO ECONOMICA (GOTA), COM 8" | C35: UN | D35: CR | E35: 35.09
A36: 39141 | B36: ABRACADEIRA EM ACO PARA AMARRACAO DE ELETRODUTOS, TIPO U SIMPLES, COM 1 1/2" | C36: UN | D36: CR | E36: 2.55
A37: 39140 | B37: ABRACADEIRA EM ACO PARA AMARRACAO DE ELETRODUTOS, TIPO U SIMPLES, COM 1 1/4" | C37: UN | D37: CR | E37: 2.31
A38: 39137 | B38: ABRACADEIRA EM ACO PARA AMARRACAO DE ELETRODUTOS, TIPO U SIMPLES, COM 1/2" | C38: UN | D38: CR | E38: 1.33
A39: 39139 | B39: ABRACADEIRA EM ACO PARA AMARRACAO DE ELETRODUTOS, TIPO U SIMPLES, COM 1" | C39: UN | D39: CR | E39: 1.92
A40: 39143 | B40: ABRACADEIRA EM ACO PARA AMARRACAO DE ELETRODUTOS, TIPO U SIMPLES, COM 2 1/2" | C40: UN | D40: CR | E40: 5.26
A41: 39142 | B41: ABRACADEIRA EM ACO PARA AMARRACAO DE ELETRODUTOS, TIPO U SIMPLES, COM 2" | C41: UN | D41: CR | E41: 3.76
A42: 39138 | B42: ABRACADEIRA EM ACO PARA AMARRACAO DE ELETRODUTOS, TIPO U SIMPLES, COM 3/4" | C42: UN | D42: CR | E42: 1.41
A43: 39136 | B43: ABRACADEIRA EM ACO PARA AMARRACAO DE ELETRODUTOS, TIPO U SIMPLES, COM 3/8" | C43: UN | D43: CR | E43: 0.94
A44: 39144 | B44: ABRACADEIRA EM ACO PARA AMARRACAO DE ELETRODUTOS, TIPO U SIMPLES, COM 3" | C44: UN | D44: CR | E44: 6.12
A45: 39145 | B45: ABRACADEIRA EM ACO PARA AMARRACAO DE ELETRODUTOS, TIPO U SIMPLES, COM 4" | C45: UN | D45: CR | E45: 10.08
A46: 12615 | B46: ABRACADEIRA PVC, PARA CALHA PLUVIAL, DIAMETRO ENTRE *80 E 100* MM, PARA DRENAGEM PLUVIAL PREDIAL | C46: UN | D46: CR | E46: 12.34
A47: 11927 | B47: ABRACADEIRA, GALVANIZADA/ZINCADA, ROSCA SEM FIM, PARAFUSO INOX, LARGURA FITA *12,6 A *14 MM, D = 2" A 2 1/2" | C47: UN | D47: CR | E47: 10.64
A48: 11928 | B48: ABRACADEIRA, GALVANIZADA/ZINCADA, ROSCA SEM FIM, PARAFUSO INOX, LARGURA FITA *12,6 A *14 MM, D = 3" A 3 3/4" | C48: UN | D48: CR | E48: 12.18
A49: 11929 | B49: ABRACADEIRA, GALVANIZADA/ZINCADA, ROSCA SEM FIM, PARAFUSO INOX, LARGURA FITA *12,6 A *14 MM, D = 4" A 4 3/4" | C49: UN | D49: CR | E49: 18.85
A50: 36801 | B50: ACABAMENTO DE METAL CROMADO PARA REGISTRO PEQUENO, DE PAREDE, 1/2 " OU 3/4 " | C50: UN | D50: CR | E50: 32.06
A51: 36246 | B51: ACABAMENTO SIMPLES/CONVENCIONAL PARA FORRO PVC, TIPO "U" OU "C", COR BRANCA, COMPRIMENTO 6 M | C51: M | D51: AS | E51: 4.44
A52: 37600 | B52: ACESSORIO DE LIGACAO NAO ELETRICO PARA CARGAS EXPLOSIVAS, TUBO DE 6 M | C52: UN | D52: AS | E52: 104.86
A53: 37599 | B53: ACESSORIO INICIADOR NAO ELETRICO, TUBO DE 6 M, TEMPO DE RETARDO DE *160* MS | C53: UN | D53: AS | E53: 97.6
A54: 1 | B54: ACETILENO (RECARGA DE GAS ACETILENO PARA CILINDRO DE CONJUNTO OXICORTE GRANDE) NAO INCLUI TROCA/MANUTENCAO DO CILINDRO | C54: KG | D54: C | E54: 85
A55: 3 | B55: ACIDO CLORIDRICO / ACIDO MURIATICO, DILUICAO 10% A 12% PARA USO EM LIMPEZA | C55: L | D55: CR | E55: 15.41
A56: 43054 | B56: ACO CA-25, 10,0 MM, OU 12,5 MM, OU 16,0 MM, OU 20,0 MM, OU 25,0 MM, VERGALHAO | C56: KG | D56: CR | E56: 9.34
A57: 42402 | B57: ACO CA-25, 16,0 MM, BARRA DE TRANSFERENCIA | C57: KG | D57: CR | E57: 8.92
A58: 42403 | B58: ACO CA-25, 20,0 MM, BARRA DE TRANSFERENCIA | C58: KG | D58: CR | E58: 11.45
A59: 42404 | B59: ACO CA-25, 25,0 MM, BARRA DE TRANSFERENCIA | C59: KG | D59: CR | E59: 11.39
A60: 42405 | B60: ACO CA-25, 32,0 MM, BARRA DE TRANSFERENCIA | C60: KG | D60: CR | E60: 12.13
A61: 34341 | B61: ACO CA-25, 32,0 MM, VERGALHAO | C61: KG | D61: CR | E61: 10.53
A62: 43053 | B62: ACO CA-25, 6,3 MM OU 8,0 MM, VERGALHAO | C62: KG | D62: CR | E62: 8.34
A63: 43058 | B63: ACO CA-50, 10,0 MM, OU 12,5 MM, OU 16,0 MM, OU 20,0 MM, DOBRADO E CORTADO | C63: KG | D63: CR | E63: 8.65
A64: 34 | B64: ACO CA-50, 10,0 MM, VERGALHAO | C64: KG | D64: CR | E64: 8.69
A65: 43055 | B65: ACO CA-50, 12,5 MM OU 16,0 MM, VERGALHAO | C65: KG | D65: C | E65: 7.53
A66: 43056 | B66: ACO CA-50, 20,0 MM OU 25,0 MM, VERGALHAO | C66: KG | D66: CR | E66: 8.68
A67: 43057 | B67: ACO CA-50, 32,0 MM, VERGALHAO | C67: KG | D67: CR | E67: 9.54
A68: 34449 | B68: ACO CA-50, 6,3 MM, DOBRADO E CORTADO | C68: KG | D68: CR | E68: 10.2
A69: 32 | B69: ACO CA-50, 6,3 MM, VERGALHAO | C69: KG | D69: CR | E69: 9.17
A70: 33 | B70: ACO CA-50, 8,0 MM, VERGALHAO | C70: KG | D70: CR | E70: 9.22
A71: 43061 | B71: ACO CA-60, 4,2 MM OU 5,0 MM, DOBRADO E CORTADO | C71: KG | D71: CR | E71: 8.62
A72: 43059 | B72: ACO CA-60, 4,2 MM, OU 5,0 MM, OU 6,0 MM, OU 7,0 MM, VERGALHAO | C72: KG | D72: CR | E72: 8.22
A73: 43062 | B73: ACO CA-60, 6,0 MM OU 7,0 MM, DOBRADO E CORTADO | C73: KG | D73: CR | E73: 9.12
A74: 43060 | B74: ACO CA-60, 8,0 MM OU 9,5 MM, VERGALHAO | C74: KG | D74: CR | E74: 7.16
A75: 40410 | B75: ACOPLAMENTO RIGIDO EM FERRO FUNDIDO PARA SISTEMA DE TUBULACAO RANHURADA, DN 50 MM (2") | C75: UN | D75: AS | E75: 23.71
A76: 40411 | B76: ACOPLAMENTO RIGIDO EM FERRO FUNDIDO PARA SISTEMA DE TUBULACAO RANHURADA, DN 65 MM (2 1/2") | C76: UN | D76: AS | E76: 25.73
A77: 40412 | B77: ACOPLAMENTO RIGIDO EM FERRO FUNDIDO PARA SISTEMA DE TUBULACAO RANHURADA, DN 80 MM (3") | C77: UN | D77: AS | E77: 28.88
A78: 44254 | B78: ADAPTADOR CPVC, ROSCAVEL, COM FLANGES E ANEL DE VEDACAO, 15 MM, CAIXA D'AGUA PARA AGUA QUENTE | C78: UN | D78: AS | E78: 23.27
A79: 44255 | B79: ADAPTADOR CPVC, ROSCAVEL, COM FLANGES E ANEL DE VEDACAO, 22 MM, CAIXA D'AGUA PARA AGUA QUENTE | C79: UN | D79: AS | E79: 25.79
A80: 44256 | B80: ADAPTADOR CPVC, ROSCAVEL, COM FLANGES E ANEL DE VEDACAO, 28 MM, CAIXA D'AGUA PARA AGUA QUENTE | C80: UN | D80: AS | E80: 29.13
A81: 44257 | B81: ADAPTADOR CPVC, ROSCAVEL, COM FLANGES E ANEL DE VEDACAO, 35 MM, CAIXA D'AGUA PARA AGUA QUENTE | C81: UN | D81: AS | E81: 46.09
A82: 44258 | B82: ADAPTADOR CPVC, ROSCAVEL, COM FLANGES E ANEL DE VEDACAO, 42 MM, CAIXA D'AGUA PARA AGUA QUENTE | C82: UN | D82: AS | E82: 52.67
A83: 44259 | B83: ADAPTADOR CPVC, ROSCAVEL, COM FLANGES E ANEL DE VEDACAO, 54 MM, CAIXA D'AGUA PARA AGUA QUENTE | C83: UN | D83: AS | E83: 72.3
A84: 37997 | B84: ADAPTADOR CPVC, SOLDAVEL, 15 MM, PARA AGUA QUENTE | C84: UN | D84: AS | E84: 13.87
A85: 37998 | B85: ADAPTADOR CPVC, SOLDAVEL, 22 MM, PARA AGUA QUENTE | C85: UN | D85: AS | E85: 18.56
A86: 55 | B86: ADAPTADOR DE COMPRESSAO EM POLIPROPILENO (PP), PARA TUBO EM PEAD, 20 MM X 1/2", PARA LIGACAO PREDIAL DE AGUA (NTS 179) | C86: UN | D86: AS | E86: 3.87
A87: 61 | B87: ADAPTADOR DE COMPRESSAO EM POLIPROPILENO (PP), PARA TUBO EM PEAD, 20 MM X 3/4", PARA LIGACAO PREDIAL DE AGUA (NTS 179) | C87: UN | D87: AS | E87: 3.66
A88: 62 | B88: ADAPTADOR DE COMPRESSAO EM POLIPROPILENO (PP), PARA TUBO EM PEAD, 32 MM X 1", PARA LIGACAO PREDIAL DE AGUA (NTS 179) | C88: UN | D88: AS | E88: 7.58
A89: 10899 | B89: ADAPTADOR EM LATAO, ENGATE RAPIDO 2 1/2" X ROSCA INTERNA 5 FIOS 2 1/2", PARA INSTALACAO PREDIAL DE COMBATE A INCENDIO | C89: UN | D89: CR | E89: 87.61
A90: 10900 | B90: ADAPTADOR EM LATAO, ENGATE RAPIDO1 1/2" X ROSCA INTERNA 5 FIOS 2 1/2", PARA INSTALACAO PREDIAL DE COMBATE A INCENDIO | C90: UN | D90: CR | E90: 68.57
A91: 103 | B91: ADAPTADOR PVC SOLDAVEL CURTO COM BOLSA E ROSCA, 110 MM X 4", PARA AGUA FRIA | C91: UN | D91: CR | E91: 49.06
A92: 107 | B92: ADAPTADOR PVC SOLDAVEL CURTO COM BOLSA E ROSCA, 20 MM X 1/2", PARA AGUA FRIA | C92: UN | D92: CR | E92: 0.92
A93: 65 | B93: ADAPTADOR PVC SOLDAVEL CURTO COM BOLSA E ROSCA, 25 MM X 3/4", PARA AGUA FRIA | C93: UN | D93: CR | E93: 1.01
A94: 108 | B94: ADAPTADOR PVC SOLDAVEL CURTO COM BOLSA E ROSCA, 32 MM X 1", PARA AGUA FRIA | C94: UN | D94: CR | E94: 2.03
A95: 110 | B95: ADAPTADOR PVC SOLDAVEL CURTO COM BOLSA E ROSCA, 40 MM X 1 1/2", PARA AGUA FRIA | C95: UN | D95: CR | E95: 7.06
A96: 109 | B96: ADAPTADOR PVC SOLDAVEL CURTO COM BOLSA E ROSCA, 40 MM X 1 1/4", PARA AGUA FRIA | C96: UN | D96: CR | E96: 4.2
A97: 111 | B97: ADAPTADOR PVC SOLDAVEL CURTO COM BOLSA E ROSCA, 50 MM X 1 1/4", PARA AGUA FRIA | C97: UN | D97: CR | E97: 9.55
A98: 112 | B98: ADAPTADOR PVC SOLDAVEL CURTO COM BOLSA E ROSCA, 50 MM X1 1/2", PARA AGUA FRIA | C98: UN | D98: CR | E98: 5.06
A99: 113 | B99: ADAPTADOR PVC SOLDAVEL CURTO COM BOLSA E ROSCA, 60 MM X 2", PARA AGUA FRIA | C99: UN | D99: CR | E99: 12.67
A100: 104 | B100: ADAPTADOR PVC SOLDAVEL CURTO COM BOLSA E ROSCA, 75 MM X 2 1/2", PARA AGUA FRIA | C100: UN | D100: CR | E100: 22.05
A101: 102 | B101: ADAPTADOR PVC SOLDAVEL CURTO COM BOLSA E ROSCA, 85 MM X 3", PARA AGUA FRIA | C101: UN | D101: CR | E101: 30.4
A102: 95 | B102: ADAPTADOR PVC SOLDAVEL, COM FLANGE E ANEL DE VEDACAO, 20 MM X 1/2", PARA CAIXA D'AGUA | C102: UN | D102: CR | E102: 12.84
A103: 96 | B103: ADAPTADOR PVC SOLDAVEL, COM FLANGE E ANEL DE VEDACAO, 25 MM X 3/4", PARA CAIXA D'AGUA | C103: UN | D103: CR | E103: 13.97
A104: 97 | B104: ADAPTADOR PVC SOLDAVEL, COM FLANGE E ANEL DE VEDACAO, 32 MM X 1", PARA CAIXA D'AGUA | C104: UN | D104: CR | E104: 21.02
A105: 98 | B105: ADAPTADOR PVC SOLDAVEL, COM FLANGE E ANEL DE VEDACAO, 40 MM X 1 1/4", PARA CAIXA D'AGUA | C105: UN | D105: CR | E105: 31.47
A106: 99 | B106: ADAPTADOR PVC SOLDAVEL, COM FLANGE E ANEL DE VEDACAO, 50 MM X 1 1/2", PARA CAIXA D'AGUA | C106: UN | D106: CR | E106: 29.74
A107: 100 | B107: ADAPTADOR PVC SOLDAVEL, COM FLANGES E ANEL DE VEDACAO, 60 MM X 2", PARA CAIXA D' AGUA | C107: UN | D107: CR | E107: 51.96
A108: 75 | B108: ADAPTADOR PVC SOLDAVEL, COM FLANGES LIVRES, 110 MM X 4", PARA CAIXA D' AGUA | C108: UN | D108: CR | E108: 302.95
A109: 83 | B109: ADAPTADOR PVC SOLDAVEL, COM FLANGES LIVRES, 75 MM X 2 1/2", PARA CAIXA D' AGUA | C109: UN | D109: CR | E109: 242.2
A110: 74 | B110: ADAPTADOR PVC SOLDAVEL, COM FLANGES LIVRES, 85 MM X 3", PARA CAIXA D' AGUA | C110: UN | D110: CR | E110: 346.28
A111: 106 | B111: ADAPTADOR PVC SOLDAVEL, LONGO, COM FLANGE LIVRE, 110 MM X 4", PARA CAIXA D' AGUA | C111: UN | D111: CR | E111: 437.88
A112: 88 | B112: ADAPTADOR PVC SOLDAVEL, LONGO, COM FLANGE LIVRE, 32 MM X 1", PARA CAIXA D' AGUA | C112: UN | D112: CR | E112: 12.31
A113: 82 | B113: ADAPTADOR PVC SOLDAVEL, LONGO, COM FLANGE LIVRE, 75 MM X 2 1/2", PARA CAIXA D' AGUA | C113: UN | D113: CR | E113: 230.43
A114: 105 | B114: ADAPTADOR PVC SOLDAVEL, LONGO, COM FLANGE LIVRE, 85 MM X 3", PARA CAIXA D' AGUA | C114: UN | D114: CR | E114: 326.52
A115: 60 | B115: ADAPTADOR PVC, COM REGISTRO, PARA PEAD, 20 MM X 3/4", PARA LIGACAO PREDIAL DE AGUA | C115: UN | D115: AS | E115: 5.02
A116: 72 | B116: ADAPTADOR PVC, ROSCAVEL, COM FLANGES E ANEL DE VEDACAO, 1 1/2", PARA CAIXA D'AGUA | C116: UN | D116: CR | E116: 57.04
A117: 67 | B117: ADAPTADOR PVC, ROSCAVEL, COM FLANGES E ANEL DE VEDACAO, 1/2", PARA CAIXA D' AGUA | C117: UN | D117: CR | E117: 18.44
A118: 71 | B118: ADAPTADOR PVC, ROSCAVEL, COM FLANGES E ANEL DE VEDACAO, 1", PARA CAIXA D' AGUA | C118: UN | D118: CR | E118: 35.23
A119: 73 | B119: ADAPTADOR PVC, ROSCAVEL, COM FLANGES E ANEL DE VEDACAO, 3/4", PARA CAIXA D' AGUA | C119: UN | D119: CR | E119: 17.65
A120: 46 | B120: ADAPTADOR, PVC PBA, BOLSA/ROSCA, JE, DN 75 / DE 85 MM | C120: UN | D120: AS | E120: 38.06
A121: 47 | B121: ADAPTADOR, PVC PBA, BOLSA/ROSCA, JE, DN 100 / DE 110 MM | C121: UN | D121: AS | E121: 65.07
A122: 48 | B122: ADAPTADOR, PVC PBA, BOLSA/ROSCA, JE, DN 50 / DE 60 MM | C122: UN | D122: AS | E122: 16.97
A123: 52 | B123: ADAPTADOR, PVC PBA, PONTA/ROSCA, JE, DN 50 / DE 60 MM | C123: UN | D123: AS | E123: 12.89
A124: 43 | B124: ADAPTADOR, PVC PBA, PONTA/ROSCA, JE, DN 75 / DE 85 MM | C124: UN | D124: AS | E124: 43.52
A125: 39719 | B125: ADESIVO / COLA DE CONTATO LIQUIDO, A BASE DE RESINAS, PARA COLAGEM DE ESPUMA PARA ISOLAMENTO TERMICO FLEXIVEL | C125: L | D125: CR | E125: 140.11
A126: 3410 | B126: ADESIVO / COLA PARA EPS (ISOPOR) E OUTROS MATERIAIS | C126: KG | D126: CR | E126: 31.51
A127: 4791 | B127: ADESIVO ACRILICO DE BASE AQUOSA / COLA DE CONTATO | C127: KG | D127: CR | E127: 30.2
A128: 157 | B128: ADESIVO ESTRUTURAL A BASE DE RESINA EPOXI PARA INJECAO EM TRINCAS, BICOMPONENTE, BAIXA VISCOSIDADE | C128: KG | D128: CR | E128: 174.64
A129: 156 | B129: ADESIVO ESTRUTURAL A BASE DE RESINA EPOXI, BICOMPONENTE, FLUIDO | C129: KG | D129: CR | E129: 62.18
A130: 131 | B130: ADESIVO ESTRUTURAL A BASE DE RESINA EPOXI, BICOMPONENTE, PASTOSO (TIXOTROPICO) | C130: KG | D130: CR | E130: 53.18
A131: 21114 | B131: ADESIVO PARA TUBOS CPVC, *75* G | C131: UN | D131: CR | E131: 27.62
A132: 119 | B132: ADESIVO PLASTICO PARA PVC, BISNAGA COM 75 GR | C132: UN | D132: C | E132: 7
A133: 122 | B133: ADESIVO PLASTICO PARA PVC, FRASCO COM *850* GR | C133: UN | D133: CR | E133: 53.86
A134: 20080 | B134: ADESIVO PLASTICO PARA PVC, FRASCO COM 175 GR | C134: UN | D134: CR | E134: 17.58
A135: 124 | B135: ADITIVO ACELERADOR DE PEGA E ENDURECIMENTO PARA ARGAMASSAS E CONCRETOS, LIQUIDO E ISENTO DE CLORETOS | C135: L | D135: CR | E135: 20.51
A136: 7334 | B136: ADITIVO ADESIVO LIQUIDO PARA ARGAMASSAS DE REVESTIMENTOS CIMENTICIOS | C136: L | D136: AS | E136: 17.42
A137: 123 | B137: ADITIVO IMPERMEABILIZANTE DE PEGA NORMAL PARA ARGAMASSAS E CONCRETOS SEM ARMACAO, LIQUIDO E ISENTO DE CLORETOS | C137: L | D137: C | E137: 8.39
A138: 127 | B138: ADITIVO IMPERMEABILIZANTE DE PEGA ULTRARRAPIDA, LIQUIDO E ISENTO DE CLORETOS | C138: L | D138: CR | E138: 20.03
A139: 41373 | B139: ADITIVO LIQUIDO IMPERMEABILIZANTE CRISTALIZANTE | C139: L | D139: CR | E139: 27.91
A140: 133 | B140: ADITIVO LIQUIDO INCORPORADOR DE AR PARA CONCRETO E ARGAMASSA, LIQUIDO E ISENTO DE CLORETOS | C140: L | D140: CR | E140: 8.32
A141: 43617 | B141: ADITIVO PLASTIFICANTE E ESTABILIZADOR PARA ARGAMASSAS DE ASSENTAMENTO E REBOCO, LIQUIDO E ISENTO DE CLORETOS | C141: L | D141: CR | E141: 9.29
A142: 132 | B142: ADITIVO PLASTIFICANTE RETARDADOR DE PEGA E REDUTOR DE AGUA PARA CONCRETO, LIQUIDO E ISENTO DE CLORETOS | C142: L | D142: CR | E142: 8.62
A143: 43618 | B143: ADITIVO SUPERPLASTIFICANTE DE PEGA NORMAL PARA CONCRETO, LIQUIDO E ISENTO DE CLORETOS | C143: KG | D143: CR | E143: 21.71
A144: 37476 | B144: ADUELA/ GALERIA PRE-MOLDADA DE CONCRETO ARMADO, SECAO QUADRADA INTERNA DE 1,50 X 1,50 M (L X A), MISULA DE 20 X 20 CM, C = 1,00 M, ESPESSURA MIN = 15 CM, TB-45 E FCK DO CONCRETO = 30 MPA | C144: UN | D144: AS | E144: 3890.78
A145: 37478 | B145: ADUELA/ GALERIA PRE-MOLDADA DE CONCRETO ARMADO, SECAO RETANGULAR INTERNA DE 2,00 X 2,00 M (L X A), MISULA DE 20 X 20 CM, C = 1,00 M, ESPESSURA MIN = 15 CM, TB-45 E FCK DO CONCRETO = 30 MPA | C145: UN | D145: AS | E145: 4873.3
A146: 37477 | B146: ADUELA/ GALERIA PRE-MOLDADA DE CONCRETO ARMADO, SECAO RETANGULAR INTERNA DE 2,50 X 2,50 M (L X A), MISULA DE 20 X 20 CM, C = 1,00 M, ESPESSURA MIN = 15 CM, TB-45 E FCK DO CONCRETO = 30 MPA | C146: UN | D146: AS | E146: 6602.54
A147: 37479 | B147: ADUELA/ GALERIA PRE-MOLDADA DE CONCRETO ARMADO, SECAO RETANGULAR INTERNA DE 3,00 X 3,00 M (L X A), MISULA DE 20 X 20 CM, C = 1.00 M, ESPESSURA MIN = 20 CM, TB-45 E FCK DO CONCRETO = 30 MPA | C147: UN | D147: AS | E147: 7830.69
A148: 4319 | B148: AFASTADOR PARA TELHA DE FIBROCIMENTO CANALETE 90 OU KALHETAO | C148: UN | D148: CR | E148: 1.73
A149: 42409 | B149: AGENTE DE CURA, PROTETOR DA EVAPORACAO DA AGUA DE HIDRATACAO DO CONCRETO | C149: KG | D149: CR | E149: 13.67
A150: 40553 | B150: AGREGADO RECICLADO, TIPO RACHAO RECICLADO CINZA, CLASSE A | C150: M3 | D150: AS | E150: 52.5
A151: 6114 | B151: AJUDANTE DE ARMADOR (HORISTA) | C151: H | D151: CR | E151: 12.8
A152: 40912 | B152: AJUDANTE DE ARMADOR (MENSALISTA) | C152: MES | D152: CR | E152: 2254.23
A153: 247 | B153: AJUDANTE DE ELETRICISTA (HORISTA) | C153: H | D153: CR | E153: 14.41
A154: 40919 | B154: AJUDANTE DE ELETRICISTA (MENSALISTA) | C154: MES | D154: CR | E154: 2538.31
A155: 40984 | B155: AJUDANTE DE ESTRUTURAS METALICAS (MENSALISTA) | C155: MES | D155: CR | E155: 1814.42
A156: 44499 | B156: AJUDANTE DE ESTRUTURAS METALICAS HORISTA | C156: H | D156: CR | E156: 10.3
A157: 248 | B157: AJUDANTE DE OPERACAO EM GERAL (HORISTA) | C157: H | D157: CR | E157: 13.36
A158: 41086 | B158: AJUDANTE DE OPERACAO EM GERAL (MENSALISTA) | C158: MES | D158: CR | E158: 2352.22
A159: 34466 | B159: AJUDANTE DE PINTOR (HORISTA) | C159: H | D159: CR | E159: 14.41
A160: 41083 | B160: AJUDANTE DE PINTOR (MENSALISTA) | C160: MES | D160: CR | E160: 2538.31
A161: 252 | B161: AJUDANTE DE SERRALHEIRO (HORISTA) | C161: H | D161: CR | E161: 14.41
A162: 40909 | B162: AJUDANTE DE SERRALHEIRO (MENSALISTA) | C162: MES | D162: CR | E162: 2538.33
A163: 242 | B163: AJUDANTE ESPECIALIZADO (HORISTA) | C163: H | D163: CR | E163: 14.06
A164: 41085 | B164: AJUDANTE ESPECIALIZADO (MENSALISTA) | C164: MES | D164: CR | E164: 2478.34
A165: 427 | B165: ALCA PREFORMADA DE CONTRA POSTE, EM ACO GALVANIZADO, PARA CABO 3/16", COMPRIMENTO *860* MM | C165: UN | D165: AS | E165: 6.31
A166: 417 | B166: ALCA PREFORMADA DE DISTRIBUICAO, EM ACO GALVANIZADO, PARA CABO DE ALUMINIO DIAMETRO 16 A 25 MM | C166: UN | D166: AS | E166: 2.97
A167: 11273 | B167: ALCA PREFORMADA DE DISTRIBUICAO, EM ACO GALVANIZADO, PARA CONDUTORES DE ALUMINIO AWG 1/0 (CAA 6/1 OU CA 7 FIOS) | C167: UN | D167: AS | E167: 9.22
A168: 11272 | B168: ALCA PREFORMADA DE DISTRIBUICAO, EM ACO GALVANIZADO, PARA CONDUTORES DE ALUMINIO AWG 2 (CAA 6/1 OU CA 7 FIOS) | C168: UN | D168: AS | E168: 5.57
A169: 11275 | B169: ALCA PREFORMADA DE SERVICO, EM ACO GALVANIZADO, PARA CONDUTORES DE ALUMINIO AWG 4 (CAA 6/1) | C169: UN | D169: AS | E169: 2.23
A170: 11274 | B170: ALCA PREFORMADA DE SERVICO, EM ACO GALVANIZADO, PARA CONDUTORES DE ALUMINIO AWG 6 (CAA 6/1) | C170: UN | D170: AS | E170: 1.7
A171: 38470 | B171: ALICATE DE CORTE DIAGONAL 6 " COM ISOLAMENTO | C171: UN | D171: C | E171: 56.8
A172: 38547 | B172: ALICATE DE CRIMPAR RJ11, RJ12 E RJ45 | C172: UN | D172: CR | E172: 155
A173: 38469 | B173: ALICATE DE PRESSAO PARA SOLDA DE CHAPA 18 " | C173: UN | D173: CR | E173: 166.66
A174: 38467 | B174: ALICATE DE PRESSAO 11 " PARA SOLDA, TIPO C | C174: UN | D174: CR | E174: 93.78
A175: 38468 | B175: ALICATE DE PRESSAO 11 " PARA SOLDA, TIPO U | C175: UN | D175: CR | E175: 103.19
A176: 38471 | B176: ALICATE PARA ANEIS DE PISTAO, CAPACIDADE 50 A 100 MM | C176: UN | D176: CR | E176: 134.01
A177: 37370 | B177: ALIMENTACAO - HORISTA (COLETADO CAIXA - ENCARGOS COMPLEMENTARES) | C177: H | D177: C | E177: 3.19
A178: 40862 | B178: ALIMENTACAO - MENSALISTA (COLETADO CAIXA - ENCARGOS COMPLEMENTARES) | C178: MES | D178: C | E178: 600.76
A179: 10658 | B179: ALISADORA DE CONCRETO COM MOTOR A GASOLINA DE 5,5 HP, PESO COM MOTOR DE 78 KG, 4 PAS | C179: UN | D179: AS | E179: 7359
A180: 253 | B180: ALMOXARIFE (HORISTA) | C180: H | D180: C | E180: 19.42
A181: 40809 | B181: ALMOXARIFE (MENSALISTA) | C181: MES | D181: CR | E181: 3418.31
A182: 42428 | B182: ALONGADOR COM TRES ALTURAS, EM TUBO DE ACO CARBONO, PINTURA NO PROCESSO ELETROSTATICO - EQUIPAMENTO DE GINASTICA PARA ACADEMIA AO AR LIVRE / ACADEMIA DA TERCEIRA IDADE - ATI | C182: UN | D182: AS | E182: 2271
A183: 301 | B183: ANEL BORRACHA PARA TUBO ESGOTO PREDIAL, DN 100 MM (NBR 5688) | C183: UN | D183: C | E183: 4.29
A184: 296 | B184: ANEL BORRACHA PARA TUBO ESGOTO PREDIAL, DN 50 MM (NBR 5688) | C184: UN | D184: CR | E184: 2.42
A185: 297 | B185: ANEL BORRACHA PARA TUBO ESGOTO PREDIAL, DN 75 MM (NBR 5688) | C185: UN | D185: CR | E185: 3.56
A186: 299 | B186: ANEL BORRACHA, DN 100 MM, PARA TUBO SERIE REFORCADA ESGOTO PREDIAL | C186: UN | D186: CR | E186: 5.03
A187: 300 | B187: ANEL BORRACHA, DN 150 MM, PARA TUBO SERIE REFORCADA ESGOTO PREDIAL | C187: UN | D187: CR | E187: 17.41
A188: 20085 | B188: ANEL BORRACHA, DN 50 MM, PARA TUBO SERIE REFORCADA ESGOTO PREDIAL | C188: UN | D188: CR | E188: 3.18
A189: 298 | B189: ANEL BORRACHA, DN 75 MM, PARA TUBO SERIE REFORCADA ESGOTO PREDIAL | C189: UN | D189: CR | E189: 3.87
A190: 311 | B190: ANEL BORRACHA, PARA TUBO PVC DEFOFO, DN 100 MM (NBR 7665) | C190: UN | D190: CR | E190: 14.36
A191: 318 | B191: ANEL BORRACHA, PARA TUBO PVC DEFOFO, DN 150 MM (NBR 7665) | C191: UN | D191: CR | E191: 28.92
A192: 319 | B192: ANEL BORRACHA, PARA TUBO PVC DEFOFO, DN 200 MM (NBR 7665) | C192: UN | D192: CR | E192: 45.35
A193: 303 | B193: ANEL BORRACHA, PARA TUBO PVC, REDE COLETOR ESGOTO, DN 100 MM (NBR 7362) | C193: UN | D193: CR | E193: 4.75
A194: 305 | B194: ANEL BORRACHA, PARA TUBO PVC, REDE COLETOR ESGOTO, DN 150 MM (NBR 7362) | C194: UN | D194: CR | E194: 14.95
A195: 306 | B195: ANEL BORRACHA, PARA TUBO PVC, REDE COLETOR ESGOTO, DN 200 MM (NBR 7362) | C195: UN | D195: CR | E195: 22.67
A196: 307 | B196: ANEL BORRACHA, PARA TUBO PVC, REDE COLETOR ESGOTO, DN 250 MM (NBR 7362) | C196: UN | D196: CR | E196: 57.28
A197: 309 | B197: ANEL BORRACHA, PARA TUBO PVC, REDE COLETOR ESGOTO, DN 350 MM (NBR 7362) | C197: UN | D197: CR | E197: 93.84
A198: 310 | B198: ANEL BORRACHA, PARA TUBO PVC, REDE COLETOR ESGOTO, DN 400 MM (NBR 7362) | C198: UN | D198: CR | E198: 130.06
A199: 328 | B199: ANEL BORRACHA, PARA TUBO/CONEXAO PVC PBA, DN 100 MM, PARA REDE AGUA | C199: UN | D199: CR | E199: 11.37
A200: 325 | B200: ANEL BORRACHA, PARA TUBO/CONEXAO PVC PBA, DN 50 MM, PARA REDE AGUA | C200: UN | D200: CR | E200: 3.35
A201: 20326 | B201: ANEL BORRACHA, PARA TUBO/CONEXAO PVC PBA, DN 60 MM, PARA REDE AGUA | C201: UN | D201: CR | E201: 6.14
A202: 329 | B202: ANEL BORRACHA, PARA TUBO/CONEXAO PVC PBA, DN 75 MM, PARA REDE AGUA | C202: UN | D202: CR | E202: 9.51
... 4740 more rows

Sheet COMP Sint. Sinapi
A1: PCI.817.01 - CUSTO DE COMPOSIÇÕES - SINTÉTICO DATA DE EMISSÃO: 16/10/2023 23:17:02 DATA DE RT: 16/10/2023
A2: ENCARGOS SOCIAIS SOBRE PREÇOS DA MÃO-DE-OBRA: 114,15%(HORA) 71,31%(MÊS)
A3: ABRANGÊNCIA : NACIONAL LOCALIDADE : FORTALEZA DATA DE PREÇO : 09/2023 REFERÊNCIA COLETA : MEDIANO
A5: DESCRICAO DA CLASSE | B5: SIGLA DA CLASSE | C5: DESCRICAO DO TIPO 1 | D5: SIGLA DO TIPO 1 | E5: CODIGO DO AGRUPADOR | F5: DESCRICAO DO AGRUPADOR | G5: CODIGO DA COMPOSICAO | H5: DESCRICAO DA COMPOSICAO | I5: UNIDADE | J5: ORIGEM DE PREÇO | K5: CUSTO TOTAL | L5: VINCULO
F6: 1
A7: ASSENTAMENTO DE TUBOS E PECAS | B7: ASTU | C7: FORNEC E/OU ASSENT DE TUBO DE FERRO FUNDIDO JUNTA ELASTICA | D7: 45 | G7: 97141 | H7: ASSENTAMENTO DE TUBO DE FERRO FUNDIDO PARA REDE DE ÁGUA, DN 80 MM, JUNTA ELÁSTICA, INSTALADO EM LOCAL COM NÍVEL ALTO DE INTERFERÊNCIAS (NÃO INCLUI FORNECIMENTO). AF_11/2017 | I7: M | J7: ATRIBUÍDO SÃO PAULO | K7: 7.69 | L7: CAIXA REFERENCIAL
A8: ASSENTAMENTO DE TUBOS E PECAS | B8: ASTU | C8: FORNEC E/OU ASSENT DE TUBO DE FERRO FUNDIDO JUNTA ELASTICA | D8: 45 | G8: 97142 | H8: ASSENTAMENTO DE TUBO DE FERRO FUNDIDO PARA REDE DE ÁGUA, DN 100 MM, JUNTA ELÁSTICA, INSTALADO EM LOCAL COM NÍVEL ALTO DE INTERFERÊNCIAS (NÃO INCLUI FORNECIMENTO). AF_11/2017 | I8: M | J8: ATRIBUÍDO SÃO PAULO | K8: 8.53 | L8: CAIXA REFERENCIAL
A9: ASSENTAMENTO DE TUBOS E PECAS | B9: ASTU | C9: FORNEC E/OU ASSENT DE TUBO DE FERRO FUNDIDO JUNTA ELASTICA | D9: 45 | G9: 97143 | H9: ASSENTAMENTO DE TUBO DE FERRO FUNDIDO PARA REDE DE ÁGUA, DN 150 MM, JUNTA ELÁSTICA, INSTALADO EM LOCAL COM NÍVEL ALTO DE INTERFERÊNCIAS (NÃO INCLUI FORNECIMENTO). AF_11/2017 | I9: M | J9: ATRIBUÍDO SÃO PAULO | K9: 10.65 | L9: CAIXA REFERENCIAL
A10: ASSENTAMENTO DE TUBOS E PECAS | B10: ASTU | C10: FORNEC E/OU ASSENT DE TUBO DE FERRO FUNDIDO JUNTA ELASTICA | D10: 45 | G10: 97144 | H10: ASSENTAMENTO DE TUBO DE FERRO FUNDIDO PARA REDE DE ÁGUA, DN 200 MM, JUNTA ELÁSTICA, INSTALADO EM LOCAL COM NÍVEL ALTO DE INTERFERÊNCIAS (NÃO INCLUI FORNECIMENTO). AF_11/2017 | I10: M | J10: ATRIBUÍDO SÃO PAULO | K10: 12.74 | L10: CAIXA REFERENCIAL
A11: ASSENTAMENTO DE TUBOS E PECAS | B11: ASTU | C11: FORNEC E/OU ASSENT DE TUBO DE FERRO FUNDIDO JUNTA ELASTICA | D11: 45 | G11: 97145 | H11: ASSENTAMENTO DE TUBO DE FERRO FUNDIDO PARA REDE DE ÁGUA, DN 250 MM, JUNTA ELÁSTICA, INSTALADO EM LOCAL COM NÍVEL ALTO DE INTERFERÊNCIAS (NÃO INCLUI FORNECIMENTO). AF_11/2017 | I11: M | J11: ATRIBUÍDO SÃO PAULO | K11: 14.88 | L11: CAIXA REFERENCIAL
A12: ASSENTAMENTO DE TUBOS E PECAS | B12: ASTU | C12: FORNEC E/OU ASSENT DE TUBO DE FERRO FUNDIDO JUNTA ELASTICA | D12: 45 | G12: 97146 | H12: ASSENTAMENTO DE TUBO DE FERRO FUNDIDO PARA REDE DE ÁGUA, DN 300 MM, JUNTA ELÁSTICA, INSTALADO EM LOCAL COM NÍVEL ALTO DE INTERFERÊNCIAS (NÃO INCLUI FORNECIMENTO). AF_11/2017 | I12: M | J12: ATRIBUÍDO SÃO PAULO | K12: 16.99 | L12: CAIXA REFERENCIAL
A13: ASSENTAMENTO DE TUBOS E PECAS | B13: ASTU | C13: FORNEC E/OU ASSENT DE TUBO DE FERRO FUNDIDO JUNTA ELASTICA | D13: 45 | G13: 97147 | H13: ASSENTAMENTO DE TUBO DE FERRO FUNDIDO PARA REDE DE ÁGUA, DN 350 MM, JUNTA ELÁSTICA, INSTALADO EM LOCAL COM NÍVEL ALTO DE INTERFERÊNCIAS (NÃO INCLUI FORNECIMENTO). AF_11/2017 | I13: M | J13: ATRIBUÍDO SÃO PAULO | K13: 19.13 | L13: CAIXA REFERENCIAL
A14: ASSENTAMENTO DE TUBOS E PECAS | B14: ASTU | C14: FORNEC E/OU ASSENT DE TUBO DE FERRO FUNDIDO JUNTA ELASTICA | D14: 45 | G14: 97148 | H14: ASSENTAMENTO DE TUBO DE FERRO FUNDIDO PARA REDE DE ÁGUA, DN 400 MM, JUNTA ELÁSTICA, INSTALADO EM LOCAL COM NÍVEL ALTO DE INTERFERÊNCIAS (NÃO INCLUI FORNECIMENTO). AF_11/2017 | I14: M | J14: ATRIBUÍDO SÃO PAULO | K14: 21.25 | L14: CAIXA REFERENCIAL
A15: ASSENTAMENTO DE TUBOS E PECAS | B15: ASTU | C15: FORNEC E/OU ASSENT DE TUBO DE FERRO FUNDIDO JUNTA ELASTICA | D15: 45 | G15: 97149 | H15: ASSENTAMENTO DE TUBO DE FERRO FUNDIDO PARA REDE DE ÁGUA, DN 450 MM, JUNTA ELÁSTICA, INSTALADO EM LOCAL COM NÍVEL ALTO DE INTERFERÊNCIAS (NÃO INCLUI FORNECIMENTO). AF_11/2017 | I15: M | J15: ATRIBUÍDO SÃO PAULO | K15: 23.41 | L15: CAIXA REFERENCIAL
A16: ASSENTAMENTO DE TUBOS E PECAS | B16: ASTU | C16: FORNEC E/OU ASSENT DE TUBO DE FERRO FUNDIDO JUNTA ELASTICA | D16: 45 | G16: 97150 | H16: ASSENTAMENTO DE TUBO DE FERRO FUNDIDO PARA REDE DE ÁGUA, DN 500 MM, JUNTA ELÁSTICA, INSTALADO EM LOCAL COM NÍVEL ALTO DE INTERFERÊNCIAS (NÃO INCLUI FORNECIMENTO). AF_11/2017 | I16: M | J16: ATRIBUÍDO SÃO PAULO | K16: 30.41 | L16: CAIXA REFERENCIAL
A17: ASSENTAMENTO DE TUBOS E PECAS | B17: ASTU | C17: FORNEC E/OU ASSENT DE TUBO DE FERRO FUNDIDO JUNTA ELASTICA | D17: 45 | G17: 97151 | H17: ASSENTAMENTO DE TUBO DE FERRO FUNDIDO PARA REDE DE ÁGUA, DN 600 MM, JUNTA ELÁSTICA, INSTALADO EM LOCAL COM NÍVEL ALTO DE INTERFERÊNCIAS (NÃO INCLUI FORNECIMENTO). AF_11/2017 | I17: M | J17: ATRIBUÍDO SÃO PAULO | K17: 35.4 | L17: CAIXA REFERENCIAL
A18: ASSENTAMENTO DE TUBOS E PECAS | B18: ASTU | C18: FORNEC E/OU ASSENT DE TUBO DE FERRO FUNDIDO JUNTA ELASTICA | D18: 45 | G18: 97152 | H18: ASSENTAMENTO DE TUBO DE FERRO FUNDIDO PARA REDE DE ÁGUA, DN 700 MM, JUNTA ELÁSTICA, INSTALADO EM LOCAL COM NÍVEL ALTO DE INTERFERÊNCIAS (NÃO INCLUI FORNECIMENTO). AF_11/2017 | I18: M | J18: ATRIBUÍDO SÃO PAULO | K18: 40.18 | L18: CAIXA REFERENCIAL
A19: ASSENTAMENTO DE TUBOS E PECAS | B19: ASTU | C19: FORNEC E/OU ASSENT DE TUBO DE FERRO FUNDIDO JUNTA ELASTICA | D19: 45 | G19: 97153 | H19: ASSENTAMENTO DE TUBO DE FERRO FUNDIDO PARA REDE DE ÁGUA, DN 800 MM, JUNTA ELÁSTICA, INSTALADO EM LOCAL COM NÍVEL ALTO DE INTERFERÊNCIAS (NÃO INCLUI FORNECIMENTO). AF_11/2017 | I19: M | J19: ATRIBUÍDO SÃO PAULO | K19: 45.07 | L19: CAIXA REFERENCIAL
A20: ASSENTAMENTO DE TUBOS E PECAS | B20: ASTU | C20: FORNEC E/OU ASSENT DE TUBO DE FERRO FUNDIDO JUNTA ELASTICA | D20: 45 | G20: 97154 | H20: ASSENTAMENTO DE TUBO DE FERRO FUNDIDO PARA REDE DE ÁGUA, DN 900 MM, JUNTA ELÁSTICA, INSTALADO EM LOCAL COM NÍVEL ALTO DE INTERFERÊNCIAS (NÃO INCLUI FORNECIMENTO). AF_11/2017 | I20: M | J20: ATRIBUÍDO SÃO PAULO | K20: 50.01 | L20: CAIXA REFERENCIAL
A21: ASSENTAMENTO DE TUBOS E PECAS | B21: ASTU | C21: FORNEC E/OU ASSENT DE TUBO DE FERRO FUNDIDO JUNTA ELASTICA | D21: 45 | G21: 97155 | H21: ASSENTAMENTO DE TUBO DE FERRO FUNDIDO PARA REDE DE ÁGUA, DN 1000 MM, JUNTA ELÁSTICA, INSTALADO EM LOCAL COM NÍVEL ALTO DE INTERFERÊNCIAS (NÃO INCLUI FORNECIMENTO). AF_11/2017 | I21: M | J21: ATRIBUÍDO SÃO PAULO | K21: 54.94 | L21: CAIXA REFERENCIAL
A22: ASSENTAMENTO DE TUBOS E PECAS | B22: ASTU | C22: FORNEC E/OU ASSENT DE TUBO DE FERRO FUNDIDO JUNTA ELASTICA | D22: 45 | G22: 97156 | H22: ASSENTAMENTO DE TUBO DE FERRO FUNDIDO PARA REDE DE ÁGUA, DN 1200 MM, JUNTA ELÁSTICA, INSTALADO EM LOCAL COM NÍVEL ALTO DE INTERFERÊNCIAS (NÃO INCLUI FORNECIMENTO). AF_11/2017 | I22: M | J22: ATRIBUÍDO SÃO PAULO | K22: 65.15 | L22: CAIXA REFERENCIAL
A23: ASSENTAMENTO DE TUBOS E PECAS | B23: ASTU | C23: FORNEC E/OU ASSENT DE TUBO DE FERRO FUNDIDO JUNTA ELASTICA | D23: 45 | G23: 97157 | H23: ASSENTAMENTO DE TUBO DE FERRO FUNDIDO PARA REDE DE ÁGUA, DN 80 MM, JUNTA ELÁSTICA, INSTALADO EM LOCAL COM NÍVEL BAIXO DE INTERFERÊNCIAS (NÃO INCLUI FORNECIMENTO). AF_11/2017 | I23: M | J23: ATRIBUÍDO SÃO PAULO | K23: 4.68 | L23: CAIXA REFERENCIAL
A24: ASSENTAMENTO DE TUBOS E PECAS | B24: ASTU | C24: FORNEC E/OU ASSENT DE TUBO DE FERRO FUNDIDO JUNTA ELASTICA | D24: 45 | G24: 97158 | H24: ASSENTAMENTO DE TUBO DE FERRO FUNDIDO PARA REDE DE ÁGUA, DN 100 MM, JUNTA ELÁSTICA, INSTALADO EM LOCAL COM NÍVEL BAIXO DE INTERFERÊNCIAS (NÃO INCLUI FORNECIMENTO). AF_11/2017 | I24: M | J24: ATRIBUÍDO SÃO PAULO | K24: 5.2 | L24: CAIXA REFERENCIAL
A25: ASSENTAMENTO DE TUBOS E PECAS | B25: ASTU | C25: FORNEC E/OU ASSENT DE TUBO DE FERRO FUNDIDO JUNTA ELASTICA | D25: 45 | G25: 97159 | H25: ASSENTAMENTO DE TUBO DE FERRO FUNDIDO PARA REDE DE ÁGUA, DN 150 MM, JUNTA ELÁSTICA, INSTALADO EM LOCAL COM NÍVEL BAIXO DE INTERFERÊNCIAS (NÃO INCLUI FORNECIMENTO). AF_11/2017 | I25: M | J25: ATRIBUÍDO SÃO PAULO | K25: 6.48 | L25: CAIXA REFERENCIAL
A26: ASSENTAMENTO DE TUBOS E PECAS | B26: ASTU | C26: FORNEC E/OU ASSENT DE TUBO DE FERRO FUNDIDO JUNTA ELASTICA | D26: 45 | G26: 97160 | H26: ASSENTAMENTO DE TUBO DE FERRO FUNDIDO PARA REDE DE ÁGUA, DN 200 MM, JUNTA ELÁSTICA, INSTALADO EM LOCAL COM NÍVEL BAIXO DE INTERFERÊNCIAS (NÃO INCLUI FORNECIMENTO). AF_11/2017 | I26: M | J26: ATRIBUÍDO SÃO PAULO | K26: 7.77 | L26: CAIXA REFERENCIAL
A27: ASSENTAMENTO DE TUBOS E PECAS | B27: ASTU | C27: FORNEC E/OU ASSENT DE TUBO DE FERRO FUNDIDO JUNTA ELASTICA | D27: 45 | G27: 97161 | H27: ASSENTAMENTO DE TUBO DE FERRO FUNDIDO PARA REDE DE ÁGUA, DN 250 MM, JUNTA ELÁSTICA, INSTALADO EM LOCAL COM NÍVEL BAIXO DE INTERFERÊNCIAS (NÃO INCLUI FORNECIMENTO). AF_11/2017 | I27: M | J27: ATRIBUÍDO SÃO PAULO | K27: 9.09 | L27: CAIXA REFERENCIAL
A28: ASSENTAMENTO DE TUBOS E PECAS | B28: ASTU | C28: FORNEC E/OU ASSENT DE TUBO DE FERRO FUNDIDO JUNTA ELASTICA | D28: 45 | G28: 97162 | H28: ASSENTAMENTO DE TUBO DE FERRO FUNDIDO PARA REDE DE ÁGUA, DN 300 MM, JUNTA ELÁSTICA, INSTALADO EM LOCAL COM NÍVEL BAIXO DE INTERFERÊNCIAS (NÃO INCLUI FORNECIMENTO). AF_11/2017 | I28: M | J28: ATRIBUÍDO SÃO PAULO | K28: 10.39 | L28: CAIXA REFERENCIAL
A29: ASSENTAMENTO DE TUBOS E PECAS | B29: ASTU | C29: FORNEC E/OU ASSENT DE TUBO DE FERRO FUNDIDO JUNTA ELASTICA | D29: 45 | G29: 97163 | H29: ASSENTAMENTO DE TUBO DE FERRO FUNDIDO PARA REDE DE ÁGUA, DN 350 MM, JUNTA ELÁSTICA, INSTALADO EM LOCAL COM NÍVEL BAIXO DE INTERFERÊNCIAS (NÃO INCLUI FORNECIMENTO). AF_11/2017 | I29: M | J29: ATRIBUÍDO SÃO PAULO | K29: 11.7 | L29: CAIXA REFERENCIAL
A30: ASSENTAMENTO DE TUBOS E PECAS | B30: ASTU | C30: FORNEC E/OU ASSENT DE TUBO DE FERRO FUNDIDO JUNTA ELASTICA | D30: 45 | G30: 97164 | H30: ASSENTAMENTO DE TUBO DE FERRO FUNDIDO PARA REDE DE ÁGUA, DN 400 MM, JUNTA ELÁSTICA, INSTALADO EM LOCAL COM NÍVEL BAIXO DE INTERFERÊNCIAS (NÃO INCLUI FORNECIMENTO). AF_11/2017 | I30: M | J30: ATRIBUÍDO SÃO PAULO | K30: 13.01 | L30: CAIXA REFERENCIAL
A31: ASSENTAMENTO DE TUBOS E PECAS | B31: ASTU | C31: FORNEC E/OU ASSENT DE TUBO DE FERRO FUNDIDO JUNTA ELASTICA | D31: 45 | G31: 97165 | H31: ASSENTAMENTO DE TUBO DE FERRO FUNDIDO PARA REDE DE ÁGUA, DN 450 MM, JUNTA ELÁSTICA, INSTALADO EM LOCAL COM NÍVEL BAIXO DE INTERFERÊNCIAS (NÃO INCLUI FORNECIMENTO). AF_11/2017 | I31: M | J31: ATRIBUÍDO SÃO PAULO | K31: 14.34 | L31: CAIXA REFERENCIAL
A32: ASSENTAMENTO DE TUBOS E PECAS | B32: ASTU | C32: FORNEC E/OU ASSENT DE TUBO DE FERRO FUNDIDO JUNTA ELASTICA | D32: 45 | G32: 97166 | H32: ASSENTAMENTO DE TUBO DE FERRO FUNDIDO PARA REDE DE ÁGUA, DN 500 MM, JUNTA ELÁSTICA, INSTALADO EM LOCAL COM NÍVEL BAIXO DE INTERFERÊNCIAS (NÃO INCLUI FORNECIMENTO). AF_11/2017 | I32: M | J32: ATRIBUÍDO SÃO PAULO | K32: 18.6 | L32: CAIXA REFERENCIAL
A33: ASSENTAMENTO DE TUBOS E PECAS | B33: ASTU | C33: FORNEC E/OU ASSENT DE TUBO DE FERRO FUNDIDO JUNTA ELASTICA | D33: 45 | G33: 97167 | H33: ASSENTAMENTO DE TUBO DE FERRO FUNDIDO PARA REDE DE ÁGUA, DN 600 MM, JUNTA ELÁSTICA, INSTALADO EM LOCAL COM NÍVEL BAIXO DE INTERFERÊNCIAS (NÃO INCLUI FORNECIMENTO). AF_11/2017 | I33: M | J33: ATRIBUÍDO SÃO PAULO | K33: 21.66 | L33: CAIXA REFERENCIAL
A34: ASSENTAMENTO DE TUBOS E PECAS | B34: ASTU | C34: FORNEC E/OU ASSENT DE TUBO DE FERRO FUNDIDO JUNTA ELASTICA | D34: 45 | G34: 97168 | H34: ASSENTAMENTO DE TUBO DE FERRO FUNDIDO PARA REDE DE ÁGUA, DN 700 MM, JUNTA ELÁSTICA, INSTALADO EM LOCAL COM NÍVEL BAIXO DE INTERFERÊNCIAS (NÃO INCLUI FORNECIMENTO). AF_11/2017 | I34: M | J34: ATRIBUÍDO SÃO PAULO | K34: 24.53 | L34: CAIXA REFERENCIAL
A35: ASSENTAMENTO DE TUBOS E PECAS | B35: ASTU | C35: FORNEC E/OU ASSENT DE TUBO DE FERRO FUNDIDO JUNTA ELASTICA | D35: 45 | G35: 97169 | H35: ASSENTAMENTO DE TUBO DE FERRO FUNDIDO PARA REDE DE ÁGUA, DN 800 MM, JUNTA ELÁSTICA, INSTALADO EM LOCAL COM NÍVEL BAIXO DE INTERFERÊNCIAS (NÃO INCLUI FORNECIMENTO). AF_11/2017 | I35: M | J35: ATRIBUÍDO SÃO PAULO | K35: 27.52 | L35: CAIXA REFERENCIAL
A36: ASSENTAMENTO DE TUBOS E PECAS | B36: ASTU | C36: FORNEC E/OU ASSENT DE TUBO DE FERRO FUNDIDO JUNTA ELASTICA | D36: 45 | G36: 97170 | H36: ASSENTAMENTO DE TUBO DE FERRO FUNDIDO PARA REDE DE ÁGUA, DN 900 MM, JUNTA ELÁSTICA, INSTALADO EM LOCAL COM NÍVEL BAIXO DE INTERFERÊNCIAS (NÃO INCLUI FORNECIMENTO). AF_11/2017 | I36: M | J36: ATRIBUÍDO SÃO PAULO | K36: 30.55 | L36: CAIXA REFERENCIAL
A37: ASSENTAMENTO DE TUBOS E PECAS | B37: ASTU | C37: FORNEC E/OU ASSENT DE TUBO DE FERRO FUNDIDO JUNTA ELASTICA | D37: 45 | G37: 97171 | H37: ASSENTAMENTO DE TUBO DE FERRO FUNDIDO PARA REDE DE ÁGUA, DN 1000 MM, JUNTA ELÁSTICA, INSTALADO EM LOCAL COM NÍVEL BAIXO DE INTERFERÊNCIAS (NÃO INCLUI FORNECIMENTO). AF_11/2017 | I37: M | J37: ATRIBUÍDO SÃO PAULO | K37: 33.59 | L37: CAIXA REFERENCIAL
A38: ASSENTAMENTO DE TUBOS E PECAS | B38: ASTU | C38: FORNEC E/OU ASSENT DE TUBO DE FERRO FUNDIDO JUNTA ELASTICA | D38: 45 | G38: 97172 | H38: ASSENTAMENTO DE TUBO DE FERRO FUNDIDO PARA REDE DE ÁGUA, DN 1200 MM, JUNTA ELÁSTICA, INSTALADO EM LOCAL COM NÍVEL BAIXO DE INTERFERÊNCIAS (NÃO INCLUI FORNECIMENTO). AF_11/2017 | I38: M | J38: ATRIBUÍDO SÃO PAULO | K38: 39.98 | L38: CAIXA REFERENCIAL
A39: ASSENTAMENTO DE TUBOS E PECAS | B39: ASTU | C39: FORNEC E/OU ASSENT DE TUBO DE ACO COM JUNTA SOLDADA | D39: 46 | G39: 97173 | H39: ASSENTAMENTO DE TUBO DE AÇO CARBONO PARA REDE DE ÁGUA, DN 600 MM (24), JUNTA SOLDADA, INSTALADO EM LOCAL COM NÍVEL ALTO DE INTERFERÊNCIAS (NÃO INCLUI FORNECIMENTO). AF_11/2017 | I39: M | J39: ATRIBUÍDO SÃO PAULO | K39: 38.3 | L39: CAIXA REFERENCIAL
A40: ASSENTAMENTO DE TUBOS E PECAS | B40: ASTU | C40: FORNEC E/OU ASSENT DE TUBO DE ACO COM JUNTA SOLDADA | D40: 46 | G40: 97174 | H40: ASSENTAMENTO DE TUBO DE AÇO CARBONO PARA REDE DE ÁGUA, DN 700 MM (28), JUNTA SOLDADA, INSTALADO EM LOCAL COM NÍVEL ALTO DE INTERFERÊNCIAS (NÃO INCLUI FORNECIMENTO). AF_11/2017 | I40: M | J40: ATRIBUÍDO SÃO PAULO | K40: 44.4 | L40: CAIXA REFERENCIAL
A41: ASSENTAMENTO DE TUBOS E PECAS | B41: ASTU | C41: FORNEC E/OU ASSENT DE TUBO DE ACO COM JUNTA SOLDADA | D41: 46 | G41: 97175 | H41: ASSENTAMENTO DE TUBO DE AÇO CARBONO PARA REDE DE ÁGUA, DN 800 MM (32), JUNTA SOLDADA, INSTALADO EM LOCAL COM NÍVEL ALTO DE INTERFERÊNCIAS (NÃO INCLUI FORNECIMENTO). AF_11/2017 | I41: M | J41: ATRIBUÍDO SÃO PAULO | K41: 50.49 | L41: CAIXA REFERENCIAL
A42: ASSENTAMENTO DE TUBOS E PECAS | B42: ASTU | C42: FORNEC E/OU ASSENT DE TUBO DE ACO COM JUNTA SOLDADA | D42: 46 | G42: 97176 | H42: ASSENTAMENTO DE TUBO DE AÇO CARBONO PARA REDE DE ÁGUA, DN 900 MM (36), JUNTA SOLDADA, INSTALADO EM LOCAL COM NÍVEL ALTO DE INTERFERÊNCIAS (NÃO INCLUI FORNECIMENTO). AF_11/2017 | I42: M | J42: ATRIBUÍDO SÃO PAULO | K42: 56.58 | L42: CAIXA REFERENCIAL
A43: ASSENTAMENTO DE TUBOS E PECAS | B43: ASTU | C43: FORNEC E/OU ASSENT DE TUBO DE ACO COM JUNTA SOLDADA | D43: 46 | G43: 97177 | H43: ASSENTAMENTO DE TUBO DE AÇO CARBONO PARA REDE DE ÁGUA, DN 1000 MM (40) OU DN 1100 MM (44), JUNTA SOLDADA, INSTALADO EM LOCAL COM NÍVEL ALTO DE INTERFERÊNCIAS (NÃO INCLUI FORNECIMENTO). AF_11/2017 | I43: M | J43: ATRIBUÍDO SÃO PAULO | K43: 68.79 | L43: CAIXA REFERENCIAL
A44: ASSENTAMENTO DE TUBOS E PECAS | B44: ASTU | C44: FORNEC E/OU ASSENT DE TUBO DE ACO COM JUNTA SOLDADA | D44: 46 | G44: 97178 | H44: ASSENTAMENTO DE TUBO DE AÇO CARBONO PARA REDE DE ÁGUA, DN 1200 MM (48) OU DN 1300 MM (52), JUNTA SOLDADA, INSTALADO EM LOCAL COM NÍVEL ALTO DE INTERFERÊNCIAS (NÃO INCLUI FORNECIMENTO). AF_11/2017 | I44: M | J44: ATRIBUÍDO SÃO PAULO | K44: 80.98 | L44: CAIXA REFERENCIAL
A45: ASSENTAMENTO DE TUBOS E PECAS | B45: ASTU | C45: FORNEC E/OU ASSENT DE TUBO DE ACO COM JUNTA SOLDADA | D45: 46 | G45: 97179 | H45: ASSENTAMENTO DE TUBO DE AÇO CARBONO PARA REDE DE ÁGUA, DN 1400 MM (56'') OU DN 1500 MM (60), JUNTA SOLDADA, INSTALADO EM LOCAL COM NÍVEL ALTO DE INTERFERÊNCIAS (NÃO INCLUI FORNECIMENTO). AF_11/2017 | I45: M | J45: ATRIBUÍDO SÃO PAULO | K45: 93.17 | L45: CAIXA REFERENCIAL
A46: ASSENTAMENTO DE TUBOS E PECAS | B46: ASTU | C46: FORNEC E/OU ASSENT DE TUBO DE ACO COM JUNTA SOLDADA | D46: 46 | G46: 97180 | H46: ASSENTAMENTO DE TUBO DE AÇO CARBONO PARA REDE DE ÁGUA, DN 1600 MM (64) OU DN 1700 MM (68), JUNTA SOLDADA, INSTALADO EM LOCAL COM NÍVEL ALTO DE INTERFERÊNCIAS (NÃO INCLUI FORNECIMENTO). AF_11/2017 | I46: M | J46: ATRIBUÍDO SÃO PAULO | K46: 105.36 | L46: CAIXA REFERENCIAL
A47: ASSENTAMENTO DE TUBOS E PECAS | B47: ASTU | C47: FORNEC E/OU ASSENT DE TUBO DE ACO COM JUNTA SOLDADA | D47: 46 | G47: 97181 | H47: ASSENTAMENTO DE TUBO DE AÇO CARBONO PARA REDE DE ÁGUA, DN 1800 MM (72) OU DN 1900 MM (76), JUNTA SOLDADA, INSTALADO EM LOCAL COM NÍVEL ALTO DE INTERFERÊNCIAS (NÃO INCLUI FORNECIMENTO). AF_11/2017 | I47: M | J47: ATRIBUÍDO SÃO PAULO | K47: 122.32 | L47: CAIXA REFERENCIAL
A48: ASSENTAMENTO DE TUBOS E PECAS | B48: ASTU | C48: FORNEC E/OU ASSENT DE TUBO DE ACO COM JUNTA SOLDADA | D48: 46 | G48: 97182 | H48: ASSENTAMENTO DE TUBO DE AÇO CARBONO PARA REDE DE ÁGUA, DN 2000 MM (80) OU DN 2100 MM (84), JUNTA SOLDADA, INSTALADO EM LOCAL COM NÍVEL ALTO DE INTERFERÊNCIAS (NÃO INCLUI FORNECIMENTO). AF_11/2017 | I48: M | J48: ATRIBUÍDO SÃO PAULO | K48: 135.01 | L48: CAIXA REFERENCIAL
A49: ASSENTAMENTO DE TUBOS E PECAS | B49: ASTU | C49: FORNEC E/OU ASSENT DE TUBO DE ACO COM JUNTA SOLDADA | D49: 46 | G49: 97183 | H49: ASSENTAMENTO DE TUBO DE AÇO CARBONO PARA REDE DE ÁGUA, DN 600 MM (24), JUNTA SOLDADA, INSTALADO EM LOCAL COM NÍVEL BAIXO DE INTERFERÊNCIAS (NÃO INCLUI FORNECIMENTO). AF_11/2017 | I49: M | J49: ATRIBUÍDO SÃO PAULO | K49: 31.53 | L49: CAIXA REFERENCIAL
A50: ASSENTAMENTO DE TUBOS E PECAS | B50: ASTU | C50: FORNEC E/OU ASSENT DE TUBO DE ACO COM JUNTA SOLDADA | D50: 46 | G50: 97184 | H50: ASSENTAMENTO DE TUBO DE AÇO CARBONO PARA REDE DE ÁGUA, DN 700 MM (28), JUNTA SOLDADA, INSTALADO EM LOCAL COM NÍVEL BAIXO DE INTERFERÊNCIAS (NÃO INCLUI FORNECIMENTO). AF_11/2017 | I50: M | J50: ATRIBUÍDO SÃO PAULO | K50: 36.6 | L50: CAIXA REFERENCIAL
A51: ASSENTAMENTO DE TUBOS E PECAS | B51: ASTU | C51: FORNEC E/OU ASSENT DE TUBO DE ACO COM JUNTA SOLDADA | D51: 46 | G51: 97185 | H51: ASSENTAMENTO DE TUBO DE AÇO CARBONO PARA REDE DE ÁGUA, DN 800 MM (32), JUNTA SOLDADA, INSTALADO EM LOCAL COM NÍVEL BAIXO DE INTERFERÊNCIAS (NÃO INCLUI FORNECIMENTO). AF_11/2017 | I51: M | J51: ATRIBUÍDO SÃO PAULO | K51: 41.69 | L51: CAIXA REFERENCIAL
A52: ASSENTAMENTO DE TUBOS E PECAS | B52: ASTU | C52: FORNEC E/OU ASSENT DE TUBO DE ACO COM JUNTA SOLDADA | D52: 46 | G52: 97186 | H52: ASSENTAMENTO DE TUBO DE AÇO CARBONO PARA REDE DE ÁGUA, DN 900 MM (36), JUNTA SOLDADA, INSTALADO EM LOCAL COM NÍVEL BAIXO DE INTERFERÊNCIAS (NÃO INCLUI FORNECIMENTO). AF_11/2017 | I52: M | J52: ATRIBUÍDO SÃO PAULO | K52: 46.76 | L52: CAIXA REFERENCIAL
A53: ASSENTAMENTO DE TUBOS E PECAS | B53: ASTU | C53: FORNEC E/OU ASSENT DE TUBO DE ACO COM JUNTA SOLDADA | D53: 46 | G53: 97187 | H53: ASSENTAMENTO DE TUBO DE AÇO CARBONO PARA REDE DE ÁGUA, DN 1000 MM (40 ) OU DN 1100 MM (44 ), JUNTA SOLDADA, INSTALADO EM LOCAL COM NÍVEL BAIXO DE INTERFERÊNCIAS (NÃO INCLUI FORNECIMENTO). AF_11/2017 | I53: M | J53: ATRIBUÍDO SÃO PAULO | K53: 56.94 | L53: CAIXA REFERENCIAL
A54: ASSENTAMENTO DE TUBOS E PECAS | B54: ASTU | C54: FORNEC E/OU ASSENT DE TUBO DE ACO COM JUNTA SOLDADA | D54: 46 | G54: 97188 | H54: ASSENTAMENTO DE TUBO DE AÇO CARBONO PARA REDE DE ÁGUA, DN 1200 MM (48) OU DN 1300 MM (52), JUNTA SOLDADA, INSTALADO EM LOCAL COM NÍVEL BAIXO DE INTERFERÊNCIAS (NÃO INCLUI FORNECIMENTO). AF_11/2017 | I54: M | J54: ATRIBUÍDO SÃO PAULO | K54: 67.1 | L54: CAIXA REFERENCIAL
A55: ASSENTAMENTO DE TUBOS E PECAS | B55: ASTU | C55: FORNEC E/OU ASSENT DE TUBO DE ACO COM JUNTA SOLDADA | D55: 46 | G55: 97189 | H55: ASSENTAMENTO DE TUBO DE AÇO CARBONO PARA REDE DE ÁGUA, DN 1400 MM (56'') OU DN 1500 MM (60), JUNTA SOLDADA, INSTALADO EM LOCAL COM NÍVEL BAIXO DE INTERFERÊNCIAS (NÃO INCLUI FORNECIMENTO). AF_11/2017 | I55: M | J55: ATRIBUÍDO SÃO PAULO | K55: 77.26 | L55: CAIXA REFERENCIAL
A56: ASSENTAMENTO DE TUBOS E PECAS | B56: ASTU | C56: FORNEC E/OU ASSENT DE TUBO DE ACO COM JUNTA SOLDADA | D56: 46 | G56: 97190 | H56: ASSENTAMENTO DE TUBO DE AÇO CARBONO PARA REDE DE ÁGUA, DN 1600 MM (64) OU DN 1700 MM (68), JUNTA SOLDADA, INSTALADO EM LOCAL COM NÍVEL BAIXO DE INTERFERÊNCIAS (NÃO INCLUI FORNECIMENTO). AF_11/2017 | I56: M | J56: ATRIBUÍDO SÃO PAULO | K56: 87.41 | L56: CAIXA REFERENCIAL
A57: ASSENTAMENTO DE TUBOS E PECAS | B57: ASTU | C57: FORNEC E/OU ASSENT DE TUBO DE ACO COM JUNTA SOLDADA | D57: 46 | G57: 97191 | H57: ASSENTAMENTO DE TUBO DE AÇO CARBONO PARA REDE DE ÁGUA, DN 1800 MM (72) OU DN 1900 MM (76), JUNTA SOLDADA, INSTALADO EM LOCAL COM NÍVEL BAIXO DE INTERFERÊNCIAS (NÃO INCLUI FORNECIMENTO). AF_11/2017 | I57: M | J57: ATRIBUÍDO SÃO PAULO | K57: 101.09 | L57: CAIXA REFERENCIAL
A58: ASSENTAMENTO DE TUBOS E PECAS | B58: ASTU | C58: FORNEC E/OU ASSENT DE TUBO DE ACO COM JUNTA SOLDADA | D58: 46 | G58: 97192 | H58: ASSENTAMENTO DE TUBO DE AÇO CARBONO PARA REDE DE ÁGUA, DN 2000 MM (80) OU DN 2100 MM (84), JUNTA SOLDADA, INSTALADO EM LOCAL COM NÍVEL BAIXO DE INTERFERÊNCIAS (NÃO INCLUI FORNECIMENTO). AF_11/2017 | I58: M | J58: ATRIBUÍDO SÃO PAULO | K58: 111.63 | L58: CAIXA REFERENCIAL
A59: ASSENTAMENTO DE TUBOS E PECAS | B59: ASTU | C59: FORNEC E/OU ASSENT DE TUBO DE PVC COM JUNTA ELASTICA | D59: 48 | G59: 90694 | H59: TUBO DE PVC PARA REDE COLETORA DE ESGOTO DE PAREDE MACIÇA, DN 100 MM, JUNTA ELÁSTICA - FORNECIMENTO E ASSENTAMENTO. AF_01/2021 | I59: M | J59: COEFICIENTE DE REPRESENTATIVIDADE | K59: 44.65 | L59: CAIXA REFERENCIAL
A60: ASSENTAMENTO DE TUBOS E PECAS | B60: ASTU | C60: FORNEC E/OU ASSENT DE TUBO DE PVC COM JUNTA ELASTICA | D60: 48 | G60: 90695 | H60: TUBO DE PVC PARA REDE COLETORA DE ESGOTO DE PAREDE MACIÇA, DN 150 MM, JUNTA ELÁSTICA - FORNECIMENTO E ASSENTAMENTO. AF_01/2021 | I60: M | J60: COEFICIENTE DE REPRESENTATIVIDADE | K60: 85.23 | L60: CAIXA REFERENCIAL
A61: ASSENTAMENTO DE TUBOS E PECAS | B61: ASTU | C61: FORNEC E/OU ASSENT DE TUBO DE PVC COM JUNTA ELASTICA | D61: 48 | G61: 90696 | H61: TUBO DE PVC PARA REDE COLETORA DE ESGOTO DE PAREDE MACIÇA, DN 200 MM, JUNTA ELÁSTICA - FORNECIMENTO E ASSENTAMENTO. AF_01/2021 | I61: M | J61: COEFICIENTE DE REPRESENTATIVIDADE | K61: 142.73 | L61: CAIXA REFERENCIAL
A62: ASSENTAMENTO DE TUBOS E PECAS | B62: ASTU | C62: FORNEC E/OU ASSENT DE TUBO DE PVC COM JUNTA ELASTICA | D62: 48 | G62: 90697 | H62: TUBO DE PVC PARA REDE COLETORA DE ESGOTO DE PAREDE MACIÇA, DN 250 MM, JUNTA ELÁSTICA - FORNECIMENTO E ASSENTAMENTO. AF_01/2021 | I62: M | J62: COEFICIENTE DE REPRESENTATIVIDADE | K62: 221.76 | L62: CAIXA REFERENCIAL
A63: ASSENTAMENTO DE TUBOS E PECAS | B63: ASTU | C63: FORNEC E/OU ASSENT DE TUBO DE PVC COM JUNTA ELASTICA | D63: 48 | G63: 90698 | H63: TUBO DE PVC PARA REDE COLETORA DE ESGOTO DE PAREDE MACIÇA, DN 300 MM, JUNTA ELÁSTICA, FORNECIMENTO E ASSENTAMENTO. AF_01/2021 | I63: M | J63: COEFICIENTE DE REPRESENTATIVIDADE | K63: 339.29 | L63: CAIXA REFERENCIAL
A64: ASSENTAMENTO DE TUBOS E PECAS | B64: ASTU | C64: FORNEC E/OU ASSENT DE TUBO DE PVC COM JUNTA ELASTICA | D64: 48 | G64: 90699 | H64: TUBO DE PVC PARA REDE COLETORA DE ESGOTO DE PAREDE MACIÇA, DN 350 MM, JUNTA ELÁSTICA - FORNECIMENTO E ASSENTAMENTO. AF_01/2021 | I64: M | J64: COEFICIENTE DE REPRESENTATIVIDADE | K64: 477.85 | L64: CAIXA REFERENCIAL
A65: ASSENTAMENTO DE TUBOS E PECAS | B65: ASTU | C65: FORNEC E/OU ASSENT DE TUBO DE PVC COM JUNTA ELASTICA | D65: 48 | G65: 90700 | H65: TUBO DE PVC PARA REDE COLETORA DE ESGOTO DE PAREDE MACIÇA, DN 400 MM, JUNTA ELÁSTICA FORNECIMENTO E ASSENTAMENTO. AF_01/2021 | I65: M | J65: ATRIBUÍDO SÃO PAULO | K65: 558.45 | L65: CAIXA REFERENCIAL
A66: ASSENTAMENTO DE TUBOS E PECAS | B66: ASTU | C66: FORNEC E/OU ASSENT DE TUBO DE PVC COM JUNTA ELASTICA | D66: 48 | G66: 90701 | H66: TUBO DE PVC CORRUGADO DE DUPLA PAREDE PARA REDE COLETORA DE ESGOTO, DN 150 MM, JUNTA ELÁSTICA - FORNECIMENTO E ASSENTAMENTO. AF_01/2021 | I66: M | J66: COEFICIENTE DE REPRESENTATIVIDADE | K66: 67.57 | L66: CAIXA REFERENCIAL
A67: ASSENTAMENTO DE TUBOS E PECAS | B67: ASTU | C67: FORNEC E/OU ASSENT DE TUBO DE PVC COM JUNTA ELASTICA | D67: 48 | G67: 90702 | H67: TUBO DE PVC CORRUGADO DE DUPLA PAREDE PARA REDE COLETORA DE ESGOTO, DN 200 MM, JUNTA ELÁSTICA - FORNECIMENTO E ASSENTAMENTO. AF_01/2021 | I67: M | J67: COEFICIENTE DE REPRESENTATIVIDADE | K67: 112.11 | L67: CAIXA REFERENCIAL
A68: ASSENTAMENTO DE TUBOS E PECAS | B68: ASTU | C68: FORNEC E/OU ASSENT DE TUBO DE PVC COM JUNTA ELASTICA | D68: 48 | G68: 90703 | H68: TUBO DE PVC CORRUGADO DE DUPLA PAREDE PARA REDE COLETORA DE ESGOTO, DN 250 MM, JUNTA ELÁSTICA - FORNECIMENTO E ASSENTAMENTO. AF_01/2021 | I68: M | J68: COEFICIENTE DE REPRESENTATIVIDADE | K68: 177.19 | L68: CAIXA REFERENCIAL
A69: ASSENTAMENTO DE TUBOS E PECAS | B69: ASTU | C69: FORNEC E/OU ASSENT DE TUBO DE PVC COM JUNTA ELASTICA | D69: 48 | G69: 90704 | H69: TUBO DE PVC CORRUGADO DE DUPLA PAREDE PARA REDE COLETORA DE ESGOTO, DN 300 MM, JUNTA ELÁSTICA - FORNECIMENTO E ASSENTAMENTO. AF_01/2021 | I69: M | J69: COEFICIENTE DE REPRESENTATIVIDADE | K69: 266.04 | L69: CAIXA REFERENCIAL
A70: ASSENTAMENTO DE TUBOS E PECAS | B70: ASTU | C70: FORNEC E/OU ASSENT DE TUBO DE PVC COM JUNTA ELASTICA | D70: 48 | G70: 90705 | H70: TUBO DE PVC CORRUGADO DE DUPLA PAREDE PARA REDE COLETORA DE ESGOTO, DN 350 MM, JUNTA ELÁSTICA - FORNECIMENTO E ASSENTAMENTO. AF_01/2021 | I70: M | J70: COEFICIENTE DE REPRESENTATIVIDADE | K70: 343.88 | L70: CAIXA REFERENCIAL
A71: ASSENTAMENTO DE TUBOS E PECAS | B71: ASTU | C71: FORNEC E/OU ASSENT DE TUBO DE PVC COM JUNTA ELASTICA | D71: 48 | G71: 90706 | H71: TUBO DE PVC CORRUGADO DE DUPLA PAREDE PARA REDE COLETORA DE ESGOTO, DN 400 MM, JUNTA ELÁSTICA - FORNECIMENTO E ASSENTAMENTO. AF_01/2021 | I71: M | J71: ATRIBUÍDO SÃO PAULO | K71: 456.7 | L71: CAIXA REFERENCIAL
A72: ASSENTAMENTO DE TUBOS E PECAS | B72: ASTU | C72: FORNEC E/OU ASSENT DE TUBO DE PVC COM JUNTA ELASTICA | D72: 48 | G72: 90708 | H72: TUBO DE PEAD CORRUGADO DE DUPLA PAREDE PARA REDE COLETORA DE ESGOTO, DN 600 MM, JUNTA ELÁSTICA INTEGRADA - FORNECIMENTO E ASSENTAMENTO. AF_01/2021 | I72: M | J72: ATRIBUÍDO SÃO PAULO | K72: 797.24 | L72: CAIXA REFERENCIAL
A73: ASSENTAMENTO DE TUBOS E PECAS | B73: ASTU | C73: FORNEC E/OU ASSENT DE TUBO DE PVC COM JUNTA ELASTICA | D73: 48 | G73: 90724 | H73: JUNTA ARGAMASSADA ENTRE TUBO DN 100 MM E O POÇO DE VISITA/ CAIXA DE CONCRETO OU ALVENARIA EM REDES DE ESGOTO. AF_01/2021 | I73: UN | J73: COEFICIENTE DE REPRESENTATIVIDADE | K73: 20.63 | L73: CAIXA REFERENCIAL
A74: ASSENTAMENTO DE TUBOS E PECAS | B74: ASTU | C74: FORNEC E/OU ASSENT DE TUBO DE PVC COM JUNTA ELASTICA | D74: 48 | G74: 90725 | H74: JUNTA ARGAMASSADA ENTRE TUBO DN 150 MM E O POÇO DE VISITA/ CAIXA DE CONCRETO OU ALVENARIA EM REDES DE ESGOTO. AF_01/2021 | I74: UN | J74: COEFICIENTE DE REPRESENTATIVIDADE | K74: 25.43 | L74: CAIXA REFERENCIAL
A75: ASSENTAMENTO DE TUBOS E PECAS | B75: ASTU | C75: FORNEC E/OU ASSENT DE TUBO DE PVC COM JUNTA ELASTICA | D75: 48 | G75: 90726 | H75: JUNTA ARGAMASSADA ENTRE TUBO DN 200 MM E O POÇO/ CAIXA DE CONCRETO OU ALVENARIA EM REDES DE ESGOTO. AF_01/2021 | I75: UN | J75: COEFICIENTE DE REPRESENTATIVIDADE | K75: 30.31 | L75: CAIXA REFERENCIAL
A76: ASSENTAMENTO DE TUBOS E PECAS | B76: ASTU | C76: FORNEC E/OU ASSENT DE TUBO DE PVC COM JUNTA ELASTICA | D76: 48 | G76: 90727 | H76: JUNTA ARGAMASSADA ENTRE TUBO DN 250 MM E O POÇO DE VISITA/ CAIXA DE CONCRETO OU ALVENARIA EM REDES DE ESGOTO. AF_01/2021 | I76: UN | J76: COEFICIENTE DE REPRESENTATIVIDADE | K76: 35.1 | L76: CAIXA REFERENCIAL
A77: ASSENTAMENTO DE TUBOS E PECAS | B77: ASTU | C77: FORNEC E/OU ASSENT DE TUBO DE PVC COM JUNTA ELASTICA | D77: 48 | G77: 90728 | H77: JUNTA ARGAMASSADA ENTRE TUBO DN 300 MM E O POÇO DE VISITA/ CAIXA DE CONCRETO OU ALVENARIA EM REDES DE ESGOTO. AF_01/2021 | I77: UN | J77: COEFICIENTE DE REPRESENTATIVIDADE | K77: 39.92 | L77: CAIXA REFERENCIAL
A78: ASSENTAMENTO DE TUBOS E PECAS | B78: ASTU | C78: FORNEC E/OU ASSENT DE TUBO DE PVC COM JUNTA ELASTICA | D78: 48 | G78: 90729 | H78: JUNTA ARGAMASSADA ENTRE TUBO DN 350 MM E O POÇO DE VISITA/ CAIXA DE CONCRETO OU ALVENARIA EM REDES DE ESGOTO. AF_01/2021 | I78: UN | J78: COEFICIENTE DE REPRESENTATIVIDADE | K78: 44.71 | L78: CAIXA REFERENCIAL
A79: ASSENTAMENTO DE TUBOS E PECAS | B79: ASTU | C79: FORNEC E/OU ASSENT DE TUBO DE PVC COM JUNTA ELASTICA | D79: 48 | G79: 90730 | H79: JUNTA ARGAMASSADA ENTRE TUBO DN 400 MM E O POÇO DE VISITA/ CAIXA DE CONCRETO OU ALVENARIA EM REDES DE ESGOTO. AF_01/2021 | I79: UN | J79: COEFICIENTE DE REPRESENTATIVIDADE | K79: 49.53 | L79: CAIXA REFERENCIAL
A80: ASSENTAMENTO DE TUBOS E PECAS | B80: ASTU | C80: FORNEC E/OU ASSENT DE TUBO DE PVC COM JUNTA ELASTICA | D80: 48 | G80: 90731 | H80: JUNTA ARGAMASSADA ENTRE TUBO DN 450 MM E O POÇO DE VISITA/ CAIXA DE CONCRETO OU ALVENARIA EM REDES DE ESGOTO. AF_01/2021 | I80: UN | J80: COEFICIENTE DE REPRESENTATIVIDADE | K80: 54.32 | L80: CAIXA REFERENCIAL
A81: ASSENTAMENTO DE TUBOS E PECAS | B81: ASTU | C81: FORNEC E/OU ASSENT DE TUBO DE PVC COM JUNTA ELASTICA | D81: 48 | G81: 90732 | H81: JUNTA ARGAMASSADA ENTRE TUBO DN 600 MM E O POÇO DE VISITA/ CAIXA DE CONCRETO OU ALVENARIA EM REDES DE ESGOTO. AF_01/2021 | I81: UN | J81: COEFICIENTE DE REPRESENTATIVIDADE | K81: 68.72 | L81: CAIXA REFERENCIAL
A82: ASSENTAMENTO DE TUBOS E PECAS | B82: ASTU | C82: FORNEC E/OU ASSENT DE TUBO DE PVC COM JUNTA ELASTICA | D82: 48 | G82: 90733 | H82: ASSENTAMENTO DE TUBO DE PVC PARA REDE COLETORA DE ESGOTO DE PAREDE MACIÇA, DN 100 MM, JUNTA ELÁSTICA (NÃO INCLUI FORNECIMENTO). AF_01/2021 | I82: M | J82: COEFICIENTE DE REPRESENTATIVIDADE | K82: 2.86 | L82: CAIXA REFERENCIAL
A83: ASSENTAMENTO DE TUBOS E PECAS | B83: ASTU | C83: FORNEC E/OU ASSENT DE TUBO DE PVC COM JUNTA ELASTICA | D83: 48 | G83: 90734 | H83: ASSENTAMENTO DE TUBO DE PVC PARA REDE COLETORA DE ESGOTO DE PAREDE MACIÇA, DN 150 MM, JUNTA ELÁSTICA, (NÃO INCLUI FORNECIMENTO). AF_01/2021 | I83: M | J83: COEFICIENTE DE REPRESENTATIVIDADE | K83: 3.39 | L83: CAIXA REFERENCIAL
A84: ASSENTAMENTO DE TUBOS E PECAS | B84: ASTU | C84: FORNEC E/OU ASSENT DE TUBO DE PVC COM JUNTA ELASTICA | D84: 48 | G84: 90735 | H84: ASSENTAMENTO DE TUBO DE PVC PARA REDE COLETORA DE ESGOTO DE PAREDE MACIÇA, DN 200 MM, JUNTA ELÁSTICA (NÃO INCLUI FORNECIMENTO). AF_01/2021 | I84: M | J84: COEFICIENTE DE REPRESENTATIVIDADE | K84: 3.91 | L84: CAIXA REFERENCIAL
A85: ASSENTAMENTO DE TUBOS E PECAS | B85: ASTU | C85: FORNEC E/OU ASSENT DE TUBO DE PVC COM JUNTA ELASTICA | D85: 48 | G85: 90736 | H85: ASSENTAMENTO DE TUBO DE PVC PARA REDE COLETORA DE ESGOTO DE PAREDE MACIÇA, DN 250 MM, JUNTA ELÁSTICA (NÃO INCLUI FORNECIMENTO). AF_01/2021 | I85: M | J85: COEFICIENTE DE REPRESENTATIVIDADE | K85: 4.45 | L85: CAIXA REFERENCIAL
A86: ASSENTAMENTO DE TUBOS E PECAS | B86: ASTU | C86: FORNEC E/OU ASSENT DE TUBO DE PVC COM JUNTA ELASTICA | D86: 48 | G86: 90737 | H86: ASSENTAMENTO DE TUBO DE PVC PARA REDE COLETORA DE ESGOTO DE PAREDE MACIÇA, DN 300 MM, JUNTA ELÁSTICA (NÃO INCLUI FORNECIMENTO). AF_01/2021 | I86: M | J86: COEFICIENTE DE REPRESENTATIVIDADE | K86: 4.97 | L86: CAIXA REFERENCIAL
A87: ASSENTAMENTO DE TUBOS E PECAS | B87: ASTU | C87: FORNEC E/OU ASSENT DE TUBO DE PVC COM JUNTA ELASTICA | D87: 48 | G87: 90738 | H87: ASSENTAMENTO DE TUBO DE PVC PARA REDE COLETORA DE ESGOTO DE PAREDE MACIÇA, DN 350 MM, JUNTA ELÁSTICA (NÃO INCLUI FORNECIMENTO). AF_01/2021 | I87: M | J87: COEFICIENTE DE REPRESENTATIVIDADE | K87: 5.51 | L87: CAIXA REFERENCIAL
A88: ASSENTAMENTO DE TUBOS E PECAS | B88: ASTU | C88: FORNEC E/OU ASSENT DE TUBO DE PVC COM JUNTA ELASTICA | D88: 48 | G88: 90739 | H88: ASSENTAMENTO DE TUBO DE PVC PARA REDE COLETORA DE ESGOTO DE PAREDE MACIÇA, DN 400 MM, JUNTA ELÁSTICA (NÃO INCLUI FORNECIMENTO). AF_01/2021 | I88: M | J88: ATRIBUÍDO SÃO PAULO | K88: 8.37 | L88: CAIXA REFERENCIAL
A89: ASSENTAMENTO DE TUBOS E PECAS | B89: ASTU | C89: FORNEC E/OU ASSENT DE TUBO DE PVC COM JUNTA ELASTICA | D89: 48 | G89: 90740 | H89: ASSENTAMENTO DE TUBO DE PVC CORRUGADO DE DUPLA PAREDE PARA REDE COLETORA DE ESGOTO, DN 150 MM, JUNTA ELÁSTICA (NÃO INCLUI FORNECIMENTO). AF_01/2021 | I89: M | J89: COEFICIENTE DE REPRESENTATIVIDADE | K89: 3.78 | L89: CAIXA REFERENCIAL
A90: ASSENTAMENTO DE TUBOS E PECAS | B90: ASTU | C90: FORNEC E/OU ASSENT DE TUBO DE PVC COM JUNTA ELASTICA | D90: 48 | G90: 90741 | H90: ASSENTAMENTO DE TUBO DE PVC CORRUGADO DE DUPLA PAREDE PARA REDE COLETORA DE ESGOTO, DN 200 MM, JUNTA ELÁSTICA (NÃO INCLUI FORNECIMENTO). AF_01/2021 | I90: M | J90: COEFICIENTE DE REPRESENTATIVIDADE | K90: 4.3 | L90: CAIXA REFERENCIAL
A91: ASSENTAMENTO DE TUBOS E PECAS | B91: ASTU | C91: FORNEC E/OU ASSENT DE TUBO DE PVC COM JUNTA ELASTICA | D91: 48 | G91: 90742 | H91: ASSENTAMENTO DE TUBO DE PVC CORRUGADO DE DUPLA PAREDE PARA REDE COLETORA DE ESGOTO, DN 250 MM, JUNTA ELÁSTICA (NÃO INCLUI FORNECIMENTO). AF_01/2021 | I91: M | J91: COEFICIENTE DE REPRESENTATIVIDADE | K91: 4.84 | L91: CAIXA REFERENCIAL
A92: ASSENTAMENTO DE TUBOS E PECAS | B92: ASTU | C92: FORNEC E/OU ASSENT DE TUBO DE PVC COM JUNTA ELASTICA | D92: 48 | G92: 90743 | H92: ASSENTAMENTO DE TUBO DE PVC CORRUGADO DE DUPLA PAREDE PARA REDE COLETORA DE ESGOTO, DN 300 MM, JUNTA ELÁSTICA (NÃO INCLUI FORNECIMENTO). AF_01/2021 | I92: M | J92: COEFICIENTE DE REPRESENTATIVIDADE | K92: 5.36 | L92: CAIXA REFERENCIAL
A93: ASSENTAMENTO DE TUBOS E PECAS | B93: ASTU | C93: FORNEC E/OU ASSENT DE TUBO DE PVC COM JUNTA ELASTICA | D93: 48 | G93: 90744 | H93: ASSENTAMENTO DE TUBO DE PVC CORRUGADO DE DUPLA PAREDE PARA REDE COLETORA DE ESGOTO, DN 350 MM, JUNTA ELÁSTICA (NÃO INCLUI FORNECIMENTO). AF_01/2021 | I93: M | J93: COEFICIENTE DE REPRESENTATIVIDADE | K93: 5.89 | L93: CAIXA REFERENCIAL
A94: ASSENTAMENTO DE TUBOS E PECAS | B94: ASTU | C94: FORNEC E/OU ASSENT DE TUBO DE PVC COM JUNTA ELASTICA | D94: 48 | G94: 90745 | H94: ASSENTAMENTO DE TUBO DE PVC CORRUGADO DE DUPLA PAREDE PARA REDE COLETORA DE ESGOTO, DN 400 MM, JUNTA ELÁSTICA (NÃO INCLUI FORNECIMENTO). AF_01/2021 | I94: M | J94: ATRIBUÍDO SÃO PAULO | K94: 9.34 | L94: CAIXA REFERENCIAL
A95: ASSENTAMENTO DE TUBOS E PECAS | B95: ASTU | C95: FORNEC E/OU ASSENT DE TUBO DE PVC COM JUNTA ELASTICA | D95: 48 | G95: 90746 | H95: ASSENTAMENTO DE TUBO DE PEAD CORRUGADO DE DUPLA PAREDE PARA REDE COLETORA DE ESGOTO, DN 450 MM, JUNTA ELÁSTICA INTEGRADA (NÃO INCLUI FORNECIMENTO). AF_01/2021 | I95: M | J95: COEFICIENTE DE REPRESENTATIVIDADE | K95: 3.09 | L95: CAIXA REFERENCIAL
A96: ASSENTAMENTO DE TUBOS E PECAS | B96: ASTU | C96: FORNEC E/OU ASSENT DE TUBO DE PVC COM JUNTA ELASTICA | D96: 48 | G96: 90747 | H96: ASSENTAMENTO DE TUBO DE PEAD CORRUGADO DE DUPLA PAREDE PARA REDE COLETORA DE ESGOTO, DN 600 MM, JUNTA ELÁSTICA INTEGRADA (NÃO INCLUI FORNECIMENTO). AF_01/2021 | I96: M | J96: ATRIBUÍDO SÃO PAULO | K96: 16.1 | L96: CAIXA REFERENCIAL
A97: ASSENTAMENTO DE TUBOS E PECAS | B97: ASTU | C97: FORNEC E/OU ASSENT DE TUBO DE PVC COM JUNTA ELASTICA | D97: 48 | G97: 94869 | H97: TUBO DE PEAD CORRUGADO DE DUPLA PAREDE PARA REDE COLETORA DE ESGOTO, DN 250 MM, JUNTA ELÁSTICA INTEGRADA - FORNECIMENTO E ASSENTAMENTO. AF_01/2021 | I97: M | J97: ATRIBUÍDO SÃO PAULO | K97: 140.5 | L97: CAIXA REFERENCIAL
A98: ASSENTAMENTO DE TUBOS E PECAS | B98: ASTU | C98: FORNEC E/OU ASSENT DE TUBO DE PVC COM JUNTA ELASTICA | D98: 48 | G98: 94870 | H98: ASSENTAMENTO DE TUBO DE PEAD CORRUGADO DE DUPLA PAREDE PARA REDE COLETORA DE ESGOTO, DN 250 MM, JUNTA ELÁSTICA INTEGRADA (NÃO INCLUI FORNECIMENTO). AF_01/2021 | I98: M | J98: COEFICIENTE DE REPRESENTATIVIDADE | K98: 1.59 | L98: CAIXA REFERENCIAL
A99: ASSENTAMENTO DE TUBOS E PECAS | B99: ASTU | C99: FORNEC E/OU ASSENT DE TUBO DE PVC COM JUNTA ELASTICA | D99: 48 | G99: 94871 | H99: TUBO DE PEAD CORRUGADO DE DUPLA PAREDE PARA REDE COLETORA DE ESGOTO, DN 300 MM, JUNTA ELÁSTICA INTEGRADA - FORNECIMENTO E ASSENTAMENTO. AF_01/2021 | I99: M | J99: ATRIBUÍDO SÃO PAULO | K99: 219.87 | L99: CAIXA REFERENCIAL
A100: ASSENTAMENTO DE TUBOS E PECAS | B100: ASTU | C100: FORNEC E/OU ASSENT DE TUBO DE PVC COM JUNTA ELASTICA | D100: 48 | G100: 94872 | H100: ASSENTAMENTO DE TUBO DE PEAD CORRUGADO DE DUPLA PAREDE PARA REDE COLETORA DE ESGOTO, DN 300 MM, JUNTA ELÁSTICA INTEGRADA (NÃO INCLUI FORNECIMENTO). AF_01/2021 | I100: M | J100: COEFICIENTE DE REPRESENTATIVIDADE | K100: 2.24 | L100: CAIXA REFERENCIAL
A101: ASSENTAMENTO DE TUBOS E PECAS | B101: ASTU | C101: FORNEC E/OU ASSENT DE TUBO DE PVC COM JUNTA ELASTICA | D101: 48 | G101: 94875 | H101: TUBO DE PEAD CORRUGADO DE DUPLA PAREDE PARA REDE COLETORA DE ESGOTO, DN 800 MM, JUNTA ELÁSTICA INTEGRADA - FORNECIMENTO E ASSENTAMENTO. AF_01/2021 | I101: M | J101: ATRIBUÍDO SÃO PAULO | K101: 1294.72 | L101: CAIXA REFERENCIAL
A102: ASSENTAMENTO DE TUBOS E PECAS | B102: ASTU | C102: FORNEC E/OU ASSENT DE TUBO DE PVC COM JUNTA ELASTICA | D102: 48 | G102: 94876 | H102: ASSENTAMENTO DE TUBO DE PEAD CORRUGADO DE DUPLA PAREDE PARA REDE COLETORA DE ESGOTO, DN 800 MM, JUNTA ELÁSTICA INTEGRADA (NÃO INCLUI FORNECIMENTO). AF_01/2021 | I102: M | J102: ATRIBUÍDO SÃO PAULO | K102: 26.67 | L102: CAIXA REFERENCIAL
A103: ASSENTAMENTO DE TUBOS E PECAS | B103: ASTU | C103: FORNEC E/OU ASSENT DE TUBO DE PVC COM JUNTA ELASTICA | D103: 48 | G103: 94878 | H103: ASSENTAMENTO DE TUBO DE PEAD CORRUGADO DE DUPLA PAREDE PARA REDE COLETORA DE ESGOTO, DN 900 MM, JUNTA ELÁSTICA INTEGRADA (NÃO INCLUI FORNECIMENTO). AF_01/2021 | I103: M | J103: ATRIBUÍDO SÃO PAULO | K103: 30.89 | L103: CAIXA REFERENCIAL
A104: ASSENTAMENTO DE TUBOS E PECAS | B104: ASTU | C104: FORNEC E/OU ASSENT DE TUBO DE PVC COM JUNTA ELASTICA | D104: 48 | G104: 94879 | H104: TUBO DE PEAD CORRUGADO DE DUPLA PAREDE PARA REDE COLETORA DE ESGOTO, DN 1000 MM, JUNTA ELÁSTICA INTEGRADA - FORNECIMENTO E ASSENTAMENTO. AF_01/2021 | I104: M | J104: ATRIBUÍDO SÃO PAULO | K104: 1993.03 | L104: CAIXA REFERENCIAL
A105: ASSENTAMENTO DE TUBOS E PECAS | B105: ASTU | C105: FORNEC E/OU ASSENT DE TUBO DE PVC COM JUNTA ELASTICA | D105: 48 | G105: 94880 | H105: ASSENTAMENTO DE TUBO DE PEAD CORRUGADO DE DUPLA PAREDE PARA REDE COLETORA DE ESGOTO, DN 1000 MM, JUNTA ELÁSTICA INTEGRADA (NÃO INCLUI FORNECIMENTO). AF_01/2021 | I105: M | J105: ATRIBUÍDO SÃO PAULO | K105: 39.63 | L105: CAIXA REFERENCIAL
A106: ASSENTAMENTO DE TUBOS E PECAS | B106: ASTU | C106: FORNEC E/OU ASSENT DE TUBO DE PVC COM JUNTA ELASTICA | D106: 48 | G106: 94881 | H106: TUBO DE PEAD CORRUGADO DE DUPLA PAREDE PARA REDE COLETORA DE ESGOTO, DN 1200 MM, JUNTA ELÁSTICA INTEGRADA - FORNECIMENTO E ASSENTAMENTO. AF_01/2021 | I106: M | J106: ATRIBUÍDO SÃO PAULO | K106: 2745.87 | L106: CAIXA REFERENCIAL
A107: ASSENTAMENTO DE TUBOS E PECAS | B107: ASTU | C107: FORNEC E/OU ASSENT DE TUBO DE PVC COM JUNTA ELASTICA | D107: 48 | G107: 94882 | H107: ASSENTAMENTO DE TUBO DE PEAD CORRUGADO DE DUPLA PAREDE PARA REDE COLETORA DE ESGOTO, DN 1200 MM, JUNTA ELÁSTICA INTEGRADA (NÃO INCLUI FORNECIMENTO). AF_01/2021 | I107: M | J107: ATRIBUÍDO SÃO PAULO | K107: 46.14 | L107: CAIXA REFERENCIAL
A108: ASSENTAMENTO DE TUBOS E PECAS | B108: ASTU | C108: FORNEC E/OU ASSENT DE TUBO DE PVC COM JUNTA ELASTICA | D108: 48 | G108: 94884 | H108: ASSENTAMENTO DE TUBO DE PEAD CORRUGADO DE DUPLA PAREDE PARA REDE COLETORA DE ESGOTO, DN 1500 MM, JUNTA ELÁSTICA INTEGRADA (NÃO INCLUI FORNECIMENTO). AF_01/2021 | I108: M | J108: ATRIBUÍDO SÃO PAULO | K108: 59.37 | L108: CAIXA REFERENCIAL
A109: ASSENTAMENTO DE TUBOS E PECAS | B109: ASTU | C109: FORNEC E/OU ASSENT DE TUBO DE PVC COM JUNTA ELASTICA | D109: 48 | G109: 97121 | H109: ASSENTAMENTO DE TUBO DE PVC PBA PARA REDE DE ÁGUA, DN 50 MM, JUNTA ELÁSTICA INTEGRADA, INSTALADO EM LOCAL COM NÍVEL ALTO DE INTERFERÊNCIAS (NÃO INCLUI FORNECIMENTO). AF_11/2017 | I109: M | J109: COEFICIENTE DE REPRESENTATIVIDADE | K109: 1.71 | L109: CAIXA REFERENCIAL
A110: ASSENTAMENTO DE TUBOS E PECAS | B110: ASTU | C110: FORNEC E/OU ASSENT DE TUBO DE PVC COM JUNTA ELASTICA | D110: 48 | G110: 97122 | H110: ASSENTAMENTO DE TUBO DE PVC PBA PARA REDE DE ÁGUA, DN 75 MM, JUNTA ELÁSTICA INTEGRADA, INSTALADO EM LOCAL COM NÍVEL ALTO DE INTERFERÊNCIAS (NÃO INCLUI FORNECIMENTO). AF_11/2017 | I110: M | J110: COEFICIENTE DE REPRESENTATIVIDADE | K110: 2.37 | L110: CAIXA REFERENCIAL
A111: ASSENTAMENTO DE TUBOS E PECAS | B111: ASTU | C111: FORNEC E/OU ASSENT DE TUBO DE PVC COM JUNTA ELASTICA | D111: 48 | G111: 97123 | H111: ASSENTAMENTO DE TUBO DE PVC PBA PARA REDE DE ÁGUA, DN 100 MM, JUNTA ELÁSTICA INTEGRADA, INSTALADO EM LOCAL COM NÍVEL ALTO DE INTERFERÊNCIAS (NÃO INCLUI FORNECIMENTO). AF_11/2017 | I111: M | J111: COEFICIENTE DE REPRESENTATIVIDADE | K111: 3 | L111: CAIXA REFERENCIAL
A112: ASSENTAMENTO DE TUBOS E PECAS | B112: ASTU | C112: FORNEC E/OU ASSENT DE TUBO DE PVC COM JUNTA ELASTICA | D112: 48 | G112: 97124 | H112: ASSENTAMENTO DE TUBO DE PVC PBA PARA REDE DE ÁGUA, DN 50 MM, JUNTA ELÁSTICA INTEGRADA, INSTALADO EM LOCAL COM NÍVEL BAIXO DE INTERFERÊNCIAS (NÃO INCLUI FORNECIMENTO). AF_11/2017 | I112: M | J112: COEFICIENTE DE REPRESENTATIVIDADE | K112: 0.76 | L112: CAIXA REFERENCIAL
A113: ASSENTAMENTO DE TUBOS E PECAS | B113: ASTU | C113: FORNEC E/OU ASSENT DE TUBO DE PVC COM JUNTA ELASTICA | D113: 48 | G113: 97125 | H113: ASSENTAMENTO DE TUBO DE PVC PBA PARA REDE DE ÁGUA, DN 75 MM, JUNTA ELÁSTICA INTEGRADA, INSTALADO EM LOCAL COM NÍVEL BAIXO DE INTERFERÊNCIAS (NÃO INCLUI FORNECIMENTO). AF_11/2017 | I113: M | J113: COEFICIENTE DE REPRESENTATIVIDADE | K113: 1.07 | L113: CAIXA REFERENCIAL
A114: ASSENTAMENTO DE TUBOS E PECAS | B114: ASTU | C114: FORNEC E/OU ASSENT DE TUBO DE PVC COM JUNTA ELASTICA | D114: 48 | G114: 97126 | H114: ASSENTAMENTO DE TUBO DE PVC PBA PARA REDE DE ÁGUA, DN 100 MM, JUNTA ELÁSTICA INTEGRADA, INSTALADO EM LOCAL COM NÍVEL BAIXO DE INTERFERÊNCIAS (NÃO INCLUI FORNECIMENTO). AF_11/2017 | I114: M | J114: COEFICIENTE DE REPRESENTATIVIDADE | K114: 1.36 | L114: CAIXA REFERENCIAL
A115: ASSENTAMENTO DE TUBOS E PECAS | B115: ASTU | C115: FORNEC E/OU ASSENT DE TUBO DE PVC COM JUNTA ELASTICA | D115: 48 | G115: 102264 | H115: TUBO DE PVC BRANCO PARA REDE COLETORA DE ESGOTO CONDOMINIAL DE PAREDE MACIÇA, DN 100 MM, JUNTA ELÁSTICA - FORNECIMENTO E ASSENTAMENTO. AF_01/2021 | I115: M | J115: COEFICIENTE DE REPRESENTATIVIDADE | K115: 19.31 | L115: CAIXA REFERENCIAL
A116: ASSENTAMENTO DE TUBOS E PECAS | B116: ASTU | C116: FORNEC E/OU ASSENT DE TUBO DE PVC COM JUNTA ELASTICA | D116: 48 | G116: 102265 | H116: JUNTA ARGAMASSADA ENTRE TUBO DN 800 MM E O POÇO DE VISITA/ CAIXA DE CONCRETO OU ALVENARIA EM REDES DE ESGOTO. AF_01/2021 | I116: UN | J116: COEFICIENTE DE REPRESENTATIVIDADE | K116: 87.94 | L116: CAIXA REFERENCIAL
A117: ASSENTAMENTO DE TUBOS E PECAS | B117: ASTU | C117: FORNEC E/OU ASSENT DE TUBO DE PVC COM JUNTA ELASTICA | D117: 48 | G117: 102266 | H117: JUNTA ARGAMASSADA ENTRE TUBO DN 900 MM E O POÇO DE VISITA/ CAIXA DE CONCRETO OU ALVENARIA EM REDES DE ESGOTO. AF_01/2021 | I117: UN | J117: COEFICIENTE DE REPRESENTATIVIDADE | K117: 97.54 | L117: CAIXA REFERENCIAL
A118: ASSENTAMENTO DE TUBOS E PECAS | B118: ASTU | C118: FORNEC E/OU ASSENT DE TUBO DE PVC COM JUNTA ELASTICA | D118: 48 | G118: 102267 | H118: JUNTA ARGAMASSADA ENTRE TUBO DN 1000 MM E O POÇO DE VISITA/ CAIXA DE CONCRETO OU ALVENARIA EM REDES DE ESGOTO. AF_01/2021 | I118: UN | J118: COEFICIENTE DE REPRESENTATIVIDADE | K118: 112.03 | L118: CAIXA REFERENCIAL
A119: ASSENTAMENTO DE TUBOS E PECAS | B119: ASTU | C119: FORNEC E/OU ASSENT DE TUBO DE PVC COM JUNTA ELASTICA | D119: 48 | G119: 102268 | H119: JUNTA ARGAMASSADA ENTRE TUBO DN 1200 MM E O POÇO DE VISITA/ CAIXA DE CONCRETO OU ALVENARIA EM REDES DE ESGOTO. AF_01/2021 | I119: UN | J119: COEFICIENTE DE REPRESENTATIVIDADE | K119: 126.43 | L119: CAIXA REFERENCIAL
A120: ASSENTAMENTO DE TUBOS E PECAS | B120: ASTU | C120: FORNEC E/OU ASSENT DE TUBO DE PVC COM JUNTA ELASTICA | D120: 48 | G120: 102269 | H120: JUNTA ARGAMASSADA ENTRE TUBO DN 1500 MM E O POÇO DE VISITA/ CAIXA DE CONCRETO OU ALVENARIA EM REDES DE ESGOTO. AF_01/2021 | I120: UN | J120: COEFICIENTE DE REPRESENTATIVIDADE | K120: 155.24 | L120: CAIXA REFERENCIAL
A121: ASSENTAMENTO DE TUBOS E PECAS | B121: ASTU | C121: FORNEC E/OU ASSENT DE TUBO DE CONCRETO COM JUNTA ELASTICA | D121: 51 | G121: 92833 | H121: TUBO DE CONCRETO PARA REDES COLETORAS DE ESGOTO SANITÁRIO, DIÂMETRO DE 300 MM, JUNTA ELÁSTICA, INSTALADO EM LOCAL COM BAIXO NÍVEL DE INTERFERÊNCIAS - FORNECIMENTO E ASSENTAMENTO. AF_12/2015 | I121: M | J121: ATRIBUÍDO SÃO PAULO | K121: 221.81 | L121: CAIXA REFERENCIAL
A122: ASSENTAMENTO DE TUBOS E PECAS | B122: ASTU | C122: FORNEC E/OU ASSENT DE TUBO DE CONCRETO COM JUNTA ELASTICA | D122: 51 | G122: 92834 | H122: ASSENTAMENTO DE TUBO DE CONCRETO PARA REDES COLETORAS DE ESGOTO SANITÁRIO, DIÂMETRO DE 300 MM, JUNTA ELÁSTICA, INSTALADO EM LOCAL COM BAIXO NÍVEL DE INTERFERÊNCIAS (NÃO INCLUI FORNECIMENTO). AF_12/2015 | I122: M | J122: ATRIBUÍDO SÃO PAULO | K122: 8.7 | L122: CAIXA REFERENCIAL
A123: ASSENTAMENTO DE TUBOS E PECAS | B123: ASTU | C123: FORNEC E/OU ASSENT DE TUBO DE CONCRETO COM JUNTA ELASTICA | D123: 51 | G123: 92835 | H123: TUBO DE CONCRETO PARA REDES COLETORAS DE ESGOTO SANITÁRIO, DIÂMETRO DE 400 MM, JUNTA ELÁSTICA, INSTALADO EM LOCAL COM BAIXO NÍVEL DE INTERFERÊNCIAS - FORNECIMENTO E ASSENTAMENTO. AF_12/2015 | I123: M | J123: ATRIBUÍDO SÃO PAULO | K123: 232.33 | L123: CAIXA REFERENCIAL
A124: ASSENTAMENTO DE TUBOS E PECAS | B124: ASTU | C124: FORNEC E/OU ASSENT DE TUBO DE CONCRETO COM JUNTA ELASTICA | D124: 51 | G124: 92836 | H124: ASSENTAMENTO DE TUBO DE CONCRETO PARA REDES COLETORAS DE ESGOTO SANITÁRIO, DIÂMETRO DE 400 MM, JUNTA ELÁSTICA, INSTALADO EM LOCAL COM BAIXO NÍVEL DE INTERFERÊNCIAS (NÃO INCLUI FORNECIMENTO). AF_12/2015 | I124: M | J124: ATRIBUÍDO SÃO PAULO | K124: 11.11 | L124: CAIXA REFERENCIAL
A125: ASSENTAMENTO DE TUBOS E PECAS | B125: ASTU | C125: FORNEC E/OU ASSENT DE TUBO DE CONCRETO COM JUNTA ELASTICA | D125: 51 | G125: 92837 | H125: TUBO DE CONCRETO PARA REDES COLETORAS DE ESGOTO SANITÁRIO, DIÂMETRO DE 500 MM, JUNTA ELÁSTICA, INSTALADO EM LOCAL COM BAIXO NÍVEL DE INTERFERÊNCIAS - FORNECIMENTO E ASSENTAMENTO. AF_12/2015 | I125: M | J125: ATRIBUÍDO SÃO PAULO | K125: 410.2 | L125: CAIXA REFERENCIAL
A126: ASSENTAMENTO DE TUBOS E PECAS | B126: ASTU | C126: FORNEC E/OU ASSENT DE TUBO DE CONCRETO COM JUNTA ELASTICA | D126: 51 | G126: 92838 | H126: ASSENTAMENTO DE TUBO DE CONCRETO PARA REDES COLETORAS DE ESGOTO SANITÁRIO, DIÂMETRO DE 500 MM, JUNTA ELÁSTICA, INSTALADO EM LOCAL COM BAIXO NÍVEL DE INTERFERÊNCIAS (NÃO INCLUI FORNECIMENTO). AF_12/2015 | I126: M | J126: ATRIBUÍDO SÃO PAULO | K126: 13.31 | L126: CAIXA REFERENCIAL
A127: ASSENTAMENTO DE TUBOS E PECAS | B127: ASTU | C127: FORNEC E/OU ASSENT DE TUBO DE CONCRETO COM JUNTA ELASTICA | D127: 51 | G127: 92839 | H127: TUBO DE CONCRETO PARA REDES COLETORAS DE ESGOTO SANITÁRIO, DIÂMETRO DE 600 MM, JUNTA ELÁSTICA, INSTALADO EM LOCAL COM BAIXO NÍVEL DE INTERFERÊNCIAS - FORNECIMENTO E ASSENTAMENTO. AF_12/2015 | I127: M | J127: ATRIBUÍDO SÃO PAULO | K127: 501.87 | L127: CAIXA REFERENCIAL
A128: ASSENTAMENTO DE TUBOS E PECAS | B128: ASTU | C128: FORNEC E/OU ASSENT DE TUBO DE CONCRETO COM JUNTA ELASTICA | D128: 51 | G128: 92840 | H128: ASSENTAMENTO DE TUBO DE CONCRETO PARA REDES COLETORAS DE ESGOTO SANITÁRIO, DIÂMETRO DE 600 MM, JUNTA ELÁSTICA, INSTALADO EM LOCAL COM BAIXO NÍVEL DE INTERFERÊNCIAS (NÃO INCLUI FORNECIMENTO). AF_12/2015 | I128: M | J128: ATRIBUÍDO SÃO PAULO | K128: 15.79 | L128: CAIXA REFERENCIAL
A129: ASSENTAMENTO DE TUBOS E PECAS | B129: ASTU | C129: FORNEC E/OU ASSENT DE TUBO DE CONCRETO COM JUNTA ELASTICA | D129: 51 | G129: 92841 | H129: TUBO DE CONCRETO PARA REDES COLETORAS DE ESGOTO SANITÁRIO, DIÂMETRO DE 700 MM, JUNTA ELÁSTICA, INSTALADO EM LOCAL COM BAIXO NÍVEL DE INTERFERÊNCIAS - FORNECIMENTO E ASSENTAMENTO. AF_12/2015 | I129: M | J129: ATRIBUÍDO SÃO PAULO | K129: 654.43 | L129: CAIXA REFERENCIAL
A130: ASSENTAMENTO DE TUBOS E PECAS | B130: ASTU | C130: FORNEC E/OU ASSENT DE TUBO DE CONCRETO COM JUNTA ELASTICA | D130: 51 | G130: 92842 | H130: ASSENTAMENTO DE TUBO DE CONCRETO PARA REDES COLETORAS DE ESGOTO SANITÁRIO, DIÂMETRO DE 700 MM, JUNTA ELÁSTICA, INSTALADO EM LOCAL COM BAIXO NÍVEL DE INTERFERÊNCIAS (NÃO INCLUI FORNECIMENTO). AF_12/2015 | I130: M | J130: ATRIBUÍDO SÃO PAULO | K130: 18.02 | L130: CAIXA REFERENCIAL
A131: ASSENTAMENTO DE TUBOS E PECAS | B131: ASTU | C131: FORNEC E/OU ASSENT DE TUBO DE CONCRETO COM JUNTA ELASTICA | D131: 51 | G131: 92843 | H131: TUBO DE CONCRETO PARA REDES COLETORAS DE ESGOTO SANITÁRIO, DIÂMETRO DE 800 MM, JUNTA ELÁSTICA, INSTALADO EM LOCAL COM BAIXO NÍVEL DE INTERFERÊNCIAS - FORNECIMENTO E ASSENTAMENTO. AF_12/2015 | I131: M | J131: ATRIBUÍDO SÃO PAULO | K131: 678.61 | L131: CAIXA REFERENCIAL
A132: ASSENTAMENTO DE TUBOS E PECAS | B132: ASTU | C132: FORNEC E/OU ASSENT DE TUBO DE CONCRETO COM JUNTA ELASTICA | D132: 51 | G132: 92844 | H132: ASSENTAMENTO DE TUBO DE CONCRETO PARA REDES COLETORAS DE ESGOTO SANITÁRIO, DIÂMETRO DE 800 MM, JUNTA ELÁSTICA, INSTALADO EM LOCAL COM BAIXO NÍVEL DE INTERFERÊNCIAS (NÃO INCLUI FORNECIMENTO). AF_12/2015 | I132: M | J132: ATRIBUÍDO SÃO PAULO | K132: 20.5 | L132: CAIXA REFERENCIAL
A133: ASSENTAMENTO DE TUBOS E PECAS | B133: ASTU | C133: FORNEC E/OU ASSENT DE TUBO DE CONCRETO COM JUNTA ELASTICA | D133: 51 | G133: 92845 | H133: TUBO DE CONCRETO PARA REDES COLETORAS DE ESGOTO SANITÁRIO, DIÂMETRO DE 900 MM, JUNTA ELÁSTICA, INSTALADO EM LOCAL COM BAIXO NÍVEL DE INTERFERÊNCIAS - FORNECIMENTO E ASSENTAMENTO. AF_12/2015 | I133: M | J133: ATRIBUÍDO SÃO PAULO | K133: 1004.61 | L133: CAIXA REFERENCIAL
